Workbook

Sheet License
A9: This work is licensed under a Creative Commons Attribution 4.0 International License.
A11: To view a copy of this license, visit http://creativecommons.org/licenses/by/4.0/ or send a letter to Creative Commons, PO Box 1866, Mountain View, CA 94042, USA.

Sheet User Guide
A1: Cost-effectiveness analysis of reflex testing for Lynch syndrome in women with endometrial cancer in the UK setting
A2: Economic Model
A4: User Guide
A6: Introduction
A7: This Excel workbook contains an economic model used for conducting an economic evaluation (cost-effectiveness analysis) of reflex testing for Lynch syndrome in women with endometrial cancer in the UK setting. It accompanies an article published in PLOS ONE by Snowsill et al.:
A8: Snowsill TM, Ryan NAJ, Crosbie EJ, Frayling IM, Evans DG, Hyde CJ. Cost-effectiveness analysis of reflex testing for Lynch syndrome in women with endometrial cancer in the UK setting. PLOS ONE (accepted).
A9: This workbook has been made open access (see License) for a number of reasons:
A10: 1) To aid users in understanding the analysis (transparency and reproducibility)
A11: Journal publications typically cannot contain sufficient detail to allow other researchers to exactly reproduce the results. By making the code and simulation data freely available it can be explored and interrogated.
A12: 2) To improve the likely validity of the work
A13: While making data open is not sufficient to make work more valid, researchers are likely to take more care over their work if it is to be made fully open, and it is possible for errors to be identified later and corrections issued if necessary.
A14: 3) To make it easier for others to extend the work
A15: This economic evaluation can be extended, or applied in alternative settings by researchers, provided suitable attribution is given in accordance with the License. This substantially lowers the barrier for entry for researchers or decision makers attempting to evaluate the cost-effectiveness of reflex testing for Lynch syndrome in their setting.
A16: If you have difficulties using this workbook, or believe there is an error, please contact Tristan Snowsill by email <t.m.snowsill@exeter.ac.uk> or on Twitter (https://www.twitter.com/TMSnowsill)
A18: Navigating the workbook
A19: For the base case (deterministic) analysis, there are several key worksheets to be aware of:
A20: Results | B20: Brings together the results for the different diagnostic strategies and calculates ICERs.
A21: Parameters | B21: Contains all of the inputs for the model, including parameters for natural history, test accuracy, surveillance effectiveness, costs and utility values.
A22: Decision tree - Probands | B22: Simulates reflex testing strategies, how patients are categorised by different tests and what effect that has on costs and utilities.
A23: Decision tree - Relatives | B23: Simulates testing of relatives after a proband or index patient has received testing.
A24: MM-Summary | B24: Brings together long-term cost and QALY estimates from the Markov model worksheets.
A25: MM-Pro-F-MLH1-TP to MM-Rel-M-Sporadic-TN | B25: Markov models for different sets of patients. The worksheet name is MM-{Type}-{Sex}-{Genotype}-{Diagnosis}, where Type is Pro/Rel for proband/relative, Sex is F/M for female/male, Genotype is MLH1/MSH2/MSH6/PMS2/Sporadic and Diagnosis is TP/LL/FN/FP/TN for true positive, putative Lynch syndrome, false negative, false positive and true negative.
A26: Relative age DT | B26: The base case analysis incorporates heterogeneity in the ages of relatives and this is implemented through the use of an Excel data table. This is a macro-free way of calculating results based on multiple different input values.
A27: For the probabilistic sensitivity analysis, the sheet PSA is used to track the parameter values and outputs of each PSA iteration and contains the PSA iterations used in the article. The sheet PSA Results mirrors the sheet Results but takes outputs from the PSA instead of the live model.
A28: The one-way sensitivity analysis is conducted in the OWSA sheet and the Scenario analyses are conducted in the Scenarios sheet.
A29: To conduct new sensitivity analyses use the buttons on the Control sheet. The base case (deterministic) analysis does not require the use of any macros.
A30: Other worksheets are hopefully self-explanatory.

Sheet Control
A4: Analysis | B4: Deterministic | C4: =VLOOKUP($B$4,tbl_analysis,2,FALSE) -> 1
A6: PSA iterations | B6: 1000

Sheet Results
A1: Strategy | B1: 1 | C1: 2 | D1: 3 | E1: 4 | F1: 5 | G1: 6 | Q1: S1 | R1: S2 | S1: S3 | T1: S4
A2: Description | B2: IHC | C2: IHC with methylation | D2: MSI | E2: MSI with methylation | F2: Direct mutation testing | G2: No screening | Q2: PREMM | R2: MMRpredict | S2: MMRpro | T2: MMRpro + IHC | W2: PROBANDS | AC2: RELATIVES
A3: Diagnostic Outcomes (Probands) | Q3: Diagnostic Outcomes (Probands) | V3: 2 | X3: LS status | AB3: 2 | AD3: LS status
A4: True Positives | B4: ='Decision tree - Probands'!BB355 -> 0.01801993274 | C4: ='Decision tree - Probands'!BC355 -> 0.01783768392 | D4: ='Decision tree - Probands'!BD355 -> 0.01723388361 | E4: ='Decision tree - Probands'!BE355 -> 0.01604370311 | F4: ='Decision tree - Probands'!BF355 -> 0.01611469095 | G4: ='Decision tree - Probands'!BG355 -> 0 | Q4: ='Supplementary decision trees'!AL$45 -> 0.01226886185 | R4: ='Supplementary decision trees'!AM$45 -> 0.01363206872 | S4: ='Supplementary decision trees'!AN$45 -> 0.01090565498 | T4: ='Supplementary decision trees'!AO$45 -> 0.0128993358 | V4: IHC with methylation | X4: Has LS | Y4: Sporadic | Z4: Total | AB4: IHC with methylation | AD4: Has LS | AE4: Sporadic | AF4: Total
A5: False Positives | B5: ='Decision tree - Probands'!BH355 -> 0.03323378495 | C5: ='Decision tree - Probands'!BI355 -> 0.007480126995 | D5: ='Decision tree - Probands'!BJ355 -> 0.03013081858 | E5: ='Decision tree - Probands'!BK355 -> 0.00993599039 | F5: ='Decision tree - Probands'!BL355 -> 0 | G5: ='Decision tree - Probands'!BM355 -> 0 | Q5: ='Supplementary decision trees'!AP$45 -> 0.007467249127 | R5: ='Supplementary decision trees'!AQ$45 -> 0.01834237034 | S5: ='Supplementary decision trees'!AR$45 -> 0.007661351933 | T5: ='Supplementary decision trees'!AS$45 -> 0.005858221476 | V5: Result | W5: Pathogenic variant found | X5: ='Decision tree - Probands'!$CA$355 -> 0.01669631066 | Y5: 0 | Z5: =SUM(X5:Y5) -> 0.01669631066 | AB5: Result | AC5: Pathogenic variant found | AD5: ='Decision tree - Relatives'!$AK$134 -> 0.02453764397 | AE5: 0 | AF5: =SUM(AD5:AE5) -> 0.02453764397
A6: False Negatives | B6: ='Decision tree - Probands'!BN355 -> 0.02176942763 | C6: ='Decision tree - Probands'!BO355 -> 0.02195167645 | D6: ='Decision tree - Probands'!BP355 -> 0.02255547676 | E6: ='Decision tree - Probands'!BQ355 -> 0.02374565726 | F6: ='Decision tree - Probands'!BR355 -> 0.02367466942 | G6: ='Decision tree - Probands'!BS355 -> 0.03978936037 | Q6: ='Supplementary decision trees'!AT$45 -> 0.02752049852 | R6: ='Supplementary decision trees'!AU$45 -> 0.02615729165 | S6: ='Supplementary decision trees'!AV$45 -> 0.02888370539 | T6: ='Supplementary decision trees'!AW$45 -> 0.02689002458 | W6: Diagnosed LL | X6: ='Decision tree - Probands'!$CG$355 -> 0.001141373257 | Y6: ='Decision tree - Probands'!$BI$355 -> 0.007480126995 | Z6: =SUM(X6:Y6) -> 0.008621500252 | AC6: Diagnosed LL | AD6: ='Decision tree - Relatives'!$AQ$134 -> 0.01071245224 | AE6: ='Decision tree - Relatives'!$BC$134 -> 0.02841316331 | AF6: =SUM(AD6:AE6) -> 0.03912561554
A7: True Negatives | B7: ='Decision tree - Probands'!BT355 -> 0.9269768547 | C7: ='Decision tree - Probands'!BU355 -> 0.9527305126 | D7: ='Decision tree - Probands'!BV355 -> 0.9300798211 | E7: ='Decision tree - Probands'!BW355 -> 0.9502746492 | F7: ='Decision tree - Probands'!BX355 -> 0.9602106396 | G7: ='Decision tree - Probands'!BY355 -> 0.9602106396 | Q7: ='Supplementary decision trees'!AX$45 -> 0.9527433905 | R7: ='Supplementary decision trees'!AY$45 -> 0.9418682693 | S7: ='Supplementary decision trees'!AZ$45 -> 0.9525492877 | T7: ='Supplementary decision trees'!BA$45 -> 0.9543524182 | W7: Diagnosed sporadic | X7: ='Decision tree - Probands'!$BO$355 -> 0.02195167645 | Y7: ='Decision tree - Probands'!$BU$355 -> 0.9527305126 | Z7: =SUM(X7:Y7) -> 0.9746821891 | AC7: Diagnosed sporadic | AD7: ='Decision tree - Relatives'!$AW$134 -> 0.06979381517 | AE7: ='Decision tree - Relatives'!$BI$134 -> 5.866542925 | AF7: =SUM(AD7:AE7) -> 5.93633674
A8: Sensitivity | B8: =B4/(B4+B6) -> 0.4528831972 | C8: 0.4483028567 | D8: 0.433127938 | E8: 0.4032159089 | F8: 0.405 | G8: 0 | Q8: =Q4/(Q4+Q6) -> 0.3083452897 | R8: 0.3426058775 | S8: 0.274084702 | T8: 0.3241905795 | W8: Total | X8: =SUM(X5:X7) -> 0.03978936037 | Y8: =SUM(Y5:Y7) -> 0.9602106396 | Z8: =SUM(X8:Y8) -> 1 | AC8: Total | AD8: =SUM(AD5:AD7) -> 0.1050439114 | AE8: =SUM(AE5:AE7) -> 5.894956089 | AF8: =SUM(AD8:AE8) -> 6
A9: Specificity | B9: =B7/(B5+B7) -> 0.9653890682 | C9: 0.9922099103 | D9: 0.9686206158 | E9: 0.9896522805 | F9: 1 | G9: 1 | Q9: =Q7/(Q5+Q7) -> 0.9922233218 | R9: 0.9808975556 | S9: 0.9920211758 | T9: 0.9938990246
A10: PPV | B10: =B4/(B4+B5) -> 0.3515829398 | C10: 0.7045507994 | D10: 0.3638549978 | E10: 0.6175478209 | F10: 1 | Q10: =Q4/(Q4+Q5) -> 0.6216453619 | R10: 0.4263427014 | S10: 0.5873674217 | T10: 0.6876874003 | V10: S4 | X10: LS status | AB10: S4 | AD10: LS status
A11: NPV | B11: =B7/(B7+B6) -> 0.9770545318 | C11: 0.9774781188 | D11: 0.9763230726 | E11: 0.9756209834 | F11: 0.975937572 | G11: 0.9602106396 | Q11: =Q7/(Q7+Q6) -> 0.9719254184 | R11: 0.972978718 | S11: 0.9705698651 | T11: 0.9725959422 | V11: MMRpro + IHC | X11: Has LS | Y11: Sporadic | Z11: Total | AB11: MMRpro + IHC | AD11: Has LS | AE11: Sporadic | AF11: Total
A12: Diagnostic Costs (Probands) | Q12: Diagnostic Costs (Probands) | V12: Result | W12: Pathogenic variant found | X12: ='Supplementary decision trees'!$BE$45 -> 0.01148182637 | Y12: 0 | Z12: =SUM(X12:Y12) -> 0.01148182637 | AB12: Result | AC12: Pathogenic variant found | AD12: ='Supplementary decision trees'!$BB$122 -> 0.01687420492 | AE12: 0 | AF12: =SUM(AD12:AE12) -> 0.01687420492
A13: IHC | B13: ='Decision tree - Probands'!O359 -> 211.971329 | C13: ='Decision tree - Probands'!P359 -> 211.971329 | D13: ='Decision tree - Probands'!Q359 -> 0 | E13: ='Decision tree - Probands'!R359 -> 0 | F13: ='Decision tree - Probands'!S359 -> 0 | G13: ='Decision tree - Probands'!T359 -> 0 | W13: Diagnosed LL | X13: ='Supplementary decision trees'!$BI$45 -> 0.001417509428 | Y13: ='Supplementary decision trees'!$AS$45 -> 0.005858221476 | Z13: =SUM(X13:Y13) -> 0.007275730904 | AC13: Diagnosed LL | AD13: ='Supplementary decision trees'!$BF$122 -> 0.007916758577 | AE13: ='Supplementary decision trees'!$AP$122 -> 0.02165046887 | AF13: =SUM(AD13:AE13) -> 0.02956722745
A14: MSI | B14: ='Decision tree - Probands'!O360 -> 0 | C14: ='Decision tree - Probands'!P360 -> 0 | D14: ='Decision tree - Probands'!Q360 -> 203.7712271 | E14: ='Decision tree - Probands'!R360 -> 203.7712271 | F14: ='Decision tree - Probands'!S360 -> 0 | G14: ='Decision tree - Probands'!T360 -> 0 | W14: Diagnosed sporadic | X14: ='Supplementary decision trees'!$AW$45 -> 0.02689002458 | Y14: ='Supplementary decision trees'!$BA$45 -> 0.9543524182 | Z14: =SUM(X14:Y14) -> 0.9812424427 | AC14: Diagnosed sporadic | AD14: ='Supplementary decision trees'!$AT$122 -> 0.08025294788 | AE14: ='Supplementary decision trees'!$AX$122 -> 5.87330562 | AF14: =SUM(AD14:AE14) -> 5.953558568
A15: Methylation | B15: ='Decision tree - Probands'!O361 -> 0 | C15: ='Decision tree - Probands'!P361 -> 27.81112305 | D15: ='Decision tree - Probands'!Q361 -> 0 | E15: ='Decision tree - Probands'!R361 -> 34.75432933 | F15: ='Decision tree - Probands'!S361 -> 0 | G15: ='Decision tree - Probands'!T361 -> 0 | W15: Total | X15: =SUM(X12:X14) -> 0.03978936037 | Y15: =SUM(Y12:Y14) -> 0.9602106396 | Z15: =SUM(X15:Y15) -> 1 | AC15: Total | AD15: =SUM(AD12:AD14) -> 0.1050439114 | AE15: =SUM(AE12:AE14) -> 5.894956089 | AF15: =SUM(AD15:AE15) -> 6
A16: Pre-test counselling | B16: ='Decision tree - Probands'!O362 -> 61.49546242 | C16: ='Decision tree - Probands'!P362 -> 20.15729595 | D16: ='Decision tree - Probands'!Q362 -> 56.16459529 | E16: ='Decision tree - Probands'!R362 -> 23.26915751 | F16: ='Decision tree - Probands'!S362 -> 200.9666022 | G16: ='Decision tree - Probands'!T362 -> 0
A17: Genetic testing and post-test counselling | B17: ='Decision tree - Probands'!O363 -> 123.942991 | C17: ='Decision tree - Probands'!P363 -> 40.626665 | D17: ='Decision tree - Probands'!Q363 -> 113.1987249 | E17: ='Decision tree - Probands'!R363 -> 46.89856563 | F17: ='Decision tree - Probands'!S363 -> 399.6658221 | G17: ='Decision tree - Probands'!T363 -> 0
A18: Total diagnostic costs | B18: =SUM(B13:B17) -> 397.4097824 | C18: 300.5664129 | D18: 373.1345472 | E18: 308.6932796 | F18: 600.6324243 | G18: 0 | Q18: ='Supplementary decision trees'!K$45 -> 221.6498623 | R18: ='Supplementary decision trees'!L$45 -> 353.7790587 | S18: ='Supplementary decision trees'!M$45 -> 222.1807779 | T18: ='Supplementary decision trees'!N$45 -> 413.0124623
A19: Long-term Costs (Probands) | Q19: Long-term Costs (Probands)
A20: Total long-term costs | B20: ='Decision tree - Probands'!V$355 -> 231.8573283 | C20: ='Decision tree - Probands'!W$355 -> 186.8510888 | D20: ='Decision tree - Probands'!X$355 -> 225.0928363 | E20: ='Decision tree - Probands'!Y$355 -> 187.9164416 | F20: ='Decision tree - Probands'!Z$355 -> 171.3180922 | G20: ='Decision tree - Probands'!AA$355 -> 142.6063469 | Q20: ='Supplementary decision trees'!P$45 -> 176.7643762 | R20: ='Supplementary decision trees'!Q$45 -> 198.0057797 | S20: ='Supplementary decision trees'!R$45 -> 174.7470859 | T20: ='Supplementary decision trees'!S$45 -> 175.0588404
A21: TOTAL COSTS (Probands) | Q21: TOTAL COSTS (Probands)
A22: Total costs | B22: ='Decision tree - Probands'!AB$355 -> 629.2671107 | C22: ='Decision tree - Probands'!AC$355 -> 487.4175017 | D22: ='Decision tree - Probands'!AD$355 -> 598.2273835 | E22: ='Decision tree - Probands'!AE$355 -> 496.6097212 | F22: ='Decision tree - Probands'!AF$355 -> 771.9505164 | G22: ='Decision tree - Probands'!AG$355 -> 142.6063469 | Q22: ='Supplementary decision trees'!T$45 -> 398.4142385 | R22: ='Supplementary decision trees'!U$45 -> 551.7848384 | S22: ='Supplementary decision trees'!V$45 -> 396.9278638 | T22: ='Supplementary decision trees'!W$45 -> 588.0713027
A23: QALYs (Probands) | Q23: QALYs (Probands)
A24: Short term | B24: ='Decision tree - Probands'!AI355 -> 0 | C24: ='Decision tree - Probands'!AJ355 -> 0 | D24: ='Decision tree - Probands'!AK355 -> 0 | E24: ='Decision tree - Probands'!AL355 -> 0 | F24: ='Decision tree - Probands'!AM355 -> 0 | G24: ='Decision tree - Probands'!AN355 -> 0 | Q24: ='Supplementary decision trees'!Y$45 -> 0 | R24: ='Supplementary decision trees'!Z$45 -> 0 | S24: ='Supplementary decision trees'!AA$45 -> 0 | T24: ='Supplementary decision trees'!AB$45 -> 0
A25: Long term | B25: ='Decision tree - Probands'!AP355 -> 9.019370319 | C25: ='Decision tree - Probands'!AQ355 -> 9.018809894 | D25: ='Decision tree - Probands'!AR355 -> 9.018781215 | E25: ='Decision tree - Probands'!AS355 -> 9.017655541 | F25: ='Decision tree - Probands'!AT355 -> 9.017733768 | G25: ='Decision tree - Probands'!AU355 -> 9.006469224 | Q25: ='Supplementary decision trees'!AD$45 -> 9.014901548 | R25: ='Supplementary decision trees'!AE$45 -> 9.015998542 | S25: ='Supplementary decision trees'!AF$45 -> 9.013980937 | T25: ='Supplementary decision trees'!AG$45 -> 9.015303115
A26: Total QALYs | B26: ='Decision tree - Probands'!AV355 -> 9.019370319 | C26: ='Decision tree - Probands'!AW355 -> 9.018809894 | D26: ='Decision tree - Probands'!AX355 -> 9.018781215 | E26: ='Decision tree - Probands'!AY355 -> 9.017655541 | F26: ='Decision tree - Probands'!AZ355 -> 9.017733768 | G26: ='Decision tree - Probands'!BA355 -> 9.006469224 | Q26: =Q24+Q25 -> 9.014901548 | R26: =R24+R25 -> 9.015998542 | S26: 9.013980937 | T26: 9.015303115
A27: TOTAL COSTS (Relatives) | Q27: TOTAL COSTS (Relatives)
A28: Total costs | B28: ='Decision tree - Relatives'!J134 -> 4889.994759 | C28: ='Decision tree - Relatives'!K134 -> 4743.16117 | D28: ='Decision tree - Relatives'!L134 -> 4865.845914 | E28: ='Decision tree - Relatives'!M134 -> 4741.71974 | F28: ='Decision tree - Relatives'!N134 -> 4690.158323 | G28: ='Decision tree - Relatives'!O134 -> 4550.391559 | Q28: ='Supplementary decision trees'!Q$122 -> 4695.002118 | R28: ='Supplementary decision trees'!R$122 -> 4769.054517 | S28: ='Supplementary decision trees'!S$122 -> 4684.843875 | T28: ='Supplementary decision trees'!T$122 -> 4690.930732
A29: QALYs (Relatives) | Q29: QALYs (Relatives)
A30: Total QALYs | B30: ='Decision tree - Relatives'!AD134 -> 96.28167775 | C30: ='Decision tree - Relatives'!AE134 -> 96.28000684 | D30: ='Decision tree - Relatives'!AF134 -> 96.28040247 | E30: ='Decision tree - Relatives'!AG134 -> 96.2777069 | F30: ='Decision tree - Relatives'!AH134 -> 96.2782475 | G30: ='Decision tree - Relatives'!AI134 -> 96.2544104 | Q30: ='Supplementary decision trees'!AE$122 -> 96.27164424 | R30: ='Supplementary decision trees'!AF$122 -> 96.27408072 | S30: ='Supplementary decision trees'!AG$122 -> 96.26978253 | T30: ='Supplementary decision trees'!AH$122 -> 96.27242639
A31: TOTAL COSTS | Q31: TOTAL COSTS
A32: Total costs | B32: =B22+B28 -> 5519.26187 | C32: =C22+C28 -> 5230.578672 | D32: 5464.073297 | E32: 5238.329461 | F32: 5462.108839 | G32: 4692.997905 | Q32: =Q22+Q28 -> 5093.416356 | R32: =R22+R28 -> 5320.839355 | S32: 5081.771739 | T32: 5279.002035
A33: QALYs | Q33: QALYs
A34: Total QALYs | B34: =B26+B30 -> 105.3010481 | C34: =C26+C30 -> 105.2988167 | D34: 105.2991837 | E34: 105.2953624 | F34: 105.2959813 | G34: 105.2608796 | Q34: =Q26+Q30 -> 105.2865458 | R34: =R26+R30 -> 105.2900793 | S34: 105.2837635 | T34: 105.2877295
A35: NMB | B35: =B34*threshold-B32 -> 2100501.699 | C35: 2100745.756 | D35: 2100519.6 | E35: 2100668.919 | F35: 2100457.517 | G35: 2100524.594 | Q35: =Q34*threshold-Q32 -> 2100637.499 | R35: 2100480.746 | S35: 2100593.498 | T35: 2100475.588
A37: QALY rank | B37: =_xlfn.RANK.AVG(B34,$B$34:$G$34,1) -> 6 | C37: =_xlfn.RANK.AVG(C34,$B$34:$G$34,1) -> 4 | D37: 5 | E37: 2 | F37: 3 | G37: 1
A38: Cost rank | B38: =_xlfn.RANK.AVG(B32,$B$32:$G$32,1) -> 6 | C38: =_xlfn.RANK.AVG(C32,$B$32:$G$32,1) -> 2 | D38: 5 | E38: 3 | F38: 4 | G38: 1
A39: ICER points | B39: =B37*COUNT($B$37:$G$37)+B38 -> 42 | C39: =C37*COUNT($B$37:$G$37)+C38 -> 26 | D39: 35 | E39: 15 | F39: 22 | G39: 7
A40: ICER rank | B40: =_xlfn.RANK.AVG(B39,$B$39:$G$39,1) -> 6 | C40: =_xlfn.RANK.AVG(C39,$B$39:$G$39,1) -> 4 | D40: 5 | E40: 2 | F40: 3 | G40: 1
B43: QALYs | D43: Costs | F43: ICER | G43: INHB @ £20k/QALY
B44: Absolute | C44: vs. No screening | D44: Absolute | E44: vs. No screening | F44: vs. No screening | G44: vs. No screening
A45: =INDEX($B$2:$G$2,I45) -> No screening | B45: =INDEX($B$34:$G$34,1,I45) -> 105.2608796 | C45: =B45-$G$34 -> 0 | D45: =INDEX($B$32:$G$32,I45) -> 4692.997905 | E45: =D45-$G$32 -> 0 | F45: =E45/C45 ->  | G45: =C45-E45/20000 -> 0 | H45: 1 | I45: =MATCH(H45,$B$40:$G$40,0) -> 6
A46: =INDEX($B$2:$G$2,I46) -> MSI with methylation | B46: =INDEX($B$34:$G$34,1,I46) -> 105.2953624 | C46: =B46-$G$34 -> 0.03448282452 | D46: =INDEX($B$32:$G$32,I46) -> 5238.329461 | E46: =D46-$G$32 -> 545.3315557 | F46: =E46/C46 -> 15814.58489 | G46: =C46-E46/20000 -> 0.007216246739 | H46: 2 | I46: =MATCH(H46,$B$40:$G$40,0) -> 4
A47: Direct mutation testing | B47: 105.2959813 | C47: 0.03510164974 | D47: 5462.108839 | E47: 769.110934 | F47: 21910.96258 | G47: -0.003353896956 | H47: 3 | I47: 5
A48: IHC with methylation | B48: 105.2988167 | C48: 0.03793711438 | D48: 5230.578672 | E48: 537.5807665 | F48: 14170.31251 | G48: 0.01105807605 | H48: 4 | I48: 2
A49: MSI | B49: 105.2991837 | C49: 0.03830406593 | D49: 5464.073297 | E49: 771.075392 | F49: 20130.37972 | G49: -0.0002497036695 | H49: 5 | I49: 3
A50: IHC | B50: 105.3010481 | C50: 0.04016844621 | D50: 5519.26187 | E50: 826.2639642 | F50: 20569.97574 | G50: -0.001144751997 | H50: 6 | I50: 1
B55: IHC | C55: IHC with methylation | D55: MSI | E55: MSI with methylation | F55: Direct mutation testing | G55: No screening
A56: IHC | C56: =(HLOOKUP(C$55,$B$2:$G$34,31,FALSE)-HLOOKUP($A56,$B$2:$G$34,31,FALSE))/(HLOOKUP(C$55,$B$2:$G$34,33,FALSE)-HLOOKUP($A56,$B$2:$G$34,33,FALSE)) -> 129377.0801 | D56: 29601.56398 | E56: 49411.02731 | F56: 11279.91434 | G56: 20569.97574
A57: IHC with methylation | D57: 636309.1332 | E57: -2243.815503 | F57: -81655.10687 | G57: 14170.31251
A58: MSI | E58: 59076.04683 | F58: 613.4299389 | G58: 20130.37972
A59: MSI with methylation | F59: 361619.6795 | G59: 15814.58489
A60: Direct mutation testing | G60: 21910.96258

Sheet ImpactOfAge (hidden)
B1: Net monetary benefit at £20,000 per QALY
B2: IHC | C2: IHC with methylation | D2: MSI | E2: MSI with methylation | F2: Direct mutation testing | G2: No screening
B3: =Results!B$35 -> 2100501.699 | C3: =Results!C$35 -> 2100745.756 | D3: =Results!D$35 -> 2100519.6 | E3: =Results!E$35 -> 2100668.919 | F3: =Results!F$35 -> 2100457.517 | G3: =Results!G$35 -> 2100524.594
A4: Live | B4: =B3-$G$3 -> -22.89503994 | C4: =C3-$G$3 -> 221.161521 | D4: -4.99407339 | E4: 144.3249348 | F4: -67.07793913
A5: Proband age | R5: Age group | S5: 2017 cancer registrations | T5: Weighted INMB (assuming proband age at top of age group) | U5: Cumulative
A6: 40 | B6: 3248.740241 | C6: 3407.123475 | D6: 3123.191385 | E6: 3058.785742 | F6: 3006.560814 | R6: 35-39 | S6: 75 | T6: =C6*S6 -> 255534.2606 | U6: =T6 -> 255534.2606
A7: 45 | B7: 2286.011398 | C7: 2474.731541 | D7: 2202.65342 | E7: 2197.461961 | F7: 2107.892623 | R7: 40-44 | S7: 106 | T7: =C7*S7 -> 262321.5434 | U7: =U6+T7 -> 517855.804
A8: 50 | B8: 1305.298355 | C8: 1521.643239 | D8: 1265.03157 | E8: 1324.396194 | F8: 1190.21488 | R8: 45-49 | S8: 278 | T8: 423016.8203 | U8: =U7+T8 -> 940872.6243
A9: 55 | B9: 514.3552905 | C9: 748.8086695 | D9: 508.7704494 | E9: 621.4708826 | F9: 444.3388546 | R9: 50-54 | S9: 640 | T9: 479237.5485 | U9: 1420110.173
A10: 60 | B10: -22.89503994 | C10: 221.161521 | D10: -4.99407339 | E10: 144.3249348 | F10: -67.07793913 | R10: 55-59 | S10: 966 | T10: 213642.0292 | U10: 1633752.202
A11: 65 | B11: -323.0667599 | C11: -79.18849093 | D11: -292.3639709 | E11: -125.4654756 | F11: -361.4820912 | R11: 60-64 | S11: 1092 | T11: -86473.8321 | U11: 1547278.37
A12: 70 | B12: -462.5368727 | C12: -224.8173844 | D12: -426.2647568 | E12: -255.0051279 | F12: -507.0894991 | R12: 65-69 | S12: 1223 | T12: -274951.6611 | U12: 1272326.709
A13: 75 | B13: -505.516619 | C13: -282.0446334 | D13: -468.3261627 | E13: -304.186319 | F13: -568.3925586 | R13: 70-74 | S13: 1209 | T13: -340991.9618 | U13: 931334.747
A14: 80 | B14: -526.4418925 | C14: -302.1561055 | D14: -488.2974197 | E14: -322.1049263 | F14: -588.7590947 | R14: 75-79 | S14: 921 | T14: -278285.7732 | U14: 653048.9738
A27: Proband age holding prevalence and gene distribution fixed
A28: 40 | B28: 176.3174807 | C28: 441.0465473 | D28: 187.2690404 | E28: 344.463616 | F28: 145.820297
A29: 45 | B29: 144.0123358 | C29: 403.4951455 | D29: 155.9886242 | E29: 310.9518543 | F29: 109.3689919
A30: 50 | B30: 96.01878158 | C30: 350.496814 | D30: 109.7061953 | E30: 263.4693704 | F30: 58.67059046
A31: 55 | B31: 42.3697728 | C31: 290.3023369 | D31: 57.91060805 | E31: 209.7067958 | F31: 0.9119106587
A32: 60 | B32: -19.56880824 | C32: 222.137174 | D32: -1.799381944 | E32: 148.7110281 | F32: -64.14624249
A33: 65 | B33: -79.11731761 | C33: 153.8717903 | D33: -59.38362522 | E33: 87.94321064 | F33: -129.9579204
A34: 70 | B34: -138.6923651 | C34: 84.64987448 | D34: -117.0547358 | E34: 26.41286128 | F34: -196.9191645
A35: 75 | B35: -187.2598287 | C35: 21.34923721 | D35: -164.5216894 | E35: -29.15715511 | F35: -259.774513
A37: Prevalence holding age and gene distribution fixed
A38: 0.015 | B38: -369.5606269 | C38: -114.8810142 | D38: -336.0743582 | E38: -156.7878928 | F38: -394.6310731
A39: 0.02 | B39: -296.8404082 | C39: -44.85641631 | D39: -266.6197364 | E39: -93.31227089 | F39: -325.9639561
A40: 0.025 | B40: -224.1201894 | C40: 25.16818158 | D40: -197.1651146 | E40: -29.83664897 | F40: -257.2968391
A41: 0.03 | B41: -151.3999707 | C41: 95.19277947 | D41: -127.7104929 | E41: 33.63897295 | F41: -188.629722
A42: 0.035 | B42: -78.67975194 | C42: 165.2173774 | D42: -58.25587107 | E42: 97.11459487 | F42: -119.962605
A43: 0.04 | B43: -5.959533202 | C43: 235.2419753 | D43: 11.19875072 | E43: 160.5902168 | F43: -51.29548794
A44: 0.045 | B44: 66.76068554 | C44: 305.2665732 | D44: 80.65337251 | E44: 224.0658387 | F44: 17.3716291
A45: 0.05 | B45: 139.4809043 | C45: 375.2911711 | D45: 150.1079943 | E45: 287.5414606 | F45: 86.03874615

Sheet Tumour strategy DTA (hidden)
A1: IHC
C2: D
C3: D+ | D3: D-
A4: T | B4: T+ | C4: =C6*sens_IHC -> 0.03757557845 | D4: =D6-D5 -> 0.2422261813 | E4: =C4+D4 -> 0.2798017597 | F4: PPV | G4: =C4/E4 -> 0.1342935744
B5: T- | C5: =C6-C4 -> 0.002213781922 | D5: =D6*spec_IHC -> 0.7179844583 | E5: =C5+D5 -> 0.7201982403 | F5: NPV | G5: =D5/E5 -> 0.9969261492
C6: =p_EC_LS -> 0.03978936037 | D6: =1-p_EC_LS -> 0.9602106396
C7: Sens | D7: Spec
C8: =C4/C6 -> 0.9443624652 | D8: =D5/D6 -> 0.7477364119
A11: IHC with MLH1 methylation
C12: path_MLH1 | D12: path_MSH2 | E12: path_MSH6 | F12: path_PMS2 | G12: Sporadic
A13: IHC dMLH1 | C13: =C18*sens_IHC*p_dMLH1_pathMLH1 -> 0.003691101132 | D13: =D18*sens_IHC*p_dMLH1_pathNonMLH1 -> 6.696005066e-05 | E13: =E18*sens_IHC*p_dMLH1_pathNonMLH1 -> 0.0001207553675 | F13: =F18*sens_IHC*p_dMLH1_pathNonMLH1 -> 2.117889231e-05 | G13: =G18*(1-spec_IHC)*p_dMLH1_sporadic -> 0.2005935564 | J13: D+ | K13: D-
A14: IHC absent and MLH1 methylated | B14: T- | C14: =C13*p_methylated_dMLH1_pathMLH1 -> 0.0001845550566 | D14: =D13*p_methylated_dMLH1_pathMSH2 -> 6.265835602e-05 | E14: =E13*p_methylated_dMLH1_pathMSH6 -> 0.0001129977163 | F14: =F13*p_methylated_dMLH1_pathPMS2 -> 1.981830302e-05 | G14: =G13*p_methylated_dMLH1_sporadic -> 0.1877068841 | I14: T+ | J14: =SUM(C15:F16) -> 0.03719554902 | K14: =SUM(G15:G16) -> 0.05451929717 | L14: =SUM(J14:K14) -> 0.09171484618 | M14: PPV | N14: =J14/L14 -> 0.4055564673
A15: IHC absent and MLH1 not methylated | B15: T+ | C15: =C13*(1-p_methylated_dMLH1_pathMLH1) -> 0.003506546076 | D15: =D13*(1-p_methylated_dMLH1_pathMSH2) -> 4.301694645e-06 | E15: =E13*(1-p_methylated_dMLH1_pathMSH6) -> 7.757651206e-06 | F15: =F13*(1-p_methylated_dMLH1_pathPMS2) -> 1.360589288e-06 | G15: =G13*(1-p_methylated_dMLH1_sporadic) -> 0.01288667226 | I15: T- | J15: =SUM(C14:F14,C17:F17) -> 0.002593811354 | K15: =SUM(G14,G17) -> 0.9056913425 | L15: =SUM(J15:K15) -> 0.9082851538 | M15: NPV | N15: =K15/L15 -> 0.9971442764
A16: IHC other | B16: T+ | C16: =C18*sens_IHC*(1-p_dMLH1_pathMLH1) -> 0.0004613876416 | D16: =D18*sens_IHC*(1-p_dMLH1_pathNonMLH1) -> 0.01064664806 | E16: =E18*sens_IHC*(1-p_dMLH1_pathNonMLH1) -> 0.01920010343 | F16: =F18*sens_IHC*(1-p_dMLH1_pathNonMLH1) -> 0.003367443877 | G16: =G18*(1-spec_IHC)*(1-p_dMLH1_sporadic) -> 0.04163262491 | J16: =SUM(J14:J15) -> 0.03978936037 | K16: =SUM(K14:K15) -> 0.9602106396
A17: IHC complete | B17: T- | C17: =C18*(1-sens_IHC) -> 0.0002446457236 | D17: =D18*(1-sens_IHC) -> 0.0006311969882 | E17: =E18*(1-sens_IHC) -> 0.001138296992 | F17: =F18*(1-sens_IHC) -> 0.0001996422181 | G17: =G18*spec_IHC -> 0.7179844583 | J17: Sens | K17: Spec
C18: =p_EC_LS * p_LS_MLH1 -> 0.004397134498 | D18: =p_EC_LS * p_LS_MSH2 -> 0.01134480509 | E18: =p_EC_LS * p_LS_MSH6 -> 0.02045915579 | F18: =p_EC_LS * p_LS_PMS2 -> 0.003588264987 | G18: =1-p_EC_LS -> 0.9602106396 | J18: =J14/J16 -> 0.9348114338 | K18: =K15/K16 -> 0.9432215236
A21: MSI
C22: D
C23: D+ | D23: D-
A24: T | B24: T+ | C24: =C26*sens_MSI -> 0.03593649072 | D24: =D26*(1-spec_MSI) -> 0.2196100485 | E24: =C24+D24 -> 0.2555465392 | F24: PPV | G24: =C24/E24 -> 0.1406260121
B25: T- | C25: =C26*(1-sens_MSI) -> 0.003852869649 | D25: =D26*spec_MSI -> 0.7406005912 | E25: =C25+D25 -> 0.7444534608 | F25: NPV | G25: =D25/E25 -> 0.9948245661
C26: =p_EC_LS -> 0.03978936037 | D26: =1-p_EC_LS -> 0.9602106396
C27: Sens | D27: Spec
C28: =C24/C26 -> 0.9031683442 | D28: =D25/D26 -> 0.7712897156
A31: MSI with MLH1 methylation
C32: path_MLH1 | D32: path_MSH2 | E32: path_MSH6 | F32: path_PMS2 | G32: Sporadic | J32: D+ | K32: D-
A33: MSI | C33: =C37*sens_MSI -> 0.003971352683 | D33: =D37*sens_MSI -> 0.01024626883 | E33: =E37*sens_MSI -> 0.01847806186 | F33: =F37*sens_MSI -> 0.003240807347 | G33: =G37*(1-spec_MSI) -> 0.2196100485 | I33: T+ | J33: =SUM(C35:F35) -> 0.03345469894 | K33: =G35 -> 0.07241898608 | L33: =SUM(J33:K33) -> 0.105873685 | M33: PPV | N33: =J33/L33 -> 0.3159869134
A34: MSI and MLH1 methylated | B34: T- | C34: =C33*p_methylated_MSI_pathMLH1 -> 0.0001985676342 | D34: =D33*p_methylated_MSI_pathMSH2 -> 0.0007318763451 | E34: =E33*p_methylated_MSI_pathMSH6 -> 0.001319861561 | F34: =F33*p_methylated_MSI_pathPMS2 -> 0.0002314862391 | G34: =G33*p_methylated_MSI_sporadic -> 0.1471910624 | I34: T- | J34: =SUM(C34:F34,C36:F36) -> 0.006334661428 | K34: =SUM(G34,G36) -> 0.8877916535 | L34: =SUM(J34:K34) -> 0.894126315 | M34: NPV | N34: =K34/L34 -> 0.99291525
A35: MSI and MLH1 not methylated | B35: T+ | C35: =C33-C34 -> 0.003772785049 | D35: =D33-D34 -> 0.009514392487 | E35: 0.0171582003 | F35: 0.003009321108 | G35: =G33*(1-p_methylated_MSI_sporadic) -> 0.07241898608 | J35: =SUM(J33:J34) -> 0.03978936037 | K35: =SUM(K33:K34) -> 0.9602106396
A36: MSS | B36: T- | C36: =C37*(1-sens_MSI) -> 0.0004257818143 | D36: =D37*(1-sens_MSI) -> 0.001098536262 | E36: =E37*(1-sens_MSI) -> 0.001981093932 | F36: =F37*(1-sens_MSI) -> 0.0003474576402 | G36: =G37*spec_MSI -> 0.7406005912 | J36: Sens | K36: Spec
C37: =p_EC_LS * p_LS_MLH1 -> 0.004397134498 | D37: =p_EC_LS * p_LS_MSH2 -> 0.01134480509 | E37: =p_EC_LS * p_LS_MSH6 -> 0.02045915579 | F37: =p_EC_LS * p_LS_PMS2 -> 0.003588264987 | G37: =1-p_EC_LS -> 0.9602106396 | J37: =J33/J35 -> 0.8407950927 | K37: =K34/K35 -> 0.9245801045

Sheet Parameters
A1: Parameter | B1: Live value | C1: Deterministic | D1: PSA | E1: Description | F1: Source | G1: One-way sensitivity analysis | K1: Scenario analysis | P1: Calculations
G2: Low value | H2: High value | I2: Active | J2: Value | K2: Alt. value | L2: Source | M2: Active | N2: Value
A3: ANALYSIS CHARACTERISTICS
A5: threshold | B5: 20000
A8: Markov model characteristics
A9: cycle_length | B9: =1/12 -> 0.08333333333 | E9: =CONCATENATE("Cycle length in years (",cycle_length*12," month(s))") -> Cycle length in years (1 month(s))
A11: Time preference
A12: disc_cost | B12: =CHOOSE(analysis_mode,C12,D12,J12,N12) -> 0.035 | C12: 0.035 | D12: =C12 -> 0.035 | E12: Discount rate for costs | F12: NICE Methods guide | G12: 0.01 | H12: 0.06 | I12: 1 | J12: =CHOOSE(I12,C12,G12,H12) -> 0.035 | N12: =C12 -> 0.035
A13: disc_QALYs | B13: =CHOOSE(analysis_mode,C13,D13,J13,N13) -> 0.035 | C13: 0.035 | D13: =C13 -> 0.035 | E13: Discount rate for QALYs | F13: NICE Methods guide | G13: 0.01 | H13: 0.06 | I13: 1 | J13: =CHOOSE(I13,C13,G13,H13) -> 0.035 | N13: =C13 -> 0.035
A15: Population
A17: Proband (endometrial cancer patient)
A18: proband_age | B18: =CHOOSE(analysis_mode,C18,D18,J18,N18) -> 60 | C18: 60 | D18: =C18 -> 60 | G18: 50 | H18: 70 | I18: 1 | J18: =CHOOSE(I18,C18,G18,H18) -> 60 | N18: =C18 -> 60
A19: cohort_probands | B19: 1 | E19: Number of probands in cohort
A21: Relative
A22: relatives_per_proband | B22: =CHOOSE(analysis_mode,C22,D22,J22,N22) -> 6 | C22: 6 | D22: =_xlfn.GAMMA.INV(RAND(),$R22,$S22) -> 7.179872723 | E22: Mean number of relatives reached per proband by cascade testing | G22: =_xlfn.GAMMA.INV(0.025,$R22,$S22) -> 1.63479806 | H22: =_xlfn.GAMMA.INV(0.975,$R22,$S22) -> 13.1509096 | I22: 1 | J22: =CHOOSE(I22,C22,G22,H22) -> 6 | N22: =C22 -> 6 | P22: 6 | Q22: =P22*0.5 -> 3 | R22: =POWER(P22/Q22,2) -> 4 | S22: =Q22^2/P22 -> 1.5 | T22: (Gamma)
A23: p_FDR | B23: =CHOOSE(analysis_mode,C23,D23,J23,N23) -> 0.4236947748 | C23: =1/(1+EXP(-$P23)) -> 0.4236947748 | D23: =_xlfn.BETA.INV(RAND(),V23,W23) -> 0.4151564606 | E23: Proportion of relatives who are FDRs of the proband | F23: meglm fdr, family(binomial relatives) link(logit) vce(cluster study) - Jenkins 2006, Hampel 2008, Cardiff | G23: =_xlfn.BETA.INV(0.025,$V23,$W23) -> 0.3855575283 | H23: =_xlfn.BETA.INV(0.975,$V23,$W23) -> 0.4622867061 | I23: 1 | J23: =CHOOSE(I23,C23,G23,H23) -> 0.4236947748 | N23: =C23 -> 0.4236947748 | P23: -0.3076241 | Q23: 0.0801912 | R23: (logit) | S23: =1/(1+EXP(-P23)) -> 0.4236947748 | T23: =EXP(-P23)*POWER(1+EXP(-P23),-2)*Q23 -> 0.01958088775 | U23: transformed MLE and delta method SE | V23: =S23*(S23*(1-S23)/T23^2-1) -> 269.4086566 | W23: =(1-S23)*(S23*(1-S23)/T23^2-1) -> 366.4468522 | X23: beta method of moments
A24: p_rel_LS | B24: =CHOOSE(analysis_mode,C24,D24,J24,N24) -> 0.44 | C24: 0.44 | D24: =_xlfn.BETA.INV(RAND(),$P24,$Q24) -> 0.4247329516 | E24: Proportion of relatives who are found to have mutation on predictive testing | G24: =_xlfn.BETA.INV(0.025,$P24,$Q24) -> 0.4069881839 | H24: =_xlfn.BETA.INV(0.975,$P24,$Q24) -> 0.473982583 | I24: 1 | J24: =CHOOSE(I24,C24,G24,H24) -> 0.44 | N24: =C24 -> 0.44 | P24: 370.8985 | Q24: 471.3803 | R24: (Beta)
A25: relative_age | B25: =CHOOSE(analysis_mode,C25,D25,J25,N25) -> 54 | C25: ='Relative age DT'!$D$22 -> 54 | D25: =_xlfn.NORM.INV(RAND(),54,1.173) -> 53.21636761 | F25: Wessex data | G25: =C25-10 -> 44 | H25: =C25+10 -> 64 | I25: 1 | J25: =CHOOSE(I25,C25,G25,H25) -> 54 | N25: =C25 -> 54
A26: p_rel_female | B26: =CHOOSE(analysis_mode,C26,D26,J26,N26) -> 0.5279187817 | C26: =$P26/($P26+$Q26) -> 0.5279187817 | D26: =_xlfn.BETA.INV(RAND(),$P26,$Q26) -> 0.5310561038 | F26: Barrow 2014 PhD | G26: =_xlfn.BETA.INV(0.025,$P26,$Q26) -> 0.4876295559 | H26: =_xlfn.BETA.INV(0.975,$P26,$Q26) -> 0.5680290168 | I26: 1 | J26: =CHOOSE(I26,C26,G26,H26) -> 0.5279187817 | N26: =C26 -> 0.5279187817 | P26: 312 | Q26: 279
A28: Time horizon
A29: max_age | B29: 100 | E29: Maximum age time horizon
A31: NATURAL HISTORY
A33: Lynch syndrome
A35: Lynch syndrome prevalence
A36: Across all EC | B36: =CHOOSE(analysis_mode,C36,D36,J36,N36) -> 0.03906427158 | C36: =AB37 -> 0.03906427158 | D36: =_xlfn.LOGNORM.INV(RAND(),$AE$37,$AF$37) -> 0.04247456085 | E36: Prevalence of Lynch syndrome across all endometrial cancer | G36: =_xlfn.LOGNORM.INV(0.025,$AE$37,$AF$37) -> 0.01546601593 | H36: =_xlfn.LOGNORM.INV(0.975,$AE$37,$AF$37) -> 0.08226789421 | I36: 1 | J36: =CHOOSE(I36,C36,G36,H36) -> 0.03906427158 | K36: =EXP(-3.512697) -> 0.02981639109 | L36: 8 low drop-out studies | M36: FALSE | N36: =IF(AND(scenario_analysis,M36),K36,C36) -> 0.03906427158 | P36: Age distribution with LS | S36: Age distribution without LS | V36: ln(prevalence) | W36: SE | X36: Random effects SD (ln_prevalence) | AB36: Transformed MLE | AC36: SE (delta method) | AE36: mu (Method of moments) | AF36: sigma (Method of Moments)
A37: At proband age | B37: =CHOOSE(analysis_mode,C37,D37,J37,N37) -> 0.03978936037 | C37: =C36*_xlfn.NORM.DIST($B$18,$P$37,$Q$37,FALSE)/(C36*_xlfn.NORM.DIST($B$18,$P$37,$Q$37,FALSE)+(1-C36)*_xlfn.NORM.DIST($B$18,$S$37,$T$37,FALSE)) -> 0.03978936037 | D37: =D36*_xlfn.NORM.DIST($B$18,$P$37,$Q$37,FALSE)/(D36*_xlfn.NORM.DIST($B$18,$P$37,$Q$37,FALSE)+(1-D36)*_xlfn.NORM.DIST($B$18,$S$37,$T$37,FALSE)) -> 0.04326009981 | E37: Pre-test probability of Lynch syndrome for proband | G37: =G36*_xlfn.NORM.DIST($B$18,$P$37,$Q$37,FALSE)/(G36*_xlfn.NORM.DIST($B$18,$P$37,$Q$37,FALSE)+(1-G36)*_xlfn.NORM.DIST($B$18,$S$37,$T$37,FALSE)) -> 0.01576027122 | H37: =H36*_xlfn.NORM.DIST($B$18,$P$37,$Q$37,FALSE)/(H36*_xlfn.NORM.DIST($B$18,$P$37,$Q$37,FALSE)+(1-H36)*_xlfn.NORM.DIST($B$18,$S$37,$T$37,FALSE)) -> 0.08372503376 | J37: =CHOOSE(I36,C37,G37,H37) -> 0.03978936037 | N37: =N36*_xlfn.NORM.DIST($B$18,$P$37,$Q$37,FALSE)/(N36*_xlfn.NORM.DIST($B$18,$P$37,$Q$37,FALSE)+(1-N36)*_xlfn.NORM.DIST($B$18,$S$37,$T$37,FALSE)) -> 0.03978936037 | P37: 52.440105 | Q37: 9.3729508 | S37: 65.161209 | T37: 12.071493 | V37: -3.242547 | W37: 0.1422721 | X37: =EXP(-0.8598452) -> 0.4232275929 | AB37: =EXP(V37) -> 0.03906427158 | AC37: =AB37*SQRT(SUMSQ(W37:X37)) -> 0.0174422277 | AE37: =LN(AB37^2/SQRT(SUMSQ(AB37:AC37))) -> -3.333442269 | AF37: =SQRT(LN(1+(AC37/AB37)^2)) -> 0.4263690155
A39: Gene distribution
A40: MLH1 | B40: =VLOOKUP(proband_age,'Gene distribution NEW'!$A$6:$AE$1006,28,TRUE) -> 0.1105103087 | I40: 1
A41: MSH2 | B41: =VLOOKUP(proband_age,'Gene distribution NEW'!$A$6:$AE$1006,29,TRUE) -> 0.2851215749 | I41: 1
A42: MSH6 | B42: =VLOOKUP(proband_age,'Gene distribution NEW'!$A$6:$AE$1006,30,TRUE) -> 0.5141865967 | I42: 1
A43: PMS2 | B43: =VLOOKUP(proband_age,'Gene distribution NEW'!$A$6:$AE$1006,31,TRUE) -> 0.09018151972 | I43: 1
A46: wMLH1 | B46: =CHOOSE(analysis_mode,C46,D46,IF(I46=1,J46*(1-SUMPRODUCT(($I$46:$I$49<>1)*1,$J$46:$J$49))/SUMPRODUCT(($I$46:$I$49=1)*1,$J$46:$J$49),J46),N46) -> 0.1692307692 | C46: =Q46 -> 0.1692307692 | D46: =R46 -> 0.09769991717 | E46: Relative abundance of MLH1 in EC overall | F46: Multiple studies reporting gene distributions where age limit below 70 was not imposed | G46: =_xlfn.BETA.INV(0.025,P46,SUM($P$46:$P$49)-P46) -> 0.08904899633 | H46: =_xlfn.BETA.INV(0.975,P46,SUM($P$46:$P$49)-P46) -> 0.2686342443 | I46: 1 | J46: =CHOOSE(I46,C46,G46,H46) -> 0.1692307692 | N46: =C46 -> 0.1692307692 | P46: 11 | Q46: =P46/SUM($P$46:$P$49) -> 0.1692307692 | R46: =_xlfn.BETA.INV(RAND(),P46,SUM(P47:P49)) -> 0.09769991717
A47: wMSH2 | B47: =CHOOSE(analysis_mode,C47,D47,IF(I47=1,J47*(1-SUMPRODUCT(($I$46:$I$49<>1)*1,$J$46:$J$49))/SUMPRODUCT(($I$46:$I$49=1)*1,$J$46:$J$49),J47),N47) -> 0.2461538462 | C47: =Q47 -> 0.2461538462 | D47: =R47 -> 0.2600416182 | E47: …MSH2 | G47: =_xlfn.BETA.INV(0.025,P47,SUM($P$46:$P$49)-P47) -> 0.1501555741 | H47: =_xlfn.BETA.INV(0.975,P47,SUM($P$46:$P$49)-P47) -> 0.3569341104 | I47: 1 | J47: =CHOOSE(I47,C47,G47,H47) -> 0.2461538462 | N47: 0.2461538462 | P47: 16 | Q47: =P47/SUM($P$46:$P$49) -> 0.2461538462 | R47: =(1-R46)*_xlfn.BETA.INV(RAND(),P47,SUM(P48:P49)) -> 0.2600416182
A48: wMSH6 | B48: =CHOOSE(analysis_mode,C48,D48,IF(I48=1,J48*(1-SUMPRODUCT(($I$46:$I$49<>1)*1,$J$46:$J$49))/SUMPRODUCT(($I$46:$I$49=1)*1,$J$46:$J$49),J48),N48) -> 0.4769230769 | C48: 0.4769230769 | D48: 0.5457667387 | E48: …MSH6 | G48: 0.3575019967 | H48: 0.5976901554 | I48: 1 | J48: 0.4769230769 | N48: 0.4769230769 | P48: 31 | Q48: 0.4769230769 | R48: =(1-R46-R47)*_xlfn.BETA.INV(RAND(),P48,P49) -> 0.5457667387
A49: wPMS2 | B49: =CHOOSE(analysis_mode,C49,D49,IF(I49=1,J49*(1-SUMPRODUCT(($I$46:$I$49<>1)*1,$J$46:$J$49))/SUMPRODUCT(($I$46:$I$49=1)*1,$J$46:$J$49),J49),N49) -> 0.1076923077 | C49: 0.1076923077 | D49: 0.09649172587 | E49: …PMS2 | G49: 0.04512102019 | H49: 0.1929691044 | I49: 1 | J49: 0.1076923077 | N49: 0.1076923077 | P49: 7 | Q49: 0.1076923077 | R49: =1-R46-R47-R48 -> 0.09649172587
A50: 2.gene | B50: =CHOOSE(analysis_mode,C50,D50,J50,N50) -> -1.575155495 | C50: -1.575155495 | D50: =AE50 -> 2.037616333 | G50: =_xlfn.NORM.INV(0.025,$C50,$AG50) -> -7.306418133 | H50: =_xlfn.NORM.INV(0.975,$C50,$AG50) -> 4.156107144 | I50: 1 | J50: =CHOOSE(I50,C50,G50,H50) -> -1.575155495 | N50: -1.575155495 | P50: 2.gene | Q50: 2.924167323 | R50: 0 | S50: 0 | T50: 0 | U50: 0 | V50: 0 | W50: 0 | X50: 0 | Y50: 0 | Z50: 0 | AA50: 0 | AC50: =_xlfn.NORM.S.INV(RAND()) -> 1.235487381 | AD50: =MMULT(Q50:AA60,AC50:AC60) -> 3.612771828 | AE50: =C50+AD50 -> 2.037616333 | AG50: 2.924167323
A51: 3.gene | B51: -2.896344231 | C51: -2.896344231 | D51: =AE51 -> -4.438534078 | G51: =_xlfn.NORM.INV(0.025,$C51,$AG51) -> -13.34369391 | H51: =_xlfn.NORM.INV(0.975,$C51,$AG51) -> 7.551005444 | I51: 1 | J51: -2.896344231 | N51: -2.896344231 | P51: 3.gene | Q51: 0.923717083 | R51: 5.249731476 | S51: 0 | T51: 0 | U51: 0 | V51: 0 | W51: 0 | X51: 0 | Y51: 0 | Z51: 0 | AA51: 0 | AC51: =_xlfn.NORM.S.INV(RAND()) -> -0.5111557912 | AD51: -1.542189847 | AE51: =C51+AD51 -> -4.438534078 | AG51: 5.330378394
A52: 4.gene | B52: -3.544009112 | C52: -3.544009112 | D52: -8.889617773 | G52: -14.16877125 | H52: 7.080753022 | I52: 1 | J52: -3.544009112 | N52: -3.544009112 | P52: 4.gene | Q52: -0.1731888757 | R52: -0.0659949427 | S52: 5.417727421 | T52: 0 | U52: 0 | V52: 0 | W52: 0 | X52: 0 | Y52: 0 | Z52: 0 | AA52: 0 | AC52: -0.9534200019 | AD52: -5.345608661 | AE52: -8.889617773 | AG52: 5.420896617
A53: tspline31 | B53: 0.1879715203 | C53: 0.1879715203 | D53: 0.2099537155 | G53: 0.1136083358 | H53: 0.2623347048 | I53: 1 | J53: 0.1879715203 | N53: 0.1879715203 | P53: tspline31 | Q53: 0.02120371037 | R53: 0.008079835645 | S53: -0.00204117854 | T53: 0.03033940528 | U53: 0 | V53: 0 | W53: 0 | X53: 0 | Y53: 0 | Z53: 0 | AA53: 0 | AC53: -0.06693496833 | AD53: 0.02198219513 | AE53: 0.2099537155 | AG53: 0.03794109743
A54: tspline32 | B54: -0.3192603786 | C54: -0.3192603786 | D54: -0.3595738703 | G54: -0.461429519 | H54: -0.1770912383 | I54: 1 | J54: -0.3192603786 | N54: -0.3192603786 | P54: tspline32 | Q54: -0.03482966627 | R54: -0.01327211012 | S54: 0.01051157131 | T54: -0.0522827777 | U54: 0.03206748298 | V54: 0 | W54: 0 | X54: 0 | Y54: 0 | Z54: 0 | AA54: 0 | AC54: 0.07660101712 | AD54: -0.04031349167 | AE54: -0.3595738703 | AG54: 0.07253660856
A55: 2.gene#c.tspline31 | B55: 0.03242561918 | C55: 0.03242561918 | D55: -0.05651080994 | G55: -0.09726168483 | H55: 0.1621129232 | I55: 1 | J55: 0.03242561918 | N55: 0.03242561918 | P55: 2.gene#c.tspline31 | Q55: -0.06582015621 | R55: -0.0002293439796 | S55: 0.0007105506254 | T55: -0.001337931594 | U55: 0.002509746806 | V55: 0.006106772143 | W55: 0 | X55: 0 | Y55: 0 | Z55: 0 | AA55: 0 | AC55: -1.201622957 | AD55: -0.08893642912 | AE55: -0.05651080994 | AG55: 0.0661682077
A56: 3.gene#c.tspline31 | B56: 0.05607114316 | C56: 0.05607114316 | D56: 0.08379989628 | G56: -0.1746443744 | H56: 0.2867866608 | I56: 1 | J56: 0.05607114316 | N56: 0.05607114316 | P56: 3.gene#c.tspline31 | Q56: -0.02120371037 | R56: -0.1153740867 | S56: 0.0007341954827 | T56: -0.001853279048 | U56: 0.002465149361 | V56: 0.001350463789 | W56: 0.00916364463 | X56: 0 | Y56: 0 | Z56: 0 | AA56: 0 | AC56: -0.3315929587 | AD56: 0.02772875312 | AE56: 0.08379989628 | AG56: 0.1177141618
A57: 4.gene#c.tspline31 | B57: 0.06035538604 | C57: 0.06035538604 | D57: 0.1598043947 | G57: -0.1296789444 | H57: 0.2503897165 | I57: 1 | J57: 0.06035538604 | N57: 0.06035538604 | P57: 4.gene#c.tspline31 | Q57: 0.002903101656 | R57: 0.00110624904 | S57: -0.09630557938 | T57: -0.0002797918751 | U57: -0.002331864043 | V57: 0.001090813856 | W57: 0.0005532598708 | X57: 0.01046134545 | Y57: 0 | Z57: 0 | AA57: 0 | AC57: 0.598600105 | AD57: 0.09944900867 | AE57: 0.1598043947 | AG57: 0.09695807269
A58: 2.gene#c.tspline32 | B58: 0.02957446051 | C58: 0.02957446051 | D58: 0.1877595834 | G58: -0.190296796 | H58: 0.249445717 | I58: 1 | J58: 0.02957446051 | N58: 0.02957446051 | P58: 2.gene#c.tspline32 | Q58: 0.09764238411 | R58: 0.002219891403 | S58: -0.008638263064 | T58: 0.01145340752 | U58: -0.03560079934 | V58: -0.02942915026 | W58: 0.003070022952 | X58: 0.002009789465 | Y58: 0.02632334859 | Z58: 0 | AA58: 0 | AC58: -0.061014533 | AD58: 0.1581851229 | AE58: 0.1877595834 | AG58: 0.1121812738
A59: 3.gene#c.tspline32 | B59: 0.001420714471 | C59: 0.001420714471 | D59: -0.01520064756 | G59: -0.3501524887 | H59: 0.3529939177 | I59: 1 | J59: 0.001420714471 | N59: 0.001420714471 | P59: 3.gene#c.tspline32 | Q59: 0.03482966627 | R59: 0.1588375529 | S59: -0.008738395525 | T59: 0.01363582749 | U59: -0.03541193578 | V59: -0.00183216582 | W59: -0.05222928095 | X59: 0.002104709664 | Y59: 0.004480727256 | Z59: 0.03823229314 | AA59: 0 | AC59: -0.09612872257 | AD59: -0.01662136203 | AE59: -0.01520064756 | AG59: 0.1793773794
A60: _cons | B60: -12.21482335 | C60: -12.21482335 | D60: -12.99767058 | G60: -15.43603075 | H60: -8.993615941 | I60: 1 | J60: -12.21482335 | N60: -12.21482335 | P60: _cons | Q60: -0.923717083 | R60: -0.3519894435 | S60: 0.05966084664 | T60: -1.300327803 | U60: -0.1125285421 | V60: -0.06164564455 | W60: -0.03126661909 | X60: -0.02046868138 | Y60: -0.04357588134 | Z60: -0.02631246918 | AA60: 0.09534699648 | AC60: 0.834406622 | AD60: -0.7828472331 | AE60: -12.99767058 | AG60: 1.643503365
A62: CRC incidence
... 61 more rows

Sheet PSA
A1: Iteration | B1: Parameters | EZ1: Results | GJ1: Calculations
B2: relatives_per_proband | C2: p_FDR | D2: p_rel_LS | E2: p_rel_female | F2: prevalence | G2: p_LS_MLH1 | H2: p_LS_MSH2 | I2: p_LS_MSH6 | J2: p_LS_PMS2 | K2: mu.MSH2 | L2: mu.MSH6 | M2: mu.PMS2 | N2: mu.M0 | O2: mu.U1 | P2: mu._cons | Q2: ln_sigma._cons | R2: CRCinc.F.20 | S2: CRCinc.F.25 | T2: CRCinc.F.30 | U2: CRCinc.F.35 | V2: CRCinc.F.40 | W2: CRCinc.F.45 | X2: CRCinc.F.50 | Y2: CRCinc.F.55 | Z2: CRCinc.F.60 | AA2: CRCinc.F.65 | AB2: CRCinc.F.70 | AC2: CRCinc.F.75 | AD2: CRCinc.F.80 | AE2: CRCinc.F.85 | AF2: CRCinc.F.90 | AG2: CRCinc.M.20 | AH2: CRCinc.M.25 | AI2: CRCinc.M.30 | AJ2: CRCinc.M.35 | AK2: CRCinc.M.40 | AL2: CRCinc.M.45 | AM2: CRCinc.M.50 | AN2: CRCinc.M.55 | AO2: CRCinc.M.60 | AP2: CRCinc.M.65 | AQ2: CRCinc.M.70 | AR2: CRCinc.M.75 | AS2: CRCinc.M.80 | AT2: CRCinc.M.85 | AU2: CRCinc.M.90 | AV2: p_colon_StageI_NoLS | AW2: p_colon_StageII_NoLS | AX2: p_colon_StageIII_NoLS | AY2: p_colon_StageIV_NoLS | AZ2: CRCmort.NoLS.StageI | BA2: CRCmort.NoLS.StageII | BB2: CRCmort.NoLS.StageIII | BC2: CRCmort.NoLS.StageIV | BD2: CRCmort.HR.LS | BE2: EC_mortality_LS | BF2: EC_mortality_sporadic.15 | BG2: EC_mortality_sporadic.45 | BH2: EC_mortality_sporadic.55 | BI2: EC_mortality_sporadic.65 | BJ2: EC_mortality_sporadic.75 | BK2: uptake_colonoscopy_pathMMR | BL2: uptake_colonoscopy_LynchLike | BM2: interval_colonoscopy | BN2: hr_CRC_incidence_colonoscopy | BO2: Surveillance.I | BP2: Surveillance.II | BQ2: Surveillance.III | BR2: Surveillance.IV | BS2: NoSurveillance.Sporadic.I | BT2: NoSurveillance.Sporadic.II | BU2: NoSurveillance.Sporadic.III | BV2: NoSurveillance.Sporadic.IV | BW2: NoSurveillance.LS.I | BX2: NoSurveillance.LS.II | BY2: NoSurveillance.LS.III | BZ2: NoSurveillance.LS.IV | CA2: sens_IHC | CB2: spec_IHC | CC2: failure_IHC | CD2: p_dMLH1_pathMLH1 | CE2: p_dMLH1_pathNonMLH1 | CF2: p_dMLH1_sporadic | CG2: sens_MSI | CH2: spec_MSI | CI2: failure_MSI | CJ2: p_methylated_dMLH1_pathMLH1 | CK2: p_methylated_dMLH1_pathMSH2 | CL2: p_methylated_dMLH1_pathMSH6 | CM2: p_methylated_dMLH1_pathPMS2 | CN2: p_methylated_dMLH1_sporadic | CO2: p_methylated_MSI_pathMLH1 | CP2: p_methylated_MSI_pathMSH2 | CQ2: p_methylated_MSI_pathMSH6 | CR2: p_methylated_MSI_pathPMS2 | CS2: p_methylated_MSI_sporadic | CT2: theta_FH | CU2: alpha_FH | CV2: beta_FH | CW2: sens_FH | CX2: spec_FH | CY2: acceptance_counselling_tumour | CZ2: acceptance_counselling_direct | DA2: acceptance_MMRdiagnostic | DB2: sens_MMRdiagnostic | DC2: spec_MMRdiagnostic | DD2: acceptance_counselling_relative | DE2: acceptance_MMRpredictive | DF2: c_IHC | DG2: c_MSI | DH2: c_methylation | DI2: c_offer_counselling | DJ2: c_pretest_proband | DK2: c_MMR_proband | DL2: c_posttest_proband | DM2: c_GP | DN2: c_pretest_relative | DO2: c_MMR_relative | DP2: c_posttest_relative | DQ2: c_colonoscopy | DR2: c_CRC.I.4049 | DS2: c_CRC.I.5059 | DT2: c_CRC.I.6069 | DU2: c_CRC.I.7079 | DV2: c_CRC.I.80100 | DW2: c_CRC.II.4049 | DX2: c_CRC.II.5059 | DY2: c_CRC.II.6069 | DZ2: c_CRC.II.7079 | EA2: c_CRC.II.80100 | EB2: c_CRC.III.4049 | EC2: c_CRC.III.5059 | ED2: c_CRC.III.6069 | EE2: c_CRC.III.7079 | EF2: c_CRC.III.80100 | EG2: c_CRC.IV.4049 | EH2: c_CRC.IV.5059 | EI2: c_CRC.IV.6069 | EJ2: c_CRC.IV.7079 | EK2: c_CRC.IV.80100 | EL2: u_const | EM2: u_male | EN2: u_age | EO2: u_age2 | EP2: u_decline_counselling | EQ2: u_decline_testing | ER2: u_pathMMR | ES2: u_LynchLike | ET2: t_disutility_psychological | EU2: u_CRC_StageI | EV2: u_CRC_StageII | EW2: u_CRC_StageIII | EX2: u_CRC_StageIV | EY2: u_EC | EZ2: c.Proband.IHC | FA2: c.Proband.IHCmeth | FB2: c.Proband.MSI | FC2: c.Proband.MSImeth | FD2: c.Proband.Direct | FE2: c.Proband.NoScreening | FF2: c.Relative.IHC | FG2: c.Relative.IHCmeth | FH2: c.Relative.MSI | FI2: c.Relative.MSImeth | FJ2: c.Relative.Direct | FK2: c.Relative.NoScreening | FL2: c.Total.IHC | FM2: c.Total.IHCmeth | FN2: c.Total.MSI | FO2: c.Total.MSImeth | FP2: c.Total.Direct | FQ2: c.Total.NoScreening | FR2: QALY.Proband.IHC | FS2: QALY.Proband.IHCmeth | FT2: QALY.Proband.MSI | FU2: QALY.Proband.MSImeth | FV2: QALY.Proband.Direct | FW2: QALY.Proband.NoScreening | FX2: QALY.Relative.IHC | FY2: QALY.Relative.IHCmeth | FZ2: QALY.Relative.MSI | GA2: QALY.Relative.MSImeth | GB2: QALY.Relative.Direct | GC2: QALY.Relative.NoScreening | GD2: QALY.Total.IHC | GE2: QALY.Total.IHCmeth | GF2: QALY.Total.MSI | GG2: QALY.Total.MSImeth | GH2: QALY.Total.Direct | GI2: QALY.Total.NoScreening | GJ2: NMB.IHC | GK2: NMB.IHCmethylation | GL2: NMB.MSI | GM2: NMB.MSImethylation | GN2: NMB.Direct | GO2: NMB.NoScreening | GP2: INMB.IHC | GQ2: INMB.IHCmethylation | GR2: INMB.MSI | GS2: INMB.MSImethylation | GT2: INMB.Direct | GU2: CE.IHC | GV2: CE.IHCmethylation | GW2: CE.MSI | GX2: CE.MSImethylation | GY2: CE.Direct | GZ2: CE.NoScreening | HA2: PWCE.IHC | HB2: PWCE.IHCmethylation | HC2: PWCE.MSI | HD2: PWCE.MSImethylation | HE2: PWCE.Direct
A3: Live | B3: =relatives_per_proband -> 6 | C3: =p_FDR -> 0.4236947748 | D3: =p_rel_LS -> 0.44 | E3: =p_rel_female -> 0.5279187817 | F3: =Parameters!$B$36 -> 0.03906427158 | G3: =p_LS_MLH1 -> 0.1105103087 | H3: =p_LS_MSH2 -> 0.2851215749 | I3: =p_LS_MSH6 -> 0.5141865967 | J3: =p_LS_PMS2 -> 0.09018151972 | K3: =Parameters!$B$68 -> 0.1004384216 | L3: =Parameters!$B$69 -> 0.530554004 | M3: =Parameters!$B$70 -> 0.8634912993 | N3: =Parameters!$B$71 -> -0.1177914165 | O3: =Parameters!$B$72 -> -0.2304408281 | P3: =Parameters!$B$73 -> 4.306355546 | Q3: =Parameters!$B$74 -> -0.5672607484 | R3: =TRANSPOSE(Parameters!$B$98:$B$112) -> 3.1e-05 | S3: 2.7e-05 | T3: 6.5e-05 | U3: 0.000107 | V3: 0.000118 | W3: 0.000215 | X3: 0.000376 | Y3: 0.000618 | Z3: 0.000914 | AA3: 0.001182 | AB3: 0.001721 | AC3: 0.002356 | AD3: 0.003093 | AE3: 0.003595 | AF3: 0.003042 | AG3: =TRANSPOSE(Parameters!$B$115:$B$129) -> 2.3e-05 | AH3: 2.3e-05 | AI3: 5.6e-05 | AJ3: 9.1e-05 | AK3: 0.00012 | AL3: 0.000232 | AM3: 0.000426 | AN3: 0.000842 | AO3: 0.001503 | AP3: 0.001961 | AQ3: 0.002768 | AR3: 0.003738 | AS3: 0.004575 | AT3: 0.005119 | AU3: 0.004603 | AV3: =p_colon_StageI_NoLS -> 0.4987238387 | AW3: =p_colon_StageII_NoLS -> 0.7477012088 | AX3: =p_colon_StageIII_NoLS -> 0.6951572268 | AY3: =p_colon_StageIV_NoLS -> 0.6857900446 | AZ3: =Parameters!$B$143 -> 0.01408449286 | BA3: =Parameters!$B$144 -> 0.05227295283 | BB3: =Parameters!$B$145 -> 0.1480477576 | BC3: =Parameters!$B$146 -> 0.5436201074 | BD3: =Parameters!$B$149 -> 0.66 | BE3: =EC_mortality_LS -> 0.004040541464 | BF3: =Parameters!$B$161 -> 0.02647783761 | BG3: =Parameters!$B$162 -> 0.02808243074 | BH3: =Parameters!$B$163 -> 0.03133076201 | BI3: =Parameters!$B$164 -> 0.04841431224 | BJ3: =Parameters!$B$165 -> 0.09208988329 | BK3: =uptake_colonoscopy_pathMMR -> 0.9722222222 | BL3: =uptake_colonoscopy_LynchLike -> 0.7010309278 | BM3: =interval_colonoscopy -> 2.1 | BN3: =hr_CRC_incidence_colonoscopy -> 0.3870329 | BO3: =Parameters!B182 -> 0.6860465116 | BP3: =Parameters!B183 -> 0.1046511628 | BQ3: =Parameters!B184 -> 0.1279069767 | BR3: =Parameters!B185 -> 0.08139534884 | BS3: =Parameters!B188 -> 0.1760944345 | BT3: =Parameters!B189 -> 0.2696174992 | BU3: =Parameters!B190 -> 0.2950783524 | BV3: =Parameters!B191 -> 0.2592097139 | BW3: =Parameters!B194 -> 0.1875 | BX3: =Parameters!B195 -> 0.4875 | BY3: =Parameters!B196 -> 0.2125 | BZ3: =Parameters!B197 -> 0.1125 | CA3: =sens_IHC -> 0.9443624652 | CB3: =spec_IHC -> 0.7477364119 | CC3: =failure_IHC -> 0.009387280738 | CD3: =p_dMLH1_pathMLH1 -> 0.8888888889 | CE3: =p_dMLH1_pathNonMLH1 -> 0.00625 | CF3: =p_dMLH1_sporadic -> 0.828125 | CG3: =sens_MSI -> 0.9031683442 | CH3: =spec_MSI -> 0.7712897156 | CI3: =failure_MSI -> 0.008768450939 | CJ3: =Parameters!B228 -> 0.05 | CK3: =Parameters!B229 -> 0.935757297 | CL3: =Parameters!B230 -> 0.935757297 | CM3: =Parameters!B231 -> 0.935757297 | CN3: =Parameters!B232 -> 0.935757297 | CO3: =Parameters!B236 -> 0.05 | CP3: =Parameters!B237 -> 0.07142857143 | CQ3: =Parameters!B238 -> 0.07142857143 | CR3: =Parameters!B239 -> 0.07142857143 | CS3: =Parameters!B240 -> 0.6702382856 | CT3: =theta_FH -> -1 | CU3: =alpha_FH -> 0.2231301601 | CV3: =beta_FH -> 0 | CW3: =sens_FH -> 0.2914329106 | CX3: =spec_FH -> 0.7524207756 | CY3: =Parameters!B252 -> 0.5541719307 | CZ3: =Parameters!B253 -> 0.5 | DA3: =Parameters!B254 -> 0.9 | DB3: =Parameters!B255 -> 0.9 | DC3: =Parameters!B256 -> 1 | DD3: =acceptance_counselling_relative -> 0.7772050848 | DE3: =acceptance_MMRpredictive -> 0.7162634394 | DF3: =c_IHC -> 210 | DG3: =c_MSI -> 202 | DH3: =c_methylation -> 136 | DI3: =c_offer_counselling -> 27.30050655 | DJ3: =c_pretest_proband -> 347.3321912 | DK3: =c_MMR_proband -> 755 | DL3: =c_posttest_proband -> 133.1462714 | DM3: =c_GP -> 36.4006754 | DN3: =c_pretest_relative -> 171.727123 | DO3: =c_MMR_relative -> 166.3225806 | DP3: =c_posttest_relative -> 133.1462714 | DQ3: =c_colonoscopy -> 583.3406458 | DR3: =Parameters!B291 -> 8754.121705 | DS3: =Parameters!B292 -> 5712.391059 | DT3: =Parameters!B293 -> 4623.221529 | DU3: =Parameters!B294 -> 3177.61552 | DV3: =Parameters!B295 -> 1379.754108 | DW3: =Parameters!B297 -> 8740.533218 | DX3: =Parameters!B298 -> 7015.840583 | DY3: =Parameters!B299 -> 5351.773508 | DZ3: =Parameters!B300 -> 3454.61161 | EA3: =Parameters!B301 -> 1545.951761 | EB3: =Parameters!B303 -> 14489.50867 | EC3: =Parameters!B304 -> 9691.727337 | ED3: =Parameters!B305 -> 7259.388089 | EE3: =Parameters!B306 -> 4485.246118 | EF3: =Parameters!B307 -> 1560.585517 | EG3: =Parameters!B309 -> 11704.91401 | EH3: =Parameters!B310 -> 8443.677031 | EI3: =Parameters!B311 -> 6508.885476 | EJ3: =Parameters!B312 -> 4365.040268 | EK3: =Parameters!B313 -> 806.9470993 | EL3: =u_const -> 0.9508566 | EM3: =u_male -> 0.0212126 | EN3: =u_age -> -0.0002587 | EO3: =u_age2 -> -3.32e-05 | EP3: =u_decline_counselling -> 1 | EQ3: =u_decline_testing -> 1 | ER3: =u_pathMMR -> 1 | ES3: =u_LynchLike -> 1 | ET3: =t_disutility_psychological -> 0.3333333333 | EU3: =u_CRC_StageI -> 1 | EV3: =u_CRC_StageII -> 1 | EW3: =u_CRC_StageIII -> 1 | EX3: =u_CRC_StageIV -> 0.7888888889 | EY3: =u_EC -> 1 | EZ3: =Results!B$22 -> 629.2671107 | FA3: =Results!C$22 -> 487.4175017 | FB3: =Results!D$22 -> 598.2273835 | FC3: =Results!E$22 -> 496.6097212 | FD3: =Results!F$22 -> 771.9505164 | FE3: =Results!G$22 -> 142.6063469 | FF3: =Results!B$28 -> 4889.994759 | FG3: =Results!C$28 -> 4743.16117 | FH3: =Results!D$28 -> 4865.845914 | FI3: =Results!E$28 -> 4741.71974 | FJ3: =Results!F$28 -> 4690.158323 | FK3: =Results!G$28 -> 4550.391559 | FL3: =Results!B$32 -> 5519.26187 | FM3: =Results!C$32 -> 5230.578672 | FN3: =Results!D$32 -> 5464.073297 | FO3: =Results!E$32 -> 5238.329461 | FP3: =Results!F$32 -> 5462.108839 | FQ3: =Results!G$32 -> 4692.997905 | FR3: =Results!B$26 -> 9.019370319 | FS3: =Results!C$26 -> 9.018809894 | FT3: =Results!D$26 -> 9.018781215 | FU3: =Results!E$26 -> 9.017655541 | FV3: =Results!F$26 -> 9.017733768 | FW3: =Results!G$26 -> 9.006469224 | FX3: =Results!B$30 -> 96.28167775 | FY3: =Results!C$30 -> 96.28000684 | FZ3: =Results!D$30 -> 96.28040247 | GA3: =Results!E$30 -> 96.2777069 | GB3: =Results!F$30 -> 96.2782475 | GC3: =Results!G$30 -> 96.2544104 | GD3: =Results!B$34 -> 105.3010481 | GE3: =Results!C$34 -> 105.2988167 | GF3: =Results!D$34 -> 105.2991837 | GG3: =Results!E$34 -> 105.2953624 | GH3: =Results!F$34 -> 105.2959813 | GI3: =Results!G$34 -> 105.2608796
A4: Count | B4: =COUNT(B9:B1008) -> 1000 | C4: =COUNT(C9:C1008) -> 1000 | D4: 1000 | E4: 1000 | F4: 1000 | G4: 1000 | H4: 1000 | I4: 1000 | J4: 1000 | K4: 1000 | L4: 1000 | M4: 1000 | N4: 1000 | O4: 1000 | P4: 1000 | Q4: 1000 | R4: 1000 | S4: 1000 | T4: 1000 | U4: 1000 | V4: 1000 | W4: 1000 | X4: 1000 | Y4: 1000 | Z4: 1000 | AA4: 1000 | AB4: 1000 | AC4: 1000 | AD4: 1000 | AE4: 1000 | AF4: 1000 | AG4: 1000 | AH4: 1000 | AI4: 1000 | AJ4: 1000 | AK4: 1000 | AL4: 1000 | AM4: 1000 | AN4: 1000 | AO4: 1000 | AP4: 1000 | AQ4: 1000 | AR4: 1000 | AS4: 1000 | AT4: 1000 | AU4: 1000 | AV4: 1000 | AW4: 1000 | AX4: 1000 | AY4: 1000 | AZ4: 1000 | BA4: 1000 | BB4: 1000 | BC4: 1000 | BD4: 1000 | BE4: 1000 | BF4: 1000 | BG4: 1000 | BH4: 1000 | BI4: 1000 | BJ4: 1000 | BK4: 1000 | BL4: 1000 | BM4: 1000 | BN4: 1000 | BO4: =COUNT(BO9:BO1008) -> 1000 | BP4: 1000 | BQ4: 1000 | BR4: 1000 | BS4: 1000 | BT4: 1000 | BU4: 1000 | BV4: 1000 | BW4: 1000 | BX4: 1000 | BY4: 1000 | BZ4: 1000 | CA4: 1000 | CB4: 1000 | CC4: =COUNT(CC9:CC1008) -> 1000 | CD4: 1000 | CE4: 1000 | CF4: 1000 | CG4: 1000 | CH4: 1000 | CI4: =COUNT(CI9:CI1008) -> 1000 | CJ4: 1000 | CK4: 1000 | CL4: 1000 | CM4: 1000 | CN4: 1000 | CO4: 1000 | CP4: 1000 | CQ4: 1000 | CR4: 1000 | CS4: 1000 | CT4: =COUNT(CT9:CT1008) -> 1000 | CU4: 1000 | CV4: 1000 | CW4: 1000 | CX4: 1000 | CY4: 1000 | CZ4: 1000 | DA4: 1000 | DB4: 1000 | DC4: 1000 | DD4: 1000 | DE4: 1000 | DF4: 1000 | DG4: 1000 | DH4: 1000 | DI4: 1000 | DJ4: 1000 | DK4: 1000 | DL4: 1000 | DM4: 1000 | DN4: 1000 | DO4: 1000 | DP4: 1000 | DQ4: 1000 | DR4: 1000 | DS4: 1000 | DT4: 1000 | DU4: 1000 | DV4: 1000 | DW4: 1000 | DX4: 1000 | DY4: 1000 | DZ4: 1000 | EA4: 1000 | EB4: 1000 | EC4: 1000 | ED4: 1000 | EE4: 1000 | EF4: 1000 | EG4: 1000 | EH4: =COUNT(EH9:EH1008) -> 1000 | EI4: 1000 | EJ4: 1000 | EK4: 1000 | EL4: 1000 | EM4: 1000 | EN4: 1000 | EO4: 1000 | EP4: 1000 | EQ4: 1000 | ER4: 1000 | ES4: 1000 | ET4: 1000 | EU4: 1000 | EV4: 1000 | EW4: 1000 | EX4: 1000 | EY4: 1000 | EZ4: 1000 | FA4: 1000 | FB4: 1000 | FC4: 1000 | FD4: 1000 | FE4: 1000 | FF4: 1000 | FG4: 1000 | FH4: 1000 | FI4: 1000 | FJ4: 1000 | FK4: 1000 | FL4: 1000 | FM4: 1000 | FN4: 1000 | FO4: 1000 | FP4: 1000 | FQ4: 1000 | FR4: 1000 | FS4: 1000 | FT4: 1000 | FU4: 1000 | FV4: 1000 | FW4: 1000 | FX4: 1000 | FY4: 1000 | FZ4: 1000 | GA4: 1000 | GB4: 1000 | GC4: 1000 | GD4: 1000 | GE4: 1000 | GF4: 1000 | GG4: 1000 | GH4: 1000 | GI4: 1000
A5: Average | B5: =AVERAGE(B9:B1008) -> 5.930670578 | C5: =AVERAGE(C9:C1008) -> 0.423880323 | D5: 0.4402205458 | E5: 0.5280196912 | F5: 0.03857791066 | G5: 0.1150293645 | H5: 0.2920148995 | I5: 0.4942541942 | J5: 0.09870154181 | K5: 0.09945227732 | L5: 0.526998356 | M5: 0.8590032746 | N5: -0.1157373082 | O5: -0.2261661426 | P5: 4.305265695 | Q5: -0.570982835 | R5: 3.07073865e-05 | S5: 2.693787295e-05 | T5: 6.580067106e-05 | U5: 0.0001068907917 | V5: 0.0001176347615 | W5: 0.0002153369049 | X5: 0.0003768403407 | Y5: 0.0006188963439 | Z5: 0.0009163716061 | AA5: 0.001180997844 | AB5: 0.001723208523 | AC5: 0.002359265097 | AD5: 0.00309207182 | AE5: 0.003599229568 | AF5: 0.003040640483 | AG5: 2.232445079e-05 | AH5: 2.313240825e-05 | AI5: 5.619294631e-05 | AJ5: 9.075031763e-05 | AK5: 0.0001197210597 | AL5: 0.0002309684814 | AM5: 0.0004269947198 | AN5: 0.000841041194 | AO5: 0.001503346147 | AP5: 0.001960459848 | AQ5: 0.002768200319 | AR5: 0.003742165255 | AS5: 0.004572201052 | AT5: 0.005115155736 | AU5: 0.004599485672 | AV5: 0.4984471678 | AW5: 0.7477058624 | AX5: 0.6950309154 | AY5: 0.6858288125 | AZ5: 0.01408311578 | BA5: 0.05229326791 | BB5: 0.1480359915 | BC5: 0.543703939 | BD5: 0.6587065658 | BE5: 0.00395964236 | BF5: 0.02660130637 | BG5: 0.02813660092 | BH5: 0.0313927138 | BI5: 0.04838852954 | BJ5: 0.09224718944 | BK5: 0.9718456188 | BL5: 0.7015174599 | BM5: 2.094674339 | BN5: 0.3868494049 | BO5: =AVERAGE(BO9:BO1008) -> 0.6831339353 | BP5: 0.1057200392 | BQ5: 0.1303942606 | BR5: 0.08075176491 | BS5: 0.1761134919 | BT5: 0.2696979028 | BU5: 0.2949844868 | BV5: 0.2592041185 | BW5: 0.1845704923 | BX5: 0.4889171901 | BY5: 0.2139009107 | BZ5: 0.1126114069 | CA5: 0.9452921091 | CB5: 0.7484145892 | CC5: =AVERAGE(CC9:CC1008) -> 0.009613975148 | CD5: 0.8909801524 | CE5: 0.006302977661 | CF5: 0.8279566586 | CG5: 0.9016907257 | CH5: 0.7629253491 | CI5: =AVERAGE(CI9:CI1008) -> 0.009269950669 | CJ5: 0.05121351725 | CK5: 0.9358293854 | CL5: 0.9358293854 | CM5: 0.9358293854 | CN5: 0.9358293854 | CO5: 0.05103021089 | CP5: 0.07288144913 | CQ5: 0.07288144913 | CR5: 0.07288144913 | CS5: 0.6703270129 | CT5: =AVERAGE(CT9:CT1008) -> -1.033117651 | CU5: 0.2231808501 | CV5: 0.01914156218 | CW5: 0.3626072384 | CX5: 0.6569358682 | CY5: 0.5518270686 | CZ5: 0.5033557488 | DA5: 0.8979419551 | DB5: 0.8941234518 | DC5: 1 | DD5: 0.776769165 | DE5: 0.7160351413 | DF5: 208.8509917 | DG5: 202.8398083 | DH5: 136.4971757 | DI5: 26.96260678 | DJ5: 345.8973684 | DK5: 759.8880079 | DL5: 132.2171073 | DM5: 36.56700031 | DN5: 172.0700811 | DO5: 166.5831826 | DP5: 135.005066 | DQ5: 581.1076077 | DR5: 8751.182391 | DS5: 5689.813876 | DT5: 4599.360205 | DU5: 3190.874892 | DV5: 1381.558072 | DW5: 8798.007784 | DX5: 7021.888068 | DY5: 5318.61667 | DZ5: 3466.25999 | EA5: 1558.708831 | EB5: 14436.39485 | EC5: 9571.229295 | ED5: 7253.824537 | EE5: 4516.775875 | EF5: 1570.384507 | EG5: 11774.37802 | EH5: =AVERAGE(EH9:EH1008) -> 8556.855254 | EI5: 6526.020003 | EJ5: 4363.904943 | EK5: 817.573514 | EL5: 0.950770062 | EM5: 0.02123296252 | EN5: -0.0002731398646 | EO5: -3.388928913e-05 | EP5: 0.9980138609 | EQ5: 0.9975671109 | ER5: 0.9972324801 | ES5: 1.000330621 | ET5: 0.3504819984 | EU5: 1 | EV5: 1 | EW5: 1 | EX5: 0.7889530909 | EY5: 1 | EZ5: 654.3484171 | FA5: 494.9837231 | FB5: 625.0834213 | FC5: 510.21395 | FD5: 778.771941 | FE5: 147.4679658 | FF5: 1337.025378 | FG5: 1128.201806 | FH5: 1299.125578 | FI5: 1131.293572 | FJ5: 1057.243196 | FK5: 921.319912 | FL5: 1991.373796 | FM5: 1623.185529 | FN5: 1924.209 | FO5: 1641.507522 | FP5: 1836.015137 | FQ5: 1068.787878 | FR5: 8.961418812 | FS5: 8.960710843 | FT5: 8.960654973 | FU5: 8.959400957 | FV5: 8.959630313 | FW5: 8.947613825 | FX5: 81.7773185 | FY5: 81.7742993 | FZ5: 81.77562957 | GA5: 81.77179207 | GB5: 81.77200603 | GC5: 81.74601336 | GD5: 90.73873731 | GE5: 90.73501014 | GF5: 90.73628454 | GG5: 90.73119303 | GH5: 90.73163635 | GI5: 90.69362718 | GJ5: =AVERAGE(OFFSET(GJ$9,0,0,PSA_iterations)) -> 1812783.372 | GK5: 1813077.017 | GL5: 1812801.482 | GM5: 1812982.353 | GN5: 1812796.712 | GO5: 1812803.756 | GP5: -20.38329323 | GQ5: 273.2614876 | GR5: -2.273971118 | GS5: 178.5972759 | GT5: -7.04397471 | GU5: 0.001 | GV5: 0.362 | GW5: 0.035 | GX5: 0.112 | GY5: 0.124 | GZ5: 0.366 | HA5: 0.372 | HB5: 0.578 | HC5: 0.405 | HD5: 0.5 | HE5: 0.377
A6: LCrL | B6: =_xlfn.PERCENTILE.INC(B9:B1008,0.025) -> 1.608425662 | C6: =_xlfn.PERCENTILE.INC(C9:C1008,0.025) -> 0.3858177217 | D6: 0.4063463635 | E6: 0.4838031637 | F6: 0.01617630969 | G6: 0.04316799371 | H6: 0.1370442443 | I6: 0.2512012464 | J6: 0.003877424892 | K6: -0.08394538786 | L6: 0.2575133243 | M6: 0.2184290876 | N6: -0.3159760042 | O6: -0.4281681365 | P6: 4.24525648 | Q6: -0.7219384376 | R6: 8.589695264e-06 | S6: 1.207589188e-05 | T6: 4.159962109e-05 | U6: 7.816386689e-05 | V6: 8.841033546e-05 | W6: 0.0001765226256 | X6: 0.0003270109482 | Y6: 0.0005460558076 | Z6: 0.0008241349271 | AA6: 0.001082715127 | AB6: 0.001601921689 | AC6: 0.002196205572 | AD6: 0.002920041915 | AE6: 0.003399768517 | AF6: 0.002843546927 | AG6: 8.703456542e-06 | AH6: 9.08172022e-06 | AI6: 3.754884362e-05 | AJ6: 6.603541252e-05 | AK6: 9.336910825e-05 | AL6: 0.0001890201395 | AM6: 0.0003748514793 | AN6: 0.0007601936627 | AO6: 0.001389012257 | AP6: 0.00182281399 | AQ6: 0.002596412839 | AR6: 0.003515509867 | AS6: 0.004314546818 | AT6: 0.004812924328 | AU6: 0.004233917988 | AV6: 0.4862063434 | AW6: 0.7392816387 | AX6: 0.6862491862 | AY6: 0.6760193952 | AZ6: 0.01261544604 | BA6: 0.05084625496 | BB6: 0.1454743279 | BC6: 0.5304490051 | BD6: 0.2967224274 | BE6: 0.0002851242241 | BF6: 0.02142299881 | BG6: 0.02519237245 | BH6: 0.02930494566 | BI6: 0.04565418789 | BJ6: 0.0866116614 | BK6: 0.927581879 | BL6: 0.60312157 | BM6: 1.463014092 | BN6: 0.1666182055 | BO6: =_xlfn.PERCENTILE.INC(BO9:BO1008,0.025) -> 0.5504637286 | BP6: 0.03585099063 | BQ6: 0.04652684264 | BR6: 0.02207704379 | BS6: 0.1722990981 | BT6: 0.2650472979 | BU6: 0.2901477418 | BV6: 0.2546183758 | BW6: 0.08577305181 | BX6: 0.3438150602 | BY6: 0.1024401667 | BZ6: 0.03569905073 | CA6: 0.7677316502 | CB6: 0.6081565715 | CC6: =_xlfn.PERCENTILE.INC(CC9:CC1008,0.025) -> 6.894226484e-08 | CD6: 0.7229969121 | CE6: 6.754090551e-06 | CF6: 0.791900622 | CG6: 0.7612662229 | CH6: 0.4075961298 | CI6: =_xlfn.PERCENTILE.INC(CI9:CI1008,0.025) -> 2.554762893e-05 | CJ6: 0.001774998977 | CK6: 0.8511806572 | CL6: 0.8511806572 | CM6: 0.8511806572 | CN6: 0.8511806572 | CO6: 0.001312783759 | CP6: 0.001692836962 | CQ6: 0.001692836962 | CR6: 0.001692836962 | CS6: 0.6006111093 | CT6: =_xlfn.PERCENTILE.INC(CT9:CT1008,0.025) -> -4.783811458 | CU6: 0.02053319029 | CV6: -1.944129949 | CW6: 0.0007682043656 | CX6: 0.0260127918 | CY6: 0.1836917769 | CZ6: 0.1706527814 | DA6: 0.6567683523 | DB6: 0.6303590123 | DC6: 1 | DD6: 0.7413708974 | DE6: 0.66865014 | DF6: 134.4220874 | DG6: 130.504193 | DH6: 86.8755042 | DI6: 15.4481762 | DJ6: 221.3644348 | DK6: 500.7198003 | DL6: 85.28900584 | DM6: 23.89275917 | DN6: 111.7848318 | DO6: 105.9231475 | DP6: 85.92309373 | DQ6: 380.5080113 | DR6: 5653.388022 | DS6: 3771.414254 | DT6: 2955.198041 | DU6: 2143.179621 | DV6: 900.7234594 | DW6: 5712.083891 | DX6: 4500.711921 | DY6: 3411.692266 | DZ6: 2252.887969 | EA6: 1009.389699 | EB6: 9300.93078 | EC6: 6041.357267 | ED6: 4625.939213 | EE6: 2915.473841 | EF6: 1012.879266 | EG6: 7588.143295 | EH6: =_xlfn.PERCENTILE.INC(EH9:EH1008,0.025) -> 5652.632237 | EI6: 4065.236644 | EJ6: 2867.838193 | EK6: 529.4870688 | EL6: 0.9344121971 | EM6: 0.01604412339 | EN6: -0.001008385766 | EO6: -6.707034131e-05 | EP6: 0.9037123147 | EQ6: 0.9046626864 | ER6: 0.8978742444 | ES6: 0.8953798671 | ET6: 0.05084562777 | EU6: 1 | EV6: 1 | EW6: 1 | EX6: 0.7234379941 | EY6: 1 | EZ6: 389.9662554 | FA6: 345.2680664 | FB6: 355.8351239 | FC6: 330.1905624 | FD6: 359.6767132 | FE6: 88.2842289 | FF6: 346.9823103 | FG6: 300.1202551 | FH6: 315.8625909 | FI6: 296.0843731 | FJ6: 280.3702999 | FK6: 248.1379248 | FL6: 867.5924806 | FM6: 746.3259587 | FN6: 818.6060014 | FO6: 734.2260899 | FP6: 933.4169794 | FQ6: 382.3007922 | FR6: 6.946397369 | FS6: 6.946516448 | FT6: 6.943650338 | FU6: 6.937276866 | FV6: 6.937509079 | FW6: 6.924385992 | FX6: 21.84275172 | FY6: 21.84230975 | FZ6: 21.84167284 | GA6: 21.84126925 | GB6: 21.83983448 | GC6: 21.8222983 | GD6: 30.78567129 | GE6: 30.78449429 | GF6: 30.78251947 | GG6: 30.78152083 | GH6: 30.77841798 | GI6: 30.72649101 | GJ6: =_xlfn.PERCENTILE.INC(OFFSET(GJ$9,0,0,PSA_iterations), 0.025) -> 614561.0953 | GK6: 614672.6205 | GL6: 614537.5583 | GM6: 614613.1009 | GN6: 614211.2336 | GO6: 613987.1907 | GP6: -1305.475881 | GQ6: -436.4931338 | GR6: -1480.957393 | GS6: -550.3067224 | GT6: -862.2849662
A7: UCrL | B7: =_xlfn.PERCENTILE.INC(B9:B1008,0.975) -> 12.95017217 | C7: =_xlfn.PERCENTILE.INC(C9:C1008,0.975) -> 0.4637546943 | D7: 0.4742829798 | E7: 0.5697928848 | F7: 0.07918587188 | G7: 0.2307138786 | H7: 0.5135951094 | I7: 0.7114113992 | J7: 0.2951564343 | K7: 0.2975876649 | L7: 0.7969032839 | M7: 1.524473216 | N7: 0.07248865809 | O7: -0.02775944967 | P7: 4.368182589 | Q7: -0.4246643598 | R7: 7.709562259e-05 | S7: 5.270165724e-05 | T7: 9.734689907e-05 | U7: 0.0001422453128 | V7: 0.0001549264402 | W7: 0.0002575606392 | X7: 0.0004348090472 | Y7: 0.0006999690109 | Z7: 0.001019383696 | AA7: 0.001293154599 | AB7: 0.001865683567 | AC7: 0.002519112555 | AD7: 0.003275150032 | AE7: 0.003812962423 | AF7: 0.003241257678 | AG7: 4.732566176e-05 | AH7: 4.976394818e-05 | AI7: 8.24860508e-05 | AJ7: 0.0001232188661 | AK7: 0.0001479659526 | AL7: 0.0002783947597 | AM7: 0.0004821319041 | AN7: 0.0009299813956 | AO7: 0.001633645075 | AP7: 0.002102020395 | AQ7: 0.002943144778 | AR7: 0.003979607333 | AS7: 0.004820224813 | AT7: 0.005437492134 | AU7: 0.005004781849 | AV7: 0.5107946109 | AW7: 0.7561182573 | AX7: 0.7034322282 | AY7: 0.6958697138 | AZ7: 0.01557458773 | BA7: 0.0537224258 | BB7: 0.1506144996 | BC7: 0.5578733372 | BD7: 1.245825201 | BE7: 0.0182952829 | BF7: 0.03221918749 | BG7: 0.03106042136 | BH7: 0.03351905588 | BI7: 0.05149597487 | BJ7: 0.09841204144 | BK7: 0.9934306793 | BL7: 0.7870325682 | BM7: 2.883049328 | BN7: 0.7779178747 | BO7: =_xlfn.PERCENTILE.INC(BO9:BO1008,0.975) -> 0.8075860247 | BP7: 0.207129277 | BQ7: 0.2388073008 | BR7: 0.1726578045 | BS7: 0.1798976532 | BT7: 0.2745300064 | BU7: 0.2996386959 | BV7: 0.2638856921 | BW7: 0.3148790846 | BX7: 0.6361723331 | BY7: 0.3510702042 | BZ7: 0.2243645043 | CA7: 0.9950240503 | CB7: 0.8622253968 | CC7: =_xlfn.PERCENTILE.INC(CC9:CC1008,0.975) -> 0.06143444831 | CD7: 0.9858032373 | CE7: 0.03124886706 | CF7: 0.8618417926 | CG7: 0.9730738501 | CH7: 0.9620486352 | CI7: =_xlfn.PERCENTILE.INC(CI9:CI1008,0.975) -> 0.03965943577 | CJ7: 0.1708941568 | CK7: 0.9873545096 | CL7: 0.9873545096 | CM7: 0.9873545096 | CN7: 0.9873545096 | CO7: 0.1634599749 | CP7: 0.2537410859 | CQ7: 0.2537410859 | CR7: 0.2537410859 | CS7: 0.7427498657 | CT7: =_xlfn.PERCENTILE.INC(CT9:CT1008,0.975) -> 2.943037069 | CU7: 0.883006882 | CV7: 2.00986465 | CW7: 0.9752369602 | CX7: 0.9994483106 | CY7: 0.9025688065 | CZ7: 0.8150177517 | DA7: 0.9973491766 | DB7: 0.9971264984 | DC7: 1 | DD7: 0.8112968601 | DE7: 0.7594537187 | DF7: 300.7646147 | DG7: 285.6759295 | DH7: 195.5002943 | DI7: 44.10178701 | DJ7: 486.1565959 | DK7: 1081.803686 | DL7: 184.0293868 | DM7: 51.75512705 | DN7: 243.2605447 | DO7: 243.9976418 | DP7: 191.4923825 | DQ7: 828.5361514 | DR7: 12409.61014 | DS7: 7906.31282 | DT7: 6598.258201 | DU7: 4542.365872 | DV7: 1930.450546 | DW7: 12373.30859 | DX7: 9890.809866 | DY7: 7606.772981 | DZ7: 4837.049166 | EA7: 2240.010345 | EB7: 20524.31179 | EC7: 13638.67182 | ED7: 10446.87179 | EE7: 6450.211831 | EF7: 2245.586042 | EG7: 16853.16653 | EH7: =_xlfn.PERCENTILE.INC(EH9:EH1008,0.975) -> 12027.82259 | EI7: 9356.470161 | EJ7: 6180.212037 | EK7: 1162.395965 | EL7: 0.9667366622 | EM7: 0.02657441988 | EN7: 0.0004831077478 | EO7: 1.777916942e-06 | EP7: 1.096847109 | EQ7: 1.0975258 | ER7: 1.100623738 | ES7: 1.102057653 | ET7: 1.251180745 | EU7: 1 | EV7: 1 | EW7: 1 | EX7: 0.8472570834 | EY7: 1 | EZ7: 1073.620847 | FA7: 695.5462615 | FB7: 1132.68619 | FC7: 764.3345531 | FD7: 1239.999843 | FE7: 258.6264263 | FF7: 3403.196137 | FG7: 2766.593427 | FH7: 3306.132066 | FI7: 2777.600689 | FJ7: 2544.417656 | FK7: 2195.949527 | FL7: 4377.202494 | FM7: 3265.412729 | FN7: 4191.403462 | FO7: 3363.972427 | FP7: 3457.453241 | FQ7: 2393.075831 | FR7: 10.98149906 | FS7: 10.97951297 | FT7: 10.97994263 | FU7: 10.97805766 | FV7: 10.96488179 | FW7: 10.96557487 | FX7: 186.8230573 | FY7: 186.8122194 | FZ7: 186.8221771 | GA7: 186.809938 | GB7: 186.8189402 | GC7: 186.760908 | GD7: 195.8687016 | GE7: 195.8499371 | GF7: 195.862278 | GG7: 195.8465225 | GH7: 195.8286207 | GI7: 195.7789224 | GJ7: =_xlfn.PERCENTILE.INC(OFFSET(GJ$9,0,0,PSA_iterations), 0.975) -> 3913587.54 | GK7: 3914086.365 | GL7: 3913662.012 | GM7: 3914032.495 | GN7: 3913670.776 | GO7: 3913403.406 | GP7: 1839.973314 | GQ7: 2203.521253 | GR7: 1877.94523 | GS7: 1977.423817 | GT7: 1866.412405
A8: p-value | B8: =MIN(1,COUNTA($B$2:$EY$2)*2*_xlfn.NORM.S.DIST(-ABS(B$3-B$5)/(_xlfn.STDEV.S(B$9:B$1008)/SQRT(B$4)),TRUE)) -> 1 | C8: 1 | D8: 1 | E8: 1 | F8: 1 | G8: 0.5494456622 | H8: 1 | I8: 2.337645014e-05 | J8: 0.04796159118 | K8: 1 | L8: 1 | M8: 1 | N8: 1 | O8: 1 | P8: 1 | Q8: 1 | R8: 1 | S8: 1 | T8: 1 | U8: 1 | V8: 1 | W8: 1 | X8: 1 | Y8: 1 | Z8: 1 | AA8: 1 | AB8: 1 | AC8: 1 | AD8: 1 | AE8: 1 | AF8: 1 | AG8: 1 | AH8: =MIN(1,COUNTA($B$2:$EY$2)*2*_xlfn.NORM.S.DIST(-ABS(AH$3-AH$5)/(_xlfn.STDEV.S(AH$9:AH$1008)/SQRT(AH$4)),TRUE)) -> 1 | AI8: 1 | AJ8: 1 | AK8: 1 | AL8: 1 | AM8: 1 | AN8: 1 | AO8: 1 | AP8: 1 | AQ8: 1 | AR8: 1 | AS8: 1 | AT8: 1 | AU8: 1 | AV8: 1 | AW8: 1 | AX8: 1 | AY8: 1 | AZ8: 1 | BA8: 1 | BB8: 1 | BC8: 1 | BD8: 1 | BE8: 1 | BF8: 1 | BG8: 1 | BH8: 1 | BI8: 1 | BJ8: 1 | BK8: 1 | BL8: 1 | BM8: 1 | BN8: =MIN(1,COUNTA($B$2:$EY$2)*2*_xlfn.NORM.S.DIST(-ABS(BN$3-BN$5)/(_xlfn.STDEV.S(BN$9:BN$1008)/SQRT(BN$4)),TRUE)) -> 1 | BO8: 1 | BP8: 1 | BQ8: 1 | BR8: 1 | BS8: 1 | BT8: 1 | BU8: 1 | BV8: 1 | BW8: 1 | BX8: 1 | BY8: 1 | BZ8: 1 | CA8: 1 | CB8: 1 | CC8: 1 | CD8: 1 | CE8: 1 | CF8: 1 | CG8: 1 | CH8: 1 | CI8: 1 | CJ8: 1 | CK8: 1 | CL8: 1 | CM8: 1 | CN8: 1 | CO8: 1 | CP8: 1 | CQ8: 1 | CR8: 1 | CS8: 1 | CT8: =MIN(1,COUNTA($B$2:$EY$2)*2*_xlfn.NORM.S.DIST(-ABS(CT$3-CT$5)/(_xlfn.STDEV.S(CT$9:CT$1008)/SQRT(CT$4)),TRUE)) -> 1 | CU8: 1 | CV8: 1 | CW8: 2.028617261e-11 | CX8: 5.306177128e-21 | CY8: 1 | CZ8: 1 | DA8: 1 | DB8: 1 | DD8: 1 | DE8: 1 | DF8: 1 | DG8: 1 | DH8: 1 | DI8: 1 | DJ8: 1 | DK8: 1 | DL8: 1 | DM8: 1 | DN8: 1 | DO8: 1 | DP8: 1 | DQ8: 1 | DR8: 1 | DS8: 1 | DT8: 1 | DU8: 1 | DV8: 1 | DW8: 1 | DX8: 1 | DY8: 1 | DZ8: =MIN(1,COUNTA($B$2:$EY$2)*2*_xlfn.NORM.S.DIST(-ABS(DZ$3-DZ$5)/(_xlfn.STDEV.S(DZ$9:DZ$1008)/SQRT(DZ$4)),TRUE)) -> 1 | EA8: 1 | EB8: 1 | EC8: 1 | ED8: 1 | EE8: 1 | EF8: 1 | EG8: 1 | EH8: 1 | EI8: 1 | EJ8: 1 | EK8: 1 | EL8: 1 | EM8: 1 | EN8: 1 | EO8: 1 | EP8: 1 | EQ8: 1 | ER8: 1 | ES8: 1 | ET8: 1 | EX8: 1 | EZ8: 0.0008848687399 | FA8: 1 | FB8: 0.006319808161 | FC8: 0.0194939307 | FD8: 1 | FE8: 0.08553956383 | FF8: =MIN(1,COUNTA($B$2:$EY$2)*2*_xlfn.NORM.S.DIST(-ABS(FF$3-FF$5)/(_xlfn.STDEV.S(FF$9:FF$1008)/SQRT(FF$4)),TRUE)) -> 0 | FG8: 0 | FH8: 0 | FI8: 0 | FJ8: 0 | FK8: 0 | FL8: 0 | FM8: 0 | FN8: 0 | FO8: 0 | FP8: 0 | FQ8: 0 | FR8: 1 | FS8: 1 | FT8: 1 | FU8: 1 | FV8: 1 | FW8: 1 | FX8: 9.633339534e-25 | FY8: 9.486500325e-25 | FZ8: 9.579158079e-25 | GA8: 9.439281711e-25 | GB8: 9.404375031e-25 | GC8: 8.896193087e-25 | GD8: 1.125706593e-24 | GE8: 1.107334024e-24 | GF8: 1.117880194e-24 | GG8: 1.100455334e-24 | GH8: 1.096965545e-24 | GI8: 1.03073378e-24
A9: 1 | B9: 6.198687181 | C9: 0.4266166548 | D9: 0.4316478018 | E9: 0.5322680672 | F9: 0.04293159597 | G9: 0.1225270381 | H9: 0.2746222409 | I9: 0.6027972177 | J9: 5.350336391e-05 | K9: 0.04223752474 | L9: 0.1801602537 | M9: 0.2665514018 | N9: -0.08790511434 | O9: -0.1738304601 | P9: 4.281497875 | Q9: -0.4800539686 | R9: 1.157217091e-05 | S9: 3.487263018e-05 | T9: 6.788498106e-05 | U9: 9.771648442e-05 | V9: 9.957261997e-05 | W9: 0.0001734415313 | X9: 0.0003400415764 | Y9: 0.0006292795247 | Z9: 0.001043769381 | AA9: 0.001203155785 | AB9: 0.001736383395 | AC9: 0.002364658952 | AD9: 0.003077988198 | AE9: 0.00364025893 | AF9: 0.003158955471 | AG9: 4.066986987e-05 | AH9: 3.150526116e-05 | AI9: 5.060255626e-05 | AJ9: 0.0001079502613 | AK9: 0.000115772606 | AL9: 0.0002271536209 | AM9: 0.0004174933967 | AN9: 0.000820785052 | AO9: 0.001654735279 | AP9: 0.001849155798 | AQ9: 0.002636849001 | AR9: 0.003701025526 | AS9: 0.00448013807 | AT9: 0.005522968894 | AU9: 0.004436151989 | AV9: 0.4956150387 | AW9: 0.7602948458 | AX9: 0.6966059134 | AY9: 0.682116953 | AZ9: 0.01420358506 | BA9: 0.05248860437 | BB9: 0.145695323 | BC9: 0.5562632976 | BD9: 0.4447028457 | BE9: 0.001397078276 | BF9: 0.02267081319 | BG9: 0.02955121037 | BH9: 0.03147953474 | BI9: 0.04902208142 | BJ9: 0.09821910019 | BK9: 0.9804944319 | BL9: 0.7226914698 | BM9: 1.348622912 | BN9: 0.6439267302 | BO9: 0.642659885 | BP9: 0.138943416 | BQ9: 0.09409688392 | BR9: 0.1242998151 | BS9: 0.1799553393 | BT9: 0.268250296 | BU9: 0.2964776023 | BV9: 0.2553167624 | BW9: 0.2275070119 | BX9: 0.5281554148 | BY9: 0.1335520441 | BZ9: 0.1107855292 | CA9: 0.9583625127 | CB9: 0.7919335961 | CC9: 0.01279269026 | CD9: 0.7437017823 | CE9: 0.0007716635856 | CF9: 0.8010958569 | CG9: 0.8617597891 | CH9: 0.8446555741 | CI9: 0.004656736892 | CJ9: 0.03236828591 | CK9: 0.9696215243 | CL9: 0.9696215243 | CM9: 0.9696215243 | CN9: 0.9696215243 | CO9: 0.06573833585 | CP9: 0.1475692516 | CQ9: 0.1475692516 | CR9: 0.1475692516 | CS9: 0.725724732 | CT9: 0.6309919709 | CU9: 0.02239805064 | CV9: 1.299009779 | CW9: 0.5830773465 | CX9: 0.2338584324 | CY9: 0.6294378312 | CZ9: 0.5785839569 | DA9: 0.875517473 | DB9: 0.9957210115 | DC9: 1 | DD9: 0.738225828 | DE9: 0.7544507406 | DF9: 294.7365746 | DG9: 254.7178292 | DH9: 180.5642319 | DI9: 24.11673465 | DJ9: 268.7655862 | DK9: 749.5498122 | DL9: 113.4234258 | DM9: 38.88865035 | DN9: 147.607041 | DO9: 131.7414457 | DP9: 118.6640659 | DQ9: 782.5092404 | DR9: 9948.212131 | DS9: 4380.81021 | DT9: 3036.273506 | DU9: 3265.091897 | DV9: 1966.954647 | DW9: 7728.053436 | DX9: 8362.901902 | DY9: 5599.807582 | DZ9: 2729.720929 | EA9: 1478.054573 | EB9: 15779.5897 | EC9: 9990.564171 | ED9: 6992.05627 | EE9: 3951.848336 | EF9: 1828.395676 | EG9: 11542.32287 | EH9: 8177.825508 | EI9: 6298.492434 | EJ9: 5535.140139 | EK9: 921.5332855 | EL9: 0.9421394692 | EM9: 0.01785482437 | EN9: -0.0006820100391 | EO9: -5.97909579e-05 | EP9: 1.016911861 | EQ9: 1.036079251 | ER9: 0.9774134995 | ES9: 1.033562837 | ET9: 0.5803526041 | EU9: 1 | EV9: 1 | EW9: 1 | EX9: 0.8091415177 | EY9: 1 | EZ9: 1073.611092 | FA9: 718.6387907 | FB9: 890.5445838 | FC9: 637.6526151 | FD9: 857.5517874 | FE9: 129.810306 | FF9: 2436.897314 | FG9: 1569.440296 | FH9: 2112.745208 | FI9: 1457.455336 | FJ9: 1284.941661 | FK9: 908.8081343 | FL9: 3510.508407 | FM9: 2288.079086 | FN9: 3003.289791 | FO9: 2095.107951 | FP9: 2142.493448 | FQ9: 1038.61844 | FR9: 7.075761939 | FS9: 7.073720465 | FT9: 7.074587392 | FU9: 7.072551412 | FV9: 7.07638209 | FW9: 7.068050163 | FX9: 68.21839041 | FY9: 68.21361701 | FZ9: 68.21565756 | GA9: 68.2109145 | GB9: 68.21142581 | GC9: 68.20048902 | GD9: 75.29415235 | GE9: 75.28733748 | GF9: 75.29024495 | GG9: 75.28346591 | GH9: 75.2878079 | GI9: 75.26853918 | GJ9: =GD9*threshold-FL9 -> 1502372.539 | GK9: =GE9*threshold-FM9 -> 1503458.67 | GL9: =GF9*threshold-FN9 -> 1502801.609 | GM9: =GG9*threshold-FO9 -> 1503574.21 | GN9: =GH9*threshold-FP9 -> 1503613.664 | GO9: =GI9*threshold-FQ9 -> 1504332.165 | GP9: =GJ9-$GO9 -> -1959.626622 | GQ9: =GK9-$GO9 -> -873.4947365 | GR9: -1530.555993 | GS9: -757.9549621 | GT9: -718.5007592 | GU9: =1*(GJ9=MAX($GJ9:$GO9)) -> 0 | GV9: =1*(GK9=MAX($GJ9:$GO9)) -> 0 | GW9: 0 | GX9: 0 | GY9: 0 | GZ9: 1 | HA9: =1*(GP9>0) -> 0 | HB9: =1*(GQ9>0) -> 0 | HC9: 0 | HD9: 0 | HE9: 0
A10: 2 | B10: 6.223023504 | C10: 0.427811976 | D10: 0.4056790593 | E10: 0.539466448 | F10: 0.02497230618 | G10: 0.123834247 | H10: 0.1846845333 | I10: 0.6476691793 | J10: 0.0438120404 | K10: 0.01068379515 | L10: 0.4535586917 | M10: 0.6794796949 | N10: -0.2710212122 | O10: -0.3167760119 | P10: 4.332674614 | Q10: -0.605583885 | R10: 2.760433966e-05 | S10: 2.166970697e-05 | T10: 6.11802809e-05 | U10: 0.0001240283245 | V10: 0.0001051222946 | W10: 0.0001932762683 | X10: 0.0003446433691 | Y10: 0.0005771242909 | Z10: 0.0008525541416 | AA10: 0.001172916226 | AB10: 0.001701174521 | AC10: 0.002427166034 | AD10: 0.002997689431 | AE10: 0.003469801 | AF10: 0.003233049049 | AG10: 3.66246856e-05 | AH10: 4.313653113e-05 | AI10: 5.669365157e-05 | AJ10: 9.888367824e-05 | AK10: 0.0001297052371 | AL10: 0.0002357122782 | AM10: 0.0003963481487 | AN10: 0.0008120315243 | AO10: 0.001511263785 | AP10: 0.002012501583 | AQ10: 0.00253073873 | AR10: 0.003751702703 | AS10: 0.004724854034 | AT10: 0.004963894231 | AU10: 0.004399783395 | AV10: 0.5078759401 | AW10: 0.7491967835 | AX10: 0.6976674942 | AY10: 0.6814417445 | AZ10: 0.01411129081 | BA10: 0.05267394253 | BB10: 0.1458334197 | BC10: 0.5415669067 | BD10: 0.5474184712 | BE10: 0.007947443546 | BF10: 0.02441502534 | BG10: 0.02882687622 | BH10: 0.03036908496 | BI10: 0.05011085266 | BJ10: 0.08290357429 | BK10: 0.9698256152 | BL10: 0.6811794327 | BM10: 1.954451899 | BN10: 0.3032665255 | BO10: 0.6769724398 | BP10: 0.1260987459 | BQ10: 0.126096286 | BR10: 0.07083252828 | BS10: 0.1761677021 | BT10: 0.2659046502 | BU10: 0.300506719 | BV10: 0.2574209287 | BW10: 0.1313370169 | BX10: 0.4594125346 | BY10: 0.3453691368 | BZ10: 0.06388131165 | CA10: 0.928509203 | CB10: 0.6547506824 | CC10: 0.01629734099 | CD10: 0.8082870769 | CE10: 0.01185847075 | CF10: 0.8281419358 | CG10: 0.9106100105 | CH10: 0.6539515305 | CI10: 4.61364412e-05 | CJ10: 0.004712349181 | CK10: 0.9519345901 | CL10: 0.9519345901 | CM10: 0.9519345901 | CN10: 0.9519345901 | CO10: 0.05984785311 | CP10: 0.06127310095 | CQ10: 0.06127310095 | CR10: 0.06127310095 | CS10: 0.6711553411 | CT10: 0.05803239105 | CU10: 0.04545913667 | CV10: -0.5300238195 | CW10: 0.5262929473 | CX10: 0.4932293606 | CY10: 0.7236668704 | CZ10: 0.1007101761 | DA10: 0.9419972435 | DB10: 0.8952039353 | DC10: 1 | DD10: 0.7906700151 | DE10: 0.6974059339 | DF10: 183.4781724 | DG10: 164.7041729 | DH10: 109.5827205 | DI10: 23.76076963 | DJ10: 229.0922849 | DK10: 869.6000159 | DL10: 143.3332491 | DM10: 40.22848591 | DN10: 191.9386939 | DO10: 144.2509738 | DP10: 135.2942977 | DQ10: 585.378561 | DR10: 10344.68671 | DS10: 7685.428086 | DT10: 5401.55558 | DU10: 3324.653524 | DV10: 1942.740914 | DW10: 8652.743609 | DX10: 6595.86728 | DY10: 3771.827092 | DZ10: 2894.31256 | EA10: 1472.861743 | EB10: 12646.02156 | EC10: 12042.89729 | ED10: 8913.232663 | EE10: 3193.666141 | EF10: 1900.568029 | EG10: 9974.527573 | EH10: 8017.343845 | EI10: 5634.486474 | EJ10: 4325.90737 | EK10: 1126.4501 | EL10: 0.9588769974 | EM10: 0.01925853035 | EN10: -0.0005385679694 | EO10: -6.120191434e-05 | EP10: 1.054669668 | EQ10: 1.001018828 | ER10: 1.053907027 | ES10: 0.9646857286 | ET10: 0.1050003486 | EU10: 1 | EV10: 1 | EW10: 1 | EX10: 0.7433535616 | EY10: 1 | EZ10: 881.5571033 | FA10: 500.2185611 | FB10: 860.1642706 | FC10: 545.7190152 | FD10: 275.1776588 | FE10: 129.0171565 | FF10: 1836.909287 | FG10: 1212.046936 | FH10: 1836.234898 | FI10: 1296.400835 | FJ10: 934.4211233 | FK10: 916.0625363 | FL10: 2718.466391 | FM10: 1712.265497 | FN10: 2696.399169 | FO10: 1842.11985 | FP10: 1209.598782 | FQ10: 1045.079693 | FR10: 7.317658895 | FS10: 7.316237616 | FT10: 7.31746136 | FU10: 7.315710128 | FV10: 7.31061894 | FW10: 7.305505177 | FX10: 71.20475422 | FY10: 71.19889154 | FZ10: 71.20432952 | GA10: 71.19815119 | GB10: 71.17803583 | GC10: 71.17471703 | GD10: 78.52241311 | GE10: 78.51512916 | GF10: 78.52179088 | GG10: 78.51386132 | GH10: 78.48865477 | GI10: 78.48022221 | GJ10: 1567729.796 | GK10: 1568590.318 | GL10: 1567739.419 | GM10: 1568435.107 | GN10: 1568563.497 | GO10: 1568559.365 | GP10: =GJ10-$GO10 -> -829.5686821 | GQ10: =GK10-$GO10 -> 30.95312003 | GR10: =GL10-$GO10 -> -819.9460185 | GS10: =GM10-$GO10 -> -124.2579574 | GT10: =GN10-$GO10 -> 4.132098987 | GU10: =1*(GJ10=MAX($GJ10:$GO10)) -> 0 | GV10: =1*(GK10=MAX($GJ10:$GO10)) -> 1 | GW10: =1*(GL10=MAX($GJ10:$GO10)) -> 0 | GX10: =1*(GM10=MAX($GJ10:$GO10)) -> 0 | GY10: =1*(GN10=MAX($GJ10:$GO10)) -> 0 | GZ10: =1*(GO10=MAX($GJ10:$GO10)) -> 0 | HA10: =1*(GP10>0) -> 0 | HB10: =1*(GQ10>0) -> 1 | HC10: =1*(GR10>0) -> 0 | HD10: =1*(GS10>0) -> 0 | HE10: =1*(GT10>0) -> 1
A11: 3 | B11: 3.812946214 | C11: 0.4181051193 | D11: 0.4392624776 | E11: 0.5495231525 | F11: 0.02422928449 | G11: 0.08013872051 | H11: 0.3242393196 | I11: 0.5321204364 | J11: 0.06350152352 | K11: 0.05287603518 | L11: 0.4682684073 | M11: 0.8544783218 | N11: -0.1842035932 | O11: -0.2411249436 | P11: 4.290748359 | Q11: -0.5556167907 | R11: 3.690058665e-05 | S11: 2.661897399e-05 | T11: 6.590467343e-05 | U11: 8.293039926e-05 | V11: 9.985448755e-05 | W11: 0.0001868218698 | X11: 0.0003986007386 | Y11: 0.0005903550043 | Z11: 0.0009529276594 | AA11: 0.001306353383 | AB11: 0.001652506469 | AC11: 0.002370750112 | AD11: 0.003191534172 | AE11: 0.003672027672 | AF11: 0.002981184755 | AG11: 2.740421402e-05 | AH11: 2.346812049e-05 | AI11: 5.320924086e-05 | AJ11: 8.076171755e-05 | AK11: 0.0001237761111 | AL11: 0.000195489092 | AM11: 0.0004208444835 | AN11: 0.0008473405521 | AO11: 0.001464727622 | AP11: 0.00204515422 | AQ11: 0.002798044175 | AR11: 0.003666253951 | AS11: 0.00431486844 | AT11: 0.005051261403 | AU11: 0.004463094567 | AV11: 0.4999499008 | AW11: 0.7454497012 | AX11: 0.6895037738 | AY11: 0.6815228951 | AZ11: 0.01458839831 | BA11: 0.05356905534 | BB11: 0.1489842567 | BC11: 0.5447941481 | BD11: 0.7282447925 | BE11: 0.001103102807 | BF11: 0.02637504881 | BG11: 0.03052704178 | BH11: 0.03292976384 | BI11: 0.04910951061 | BJ11: 0.08920033544 | BK11: 0.9679598061 | BL11: 0.8036482581 | BM11: 2.346548474 | BN11: 0.6986801564 | BO11: 0.6424839955 | BP11: 0.06232645304 | BQ11: 0.1634569165 | BR11: 0.131732635 | BS11: 0.1777544139 | BT11: 0.2675563173 | BU11: 0.2952987971 | BV11: 0.2593904717 | BW11: 0.1929124228 | BX11: 0.4826348776 | BY11: 0.1562280892 | BZ11: 0.1682246104 | CA11: 0.979948661 | CB11: 0.7395276152 | CC11: 0.01261165652 | CD11: 0.6654945634 | CE11: 0.0009200165279 | CF11: 0.8356397227 | CG11: 0.9591376688 | CH11: 0.9193182926 | CI11: 0.0007139480054 | CJ11: 0.01767597486 | CK11: 0.9541954432 | CL11: 0.9541954432 | CM11: 0.9541954432 | CN11: 0.9541954432 | CO11: 0.08520340723 | CP11: 0.06228121655 | CQ11: 0.06228121655 | CR11: 0.06228121655 | CS11: 0.6899694022 | CT11: -1.922840489 | CU11: 0.08314667009 | CV11: -0.497714989 | CW11: 0.0821990655 | CX11: 0.8222455439 | CY11: 0.4266536872 | CZ11: 0.6250457836 | DA11: 0.8372109687 | DB11: 0.9279619968 | DC11: 1 | DD11: 0.7951764915 | DE11: 0.7234913937 | DF11: 245.5035668 | DG11: 163.3962157 | DH11: 140.0156675 | DI11: 25.09642035 | DJ11: 320.0793698 | DK11: 827.7933169 | DL11: 93.97867989 | DM11: 27.44733487 | DN11: 166.3728994 | DO11: 145.5498416 | DP11: 215.1026562 | DQ11: 560.7060654 | DR11: 10283.97986 | DS11: 4821.126862 | DT11: 4421.141418 | DU11: 2581.937859 | DV11: 1558.196088 | DW11: 9576.597211 | DX11: 5463.037012 | DY11: 4751.085225 | DZ11: 3443.342497 | EA11: 1287.747722 | EB11: 10071.89195 | EC11: 8002.41286 | ED11: 5263.271347 | EE11: 5142.875365 | EF11: 1682.93404 | EG11: 14549.8817 | EH11: 8882.374486 | EI11: 6383.426456 | EJ11: 5173.256589 | EK11: 655.7375009 | EL11: 0.9534299588 | EM11: 0.02361496587 | EN11: -0.0004617635394 | EO11: 5.926068263e-06 | EP11: 0.9984618511 | EQ11: 0.9304524337 | ER11: 0.9889475349 | ES11: 0.9176301023 | ET11: 0.873943735 | EU11: 1 | EV11: 1 | EW11: 1 | EX11: 0.7844946609 | EY11: 1 | EZ11: 530.1074405 | FA11: 434.3753656 | FB11: 335.7021058 | FC11: 314.6074748 | FD11: 827.2444425 | FE11: 95.81945647 | FF11: 587.3815816 | FG11: 531.9774979 | FH11: 538.467407 | FI11: 520.6211359 | FJ11: 540.9089239 | FK11: 469.8121086 | FL11: 1117.489022 | FM11: 966.3528634 | FN11: 874.1695128 | FO11: 835.2286107 | FP11: 1368.153366 | FQ11: 565.6315651 | FR11: 10.92377356 | FS11: 10.92534539 | FT11: 10.92506008 | FU11: 10.92523961 | FV11: 10.92137988 | FW11: 10.92191906 | FX11: 64.0243675 | FY11: 64.02495354 | FZ11: 64.02477839 | GA11: 64.02462022 | GB11: 64.02753649 | GC11: 64.02012336 | GD11: 74.94814106 | GE11: 74.95029893 | GF11: 74.94983847 | GG11: 74.94985983 | GH11: 74.94891637 | GI11: 74.94204243 | GJ11: 1497845.332 | GK11: 1498039.626 | GL11: 1498122.6 | GM11: 1498161.968 | GN11: 1497610.174 | GO11: 1498275.217 | GP11: -429.8848057 | GQ11: -235.5911401 | GR11: -152.6171147 | GS11: -113.2489498 | GT11: -665.0429126 | GU11: 0 | GV11: 0 | GW11: 0 | GX11: 0 | GY11: 0 | GZ11: 1 | HA11: 0 | HB11: 0 | HC11: 0 | HD11: 0 | HE11: 0
A12: 4 | B12: 3.437001495 | C12: 0.3936338865 | D12: 0.4299206959 | E12: 0.5406491828 | F12: 0.01928334087 | G12: 0.14791651 | H12: 0.3420486882 | I12: 0.4449182032 | J12: 0.0651165987 | K12: 0.1936237418 | L12: 0.6356255597 | M12: 1.169068809 | N12: -0.08909511037 | O12: -0.10101898 | P12: 4.257806189 | Q12: -0.5548130642 | R12: 9.57873483e-06 | S12: 3.651802493e-05 | T12: 7.541332035e-05 | U12: 0.0001187354604 | V12: 9.066927283e-05 | W12: 0.0001791254329 | X12: 0.0003616010886 | Y12: 0.0006816866727 | Z12: 0.0008276416716 | AA12: 0.001242999802 | AB12: 0.001701323868 | AC12: 0.002353639994 | AD12: 0.003072646607 | AE12: 0.003515191674 | AF12: 0.003077398301 | AG12: 1.081214887e-05 | AH12: 1.64255968e-05 | AI12: 5.766372009e-05 | AJ12: 6.88040022e-05 | AK12: 0.0001305568919 | AL12: 0.0002142394599 | AM12: 0.0004492554082 | AN12: 0.000869392478 | AO12: 0.001489912372 | AP12: 0.001850990369 | AQ12: 0.002790789963 | AR12: 0.003542571735 | AS12: 0.004724735508 | AT12: 0.005254474637 | AU12: 0.004703335864 | AV12: 0.5000081368 | AW12: 0.7425346302 | AX12: 0.695176052 | AY12: 0.6856960958 | AZ12: 0.01587210057 | BA12: 0.05177115308 | BB12: 0.1459716246 | BC12: 0.5450525348 | BD12: 0.5523157298 | BE12: 0.0008631789666 | BF12: 0.03076022321 | BG12: 0.02919948155 | BH12: 0.03127079108 | BI12: 0.04590752999 | BJ12: 0.09045270089 | BK12: 0.9729546251 | BL12: 0.7178641619 | BM12: 1.879652491 | BN12: 0.3132462069 | BO12: 0.7847797969 | BP12: 0.1126083528 | BQ12: 0.0692379604 | BR12: 0.03337388988 | BS12: 0.1759388434 | BT12: 0.2664818037 | BU12: 0.2970632254 | BV12: 0.2605161276 | BW12: 0.1299868357 | BX12: 0.5484336547 | BY12: 0.1157698275 | BZ12: 0.2058096822 | CA12: 0.9959981993 | CB12: 0.8470559325 | CC12: 2.321394275e-05 | CD12: 0.9785863415 | CE12: 0.01101990779 | CF12: 0.8288140429 | CG12: 0.9419683802 | CH12: 0.9085945214 | CI12: 0.001799016993 | CJ12: 0.03597472851 | CK12: 0.9690448018 | CL12: 0.9690448018 | CM12: 0.9690448018 | CN12: 0.9690448018 | CO12: 0.1498394427 | CP12: 0.1859330249 | CQ12: 0.1859330249 | CR12: 0.1859330249 | CS12: 0.6090590673 | CT12: -1.624164272 | CU12: 0.06660689862 | CV12: 1.006266099 | CW12: 0.2765004456 | CX12: 0.9394188361 | CY12: 0.8886413133 | CZ12: 0.367946432 | DA12: 0.7095014698 | DB12: 0.982514912 | DC12: 1 | DD12: 0.7587040933 | DE12: 0.7269338111 | DF12: 162.0138763 | DG12: 236.4783702 | DH12: 176.8387669 | DI12: 19.37256242 | DJ12: 413.5020588 | DK12: 635.1639967 | DL12: 114.4555504 | DM12: 38.20030174 | DN12: 206.3180783 | DO12: 150.3877878 | DP12: 108.0931519 | DQ12: 640.3760594 | DR12: 8134.299272 | DS12: 7415.579928 | DT12: 5658.213656 | DU12: 3112.089462 | DV12: 1785.724255 | DW12: 8100.144142 | DX12: 5283.897087 | DY12: 3303.815368 | DZ12: 2954.989426 | EA12: 1822.252278 | EB12: 13452.63647 | EC12: 8201.670404 | ED12: 8010.979076 | EE12: 5691.893103 | EF12: 1431.586895 | EG12: 11984.69731 | EH12: 9035.094599 | EI12: 6791.135995 | EJ12: 3678.802494 | EK12: 782.8460611 | EL12: 0.9374483888 | EM12: 0.02059678942 | EN12: -0.0008061321639 | EO12: -2.898930317e-05 | EP12: 0.9800327065 | EQ12: 0.9385396908 | ER12: 1.059479387 | ES12: 0.9937404988 | ET12: 0.04148263842 | EU12: 1 | EV12: 1 | EW12: 1 | EX12: 0.7788725513 | EY12: 1 | EZ12: 454.1092454 | FA12: 358.1857055 | FB12: 467.2025777 | FC12: 424.0550955 | FD12: 474.1686477 | FE12: 93.51615337 | FF12: 531.6065041 | FG12: 507.4488973 | FH12: 515.9697361 | FI12: 492.6821031 | FJ12: 457.2466877 | FK12: 428.1243374 | FL12: 985.7157495 | FM12: 865.6346028 | FN12: 983.1723138 | FO12: 916.7371986 | FP12: 931.4153353 | FQ12: 521.6404908 | FR12: 8.632164823 | FS12: 8.631921305 | FT12: 8.631506672 | FU12: 8.629527333 | FV12: 8.624280235 | FW12: 8.620451909 | FX12: 44.37538338 | FY12: 44.37486021 | FZ12: 44.37449864 | GA12: 44.37209137 | GB12: 44.36687757 | GC12: 44.36145958 | GD12: 53.00754821 | GE12: 53.00678151 | GF12: 53.00600531 | GG12: 53.00161871 | GH12: 52.9911578 | GI12: 52.98191148 | GJ12: 1059165.248 | GK12: 1059269.996 | GL12: 1059136.934 | GM12: 1059115.637 | GN12: 1058891.741 | GO12: 1059116.589 | GP12: 48.65915549 | GQ12: 153.4063997 | GR12: 20.34462815 | GS12: -0.9522812804 | GT12: -224.8485089 | GU12: 0 | GV12: 1 | GW12: 0 | GX12: 0 | GY12: 0 | GZ12: 0 | HA12: 1 | HB12: 1 | HC12: 1 | HD12: 0 | HE12: 0
A13: 5 | B13: 7.357046581 | C13: 0.4232874078 | D13: 0.4264212097 | E13: 0.537813323 | F13: 0.01800150814 | G13: 0.1358821898 | H13: 0.3726486383 | I13: 0.4207883714 | J13: 0.07068080049 | K13: 0.2454547634 | L13: 0.6431174053 | M13: 1.019920508 | N13: -0.2127014234 | O13: -0.4003461082 | P13: 4.331925042 | Q13: -0.5386776108 | R13: 4.129634525e-05 | S13: 5.269984144e-05 | T13: 5.393427148e-05 | U13: 0.00015182377 | V13: 0.0001076176821 | W13: 0.0001661906146 | X13: 0.0003383641662 | Y13: 0.0006725850741 | Z13: 0.000863838524 | AA13: 0.001167615072 | AB13: 0.001761873966 | AC13: 0.002459456301 | AD13: 0.002950576191 | AE13: 0.003561664434 | AF13: 0.002944312311 | AG13: 7.625220299e-06 | AH13: 1.906736507e-05 | AI13: 7.205516546e-05 | AJ13: 8.37471925e-05 | AK13: 9.510176941e-05 | AL13: 0.0002989186158 | AM13: 0.0004016226693 | AN13: 0.0007869123815 | AO13: 0.00141193029 | AP13: 0.001965905446 | AQ13: 0.002682864165 | AR13: 0.003683932499 | AS13: 0.004401033653 | AT13: 0.00507305312 | AU13: 0.004251800271 | AV13: 0.4985148785 | AW13: 0.7402357081 | AX13: 0.6979272633 | AY13: 0.6850959736 | AZ13: 0.01392547716 | BA13: 0.05189388984 | BB13: 0.1467802755 | BC13: 0.5490634827 | BD13: 0.707161294 | BE13: 0.002772150069 | BF13: 0.02474009028 | BG13: 0.02795222974 | BH13: 0.03023604838 | BI13: 0.05022211066 | BJ13: 0.09314540709 | BK13: 0.9447578684 | BL13: 0.6998238447 | BM13: 3.006308129 | BN13: 0.4299573581 | BO13: 0.6995342123 | BP13: 0.1607651875 | BQ13: 0.08916681545 | BR13: 0.05053378468 | BS13: 0.1745752145 | BT13: 0.2703612515 | BU13: 0.2920880418 | BV13: 0.2629754921 | BW13: 0.1478337604 | BX13: 0.493154902 | BY13: 0.2217810192 | BZ13: 0.1372303184 | CA13: 0.9252609017 | CB13: 0.731938768 | CC13: 0.005984802043 | CD13: 0.938487992 | CE13: 0.008952215703 | CF13: 0.8207406821 | CG13: 0.9009163818 | CH13: 0.5647699025 | CI13: 0.002757413769 | CJ13: 0.0551524187 | CK13: 0.8589494418 | CL13: 0.8589494418 | CM13: 0.8589494418 | CN13: 0.8589494418 | CO13: 0.1200139844 | CP13: 0.03037073284 | CQ13: 0.03037073284 | CR13: 0.03037073284 | CS13: 0.6959215366 | CT13: 1.984843923 | CU13: 0.07080499346 | CV13: -1.539515191 | CW13: 0.9874102485 | CX13: 0.2884681128 | CY13: 0.6323467364 | CZ13: 0.2716977023 | DA13: 0.8973545767 | DB13: 0.8541566336 | DC13: 1 | DD13: 0.7709277117 | DE13: 0.6719681846 | DF13: 240.0447422 | DG13: 247.9939465 | DH13: 95.63111884 | DI13: 23.46496711 | DJ13: 410.4256502 | DK13: 788.2401839 | DL13: 118.6407372 | DM13: 38.51023907 | DN13: 160.3339609 | DO13: 155.1215187 | DP13: 122.226542 | DQ13: 468.3495605 | DR13: 12488.72389 | DS13: 5976.014511 | DT13: 5210.880398 | DU13: 2965.651879 | DV13: 1482.468841 | DW13: 8777.062133 | DX13: 8755.316136 | DY13: 4332.087339 | DZ13: 3435.432479 | EA13: 2000.50777 | EB13: 12618.14782 | EC13: 12569.43433 | ED13: 8558.752123 | EE13: 3925.889928 | EF13: 847.5109889 | EG13: 10833.28873 | EH13: 5700.196932 | EI13: 6644.21328 | EJ13: 5945.140734 | EK13: 806.7589832 | EL13: 0.9424370438 | EM13: 0.02363913173 | EN13: -0.0001000216604 | EO13: -2.194631099e-05 | EP13: 0.9987195881 | EQ13: 0.9687245044 | ER13: 1.079362895 | ES13: 1.046153661 | ET13: 0.4910936419 | EU13: 1 | EV13: 1 | EW13: 1 | EX13: 0.7634665389 | EY13: 1 | EZ13: 691.6948185 | FA13: 483.3813884 | FB13: 900.8785269 | FC13: 575.599446 | FD13: 463.9199536 | FE13: 105.3298524 | FF13: 1551.321601 | FG13: 1212.280599 | FH13: 1849.083092 | FI13: 1304.576919 | FJ13: 1036.433979 | FK13: 1013.225859 | FL13: 2243.01642 | FM13: 1695.661987 | FN13: 2749.961619 | FO13: 1880.176365 | FP13: 1500.353932 | FQ13: 1118.555712 | FR13: 9.745287094 | FS13: 9.742281371 | FT13: 9.747564378 | FU13: 9.742551096 | FV13: 9.734677497 | FW13: 9.731850873 | FX13: 109.1091366 | FY13: 109.0961032 | FZ13: 109.1199125 | GA13: 109.0986454 | GB13: 109.0806424 | GC13: 109.0731636 | GD13: 118.8544237 | GE13: 118.8383846 | GF13: 118.8674768 | GG13: 118.8411965 | GH13: 118.8153199 | GI13: 118.8050145 | GJ13: 2374845.458 | GK13: 2375072.03 | GL13: 2374599.575 | GM13: 2374943.754 | GN13: 2374806.045 | GO13: 2374981.733 | GP13: -136.275526 | GQ13: 90.29693767 | GR13: -382.1581236 | GS13: -37.97904111 | GT13: -175.6886165 | GU13: 0 | GV13: 1 | GW13: 0 | GX13: 0 | GY13: 0 | GZ13: 0 | HA13: 0 | HB13: 1 | HC13: 0 | HD13: 0 | HE13: 0
A14: 6 | B14: 12.81984566 | C14: 0.4029550352 | D14: 0.4386298769 | E14: 0.5086150556 | F14: 0.08126771637 | G14: 0.09995741014 | H14: 0.2791192932 | I14: 0.5691949672 | J14: 0.05172832947 | K14: 0.004195927685 | L14: 0.3874323765 | M14: 0.2300239386 | N14: -0.09731139326 | O14: -0.2695654825 | P14: 4.31379211 | Q14: -0.5002078401 | R14: 9.675369542e-06 | S14: 1.363820425e-05 | T14: 6.623613092e-05 | U14: 0.0001313015954 | V14: 0.0001199954 | W14: 0.000238996257 | X14: 0.0004207445566 | Y14: 0.0006245971819 | Z14: 0.0009610418128 | AA14: 0.001190149251 | AB14: 0.001677471235 | AC14: 0.002299275862 | AD14: 0.003044388105 | AE14: 0.003567273346 | AF14: 0.002951703467 | AG14: 2.48795768e-05 | AH14: 1.17474652e-05 | AI14: 6.172466511e-05 | AJ14: 8.285139547e-05 | AK14: 0.0001175315334 | AL14: 0.0002405765597 | AM14: 0.0004510672984 | AN14: 0.0008788271209 | AO14: 0.001450524531 | AP14: 0.002095724062 | AQ14: 0.002916878782 | AR14: 0.003873874228 | AS14: 0.004511295929 | AT14: 0.005020797296 | AU14: 0.004217754799 | AV14: 0.5050835222 | AW14: 0.7449304123 | AX14: 0.6953939871 | AY14: 0.6877555284 | AZ14: 0.01361201287 | BA14: 0.05339931547 | BB14: 0.1447520059 | BC14: 0.5437295683 | BD14: 0.4184714599 | BE14: 0.0005835509267 | BF14: 0.01950715854 | BG14: 0.03041351723 | BH14: 0.03228931562 | BI14: 0.04840408103 | BJ14: 0.09094579009 | BK14: 0.9905451783 | BL14: 0.7265234973 | BM14: 2.184378393 | BN14: 0.2800342025 | BO14: 0.7838877666 | BP14: 0.07171892787 | BQ14: 0.08393484638 | BR14: 0.06045845917 | BS14: 0.1723554071 | BT14: 0.2682141483 | BU14: 0.2976154528 | BV14: 0.2618149918 | BW14: 0.1538122556 | BX14: 0.5581899778 | BY14: 0.2515031864 | BZ14: 0.03649458025 | CA14: 0.9398453226 | CB14: 0.7753452842 | CC14: 0.03426456574 | CD14: 0.7675528749 | CE14: 0.000992917677 | CF14: 0.8237221514 | CG14: 0.9157645414 | CH14: 0.8197597073 | CI14: 0.008404603002 | CJ14: 0.03422822635 | CK14: 0.9305427381 | CL14: 0.9305427381 | CM14: 0.9305427381 | CN14: 0.9305427381 | CO14: 0.02390115546 | CP14: 0.03475545496 | CQ14: 0.03475545496 | CR14: 0.03475545496 | CS14: 0.7646387593 | CT14: 0.9591777128 | CU14: 0.04691803994 | CV14: 1.167990633 | CW14: 0.6336674951 | CX14: 0.1573710925 | CY14: 0.4646194027 | CZ14: 0.2683398314 | DA14: 0.9433028961 | DB14: 0.6103681082 | DC14: 1 | DD14: 0.7805824286 | DE14: 0.6862150151 | DF14: 168.2329306 | DG14: 204.8876474 | DH14: 138.2705306 | DI14: 19.55879097 | DJ14: 353.7413809 | DK14: 655.9425767 | DL14: 145.5366148 | DM14: 46.31288326 | DN14: 163.0459441 | DO14: 182.3867061 | DP14: 118.2323759 | DQ14: 564.3655806 | DR14: 9855.063115 | DS14: 6979.421565 | DT14: 4203.371378 | DU14: 2757.259074 | DV14: 1529.490183 | DW14: 8861.218354 | DX14: 8761.21677 | DY14: 4558.800329 | DZ14: 5008.250407 | EA14: 2055.439001 | EB14: 13830.31021 | EC14: 6681.525595 | ED14: 6752.690035 | EE14: 4005.706497 | EF14: 2067.096583 | EG14: 9791.886663 | EH14: 7668.061106 | EI14: 5329.824597 | EJ14: 4147.572319 | EK14: 761.9275231 | EL14: 0.9376971881 | EM14: 0.02437263999 | EN14: -0.0004832642569 | EO14: -4.065449268e-05 | EP14: 1.003675347 | EQ14: 0.9351632031 | ER14: 0.9489283061 | ES14: 1.110538651 | ET14: 0.2130648334 | EU14: 1 | EV14: 1 | EW14: 1 | EX14: 0.7690341568 | EY14: 1 | EZ14: 774.7675475 | FA14: 611.6286581 | FB14: 757.169492 | FC14: 638.2014428 | FD14: 614.0942272 | FE14: 281.3721492 | FF14: 4250.564145 | FG14: 3543.428622 | FH14: 4058.16788 | FI14: 3479.936744 | FJ14: 3121.349979 | FK14: 2926.344411 | FL14: 5025.331692 | FM14: 4155.05728 | FN14: 4815.337372 | FO14: 4118.138186 | FP14: 3735.444206 | FQ14: 3207.71656 | FR14: 8.300903327 | FS14: 8.298808793 | FT14: 8.29982854 | FU14: 8.297560112 | FV14: 8.287148016 | FW14: 8.277421784 | FX14: 165.8710765 | FY14: 165.8564385 | FZ14: 165.865237 | GA14: 165.8510669 | GB14: 165.8125194 | GC14: 165.7683693 | GD14: 174.1719798 | GE14: 174.1552473 | GF14: 174.1650656 | GG14: 174.148627 | GH14: 174.0996674 | GI14: 174.0457911 | GJ14: 3478414.264 | GK14: 3478949.889 | GL14: 3478485.974 | GM14: 3478854.403 | GN14: 3478257.904 | GO14: 3477708.105 | GP14: 706.1590476 | GQ14: 1241.783172 | GR14: 777.8682636 | GS14: 1146.29714 | GT14: 549.7985662 | GU14: 0 | GV14: 1 | GW14: 0 | GX14: 0 | GY14: 0 | GZ14: 0 | HA14: 1 | HB14: 1 | HC14: 1 | HD14: 1 | HE14: 1
A15: 7 | B15: 3.007126083 | C15: 0.4223923016 | D15: 0.4476894885 | E15: 0.5428509032 | F15: 0.04768579732 | G15: 0.1157817396 | H15: 0.2324538223 | I15: 0.5194068979 | J15: 0.1323575402 | K15: 0.1038713519 | L15: 0.4290016239 | M15: 0.3778441487 | N15: -0.188665363 | O15: -0.1721767988 | P15: 4.312552944 | Q15: -0.6803946417 | R15: 4.802791678e-05 | S15: 1.853740363e-05 | T15: 5.393286598e-05 | U15: 0.0001182082579 | V15: 0.0001175819425 | W15: 0.0002151324472 | X15: 0.0003505934445 | Y15: 0.0005625279584 | Z15: 0.0009228782035 | AA15: 0.001181166508 | AB15: 0.001654760632 | AC15: 0.002373646124 | AD15: 0.002944851044 | AE15: 0.003601981526 | AF15: 0.003019692016 | AG15: 1.444446263e-05 | AH15: 1.801737532e-05 | AI15: 7.587097645e-05 | AJ15: 0.0001037150405 | AK15: 0.0001237776229 | AL15: 0.0002562378845 | AM15: 0.0004015117487 | AN15: 0.0008898926334 | AO15: 0.001578481136 | AP15: 0.001936954342 | AQ15: 0.002651620787 | AR15: 0.003565540948 | AS15: 0.004149181984 | AT15: 0.005003139047 | AU15: 0.004812386383 | AV15: 0.4981378858 | AW15: 0.7528114649 | AX15: 0.6900499471 | AY15: 0.6881040765 | AZ15: 0.01448342279 | BA15: 0.0521045629 | BB15: 0.1477952952 | BC15: 0.5378575192 | BD15: 0.996762521 | BE15: 0.001690446927 | BF15: 0.02796267666 | BG15: 0.02733670103 | BH15: 0.03083025099 | BI15: 0.04857030374 | BJ15: 0.09568564433 | BK15: 0.9889672768 | BL15: 0.6247283507 | BM15: 2.176612045 | BN15: 0.665245483 | BO15: 0.6699506151 | BP15: 0.118501157 | BQ15: 0.1269613258 | BR15: 0.08458690212 | BS15: 0.1790131643 | BT15: 0.2656287551 | BU15: 0.2965330991 | BV15: 0.2588249815 | BW15: 0.2128161069 | BX15: 0.5158501421 | BY15: 0.1801629169 | BZ15: 0.09117083413 | CA15: 0.9880283438 | CB15: 0.8024028921 | CC15: 0.01359947963 | CD15: 0.9622620138 | CE15: 0.004268099234 | CF15: 0.8322257799 | CG15: 0.888650263 | CH15: 0.6984325779 | CI15: 0.004520933682 | CJ15: 0.15116652 | CK15: 0.8131550022 | CL15: 0.8131550022 | CM15: 0.8131550022 | CN15: 0.8131550022 | CO15: 0.05543547626 | CP15: 0.05412450298 | CQ15: 0.05412450298 | CR15: 0.05412450298 | CS15: 0.690183687 | CT15: -0.8028151122 | CU15: 0.06906702052 | CV15: -0.2042056782 | CW15: 0.2992504193 | CX15: 0.6805004881 | CY15: 0.1996760485 | CZ15: 0.5306801788 | DA15: 0.8826850608 | DB15: 0.970145395 | DC15: 1 | DD15: 0.7817823998 | DE15: 0.7022202773 | DF15: 226.5248552 | DG15: 195.0112779 | DH15: 144.3810068 | DI15: 27.012269 | DJ15: 407.6800795 | DK15: 691.5481686 | DL15: 148.8184124 | DM15: 27.6871519 | DN15: 166.7696807 | DO15: 246.1183775 | DP15: 146.5824468 | DQ15: 661.3911328 | DR15: 9709.973131 | DS15: 6946.026895 | DT15: 3819.293677 | DU15: 3979.032011 | DV15: 1335.221876 | DW15: 9674.760032 | DX15: 6679.218509 | DY15: 6376.551868 | DZ15: 1975.370611 | EA15: 1405.892542 | EB15: 9687.648048 | EC15: 5621.270474 | ED15: 6778.729333 | EE15: 4136.974268 | EF15: 1744.129316 | EG15: 14375.45936 | EH15: 11245.45074 | EI15: 7653.438965 | EJ15: 4023.096123 | EK15: 727.8912984 | EL15: 0.9441866811 | EM15: 0.01802339148 | EN15: -8.668120311e-05 | EO15: 1.800008444e-05 | EP15: 0.9054869768 | EQ15: 1.008857141 | ER15: 1.020813111 | ES15: 1.02705459 | ET15: 0.1211826012 | EU15: 1 | EV15: 1 | EW15: 1 | EX15: 0.7530576177 | EY15: 1 | EZ15: 461.5107984 | FA15: 437.8008674 | FB15: 460.533879 | FC15: 434.1959069 | FD15: 822.5062715 | FE15: 129.3986404 | FF15: 498.0397251 | FG15: 475.7989989 | FH15: 510.4644554 | FI15: 475.0008676 | FJ15: 535.1756886 | FK15: 423.9979454 | FL15: 959.5505236 | FM15: 913.5998663 | FN15: 970.9983344 | FO15: 909.1967745 | FP15: 1357.68196 | FQ15: 553.3965858 | FR15: 12.09858065 | FS15: 12.0994781 | FT15: 12.09729635 | FU15: 12.09867155 | FV15: 12.10360868 | FW15: 12.09532937 | FX15: 52.48486151 | FY15: 52.48443708 | FZ15: 52.48456024 | GA15: 52.48387899 | GB15: 52.49290459 | GC15: 52.47932055 | GD15: 64.58344216 | GE15: 64.58391517 | GF15: 64.58185659 | GG15: 64.58255053 | GH15: 64.59651327 | GI15: 64.57464992 | GJ15: 1290709.293 | GK15: 1290764.704 | GL15: 1290666.134 | GM15: 1290741.814 | GN15: 1290572.583 | GO15: 1290939.602 | GP15: -230.3091682 | GQ15: -174.8982193 | GR15: -273.4682813 | GS15: -197.787963 | GT15: -367.0183848 | GU15: 0 | GV15: 0 | GW15: 0 | GX15: 0 | GY15: 0 | GZ15: 1 | HA15: 0 | HB15: 0 | HC15: 0 | HD15: 0 | HE15: 0
A16: 8 | B16: 4.457696523 | C16: 0.4274229364 | D16: 0.4245342467 | E16: 0.5132017716 | F16: 0.04743593882 | G16: 0.07857384786 | H16: 0.3127737992 | I16: 0.5724244874 | J16: 0.0362278656 | K16: 0.2174681345 | L16: 0.6172109373 | M16: 1.045373648 | N16: -0.1520804616 | O16: -0.227414733 | P16: 4.308113076 | Q16: -0.5962306665 | R16: 3.67393612e-05 | S16: 3.488820916e-05 | T16: 5.713905237e-05 | U16: 8.703395071e-05 | V16: 0.0001299195059 | W16: 0.0002114158114 | X16: 0.000373963902 | Y16: 0.0006365049849 | Z16: 0.0008959029226 | AA16: 0.00121443043 | AB16: 0.001688385779 | AC16: 0.002486239702 | AD16: 0.003052363048 | AE16: 0.003578385119 | AF16: 0.003014835879 | AG16: 1.340879368e-05 | AH16: 1.997777207e-05 | AI16: 5.41419892e-05 | AJ16: 9.155650134e-05 | AK16: 0.0001188342599 | AL16: 0.0002197033047 | AM16: 0.0004455521164 | AN16: 0.0008900874118 | AO16: 0.001382974245 | AP16: 0.001935388229 | AQ16: 0.002593707657 | AR16: 0.003867269969 | AS16: 0.004611832242 | AT16: 0.004918534457 | AU16: 0.00460211792 | AV16: 0.4952824781 | AW16: 0.7416231377 | AX16: 0.6901728437 | AY16: 0.675057492 | AZ16: 0.01526964382 | BA16: 0.05229815618 | BB16: 0.1493498015 | BC16: 0.5356320711 | BD16: 0.6186227043 | BE16: 0.003347101108 | BF16: 0.03117884967 | BG16: 0.02555795443 | BH16: 0.03107569926 | BI16: 0.04838540183 | BJ16: 0.09394734371 | BK16: 0.9934369053 | BL16: 0.7025295729 | BM16: 2.821161646 | BN16: 0.8577938845 | BO16: 0.7399750331 | BP16: 0.08194162879 | BQ16: 0.09083439412 | BR16: 0.08724894402 | BS16: 0.1766939286 | BT16: 0.2704234133 | BU16: 0.2952632893 | BV16: 0.2576193688 | BW16: 0.1955254551 | BX16: 0.505118573 | BY16: 0.2499075978 | BZ16: 0.04944837403 | CA16: 0.9085965145 | CB16: 0.7900009021 | CC16: 0.01723599448 | CD16: 0.9134943727 | CE16: 0.00524356383 | CF16: 0.8568138541 | CG16: 0.8539493012 | CH16: 0.4309670647 | CI16: 0.003558465716 | CJ16: 0.1096990741 | CK16: 0.9174369273 | CL16: 0.9174369273 | CM16: 0.9174369273 | CN16: 0.9174369273 | CO16: 0.003735713795 | CP16: 0.1129005795 | CQ16: 0.1129005795 | CR16: 0.1129005795 | CS16: 0.7113896587 | CT16: -0.1778782274 | CU16: 0.2261410722 | CV16: -1.045505219 | CW16: 0.4726999774 | CX16: 0.5430182667 | CY16: 0.856705021 | CZ16: 0.4309992865 | DA16: 0.9191614169 | DB16: 0.9540896265 | DC16: 1 | DD16: 0.7591631919 | DE16: 0.7220547091 | DF16: 323.2009597 | DG16: 220.5103827 | DH16: 197.3139851 | DI16: 23.1262196 | DJ16: 563.0165774 | DK16: 912.7666194 | DL16: 106.2225283 | DM16: 31.84562993 | DN16: 147.0164372 | DO16: 133.0674884 | DP16: 120.7602159 | DQ16: 543.0127027 | DR16: 11176.36891 | DS16: 3988.244125 | DT16: 5685.150097 | DU16: 2835.800347 | DV16: 1925.493288 | DW16: 11282.14294 | DX16: 6998.812188 | DY16: 3475.052181 | DZ16: 3808.173654 | EA16: 1849.447035 | EB16: 15741.60385 | EC16: 9785.558459 | ED16: 6699.280011 | EE16: 4215.609617 | EF16: 1299.893522 | EG16: 10218.87541 | EH16: 6650.667277 | EI16: 5981.846162 | EJ16: 4106.787209 | EK16: 936.840125 | EL16: 0.9647403778 | EM16: 0.0231188732 | EN16: -0.0002806122963 | EO16: -1.859321346e-05 | EP16: 0.8853439255 | EQ16: 0.973610882 | ER16: 1.038809545 | ES16: 1.045300534 | ET16: 0.2017409726 | EU16: 1 | EV16: 1 | EW16: 1 | EX16: 0.792123487 | EY16: 1 | EZ16: 909.6804683 | FA16: 662.2384523 | FB16: 1404.751498 | FC16: 820.0264896 | FD16: 805.5660759 | FE16: 101.6747183 | FF16: 991.6569973 | FG16: 803.9764881 | FH16: 1384.09886 | FI16: 910.8666517 | FJ16: 669.7440236 | FK16: 571.0102852 | FL16: 1901.337466 | FM16: 1466.21494 | FN16: 2788.850358 | FO16: 1730.893141 | FP16: 1475.3101 | FQ16: 672.6850036 | FR16: 10.07364517 | FS16: 10.07295142 | FT16: 10.0744438 | FU16: 10.07241648 | FV16: 10.05791429 | FW16: 10.06585145 | FX16: 68.77146356 | FY16: 68.76839797 | FZ16: 68.77703585 | GA16: 68.76907095 | GB16: 68.76292245 | GC16: 68.75718097 | GD16: 78.84510873 | GE16: 78.84134939 | GF16: 78.85147965 | GG16: 78.84148743 | GH16: 78.82083674 | GI16: 78.82303242 | GJ16: 1575000.837 | GK16: 1575360.773 | GL16: 1574240.743 | GM16: 1575098.856 | GN16: 1574941.425 | GO16: 1575787.963 | GP16: -787.126192 | GQ16: -427.1905059 | GR16: -1547.220763 | GS16: -689.107839 | GT16: -846.5387089 | GU16: 0 | GV16: 0 | GW16: 0 | GX16: 0 | GY16: 0 | GZ16: 1 | HA16: 0 | HB16: 0 | HC16: 0 | HD16: 0 | HE16: 0
A17: 9 | B17: 5.532017001 | C17: 0.4325203407 | D17: 0.4525150877 | E17: 0.512479504 | F17: 0.03617004059 | G17: 0.1428449996 | H17: 0.3664804206 | I17: 0.3801306324 | J17: 0.1105439474 | K17: -0.07764999642 | L17: 0.2747027265 | M17: 0.8807018825 | N17: -0.1275739022 | O17: -0.254907665 | P17: 4.32940977 | Q17: -0.5385715815 | R17: 2.140220884e-05 | S17: 3.076411987e-05 | T17: 4.874976796e-05 | U17: 0.000129516787 | V17: 0.0001192319837 | W17: 0.0002152725785 | X17: 0.0003662023458 | Y17: 0.000575553786 | Z17: 0.000882588207 | AA17: 0.001179195005 | AB17: 0.001686274671 | AC17: 0.00237872818 | AD17: 0.003163807703 | AE17: 0.00359159271 | AF17: 0.002978585282 | AG17: 9.591365343e-06 | AH17: 2.187116758e-05 | AI17: 5.394395425e-05 | AJ17: 0.0001288354066 | AK17: 0.0001062936554 | AL17: 0.0002239596463 | AM17: 0.0004312356225 | AN17: 0.0009081098215 | AO17: 0.001488272851 | AP17: 0.00201535721 | AQ17: 0.002738424116 | AR17: 0.0038547241 | AS17: 0.004588092171 | AT17: 0.005105337599 | AU17: 0.004747485338 | AV17: 0.4997270682 | AW17: 0.750684348 | AX17: 0.7034508103 | AY17: 0.6836293879 | AZ17: 0.01443005114 | BA17: 0.05246358082 | BB17: 0.1473507092 | BC17: 0.5408615277 | BD17: 0.4857720474 | BE17: 0.005236007318 | BF17: 0.02166309429 | BG17: 0.028326448 | BH17: 0.03046182286 | BI17: 0.04834195838 | BJ17: 0.0900416469 | BK17: 0.9904433083 | BL17: 0.6406876537 | BM17: 2.098865849 | BN17: 0.6080045117 | BO17: 0.7030668879 | BP17: 0.1119679349 | BQ17: 0.1096908515 | BR17: 0.07527432572 | BS17: 0.1780508156 | BT17: 0.2688982056 | BU17: 0.2971711501 | BV17: 0.2558798287 | BW17: 0.1434678942 | BX17: 0.4914578713 | BY17: 0.2375472834 | BZ17: 0.1275269511 | CA17: 0.996810742 | CB17: 0.8705852873 | CC17: 0.01414063632 | CD17: 0.9788712265 | CE17: 0.002645256803 | CF17: 0.8227280921 | CG17: 0.9235815129 | CH17: 0.7013337292 | CI17: 0.0003588350523 | CJ17: 0.002628402941 | CK17: 0.9835852778 | CL17: 0.9835852778 | CM17: 0.9835852778 | CN17: 0.9835852778 | CO17: 0.04261017621 | CP17: 0.02579717201 | CQ17: 0.02579717201 | CR17: 0.02579717201 | CS17: 0.6297504793 | CT17: -0.3041342821 | CU17: 0.04628295118 | CV17: -0.2420316932 | CW17: 0.4213727858 | CX17: 0.5719894838 | CY17: 0.4060605543 | CZ17: 0.3096956059 | DA17: 0.9498864265 | DB17: 0.9007241241 | DC17: 1 | DD17: 0.7659364364 | DE17: 0.7134451608 | DF17: 281.2244015 | DG17: 104.4454448 | DH17: 199.3832394 | DI17: 15.85813044 | DJ17: 289.7742169 | DK17: 695.8796665 | DL17: 129.0019476 | DM17: 40.32014432 | DN17: 165.9526121 | DO17: 220.2154712 | DP17: 115.6160163 | DQ17: 720.5546946 | DR17: 10538.49337 | DS17: 5641.771909 | DT17: 5248.537562 | DU17: 2310.152619 | DV17: 1116.148651 | DW17: 8836.297251 | DX17: 7085.71721 | DY17: 5147.571489 | DZ17: 3347.129155 | EA17: 1924.524269 | EB17: 14080.79984 | EC17: 8306.80357 | ED17: 9316.233696 | EE17: 4984.56339 | EF17: 1172.253975 | EG17: 16554.34441 | EH17: 9519.084083 | EI17: 8676.191514 | EJ17: 4132.038495 | EK17: 761.7536757 | EL17: 0.9544131346 | EM17: 0.0211782927 | EN17: -0.0004502188165 | EO17: -3.243173475e-05 | EP17: 0.9801164915 | EQ17: 1.022852477 | ER17: 0.9625355416 | ES17: 1.000288707 | ET17: 0.2742433787 | EU17: 1 | EV17: 1 | EW17: 1 | EX17: 0.7680907257 | EY17: 1 | EZ17: 577.3185969 | FA17: 518.4139721 | FB17: 522.5889277 | FC17: 441.2639582 | FD17: 515.4500296 | FE17: 142.2467584 | FF17: 1138.306277 | FG17: 1033.116896 | FH17: 1297.999969 | FI17: 1106.246726 | FJ17: 973.8616821 | FK17: 876.0187874 | FL17: 1715.624874 | FM17: 1551.530868 | FN17: 1820.588897 | FO17: 1547.510684 | FP17: 1489.311712 | FQ17: 1018.265546 | FR17: 9.006187833 | FS17: 9.00619167 | FT17: 9.005658456 | FU17: 9.00551877 | FV17: 9.001499017 | FW17: 8.999485924 | FX17: 76.36450196 | FY17: 76.36346546 | FZ17: 76.36509633 | GA17: 76.36292945 | GB17: 76.35974769 | GC17: 76.34934926 | GD17: 85.37068979 | GE17: 85.36965713 | GF17: 85.37075479 | GG17: 85.36844822 | GH17: 85.36124671 | GI17: 85.34883519 | GJ17: 1705698.171 | GK17: 1705841.612 | GL17: 1705594.507 | GM17: 1705821.454 | GN17: 1705735.622 | GO17: 1705958.438 | GP17: -260.2672558 | GQ17: -116.8264745 | GR17: -363.9313856 | GS17: -136.9845416 | GT17: -222.8158288 | GU17: 0 | GV17: 0 | GW17: 0 | GX17: 0 | GY17: 0 | GZ17: 1 | HA17: 0 | HB17: 0 | HC17: 0 | HD17: 0 | HE17: 0
A18: 10 | B18: 3.955857275 | C18: 0.4582366521 | D18: 0.414209257 | E18: 0.519859559 | F18: 0.05437062766 | G18: 0.1021010418 | H18: 0.3180647374 | I18: 0.4627312225 | J18: 0.1171029983 | K18: 0.04680878161 | L18: 0.6125553138 | M18: 1.18733902 | N18: 0.03811381276 | O18: -0.03851433757 | P18: 4.304256139 | Q18: -0.5633552039 | R18: 1.476133349e-05 | S18: 2.819210941e-05 | T18: 7.125381511e-05 | U18: 8.876738143e-05 | V18: 0.0001163132194 | W18: 0.0002137980004 | X18: 0.0004374533826 | Y18: 0.0006418598975 | Z18: 0.0008472607227 | AA18: 0.001053317517 | AB18: 0.001690297936 | AC18: 0.002478478639 | AD18: 0.00332289755 | AE18: 0.003676938735 | AF18: 0.003185052185 | AG18: 1.71165239e-05 | AH18: 2.263177259e-05 | AI18: 4.450577196e-05 | AJ18: 9.729005084e-05 | AK18: 0.0001234669511 | AL18: 0.0002152601415 | AM18: 0.0004418796799 | AN18: 0.0009279669703 | AO18: 0.001506388484 | AP18: 0.001986023921 | AQ18: 0.002759332999 | AR18: 0.003827792446 | AS18: 0.004537173061 | AT18: 0.005025274136 | AU18: 0.004772400049 | AV18: 0.4936548743 | AW18: 0.7471592983 | AX18: 0.6908733824 | AY18: 0.6854451672 | AZ18: 0.01561766162 | BA18: 0.05248655637 | BB18: 0.1456365176 | BC18: 0.5400003472 | BD18: 0.6881711452 | BE18: 0.01206666958 | BF18: 0.02968042456 | BG18: 0.02792752427 | BH18: 0.03229977757 | BI18: 0.05364061854 | BJ18: 0.09818420844 | BK18: 0.9627274723 | BL18: 0.6473155399 | BM18: 1.622945841 | BN18: 0.4320274754 | BO18: 0.7239849863 | BP18: 0.06964802899 | BQ18: 0.142695105 | BR18: 0.06367187971 | BS18: 0.1759692773 | BT18: 0.270497162 | BU18: 0.2962479416 | BV18: 0.2572856191 | BW18: 0.1923438546 | BX18: 0.4049598804 | BY18: 0.2493433044 | BZ18: 0.1533529605 | CA18: 0.9296677267 | CB18: 0.7324206099 | CC18: 0.01896531314 | CD18: 0.8502469459 | CE18: 0.02101167898 | CF18: 0.7888795992 | CG18: 0.9294809319 | CH18: 0.7689202606 | CI18: 0.001467896689 | CJ18: 0.03170416183 | CK18: 0.92003936 | CL18: 0.92003936 | CM18: 0.92003936 | CN18: 0.92003936 | CO18: 0.006809103303 | CP18: 0.08876879408 | CQ18: 0.08876879408 | CR18: 0.08876879408 | CS18: 0.7080022066 | CT18: -4.60684865 | CU18: 0.3263062545 | CV18: 1.356430398 | CW18: 0.09489557176 | CX18: 0.9999171678 | CY18: 0.2477374552 | CZ18: 0.538371191 | DA18: 0.9692937925 | DB18: 0.8250673421 | DC18: 1 | DD18: 0.7645756749 | DE18: 0.7129324014 | DF18: 218.241375 | DG18: 176.857975 | DH18: 118.7458051 | DI18: 30.91490609 | DJ18: 362.8075177 | DK18: 678.6371584 | DL18: 130.0781158 | DM18: 57.21546806 | DN18: 189.9379023 | DO18: 183.1186564 | DP18: 113.7181632 | DQ18: 881.7500142 | DR18: 9371.735349 | DS18: 5082.952495 | DT18: 4746.171733 | DU18: 3051.156939 | DV18: 1231.146863 | DW18: 7328.752607 | DX18: 7832.547166 | DY18: 4894.281281 | DZ18: 3317.997792 | EA18: 1603.175072 | EB18: 9854.136238 | EC18: 6042.188609 | ED18: 6083.31731 | EE18: 4982.27801 | EF18: 1755.286129 | EG18: 11686.36603 | EH18: 7510.817118 | EI18: 5277.150419 | EJ18: 3439.330091 | EK18: 745.0254005 | EL18: 0.9390539249 | EM18: 0.01649804878 | EN18: -0.0004407901574 | EO18: -2.540797464e-05 | EP18: 0.9037402507 | EQ18: 1.030236349 | ER18: 1.044598216 | ES18: 1.027825934 | ET18: 0.06846007005 | EU18: 1 | EV18: 1 | EW18: 1 | EX18: 0.7557540784 | EY18: 1 | EZ18: 487.1920929 | FA18: 452.4474595 | FB18: 431.0537216 | FC18: 409.2523873 | FD18: 878.5216294 | FE18: 121.8398936 | FF18: 684.8605273 | FG18: 682.3781833 | FH18: 684.8303917 | FI18: 674.8571343 | FJ18: 844.460495 | FK18: 562.3610601 | FL18: 1172.05262 | FM18: 1134.825643 | FN18: 1115.884113 | FO18: 1084.109522 | FP18: 1722.982124 | FQ18: 684.2009536 | FR18: 9.086783899 | FS18: 9.087428729 | FT18: 9.086922847 | FU18: 9.087192623 | FV18: 9.092080363 | FW18: 9.082996989 | FX18: 59.33383409 | FY18: 59.3336362 | FZ18: 59.33383213 | GA18: 59.33312525 | GB18: 59.34641205 | GC18: 59.32428534 | GD18: 68.42061799 | GE18: 68.42106493 | GF18: 68.42075498 | GG18: 68.42031788 | GH18: 68.43849242 | GI18: 68.40728233 | GJ18: 1367240.307 | GK18: 1367286.473 | GL18: 1367299.216 | GM18: 1367322.248 | GN18: 1367046.866 | GO18: 1367461.446 | GP18: -221.1383988 | GQ18: -174.9726776 | GR18: -162.2300935 | GS18: -139.1975819 | GT18: -414.5794226 | GU18: 0 | GV18: 0 | GW18: 0 | GX18: 0 | GY18: 0 | GZ18: 1 | HA18: 0 | HB18: 0 | HC18: 0 | HD18: 0 | HE18: 0
A19: 11 | B19: 2.099407425 | C19: 0.4190217666 | D19: 0.4301309321 | E19: 0.5310338803 | F19: 0.04419938101 | G19: 0.1229554214 | H19: 0.2744440437 | I19: 0.5219920497 | J19: 0.08060848515 | K19: 0.1167640215 | L19: 0.5795818547 | M19: 0.53825411 | N19: -0.05564899846 | O19: -0.1563783508 | P19: 4.260814662 | Q19: -0.5686124858 | R19: 1.956103841e-05 | S19: 3.444490294e-05 | T19: 6.211941642e-05 | U19: 0.0001265117486 | V19: 0.0001312896984 | W19: 0.0002172180498 | X19: 0.0003953435194 | Y19: 0.0006155534474 | Z19: 0.0009618114614 | AA19: 0.001197262025 | AB19: 0.001817411424 | AC19: 0.002446313777 | AD19: 0.003138334813 | AE19: 0.003356707735 | AF19: 0.00308909492 | AG19: 4.896302715e-05 | AH19: 3.536663013e-05 | AI19: 6.905927627e-05 | AJ19: 6.407804843e-05 | AK19: 0.0001278533729 | AL19: 0.0002120732534 | AM19: 0.0003952572462 | AN19: 0.0008726320677 | AO19: 0.001533193067 | AP19: 0.002125319242 | AQ19: 0.002837690832 | AR19: 0.003751715401 | AS19: 0.004535759427 | AT19: 0.004975948095 | AU19: 0.004469249263 | AV19: 0.4884886438 | AW19: 0.7522446621 | AX19: 0.6963847688 | AY19: 0.6914125592 | AZ19: 0.01387711265 | BA19: 0.05122795229 | BB19: 0.1487026815 | BC19: 0.5405104615 | BD19: 0.8761897947 | BE19: 0.00604832053 | BF19: 0.02550061708 | BG19: 0.02780474158 | BH19: 0.03052610185 | BI19: 0.04829302224 | BJ19: 0.08822757493 | BK19: 0.983667923 | BL19: 0.7833039639 | BM19: 2.054351269 | BN19: 0.2193158397 | BO19: 0.6567498237 | BP19: 0.1524563992 | BQ19: 0.1530317698 | BR19: 0.03776200728 | BS19: 0.1769284832 | BT19: 0.2715725672 | BU19: 0.2929935628 | BV19: 0.2585053867 | BW19: 0.1994309527 | BX19: 0.4557954224 | BY19: 0.2598641057 | BZ19: 0.08490951914 | CA19: 0.961841459 | CB19: 0.7365267932 | CC19: 0.0005222379031 | CD19: 0.9274662131 | CE19: 0.001279753866 | CF19: 0.822450085 | CG19: 0.8793663174 | CH19: 0.8298793857 | CI19: 0.005539237739 | CJ19: 0.04109976904 | CK19: 0.9428805885 | CL19: 0.9428805885 | CM19: 0.9428805885 | CN19: 0.9428805885 | CO19: 0.01835146952 | CP19: 0.05969906492 | CQ19: 0.05969906492 | CR19: 0.05969906492 | CS19: 0.6995339791 | CT19: 2.878137384 | CU19: 0.08751731314 | CV19: 0.7253931289 | CW19: 0.8842234796 | CX19: 0.01673184239 | CY19: 0.6167700402 | CZ19: 0.4356525441 | DA19: 0.8975020371 | DB19: 0.9667729122 | DC19: 1 | DD19: 0.7946692498 | DE19: 0.7198642693 | DF19: 267.3995164 | DG19: 158.4649773 | DH19: 168.578167 | DI19: 27.69750436 | DJ19: 396.9136467 | DK19: 702.5351095 | DL19: 184.1027055 | DM19: 40.89929207 | DN19: 216.9867925 | DO19: 226.8226975 | DP19: 165.3867021 | DQ19: 613.5614148 | DR19: 10025.19593 | DS19: 7306.277843 | DT19: 3859.071044 | DU19: 3856.077386 | DV19: 1464.937706 | DW19: 8028.609982 | DX19: 4965.1471 | DY19: 6676.96424 | DZ19: 2953.395029 | EA19: 1247.003203 | EB19: 13734.56422 | EC19: 9184.179125 | ED19: 5948.387597 | EE19: 4754.512471 | EF19: 1438.210559 | EG19: 7202.298995 | EH19: 8925.459403 | EI19: 7228.315082 | EJ19: 5562.233755 | EK19: 784.4715303 | EL19: 0.9415872757 | EM19: 0.02381191217 | EN19: 0.0004551964752 | EO19: -2.35431556e-05 | EP19: 1.022058529 | EQ19: 1.000405758 | ER19: 1.019693426 | ES19: 1.086045779 | ET19: 0.26131563 | EU19: 1 | EV19: 1 | EW19: 1 | EX19: 0.8270329932 | EY19: 1 | EZ19: 1036.805576 | FA19: 675.8469259 | FB19: 741.9030791 | FC19: 541.7395183 | FD19: 761.5037187 | FE19: 192.8780679 | FF19: 832.3712529 | FG19: 533.4405316 | FH19: 688.9036029 | FI19: 510.8315949 | FJ19: 420.8279905 | FK19: 364.9737143 | FL19: 1869.176829 | FM19: 1209.287457 | FN19: 1430.806682 | FO19: 1052.571113 | FP19: 1182.331709 | FQ19: 557.8517822 | FR19: 10.10497574 | FS19: 10.09935595 | FT19: 10.0994182 | FU19: 10.09455839 | FV19: 10.08867288 | FW19: 10.06177148 | FX19: 32.98639735 | FY19: 32.97988499 | FZ19: 32.98092982 | GA19: 32.97583151 | GB19: 32.96917179 | GC19: 32.947959 | GD19: 43.09137309 | GE19: 43.07924094 | GF19: 43.08034802 | GG19: 43.0703899 | GH19: 43.05784467 | GI19: 43.00973048 | GJ19: 859958.285 | GK19: 860375.5314 | GL19: 860176.1537 | GM19: 860355.2269 | GN19: 859974.5617 | GO19: 859636.7579 | GP19: 321.5270698 | GQ19: 738.7734741 | GR19: 539.3958447 | GS19: 718.4689623 | GT19: 337.8038426 | GU19: 0 | GV19: 1 | GW19: 0 | GX19: 0 | GY19: 0 | GZ19: 0 | HA19: 1 | HB19: 1 | HC19: 1 | HD19: 1 | HE19: 1
A20: 12 | B20: 6.194453503 | C20: 0.4454268999 | D20: 0.4164905308 | E20: 0.5799582823 | F20: 0.03710717744 | G20: 0.1067804396 | H20: 0.3236150628 | I20: 0.4722122331 | J20: 0.09739226439 | K20: 0.06880560143 | L20: 0.4573226851 | M20: 0.8320715902 | N20: -0.2508270057 | O20: -0.3698460126 | P20: 4.312084775 | Q20: -0.5366168375 | R20: 1.8595344e-05 | S20: 3.467823826e-05 | T20: 4.786781244e-05 | U20: 0.0001289365331 | V20: 0.0001111423039 | W20: 0.0002152556859 | X20: 0.0003550391941 | Y20: 0.0007095186614 | Z20: 0.0009598656352 | AA20: 0.001177252729 | AB20: 0.001729240325 | AC20: 0.002281234999 | AD20: 0.003186149658 | AE20: 0.003653157248 | AF20: 0.003040076199 | AG20: 1.726142825e-05 | AH20: 1.394095461e-05 | AI20: 4.641862383e-05 | AJ20: 8.207124692e-05 | AK20: 0.0001312843189 | AL20: 0.0002447955318 | AM20: 0.0004096863509 | AN20: 0.000841297349 | AO20: 0.001563692496 | AP20: 0.001896958772 | AQ20: 0.002732907134 | AR20: 0.003768035122 | AS20: 0.004808594069 | AT20: 0.005099451483 | AU20: 0.00464174716 | AV20: 0.4903816553 | AW20: 0.7504792293 | AX20: 0.6929456353 | AY20: 0.6798182361 | AZ20: 0.01427616552 | BA20: 0.05291016203 | BB20: 0.1487566336 | BC20: 0.5494694369 | BD20: 0.5880517092 | BE20: 0.0005228017489 | BF20: 0.02522195239 | BG20: 0.02836440484 | BH20: 0.03310852672 | BI20: 0.04669919259 | BJ20: 0.09466970627 | BK20: 0.9731748975 | BL20: 0.6044358933 | BM20: 1.939550292 | BN20: 0.4889286383 | BO20: 0.7312046126 | BP20: 0.03879279452 | BQ20: 0.1834302901 | BR20: 0.04657230276 | BS20: 0.1765595774 | BT20: 0.2747120163 | BU20: 0.2891292759 | BV20: 0.2595991304 | BW20: 0.2258858883 | BX20: 0.3557945836 | BY20: 0.3474792985 | BZ20: 0.07084022964 | CA20: 0.9700359723 | CB20: 0.7585666223 | CC20: 0.001192738375 | CD20: 0.8552585274 | CE20: 0.000340159417 | CF20: 0.8034559657 | CG20: 0.872018686 | CH20: 0.718579155 | CI20: 0.000888618042 | CJ20: 0.02863137688 | CK20: 0.9309430407 | CL20: 0.9309430407 | CM20: 0.9309430407 | CN20: 0.9309430407 | CO20: 0.1578718393 | CP20: 0.1150171647 | CQ20: 0.1150171647 | CR20: 0.1150171647 | CS20: 0.6124841022 | CT20: -3.892057371 | CU20: 0.3200018541 | CV20: -0.1068110659 | CW20: 0.01913741367 | CX20: 0.9789860933 | CY20: 0.5081094067 | CZ20: 0.4083437373 | DA20: 0.9738230387 | DB20: 0.8569952584 | DC20: 1 | DD20: 0.771305676 | DE20: 0.7253955466 | DF20: 170.1895907 | DG20: 320.2829815 | DH20: 159.2048047 | DI20: 34.78409256 | DJ20: 283.9597699 | DK20: 924.3441018 | DL20: 160.9029741 | DM20: 27.02708564 | DN20: 184.5205545 | DO20: 143.5781668 | DP20: 166.5933314 | DQ20: 723.2316064 | DR20: 10508.20978 | DS20: 6818.173299 | DT20: 4063.977458 | DU20: 2871.903442 | DV20: 2330.380065 | DW20: 6794.175662 | DX20: 5986.551099 | DY20: 5624.767772 | DZ20: 3110.33363 | EA20: 1196.09135 | EB20: 13326.79474 | EC20: 11829.70291 | ED20: 6482.808474 | EE20: 4458.209996 | EF20: 1438.824742 | EG20: 10923.33755 | EH20: 7304.164433 | EI20: 6243.22291 | EJ20: 3865.039576 | EK20: 809.6109261 | EL20: 0.9487292721 | EM20: 0.0193810923 | EN20: 1.336242836e-05 | EO20: -2.140737687e-05 | EP20: 0.9035354731 | EQ20: 1.013894174 | ER20: 1.007482098 | ES20: 0.9663831446 | ET20: 0.3262312777 | EU20: 1 | EV20: 1 | EW20: 1 | EX20: 0.7722650046 | EY20: 1 | EZ20: 549.8541627 | FA20: 451.7973242 | FB20: 721.4566073 | FC20: 640.1603089 | FD20: 756.834722 | FE20: 139.4455693 | FF20: 1123.316441 | FG20: 1109.570787 | FH20: 1108.581286 | FI20: 1077.167158 | FJ20: 1075.233494 | FK20: 930.6130592 | FL20: 1673.170604 | FM20: 1561.368111 | FN20: 1830.037893 | FO20: 1717.327467 | FP20: 1832.068216 | FQ20: 1070.058628 | FR20: 9.742548712 | FS20: 9.744831501 | FT20: 9.740833273 | FU20: 9.741761407 | FV20: 9.727806244 | FW20: 9.733784135 | FX20: 94.18999279 | FY20: 94.18980429 | FZ20: 94.18778263 | GA20: 94.1852725 | GB20: 94.18604988 | GC20: 94.16777147 | GD20: 103.9325415 | GE20: 103.9346358 | GF20: 103.9286159 | GG20: 103.9270339 | GH20: 103.9138561 | GI20: 103.9015556 | GJ20: 2076977.659 | GK20: 2077131.348 | GL20: 2076742.28 | GM20: 2076823.351 | GN20: 2076445.054 | GO20: 2076961.053 | GP20: 16.60601376 | GQ20: 170.2942335 | GR20: -218.7733425 | GS20: -137.7027486 | GT20: -515.9991495 | GU20: 0 | GV20: 1 | GW20: 0 | GX20: 0 | GY20: 0 | GZ20: 0 | HA20: 1 | HB20: 1 | HC20: 0 | HD20: 0 | HE20: 0
A21: 13 | B21: 2.255961301 | C21: 0.4210995137 | D21: 0.4702051935 | E21: 0.5500951948 | F21: 0.02847908702 | G21: 0.1738466508 | H21: 0.3719091293 | I21: 0.4438503651 | J21: 0.01039385476 | K21: 0.2459252255 | L21: 0.6815869481 | M21: 0.8719357189 | N21: -0.1638571516 | O21: -0.2928047938 | P21: 4.325145992 | Q21: -0.5085823497 | R21: 5.443713312e-05 | S21: 2.221803672e-05 | T21: 5.9073614e-05 | U21: 0.0001262711951 | V21: 0.0001250377235 | W21: 0.0002061934119 | X21: 0.000401626569 | Y21: 0.0006417034941 | Z21: 0.0009180976062 | AA21: 0.001136814863 | AB21: 0.001632762809 | AC21: 0.002403222571 | AD21: 0.003021400293 | AE21: 0.003485802529 | AF21: 0.002938728231 | AG21: 1.941606963e-05 | AH21: 2.748740305e-05 | AI21: 6.575550576e-05 | AJ21: 8.34435754e-05 | AK21: 0.0001203276334 | AL21: 0.0002071690534 | AM21: 0.0004235236884 | AN21: 0.0008961979018 | AO21: 0.001463208338 | AP21: 0.002008713582 | AQ21: 0.002804621372 | AR21: 0.003839198171 | AS21: 0.004584589542 | AT21: 0.004858435534 | AU21: 0.004778898349 | AV21: 0.4995488613 | AW21: 0.7506497171 | AX21: 0.6956621116 | AY21: 0.6799057229 | AZ21: 0.01334550907 | BA21: 0.05223515063 | BB21: 0.1465058407 | BC21: 0.5416575155 | BD21: 0.8116934949 | BE21: 0.004462898583 | BF21: 0.02683188049 | BG21: 0.02805126988 | BH21: 0.02913675794 | BI21: 0.04849235555 | BJ21: 0.09043625523 | BK21: 0.9880062011 | BL21: 0.7273968696 | BM21: 2.44610389 | BN21: 0.4906385886 | BO21: 0.7241117113 | BP21: 0.1003936724 | BQ21: 0.05554169993 | BR21: 0.1199529164 | BS21: 0.1754537987 | BT21: 0.271641034 | BU21: 0.2927640493 | BV21: 0.260141118 | BW21: 0.1844774755 | BX21: 0.4557072223 | BY21: 0.2783801417 | BZ21: 0.08143516058 | CA21: 0.9831052883 | CB21: 0.7550953754 | CC21: 0.001800356132 | CD21: 0.9510803308 | CE21: 0.01189717349 | CF21: 0.7927427659 | CG21: 0.8764750658 | CH21: 0.8265676547 | CI21: 0.01600937452 | CJ21: 0.0368026073 | CK21: 0.9301757159 | CL21: 0.9301757159 | CM21: 0.9301757159 | CN21: 0.9301757159 | CO21: 0.03948302897 | CP21: 0.005647371425 | CQ21: 0.005647371425 | CR21: 0.005647371425 | CS21: 0.6975015398 | CT21: -4.445968669 | CU21: 0.1844610317 | CV21: -0.1042050527 | CW21: 0.01008477565 | CX21: 0.9867157359 | CY21: 0.4667207254 | CZ21: 0.6961394999 | DA21: 0.9736238733 | DB21: 0.9986548015 | DC21: 1 | DD21: 0.7734454973 | DE21: 0.6950707195 | DF21: 202.9859964 | DG21: 277.6779261 | DH21: 135.6908883 | DI21: 46.40941463 | DJ21: 307.2269034 | DK21: 801.5737588 | DL21: 151.5875053 | DM21: 31.38537588 | DN21: 188.2150937 | DO21: 188.0916976 | DP21: 141.772903 | DQ21: 607.3665029 | DR21: 7774.28126 | DS21: 5967.733305 | DT21: 4534.957707 | DU21: 3843.112958 | DV21: 1736.202262 | DW21: 8626.379435 | DX21: 6690.807912 | DY21: 5594.442219 | DZ21: 3027.523931 | EA21: 1455.907993 | EB21: 14368.65144 | EC21: 9995.221926 | ED21: 6712.256585 | EE21: 3624.797867 | EF21: 1633.707569 | EG21: 12571.51755 | EH21: 9722.197766 | EI21: 8339.940983 | EJ21: 3507.501866 | EK21: 1140.076891 | EL21: 0.9609243243 | EM21: 0.0183962739 | EN21: -0.0005109686559 | EO21: -7.502563557e-05 | EP21: 0.9612297864 | EQ21: 0.9713483794 | ER21: 0.9981149032 | ES21: 0.9490316 | ET21: 0.4067251921 | EU21: 1 | EV21: 1 | EW21: 1 | EX21: 0.7638940821 | EY21: 1 | EZ21: 508.583782 | FA21: 423.2430488 | FB21: 539.0345277 | FC21: 490.5916469 | FD21: 1054.967834 | FE21: 114.2340541 | FF21: 363.9231912 | FG21: 361.2095052 | FH21: 358.502971 | FI21: 356.6967415 | FJ21: 382.966637 | FK21: 318.7517767 | FL21: 872.5069733 | FM21: 784.452554 | FN21: 897.5374987 | FO21: 847.2883884 | FP21: 1437.934471 | FQ21: 432.9858308 | FR21: 6.64716553 | FS21: 6.648075969 | FT21: 6.647039647 | FU21: 6.647642932 | FV21: 6.647927357 | FW21: 6.643726274 | FX21: 22.75309651 | FY21: 22.75301761 | FZ21: 22.75266011 | GA21: 22.75260033 | GB21: 22.75515473 | GC21: 22.74908864 | GD21: 29.40026204 | GE21: 29.40109358 | GF21: 29.39969976 | GG21: 29.40024326 | GH21: 29.40308209 | GI21: 29.39281491 | GJ21: 587132.7338 | GK21: 587237.419 | GL21: 587096.4577 | GM21: 587157.5769 | GN21: 586623.7073 | GO21: 587423.3124 | GP21: -290.5785362 | GQ21: -185.8933718 | GR21: -326.8547081 | GS21: -265.7354867 | GT21: -799.6050429 | GU21: 0 | GV21: 0 | GW21: 0 | GX21: 0 | GY21: 0 | GZ21: 1 | HA21: 0 | HB21: 0 | HC21: 0 | HD21: 0 | HE21: 0
A22: 14 | B22: 5.439877255 | C22: 0.4253332882 | D22: 0.4498783716 | E22: 0.5188702582 | F22: 0.0250828116 | G22: 0.1785660988 | H22: 0.1509989663 | I22: 0.6145235191 | J22: 0.05591141577 | K22: 0.03906547763 | L22: 0.7109626886 | M22: 0.5185483564 | N22: 0.05103209098 | O22: -0.2871588581 | P22: 4.284678728 | Q22: -0.5024393655 | R22: 2.151099257e-05 | S22: 3.566766524e-05 | T22: 8.560313082e-05 | U22: 0.0001159258996 | V22: 0.0001146938878 | W22: 0.0002558273535 | X22: 0.0004023191667 | Y22: 0.0005556021811 | Z22: 0.0009311124571 | AA22: 0.001201205369 | AB22: 0.001716054619 | AC22: 0.002344183264 | AD22: 0.003071442712 | AE22: 0.00365252304 | AF22: 0.002956363481 | AG22: 1.938131004e-05 | AH22: 4.081116589e-05 | AI22: 9.320024964e-05 | AJ22: 0.0001081533844 | AK22: 0.0001045436144 | AL22: 0.000251302054 | AM22: 0.0004163772966 | AN22: 0.0007767031007 | AO22: 0.001686044716 | AP22: 0.00198096653 | AQ22: 0.002662388077 | AR22: 0.003784810832 | AS22: 0.004473576507 | AT22: 0.004976714333 | AU22: 0.004347253905 | AV22: 0.5036501156 | AW22: 0.74801499 | AX22: 0.6916879042 | AY22: 0.6905864275 | AZ22: 0.01318975501 | BA22: 0.05174388698 | BB22: 0.1462097514 | BC22: 0.5502773907 | BD22: 0.4108346305 | BE22: 0.001294927945 | BF22: 0.02992214654 | BG22: 0.02789350804 | BH22: 0.03003475959 | BI22: 0.04642080075 | BJ22: 0.09442973348 | BK22: 0.983863147 | BL22: 0.7750879441 | BM22: 2.204342793 | BN22: 0.6808525258 | BO22: 0.7384447221 | BP22: 0.07613142653 | BQ22: 0.1215466486 | BR22: 0.06387720284 | BS22: 0.1762712902 | BT22: 0.2700539349 | BU22: 0.2961458298 | BV22: 0.2575289452 | BW22: 0.269057164 | BX22: 0.5486946981 | BY22: 0.1380006736 | BZ22: 0.04424746436 | CA22: 0.962285878 | CB22: 0.7447400239 | CC22: 0.0003251925097 | CD22: 0.7338239426 | CE22: 0.01483059185 | CF22: 0.8367191092 | CG22: 0.8644166989 | CH22: 0.7795919552 | CI22: 0.01031641307 | CJ22: 0.002531552767 | CK22: 0.9908812095 | CL22: 0.9908812095 | CM22: 0.9908812095 | CN22: 0.9908812095 | CO22: 0.0485943638 | CP22: 0.1197048059 | CQ22: 0.1197048059 | CR22: 0.1197048059 | CS22: 0.6859719529 | CT22: -3.66524784 | CU22: 0.05152594097 | CV22: 0.4983956341 | CW22: 0.05537246216 | CX22: 0.9912987684 | CY22: 0.6026819643 | CZ22: 0.4560249958 | DA22: 0.9710931507 | DB22: 0.9989107482 | DC22: 1 | DD22: 0.7979401271 | DE22: 0.698477785 | DF22: 222.5910202 | DG22: 207.6231689 | DH22: 129.0821535 | DI22: 17.39315224 | DJ22: 317.9249129 | DK22: 855.3328545 | DL22: 112.9034941 | DM22: 26.49718493 | DN22: 143.9451671 | DO22: 147.7844441 | DP22: 141.0059408 | DQ22: 738.1856433 | DR22: 7121.158472 | DS22: 5438.657252 | DT22: 4631.121131 | DU22: 3491.701796 | DV22: 1365.843779 | DW22: 8689.210715 | DX22: 5531.346929 | DY22: 5825.323425 | DZ22: 4308.23124 | EA22: 1233.308583 | EB22: 18425.43471 | EC22: 8369.769748 | ED22: 7111.56333 | EE22: 3779.343711 | EF22: 1346.784565 | EG22: 12007.01952 | EH22: 7640.962204 | EI22: 5657.468583 | EJ22: 2506.896005 | EK22: 537.1119242 | EL22: 0.9370530738 | EM22: 0.02141234269 | EN22: -0.0005009889916 | EO22: -4.118625553e-05 | EP22: 0.9533896294 | EQ22: 0.9998912265 | ER22: 0.9173762231 | ES22: 1.065660254 | ET22: 3.161848049 | EU22: 1 | EV22: 1 | EW22: 1 | EX22: 0.7816811409 | EY22: 1 | EZ22: 581.0821258 | FA22: 445.1227083 | FB22: 535.1406116 | FC22: 443.6155083 | FD22: 725.3291367 | FE22: 100.6472381 | FF22: 861.5131273 | FG22: 852.3371689 | FH22: 843.9924062 | FI22: 823.2912805 | FJ22: 818.4259525 | FK22: 692.1979307 | FL22: 1442.595253 | FM22: 1297.459877 | FN22: 1379.133018 | FO22: 1266.906789 | FP22: 1543.755089 | FQ22: 792.8451689 | FR22: 8.284322275 | FS22: 8.293335973 | FT22: 8.285988528 | FU22: 8.292601175 | FV22: 8.235581927 | FW22: 8.296993464 | FX22: 66.84589868 | FY22: 66.84552259 | FZ22: 66.8457302 | GA22: 66.84539817 | GB22: 66.84521882 | GC22: 66.84439485 | GD22: 75.13022096 | GE22: 75.13885856 | GF22: 75.13171873 | GG22: 75.13799934 | GH22: 75.08080075 | GI22: 75.14138831 | GJ22: 1501161.824 | GK22: 1501479.711 | GL22: 1501255.242 | GM22: 1501493.08 | GN22: 1500072.26 | GO22: 1502034.921 | GP22: -873.0971805 | GQ22: -555.2097145 | GR22: -779.6794995 | GS22: -541.8410756 | GT22: -1962.66117 | GU22: 0 | GV22: 0 | GW22: 0 | GX22: 0 | GY22: 0 | GZ22: 1 | HA22: 0 | HB22: 0 | HC22: 0 | HD22: 0 | HE22: 0
A23: 15 | B23: 5.667700759 | C23: 0.4649240091 | D23: 0.4317128231 | E23: 0.5353033091 | F23: 0.05501598982 | G23: 0.1461710461 | H23: 0.2542371705 | I23: 0.4655515136 | J23: 0.1340402698 | K23: 0.1688927939 | L23: 0.6911654365 | M23: 0.9123085904 | N23: -0.2243482751 | O23: -0.2485610231 | P23: 4.287253365 | Q23: -0.5885149126 | R23: 2.188222175e-05 | S23: 1.992208596e-05 | T23: 7.945946307e-05 | U23: 0.0001203933 | V23: 0.0001009217636 | W23: 0.0002075228586 | X23: 0.0003783736445 | Y23: 0.0006371603805 | Z23: 0.0009645946055 | AA23: 0.001207907756 | AB23: 0.00182149514 | AC23: 0.002287028098 | AD23: 0.003102297427 | AE23: 0.00350552202 | AF23: 0.002938228628 | AG23: 3.071047605e-05 | AH23: 2.118037323e-05 | AI23: 6.249266822e-05 | AJ23: 0.0001004365647 | AK23: 0.0001435339703 | AL23: 0.000240838694 | AM23: 0.000402363625 | AN23: 0.0008471921579 | AO23: 0.001545374724 | AP23: 0.001919713001 | AQ23: 0.002707447699 | AR23: 0.003932906168 | AS23: 0.004653787248 | AT23: 0.005168165394 | AU23: 0.004752968373 | AV23: 0.4899637517 | AW23: 0.7477216703 | AX23: 0.6945039766 | AY23: 0.6795402369 | AZ23: 0.0142691779 | BA23: 0.05134063092 | BB23: 0.1480765678 | BC23: 0.5523497315 | BD23: 0.4485740202 | BE23: 0.008527751291 | BF23: 0.03166466528 | BG23: 0.02793406756 | BH23: 0.03157722579 | BI23: 0.04968495609 | BJ23: 0.09175422343 | BK23: 0.9731605016 | BL23: 0.7914646202 | BM23: 2.146519302 | BN23: 0.3479881865 | BO23: 0.7589606071 | BP23: 0.1257802882 | BQ23: 0.0678675656 | BR23: 0.04739153906 | BS23: 0.1789285239 | BT23: 0.2678283693 | BU23: 0.2933929531 | BV23: 0.2598501537 | BW23: 0.2052138436 | BX23: 0.4095151994 | BY23: 0.2863860469 | BZ23: 0.09888491009 | CA23: 0.8911389721 | CB23: 0.7194330828 | CC23: 0.00376819922 | CD23: 0.8088001084 | CE23: 0.01522654957 | CF23: 0.8149357207 | CG23: 0.885437077 | CH23: 0.9035142235 | CI23: 0.001641774568 | CJ23: 0.1203597261 | CK23: 0.9541455016 | CL23: 0.9541455016 | CM23: 0.9541455016 | CN23: 0.9541455016 | CO23: 0.03875083802 | CP23: 0.01731991861 | CQ23: 0.01731991861 | CR23: 0.01731991861 | CS23: 0.6612342875 | CT23: -0.9338229189 | CU23: 0.08951996943 | CV23: -0.07747412514 | CW23: 0.2841072893 | CX23: 0.7193824244 | CY23: 0.4580436891 | CZ23: 0.8091771976 | DA23: 0.9818475047 | DB23: 0.9541321086 | DC23: 1 | DD23: 0.7787092592 | DE23: 0.7057002042 | DF23: 302.9084419 | DG23: 224.1570587 | DH23: 124.9312425 | DI23: 35.60933501 | DJ23: 242.5501165 | DK23: 640.4931913 | DL23: 136.0803272 | DM23: 35.96177621 | DN23: 186.4565472 | DO23: 162.5731809 | DP23: 150.7313724 | DQ23: 447.6109218 | DR23: 10007.51019 | DS23: 5508.881122 | DT23: 3603.178066 | DU23: 3091.962039 | DV23: 1716.460551 | DW23: 9736.862599 | DX23: 8964.68141 | DY23: 5229.285049 | DZ23: 4238.578998 | EA23: 1109.755815 | EB23: 14805.43655 | EC23: 8259.879671 | ED23: 6286.827109 | EE23: 3855.013804 | EF23: 1262.620267 | EG23: 13559.09939 | EH23: 7551.175572 | EI23: 7080.118082 | EJ23: 4351.192716 | EK23: 671.3101712 | EL23: 0.9397897545 | EM23: 0.0169085815 | EN23: -0.0004620619211 | EO23: -4.224019378e-05 | EP23: 0.9228967057 | EQ23: 0.9997581575 | ER23: 1.017379339 | ES23: 1.074674786 | ET23: 0.7346903609 | EU23: 1 | EV23: 1 | EW23: 1 | EX23: 0.7890319201 | EY23: 1 | EZ23: 695.3278738 | FA23: 581.2557492 | FB23: 496.7146277 | FC23: 472.2058237 | FD23: 1055.818408 | FE23: 162.896284 | FF23: 1215.334805 | FG23: 1086.866951 | FH23: 1108.652571 | FI23: 1069.421385 | FJ23: 1179.782126 | FK23: 922.7597257 | FL23: 1910.662679 | FM23: 1668.1227 | FN23: 1605.367198 | FO23: 1541.627209 | FP23: 2235.600533 | FQ23: 1085.65601 | FR23: 8.196427437 | FS23: 8.199272102 | FT23: 8.199081936 | FU23: 8.199782916 | FV23: 8.204927742 | FW23: 8.189753185 | FX23: 67.97673625 | FY23: 67.97123777 | FZ23: 67.97270174 | GA23: 67.9707857 | GB23: 67.99516596 | GC23: 67.94558943 | GD23: 76.17316369 | GE23: 76.17050987 | GF23: 76.17178367 | GG23: 76.17056862 | GH23: 76.2000937 | GI23: 76.13534262 | GJ23: 1521552.611 | GK23: 1521742.075 | GL23: 1521830.306 | GM23: 1521869.745 | GN23: 1521766.274 | GO23: 1521621.196 | GP23: -68.58514726 | GQ23: 120.8783848 | GR23: 209.1099259 | GS23: 248.5488339 | GT23: 145.0772602 | GU23: 0 | GV23: 0 | GW23: 0 | GX23: 1 | GY23: 0 | GZ23: 0 | HA23: 0 | HB23: 1 | HC23: 1 | HD23: 1 | HE23: 1
A24: 16 | B24: 9.229013575 | C24: 0.4234114965 | D24: 0.4545791982 | E24: 0.5144542601 | F24: 0.03111768247 | G24: 0.06534655049 | H24: 0.4123037437 | I24: 0.4683141728 | J24: 0.05403553308 | K24: 0.1993058746 | L24: 0.4820960188 | M24: 0.704971933 | N24: -0.2064392213 | O24: -0.2789225409 | P24: 4.298005537 | Q24: -0.536769576 | R24: 1.392735029e-05 | S24: 1.925124619e-05 | T24: 7.961178606e-05 | U24: 0.0001234593798 | V24: 0.0001288962811 | W24: 0.0001948370028 | X24: 0.0003705070068 | Y24: 0.0006525550938 | Z24: 0.0009371537112 | AA24: 0.001178245319 | AB24: 0.00171685527 | AC24: 0.002289371969 | AD24: 0.003092816915 | AE24: 0.003778494084 | AF24: 0.003032281988 | AG24: 1.480362043e-05 | AH24: 3.669867747e-05 | AI24: 4.936722433e-05 | AJ24: 6.874418384e-05 | AK24: 0.0001036768249 | AL24: 0.0002330836074 | AM24: 0.000445788414 | AN24: 0.0008424348579 | AO24: 0.001488137733 | AP24: 0.001872715851 | AQ24: 0.002967723022 | AR24: 0.003831508582 | AS24: 0.004648507467 | AT24: 0.005183846792 | AU24: 0.004661965005 | AV24: 0.4918971909 | AW24: 0.7438603127 | AX24: 0.691793057 | AY24: 0.6880722519 | AZ24: 0.01403199109 | BA24: 0.05316467115 | BB24: 0.1482754749 | BC24: 0.5399434196 | BD24: 0.6587910501 | BE24: 0.0009157257842 | BF24: 0.03287822352 | BG24: 0.03085640541 | BH24: 0.03150247156 | BI24: 0.04897849447 | BJ24: 0.09249676536 | BK24: 0.9928703826 | BL24: 0.6264419415 | BM24: 1.825653334 | BN24: 0.2558903158 | BO24: 0.6191323558 | BP24: 0.1252769222 | BQ24: 0.09632901102 | BR24: 0.1592617109 | BS24: 0.1742674692 | BT24: 0.2704935182 | BU24: 0.2983377579 | BV24: 0.2569012548 | BW24: 0.1657042433 | BX24: 0.4959239695 | BY24: 0.3064226078 | BZ24: 0.03194917931 | CA24: 0.9827995375 | CB24: 0.7837997432 | CC24: 7.138972033e-05 | CD24: 0.9536833864 | CE24: 0.007325404094 | CF24: 0.8223044516 | CG24: 0.7570465716 | CH24: 0.7836291307 | CI24: 0.001457797388 | CJ24: 0.01048274642 | CK24: 0.8706418192 | CL24: 0.8706418192 | CM24: 0.8706418192 | CN24: 0.8706418192 | CO24: 0.0200063413 | CP24: 0.1354798288 | CQ24: 0.1354798288 | CR24: 0.1354798288 | CS24: 0.6489883538 | CT24: -1.276265417 | CU24: 0.02978464131 | CV24: -0.6691286379 | CW24: 0.1464704688 | CX24: 0.7158598477 | CY24: 0.5228375399 | CZ24: 0.4319428868 | DA24: 0.9833653916 | DB24: 0.9785567061 | DC24: 1 | DD24: 0.7920848007 | DE24: 0.64935648 | DF24: 180.5982109 | DG24: 196.9205593 | DH24: 147.2770967 | DI24: 23.41122687 | DJ24: 331.2524509 | DK24: 940.6840292 | DL24: 109.6115154 | DM24: 42.09444647 | DN24: 109.8327297 | DO24: 210.3073859 | DP24: 100.8468348 | DQ24: 592.5239298 | DR24: 9658.813113 | DS24: 6685.115111 | DT24: 5130.990242 | DU24: 1923.80354 | DV24: 1157.293676 | DW24: 6714.459781 | DX24: 7220.006637 | DY24: 3989.732685 | DZ24: 4706.502072 | EA24: 1687.602418 | EB24: 12675.41858 | EC24: 6945.40671 | ED24: 6125.068294 | EE24: 4597.150076 | EF24: 1655.166953 | EG24: 14610.04199 | EH24: 10026.67869 | EI24: 7242.055345 | EJ24: 3516.940922 | EK24: 1104.948493 | EL24: 0.9414626433 | EM24: 0.02097089805 | EN24: 0.0007515086232 | EO24: -3.818487295e-05 | EP24: 0.9737606915 | EQ24: 1.003831159 | ER24: 1.058826753 | ES24: 0.9952413389 | ET24: 0.4966024959 | EU24: 1 | EV24: 1 | EW24: 1 | EX24: 0.8310811773 | EY24: 1 | EZ24: 590.7184236 | FA24: 465.2177935 | FB24: 594.9928901 | FC24: 487.1705529 | FD24: 784.0172922 | FE24: 145.0877233 | FF24: 1961.910578 | FG24: 1745.877533 | FH24: 1909.073218 | FI24: 1691.479268 | FJ24: 1624.856578 | FK24: 1431.229376 | FL24: 2552.629002 | FM24: 2211.095327 | FN24: 2504.066108 | FO24: 2178.649821 | FP24: 2408.87387 | FQ24: 1576.3171 | FR24: 9.418496198 | FS24: 9.418873831 | FT24: 9.414546775 | FU24: 9.413327551 | FV24: 9.410257051 | FW24: 9.401992635 | FX24: 138.5693019 | FY24: 138.5664942 | FZ24: 138.5554073 | GA24: 138.5474037 | GB24: 138.5562125 | GC24: 138.5054461 | GD24: 147.9877981 | GE24: 147.9853681 | GF24: 147.969954 | GG24: 147.9607313 | GH24: 147.9664696 | GI24: 147.9074388 | GJ24: 2957203.333 | GK24: 2957496.266 | GL24: 2956895.015 | GM24: 2957035.976 | GN24: 2956920.518 | GO24: 2956572.458 | GP24: 630.8748448 | GQ24: 923.8076193 | GR24: 322.5565386 | GS24: 463.5175719 | GT24: 348.0600558 | GU24: 0 | GV24: 1 | GW24: 0 | GX24: 0 | GY24: 0 | GZ24: 0 | HA24: 1 | HB24: 1 | HC24: 1 | HD24: 1 | HE24: 1
A25: 17 | B25: 5.266091845 | C25: 0.4301394189 | D25: 0.4448476653 | E25: 0.5336616805 | F25: 0.02407658134 | G25: 0.06246613066 | H25: 0.2065109663 | I25: 0.5912919594 | J25: 0.1397309436 | K25: -0.05280193794 | L25: 0.2822729206 | M25: 0.5217666198 | N25: -0.09625928925 | O25: -0.17505124 | P25: 4.305545748 | Q25: -0.7254817745 | R25: 2.418758186e-05 | S25: 2.454805232e-05 | T25: 6.206207864e-05 | U25: 9.065565445e-05 | V25: 0.0001112118039 | W25: 0.0002032754405 | X25: 0.0003910525495 | Y25: 0.0005389029203 | Z25: 0.0008810595057 | AA25: 0.001111522274 | AB25: 0.001704255172 | AC25: 0.002311029666 | AD25: 0.002986280532 | AE25: 0.003605661576 | AF25: 0.003035724537 | AG25: 2.923738074e-05 | AH25: 3.095012426e-05 | AI25: 5.657680307e-05 | AJ25: 0.0001012606565 | AK25: 0.0001138504123 | AL25: 0.0002087063518 | AM25: 0.0003904394297 | AN25: 0.0008590422946 | AO25: 0.001426376262 | AP25: 0.002057979404 | AQ25: 0.00288360377 | AR25: 0.00370297356 | AS25: 0.00469930692 | AT25: 0.005141515708 | AU25: 0.004395884359 | AV25: 0.4933433809 | AW25: 0.7527275304 | AX25: 0.6959894149 | AY25: 0.6902296867 | AZ25: 0.01398104316 | BA25: 0.05193958996 | BB25: 0.1488643035 | BC25: 0.540666496 | BD25: 0.4985364052 | BE25: 0.005223964095 | BF25: 0.02996682675 | BG25: 0.02843194156 | BH25: 0.03028273468 | BI25: 0.04693366336 | BJ25: 0.09379997392 | BK25: 0.9860105663 | BL25: 0.745549881 | BM25: 1.986300454 | BN25: 0.2419935762 | BO25: 0.6610375833 | BP25: 0.08122560186 | BQ25: 0.08585988984 | BR25: 0.171876925 | BS25: 0.1747505199 | BT25: 0.2721340197 | BU25: 0.2932782194 | BV25: 0.259837241 | BW25: 0.06562226322 | BX25: 0.4860268426 | BY25: 0.2180098214 | BZ25: 0.2303410728 | CA25: 0.9731203001 | CB25: 0.8048074801 | CC25: 0.02252230351 | CD25: 0.8766862151 | CE25: 0.0004298211452 | CF25: 0.8380111465 | CG25: 0.957814348 | CH25: 0.8263605831 | CI25: 0.03825409512 | CJ25: 0.04516809848 | CK25: 0.955878839 | CL25: 0.955878839 | CM25: 0.955878839 | CN25: 0.955878839 | CO25: 4.194846404e-05 | CP25: 0.01304736081 | CQ25: 0.01304736081 | CR25: 0.01304736081 | CS25: 0.6451126446 | CT25: 1.580516467 | CU25: 0.2880131585 | CV25: 2.895947598 | CW25: 0.5999705356 | CX25: 0.002212073928 | CY25: 0.4480742098 | CZ25: 0.6889766518 | DA25: 0.9146729879 | DB25: 0.695201122 | DC25: 1 | DD25: 0.7772323167 | DE25: 0.6682057113 | DF25: 203.2906372 | DG25: 189.9093042 | DH25: 120.8207889 | DI25: 21.30630461 | DJ25: 460.7817505 | DK25: 668.7347423 | DL25: 137.5805708 | DM25: 26.08796686 | DN25: 143.0941015 | DO25: 131.5179646 | DP25: 106.1980166 | DQ25: 952.5412624 | DR25: 11975.79691 | DS25: 5414.168045 | DT25: 3770.690034 | DU25: 3374.093497 | DV25: 1367.696195 | DW25: 9533.087236 | DX25: 6885.51649 | DY25: 4364.481183 | DZ25: 2356.960174 | EA25: 1451.97948 | EB25: 13146.66296 | EC25: 11634.39775 | ED25: 4616.352866 | EE25: 3374.850232 | EF25: 1891.444936 | EG25: 11383.80979 | EH25: 6192.412283 | EI25: 5151.526184 | EJ25: 4213.441188 | EK25: 1234.068328 | EL25: 0.9501610399 | EM25: 0.01957904149 | EN25: -0.0007680924195 | EO25: -1.650793503e-05 | EP25: 0.9749346913 | EQ25: 0.9611887814 | ER25: 0.8836184411 | ES25: 0.9687419098 | ET25: 0.07131997903 | EU25: 1 | EV25: 1 | EW25: 1 | EX25: 0.7898360524 | EY25: 1 | EZ25: 744.7059092 | FA25: 458.39704 | FB25: 691.2308957 | FC25: 495.0689759 | FD25: 995.9662557 | FE25: 114.0238778 | FF25: 1557.538001 | FG25: 955.9709839 | FH25: 1473.119483 | FI25: 1041.143659 | FJ25: 835.8916563 | FK25: 709.626948 | FL25: 2302.243911 | FM25: 1414.368024 | FN25: 2164.350378 | FO25: 1536.212635 | FP25: 1831.857912 | FQ25: 823.6508258 | FR25: 9.573938149 | FS25: 9.572428748 | FT25: 9.573529524 | FU25: 9.572325659 | FV25: 9.5748533 | FW25: 9.55899937 | FX25: 75.5214112 | FY25: 75.51459748 | FZ25: 75.52012367 | GA25: 75.51503178 | GB25: 75.52221986 | GC25: 75.49013968 | GD25: 85.09534935 | GE25: 85.08702623 | GF25: 85.0936532 | GG25: 85.08735744 | GH25: 85.09707316 | GI25: 85.04913905 | GJ25: 1699604.743 | GK25: 1700326.157 | GL25: 1699708.714 | GM25: 1700210.936 | GN25: 1700109.605 | GO25: 1700159.13 | GP25: -554.3869889 | GQ25: 167.0264419 | GR25: -450.4165374 | GS25: 51.80604616 | GT25: -49.5247489 | GU25: 0 | GV25: 1 | GW25: 0 | GX25: 0 | GY25: 0 | GZ25: 0 | HA25: 0 | HB25: 1 | HC25: 0 | HD25: 1 | HE25: 0
A26: 18 | B26: 11.01680328 | C26: 0.4367535458 | D26: 0.4396659684 | E26: 0.4743219621 | F26: 0.03455988756 | G26: 0.1224314326 | H26: 0.2621091451 | I26: 0.6123368563 | J26: 0.003122566107 | K26: 0.09588069806 | L26: 0.4654451373 | M26: 0.5670861032 | N26: -0.1783050129 | O26: -0.2645331919 | P26: 4.32940678 | Q26: -0.5925707323 | R26: 1.037687071e-05 | S26: 3.01432615e-05 | T26: 7.06400122e-05 | U26: 0.0001319984035 | V26: 0.0001161379319 | W26: 0.0002065493572 | X26: 0.0004182363284 | Y26: 0.0006082228244 | Z26: 0.0009746666437 | AA26: 0.001298513476 | AB26: 0.00190956767 | AC26: 0.002239729541 | AD26: 0.003178794989 | AE26: 0.003584266327 | AF26: 0.003275189399 | AG26: 2.370465036e-05 | AH26: 1.992187072e-05 | AI26: 7.653735002e-05 | AJ26: 7.398570875e-05 | AK26: 0.0001068916739 | AL26: 0.000208434762 | AM26: 0.0004297400709 | AN26: 0.0008375322135 | AO26: 0.001642774337 | AP26: 0.001890639235 | AQ26: 0.002818495527 | AR26: 0.003730718361 | AS26: 0.004442232921 | AT26: 0.005090610161 | AU26: 0.004701943187 | AV26: 0.4963961905 | AW26: 0.759464913 | AX26: 0.7000136627 | AY26: 0.68827337 | AZ26: 0.01331074802 | BA26: 0.05272802807 | BB26: 0.1478398037 | BC26: 0.5418171697 | BD26: 0.6361032373 | BE26: 0.003916175598 | BF26: 0.0265831384 | BG26: 0.02755527656 | BH26: 0.03196194926 | BI26: 0.04898379892 | BJ26: 0.09353138958 | BK26: 0.9791145377 | BL26: 0.7277047059 | BM26: 1.329185976 | BN26: 0.304831363 | BO26: 0.7627195151 | BP26: 0.03291986995 | BQ26: 0.1054656655 | BR26: 0.09889494952 | BS26: 0.1774742326 | BT26: 0.268254507 | BU26: 0.2920541966 | BV26: 0.2622170638 | BW26: 0.2009580299 | BX26: 0.5322273447 | BY26: 0.19071344 | BZ26: 0.07610118535 | CA26: 0.9942005808 | CB26: 0.8145229994 | CC26: 0.02476845671 | CD26: 0.8943786281 | CE26: 0.001653925488 | CF26: 0.8128535202 | CG26: 0.9306922223 | CH26: 0.968303236 | CI26: 0.003647385499 | CJ26: 0.0008502564381 | CK26: 0.9676896506 | CL26: 0.9676896506 | CM26: 0.9676896506 | CN26: 0.9676896506 | CO26: 0.03927930226 | CP26: 0.01279000222 | CQ26: 0.01279000222 | CR26: 0.01279000222 | CS26: 0.6392870901 | CT26: -1.662372735 | CU26: 0.07200231416 | CV26: 0.01234883911 | CW26: 0.1657073976 | CX26: 0.8466926209 | CY26: 0.6594087271 | CZ26: 0.4039269329 | DA26: 0.9862263454 | DB26: 0.9337334161 | DC26: 1 | DD26: 0.7655218151 | DE26: 0.7532973406 | DF26: 219.8733561 | DG26: 191.1661156 | DH26: 109.8170378 | DI26: 27.36719366 | DJ26: 348.5298179 | DK26: 648.2729017 | DL26: 136.6899071 | DM26: 35.28871489 | DN26: 113.1901272 | DO26: 184.8285837 | DP26: 160.1775416 | DQ26: 339.8484496 | DR26: 6844.268218 | DS26: 5506.178195 | DT26: 3095.774109 | DU26: 4269.531729 | DV26: 1307.867898 | DW26: 10559.58526 | DX26: 9120.744813 | DY26: 5223.071488 | DZ26: 3005.514885 | EA26: 1842.878786 | EB26: 16260.21182 | EC26: 10241.15154 | ED26: 6743.874843 | EE26: 3957.908018 | EF26: 1608.370334 | EG26: 12460.35363 | EH26: 6921.350497 | EI26: 6097.047838 | EJ26: 3423.338518 | EK26: 903.7879684 | EL26: 0.9511980347 | EM26: 0.02371004566 | EN26: -0.0003610191316 | EO26: -5.564544427e-06 | EP26: 1.042706179 | EQ26: 1.080291305 | ER26: 0.9436304909 | ES26: 0.9531702408 | ET26: 0.2197006533 | EU26: 1 | EV26: 1 | EW26: 1 | EX26: 0.7568884385 | EY26: 1 | EZ26: 590.9007676 | FA26: 475.7053582 | FB26: 415.3826237 | FC26: 403.2953095 | FD26: 641.8357966 | FE26: 144.5395452 | FF26: 2202.951135 | FG26: 2064.185362 | FH26: 2040.794533 | FI26: 2017.938177 | FJ26: 1927.661962 | FK26: 1771.861196 | FL26: 2793.851902 | FM26: 2539.89072 | FN26: 2456.177157 | FO26: 2421.233486 | FP26: 2569.497759 | FQ26: 1916.400741 | FR26: 10.44903524 | FS26: 10.44840018 | FT26: 10.4469693 | FU26: 10.44652738 | FV26: 10.44463588 | FW26: 10.42586666 | FX26: 173.2216524 | FY26: 173.2194264 | FZ26: 173.2139953 | GA26: 173.2123128 | GB26: 173.1860129 | GC26: 173.1337977 | GD26: 183.6706877 | GE26: 183.6678266 | GF26: 183.6609646 | GG26: 183.6588402 | GH26: 183.6306488 | GI26: 183.5596644 | GJ26: 3670619.902 | GK26: 3670816.642 | GL26: 3670763.114 | GM26: 3670755.571 | GN26: 3670043.478 | GO26: 3669276.887 | GP26: 1343.014547 | GQ26: 1539.754702 | GR26: 1486.227056 | GS26: 1478.683974 | GT26: 766.591213 | GU26: 0 | GV26: 1 | GW26: 0 | GX26: 0 | GY26: 0 | GZ26: 0 | HA26: 1 | HB26: 1 | HC26: 1 | HD26: 1 | HE26: 1
A27: 19 | B27: 7.276541038 | C27: 0.411614107 | D27: 0.437001093 | E27: 0.4847783443 | F27: 0.07332524062 | G27: 0.1341597748 | H27: 0.1462625405 | I27: 0.62500734 | J27: 0.09457034466 | K27: 0.1236857399 | L27: 0.6454196043 | M27: 1.220902047 | N27: -0.1763353486 | O27: -0.3969761866 | P27: 4.314884784 | Q27: -0.4896974765 | R27: 1.755213033e-05 | S27: 4.997881837e-05 | T27: 7.514165422e-05 | U27: 0.0001211321914 | V27: 0.0001348035612 | W27: 0.0002011308904 | X27: 0.0003881713034 | Y27: 0.0006394356563 | Z27: 0.0008660036623 | AA27: 0.001196175526 | AB27: 0.001708768097 | AC27: 0.002282586291 | AD27: 0.003064284756 | AE27: 0.003651261914 | AF27: 0.003226065481 | AG27: 2.556609365e-05 | AH27: 2.151658964e-05 | AI27: 5.555633444e-05 | AJ27: 9.246999686e-05 | AK27: 0.0001259512695 | AL27: 0.0002398141433 | AM27: 0.0004681328266 | AN27: 0.0008547645679 | AO27: 0.001473912851 | AP27: 0.001926367869 | AQ27: 0.002782712799 | AR27: 0.003604102002 | AS27: 0.004264229986 | AT27: 0.004987618654 | AU27: 0.004346129164 | AV27: 0.4997776755 | AW27: 0.7426641377 | AX27: 0.6933986378 | AY27: 0.6820054639 | AZ27: 0.01392057467 | BA27: 0.05296934397 | BB27: 0.1483301351 | BC27: 0.5389860863 | BD27: 0.7986625817 | BE27: 0.002703700726 | BF27: 0.02497926725 | BG27: 0.0278659972 | BH27: 0.03124688201 | BI27: 0.04738701024 | BJ27: 0.09200433924 | BK27: 0.9893814228 | BL27: 0.7804620509 | BM27: 1.877678399 | BN27: 0.2970879564 | BO27: 0.7008753546 | BP27: 0.1192261352 | BQ27: 0.1313905563 | BR27: 0.04850795384 | BS27: 0.1775240413 | BT27: 0.2716778328 | BU27: 0.2946409599 | BV27: 0.256157166 | BW27: 0.1686834983 | BX27: 0.5492798495 | BY27: 0.2018377 | BZ27: 0.0801989522 | CA27: 0.9394285605 | CB27: 0.7781473448 | CC27: 0.0004149259858 | CD27: 0.9531725364 | CE27: 0.0007470404627 | CF27: 0.8251510838 | CG27: 0.9594426814 | CH27: 0.8697926356 | CI27: 0.01706895017 | CJ27: 0.04085590355 | CK27: 0.9611779428 | CL27: 0.9611779428 | CM27: 0.9611779428 | CN27: 0.9611779428 | CO27: 0.01614847904 | CP27: 0.05997848411 | CQ27: 0.05997848411 | CR27: 0.05997848411 | CS27: 0.7196922248 | CT27: -1.787559417 | CU27: 0.05912549111 | CV27: 0.9869081135 | CW27: 0.2547795201 | CX27: 0.9514956133 | CY27: 0.2859156042 | CZ27: 0.3316776076 | DA27: 0.9474858982 | DB27: 0.9336243063 | DC27: 1 | DD27: 0.7836068376 | DE27: 0.7257236757 | DF27: 208.4035386 | DG27: 177.9210426 | DH27: 116.5339895 | DI27: 27.52289965 | DJ27: 284.11474 | DK27: 707.1884478 | DL27: 131.9649346 | DM27: 36.05880508 | DN27: 194.0230337 | DO27: 193.5064501 | DP27: 189.3241653 | DQ27: 468.0306551 | DR27: 7686.072921 | DS27: 6658.975328 | DT27: 4852.377689 | DU27: 4176.621043 | DV27: 1238.566633 | DW27: 8600.32902 | DX27: 6240.463773 | DY27: 4708.533635 | DZ27: 2093.398337 | EA27: 1686.59006 | EB27: 14506.85373 | EC27: 9022.160395 | ED27: 5914.384139 | EE27: 6523.883117 | EF27: 1243.907071 | EG27: 10930.54242 | EH27: 9496.719693 | EI27: 5254.9708 | EJ27: 3819.571937 | EK27: 745.1241237 | EL27: 0.9538997144 | EM27: 0.01856704175 | EN27: 0.0002419125035 | EO27: -1.577423666e-05 | EP27: 0.9878683217 | EQ27: 1.017366946 | ER27: 0.8379550328 | ES27: 0.8962176869 | ET27: 0.3020210653 | EU27: 1 | EV27: 1 | EW27: 1 | EX27: 0.7704971585 | EY27: 1 | EZ27: 537.5374141 | FA27: 499.4397866 | FB27: 480.554103 | FC27: 468.8131467 | FD27: 622.6457611 | FE27: 203.8372761 | FF27: 1416.934832 | FG27: 1400.938202 | FH27: 1413.072846 | FI27: 1394.392196 | FJ27: 1437.835545 | FK27: 1209.839115 | FL27: 1954.472246 | FM27: 1900.377988 | FN27: 1893.626949 | FO27: 1863.205343 | FP27: 2060.481306 | FQ27: 1413.676391 | FR27: 10.52624318 | FS27: 10.52645439 | FT27: 10.52687671 | FU27: 10.52603317 | FV27: 10.52888644 | FW27: 10.50646163 | FX27: 113.7090181 | FY27: 113.7084457 | FZ27: 113.7098813 | GA27: 113.7076314 | GB27: 113.7184705 | GC27: 113.6652764 | GD27: 124.2352613 | GE27: 124.2349001 | GF27: 124.236758 | GG27: 124.2336645 | GH27: 124.2473569 | GI27: 124.171738 | GJ27: 2482750.754 | GK27: 2482797.624 | GL27: 2482841.533 | GM27: 2482810.085 | GN27: 2482886.657 | GO27: 2482021.084 | GP27: 729.669986 | GQ27: 776.5396508 | GR27: 820.4485499 | GS27: 789.0009608 | GT27: 865.5727955 | GU27: 0 | GV27: 0 | GW27: 0 | GX27: 0 | GY27: 1 | GZ27: 0 | HA27: 1 | HB27: 1 | HC27: 1 | HD27: 1 | HE27: 1
A28: 20 | B28: 5.10394928 | C28: 0.4164261741 | D28: 0.4334506763 | E28: 0.5069262484 | F28: 0.03734135685 | G28: 0.07580542305 | H28: 0.3271078989 | I28: 0.4731782701 | J28: 0.1239084079 | K28: 0.08922171507 | L28: 0.4056442292 | M28: 1.449359491 | N28: -0.1077760896 | O28: -0.1334990786 | P28: 4.263762213 | Q28: -0.5150067255 | R28: 6.497420723e-05 | S28: 2.74841423e-05 | T28: 5.378976975e-05 | U28: 0.0001203554122 | V28: 0.0001021361781 | W28: 0.0002047984779 | X28: 0.0004010655454 | Y28: 0.0006735680325 | Z28: 0.0009019630706 | AA28: 0.001241320761 | AB28: 0.00171304346 | AC28: 0.002495332547 | AD28: 0.003150383961 | AE28: 0.003863133124 | AF28: 0.002993829684 | AG28: 2.203003012e-05 | AH28: 1.521866802e-05 | AI28: 4.815249838e-05 | AJ28: 9.077011357e-05 | AK28: 0.0001118946206 | AL28: 0.0002568068737 | AM28: 0.0004335175687 | AN28: 0.0008083269081 | AO28: 0.001516632263 | AP28: 0.001937584338 | AQ28: 0.00269323673 | AR28: 0.003674242853 | AS28: 0.004650719203 | AT28: 0.005230778983 | AU28: 0.004820313587 | AV28: 0.5061271374 | AW28: 0.7482753962 | AX28: 0.6929749559 | AY28: 0.6895801372 | AZ28: 0.01407604511 | BA28: 0.05182783902 | BB28: 0.1488333185 | BC28: 0.5392233663 | BD28: 0.7183931376 | BE28: 0.005216764524 | BF28: 0.02780680217 | BG28: 0.02476745094 | BH28: 0.03028473106 | BI28: 0.05032399413 | BJ28: 0.09455738747 | BK28: 0.9730386186 | BL28: 0.7467820345 | BM28: 2.309331045 | BN28: 0.2932680579 | BO28: 0.6148369662 | BP28: 0.07726696514 | BQ28: 0.1114919603 | BR28: 0.1964041083 | BS28: 0.1768925204 | BT28: 0.2690252865 | BU28: 0.2913083206 | BV28: 0.2627738725 | BW28: 0.1753246407 | BX28: 0.4816708622 | BY28: 0.2857508547 | BZ28: 0.05725364245 | CA28: 0.9357654006 | CB28: 0.6923499262 | CC28: 0.004026717196 | CD28: 0.9409972376 | CE28: 0.01859760954 | CF28: 0.8357617763 | CG28: 0.9350474433 | CH28: 0.9537874844 | CI28: 0.007805886312 | CJ28: 0.05145275555 | CK28: 0.8028130288 | CL28: 0.8028130288 | CM28: 0.8028130288 | CN28: 0.8028130288 | CO28: 0.08976791274 | CP28: 0.1312992046 | CQ28: 0.1312992046 | CR28: 0.1312992046 | CS28: 0.6808035799 | CT28: 0.7904970699 | CU28: 0.1341581653 | CV28: 1.13462219 | CW28: 0.6192313441 | CX28: 0.2182726293 | CY28: 0.5542621132 | CZ28: 0.4774687226 | DA28: 0.9938821924 | DB28: 0.9029146344 | DC28: 1 | DD28: 0.7771860115 | DE28: 0.6735057851 | DF28: 242.1319271 | DG28: 222.3218285 | DH28: 99.94891827 | DI28: 18.76299107 | DJ28: 279.9783496 | DK28: 725.8898824 | DL28: 114.063963 | DM28: 31.7186084 | DN28: 151.5275936 | DO28: 190.3327213 | DP28: 149.3999772 | DQ28: 635.694135 | DR28: 6641.585905 | DS28: 4306.959013 | DT28: 3322.16661 | DU28: 3530.272495 | DV28: 1500.35587 | DW28: 10114.60188 | DX28: 5168.239342 | DY28: 4197.004813 | DZ28: 3815.820174 | EA28: 854.2905073 | EB28: 13224.20783 | EC28: 8310.712136 | ED28: 6530.970966 | EE28: 3808.821249 | EF28: 2008.528901 | EG28: 13939.53993 | EH28: 8948.385192 | EI28: 6416.539278 | EJ28: 3994.013117 | EK28: 733.9798613 | EL28: 0.9581056941 | EM28: 0.01736616484 | EN28: -0.000428686151 | EO28: -3.00148217e-05 | EP28: 0.978722953 | EQ28: 1.009319585 | ER28: 0.9740281237 | ES28: 1.065819798 | ET28: 0.1296482058 | EU28: 1 | EV28: 1 | EW28: 1 | EX28: 0.7706551313 | EY28: 1 | EZ28: 856.1533554 | FA28: 595.0322077 | FB28: 475.8090656 | FC28: 433.355744 | FD28: 712.308057 | FE28: 133.6588803 | FF28: 1557.49735 | FG28: 1087.302743 | FH28: 964.9999325 | FI28: 875.1468619 | FJ28: 843.6605512 | FK28: 715.9481734 | FL28: 2413.650706 | FM28: 1682.33495 | FN28: 1440.808998 | FO28: 1308.502606 | FP28: 1555.968608 | FQ28: 849.6070537 | FR28: 9.221134548 | FS28: 9.219001475 | FT28: 9.218746918 | FU28: 9.216698474 | FV28: 9.215410701 | FW28: 9.20443154 | FX28: 76.25901185 | FY28: 76.25155637 | FZ28: 76.25033435 | GA28: 76.24503425 | GB28: 76.24537719 | GC28: 76.21521206 | GD28: 85.4801464 | GE28: 85.47055784 | GF28: 85.46908127 | GG28: 85.46173273 | GH28: 85.46078789 | GI28: 85.4196436 | GJ28: 1707189.277 | GK28: 1707728.822 | GL28: 1707940.816 | GM28: 1707926.152 | GN28: 1707659.789 | GO28: 1707543.265 | GP28: -353.9877978 | GQ28: 185.5568838 | GR28: 397.5512791 | GS28: 382.8869072 | GT28: 116.5241778 | GU28: 0 | GV28: 0 | GW28: 1 | GX28: 0 | GY28: 0 | GZ28: 0 | HA28: 0 | HB28: 1 | HC28: 1 | HD28: 1 | HE28: 1
A29: 21 | B29: 3.049178377 | C29: 0.4204892865 | D29: 0.4650808774 | E29: 0.5337575673 | F29: 0.03721653715 | G29: 0.1439902308 | H29: 0.1578129923 | I29: 0.6626063431 | J29: 0.03559043379 | K29: 0.1504903359 | L29: 0.5275698919 | M29: 0.8575104958 | N29: 0.01403668999 | O29: -0.07248515138 | P29: 4.270936731 | Q29: -0.5718949659 | R29: 2.086023711e-05 | S29: 1.149805745e-05 | T29: 7.916238465e-05 | U29: 9.440848603e-05 | V29: 0.000100107244 | W29: 0.0002215743993 | X29: 0.0003765376155 | Y29: 0.0006062697128 | Z29: 0.0008665314066 | AA29: 0.001267044436 | AB29: 0.001658760842 | AC29: 0.002366256933 | AD29: 0.002950646316 | AE29: 0.00349913604 | AF29: 0.003210474049 | AG29: 1.924232739e-05 | AH29: 3.05620241e-05 | AI29: 6.765892081e-05 | AJ29: 8.554931667e-05 | AK29: 0.0001210607957 | AL29: 0.0002077416745 | AM29: 0.000411238682 | AN29: 0.0008072396792 | AO29: 0.0016389905 | AP29: 0.001960174435 | AQ29: 0.00266395755 | AR29: 0.003719649434 | AS29: 0.004577460954 | AT29: 0.004795203778 | AU29: 0.004730139306 | AV29: 0.5102536213 | AW29: 0.7529385686 | AX29: 0.6967987734 | AY29: 0.687647891 | AZ29: 0.01563114282 | BA29: 0.0510107763 | BB29: 0.1493998229 | BC29: 0.5446714804 | BD29: 0.8199480251 | BE29: 0.00740545954 | BF29: 0.02462730587 | BG29: 0.02867058534 | BH29: 0.0318516572 | BI29: 0.04897875082 | BJ29: 0.09278853502 | BK29: 0.9144221815 | BL29: 0.6458109028 | BM29: 2.394472369 | BN29: 0.269121919 | BO29: 0.6827675281 | BP29: 0.07903732248 | BQ29: 0.1140250956 | BR29: 0.1241700538 | BS29: 0.176148057 | BT29: 0.2686332276 | BU29: 0.2956084113 | BV29: 0.259610304 | BW29: 0.266257864 | BX29: 0.4135258767 | BY29: 0.2334268097 | BZ29: 0.08678944949 | CA29: 0.9093326443 | CB29: 0.7020438527 | CC29: 6.047073676e-05 | CD29: 0.892678479 | CE29: 0.0008416116218 | CF29: 0.7948374117 | CG29: 0.8139513654 | CH29: 0.541477838 | CI29: 0.01405865012 | CJ29: 0.08087108868 | CK29: 0.8682418952 | CL29: 0.8682418952 | CM29: 0.8682418952 | CN29: 0.8682418952 | CO29: 0.09270434131 | CP29: 0.02902966516 | CQ29: 0.02902966516 | CR29: 0.02902966516 | CS29: 0.6738568759 | CT29: -4.561168935 | CU29: 0.1625398173 | CV29: -0.4215848836 | CW29: 0.003945860709 | CX29: 0.9772484344 | CY29: 0.4543339864 | CZ29: 0.7186201004 | DA29: 0.9085454615 | DB29: 0.8662920429 | DC29: 1 | DD29: 0.7830971846 | DE29: 0.6652535309 | DF29: 155.9455665 | DG29: 189.0418198 | DH29: 127.0716303 | DI29: 25.00048752 | DJ29: 338.1416553 | DK29: 909.9439581 | DL29: 131.1958838 | DM29: 36.53447518 | DN29: 145.786227 | DO29: 157.83369 | DP29: 150.6215315 | DQ29: 653.9692149 | DR29: 6923.026962 | DS29: 5839.816707 | DT29: 3428.014205 | DU29: 3099.127941 | DV29: 1316.36123 | DW29: 8634.417349 | DX29: 7423.259569 | DY29: 5499.198135 | DZ29: 2685.082976 | EA29: 1824.209892 | EB29: 18067.04662 | EC29: 8859.833209 | ED29: 6613.694038 | EE29: 3686.773913 | EF29: 1302.478623 | EG29: 9524.542131 | EH29: 9227.178179 | EI29: 7402.668256 | EJ29: 4202.41887 | EK29: 946.7476191 | EL29: 0.9645427184 | EM29: 0.02430507879 | EN29: 0.0005816331675 | EO29: -2.223104275e-05 | EP29: 0.8856369263 | EQ29: 1.010198149 | ER29: 1.126185057 | ES29: 1.119580306 | ET29: 0.2241044725 | EU29: 1 | EV29: 1 | EW29: 1 | EX29: 0.7058865931 | EY29: 1 | EZ29: 504.3071535 | FA29: 409.9105282 | FB29: 632.4038796 | FC29: 505.4275597 | FD29: 1109.702342 | FE29: 129.8879777 | FF29: 510.8511718 | FG29: 504.9559384 | FH29: 509.8783049 | FI29: 500.0471104 | FJ29: 539.8543542 | FK29: 452.9025791 | FL29: 1015.158325 | FM29: 914.8664665 | FN29: 1142.282185 | FO29: 1005.47467 | FP29: 1649.556697 | FQ29: 582.7905569 | FR29: 10.40928963 | FS29: 10.41156195 | FT29: 10.40628943 | FU29: 10.40956193 | FV29: 10.41478027 | FW29: 10.40243626 | FX29: 49.40065414 | FY29: 49.40026207 | FZ29: 49.39920775 | GA29: 49.39842296 | GB29: 49.41139279 | GC29: 49.38565323 | GD29: 59.80994377 | GE29: 59.81182403 | GF29: 59.80549718 | GG29: 59.8079849 | GH29: 59.82617305 | GI29: 59.7880895 | GJ29: 1195183.717 | GK29: 1195321.614 | GL29: 1194967.661 | GM29: 1195154.223 | GN29: 1194873.904 | GO29: 1195178.999 | GP29: 4.717637583 | GQ29: 142.6147308 | GR29: -211.3379223 | GS29: -24.77609093 | GT29: -305.0949908 | GU29: 0 | GV29: 1 | GW29: 0 | GX29: 0 | GY29: 0 | GZ29: 0 | HA29: 1 | HB29: 1 | HC29: 0 | HD29: 0 | HE29: 0
A30: 22 | B30: 3.75189468 | C30: 0.4039888179 | D30: 0.4268191808 | E30: 0.5265882255 | F30: 0.0364882048 | G30: 0.1387881635 | H30: 0.2110069033 | I30: 0.4596675941 | J30: 0.1905373391 | K30: 0.08342833593 | L30: 0.3437266669 | M30: 1.12848523 | N30: -0.1424272924 | O30: -0.2098611713 | P30: 4.319333773 | Q30: -0.6707862076 | R30: 2.584977323e-05 | S30: 3.171889309e-05 | T30: 7.685972259e-05 | U30: 0.0001123124633 | V30: 0.0001341877989 | W30: 0.0002222159761 | X30: 0.000342385609 | Y30: 0.0006087108324 | Z30: 0.0008563374142 | AA30: 0.001242865962 | AB30: 0.00168396669 | AC30: 0.002452095229 | AD30: 0.00315127845 | AE30: 0.003627899676 | AF30: 0.003197133886 | AG30: 9.272868712e-06 | AH30: 4.767093316e-05 | AI30: 6.999538318e-05 | AJ30: 0.0001063208361 | AK30: 0.000100504373 | AL30: 0.0002341776586 | AM30: 0.0004096741118 | AN30: 0.0008942087515 | AO30: 0.001450837593 | AP30: 0.001979082041 | AQ30: 0.002717487901 | AR30: 0.003439028868 | AS30: 0.004576013048 | AT30: 0.005049180515 | AU30: 0.00453210257 | AV30: 0.5089638973 | AW30: 0.7557920817 | AX30: 0.6955084903 | AY30: 0.6836725995 | AZ30: 0.01391935229 | BA30: 0.05235895334 | BB30: 0.1478576923 | BC30: 0.5400703717 | BD30: 0.424112198 | BE30: 0.0009366416921 | BF30: 0.02621760852 | BG30: 0.02942233318 | BH30: 0.03117997083 | BI30: 0.04711505785 | BJ30: 0.08914943161 | BK30: 0.9870042323 | BL30: 0.7461039502 | BM30: 1.955958789 | BN30: 0.3155708821 | BO30: 0.6645661665 | BP30: 0.1312890043 | BQ30: 0.1264970281 | BR30: 0.07764780111 | BS30: 0.1729794624 | BT30: 0.2702115908 | BU30: 0.2967522767 | BV30: 0.2600566701 | BW30: 0.07704385987 | BX30: 0.6354557103 | BY30: 0.1857429076 | BZ30: 0.1017575223 | CA30: 0.9130835188 | CB30: 0.6736729461 | CC30: 0.001184606689 | CD30: 0.9346635321 | CE30: 0.0002807505947 | CF30: 0.7881315057 | CG30: 0.7940169702 | CH30: 0.4720084482 | CI30: 0.01079905608 | CJ30: 0.0382002316 | CK30: 0.9157097492 | CL30: 0.9157097492 | CM30: 0.9157097492 | CN30: 0.9157097492 | CO30: 0.04792627716 | CP30: 0.037458471 | CQ30: 0.037458471 | CR30: 0.037458471 | CS30: 0.7237573165 | CT30: -1.245353718 | CU30: 0.02349573357 | CV30: 0.8385765676 | CW30: 0.3076531857 | CX30: 0.8712323481 | CY30: 0.5497879749 | CZ30: 0.377050191 | DA30: 0.8924306818 | DB30: 0.9046931472 | DC30: 1 | DD30: 0.7785827415 | DE30: 0.7131256154 | DF30: 193.4973659 | DG30: 212.767299 | DH30: 116.5216868 | DI30: 25.86955058 | DJ30: 426.573647 | DK30: 536.4224242 | DL30: 122.0616351 | DM30: 40.9352661 | DN30: 129.1842703 | DO30: 151.2471159 | DP30: 137.5149879 | DQ30: 591.9836626 | DR30: 6853.853204 | DS30: 7841.961815 | DT30: 3404.927864 | DU30: 3172.241522 | DV30: 1364.456203 | DW30: 6166.738819 | DX30: 6353.743015 | DY30: 4415.236534 | DZ30: 3433.574162 | EA30: 2297.082292 | EB30: 12707.85391 | EC30: 7791.022469 | ED30: 6725.161058 | EE30: 5057.833993 | EF30: 1907.266979 | EG30: 14561.04801 | EH30: 11965.19528 | EI30: 7257.911961 | EJ30: 4315.584853 | EK30: 733.6679983 | EL30: 0.9219262316 | EM30: 0.01961290691 | EN30: -0.0004419893074 | EO30: -2.572315158e-05 | EP30: 1.049116193 | EQ30: 1.030016799 | ER30: 0.957704042 | ES30: 1.005016424 | ET30: 0.2227709467 | EU30: 1 | EV30: 1 | EW30: 1 | EX30: 0.7668550735 | EY30: 1 | EZ30: 615.3275092 | FA30: 479.7602478 | FB30: 771.0113041 | FC30: 564.6908229 | FD30: 572.7421168 | FE30: 141.9892777 | FF30: 747.024645 | FG30: 680.7846813 | FH30: 791.0700138 | FI30: 681.0745373 | FJ30: 629.3522609 | FK30: 561.2878509 | FL30: 1362.352154 | FM30: 1160.544929 | FN30: 1562.081318 | FO30: 1245.76536 | FP30: 1202.094378 | FQ30: 703.2771287 | FR30: 8.980916752 | FS30: 8.979552319 | FT30: 8.980466558 | FU30: 8.977990177 | FV30: 8.981321041 | FW30: 8.967324928 | FX30: 53.5781597 | FY30: 53.57719249 | FZ30: 53.57679915 | GA30: 53.57488657 | GB30: 53.5727266 | GC30: 53.56105403 | GD30: 62.55907645 | GE30: 62.55674481 | GF30: 62.55726571 | GG30: 62.55287675 | GH30: 62.55404765 | GI30: 62.52837895 | GJ30: 1249819.177 | GK30: 1249974.351 | GL30: 1249583.233 | GM30: 1249811.77 | GN30: 1249878.859 | GO30: 1249864.302 | GP30: -45.12498301 | GQ30: 110.0494113 | GR30: -281.0690818 | GS30: -52.53232482 | GT30: 14.55659963 | GU30: 0 | GV30: 1 | GW30: 0 | GX30: 0 | GY30: 0 | GZ30: 0 | HA30: 0 | HB30: 1 | HC30: 0 | HD30: 0 | HE30: 1
A31: 23 | B31: 3.436321536 | C31: 0.4668189776 | D31: 0.4536849141 | E31: 0.5178041718 | F31: 0.03990035127 | G31: 0.07101431949 | H31: 0.2084728844 | I31: 0.4948009777 | J31: 0.2257118184 | K31: 0.1578464104 | L31: 0.6400146891 | M31: 0.6595411209 | N31: -0.1455337253 | O31: -0.3553337572 | P31: 4.298584661 | Q31: -0.5071838852 | R31: 5.829843593e-05 | S31: 4.486917326e-05 | T31: 6.231942668e-05 | U31: 0.0001336384496 | V31: 9.556080596e-05 | W31: 0.0002015801057 | X31: 0.0003508037693 | Y31: 0.0005794009069 | Z31: 0.000899493847 | AA31: 0.001134060322 | AB31: 0.001732256884 | AC31: 0.002265431418 | AD31: 0.003053033936 | AE31: 0.003608139231 | AF31: 0.002830558726 | AG31: 1.561095678e-05 | AH31: 3.041897686e-05 | AI31: 6.643916442e-05 | AJ31: 0.000102504439 | AK31: 0.0001248050635 | AL31: 0.0002454014068 | AM31: 0.0004092329105 | AN31: 0.0008595851461 | AO31: 0.001557268128 | AP31: 0.001860580095 | AQ31: 0.002826318797 | AR31: 0.003665547749 | AS31: 0.00474189077 | AT31: 0.004997593942 | AU31: 0.004798925324 | AV31: 0.4920882096 | AW31: 0.737605049 | AX31: 0.6897045113 | AY31: 0.6881218475 | AZ31: 0.01493823015 | BA31: 0.05303721741 | BB31: 0.1463020545 | BC31: 0.5442702816 | BD31: 0.950276825 | BE31: 0.003750185057 | BF31: 0.02561025908 | BG31: 0.028706104 | BH31: 0.03170973858 | BI31: 0.04927169474 | BJ31: 0.08972000974 | BK31: 0.9571830066 | BL31: 0.668779621 | BM31: 1.877548963 | BN31: 0.2913463676 | BO31: 0.7353278125 | BP31: 0.1144200557 | BQ31: 0.07974238052 | BR31: 0.07050975125 | BS31: 0.1732964636 | BT31: 0.2736078951 | BU31: 0.2961742368 | BV31: 0.2569214046 | BW31: 0.1771470232 | BX31: 0.6179751621 | BY31: 0.1364829429 | BZ31: 0.06839487187 | CA31: 0.983032076 | CB31: 0.7871931382 | CC31: 0.003163936258 | CD31: 0.9097486844 | CE31: 0.002455683061 | CF31: 0.8367890615 | CG31: 0.9280809585 | CH31: 0.7448264636 | CI31: 0.000825167686 | CJ31: 0.03351294179 | CK31: 0.9354167826 | CL31: 0.9354167826 | CM31: 0.9354167826 | CN31: 0.9354167826 | CO31: 0.00847227846 | CP31: 0.08658119252 | CQ31: 0.08658119252 | CR31: 0.08658119252 | CS31: 0.6778691508 | CT31: -1.083411629 | CU31: 0.1163900903 | CV31: 1.563284736 | CW31: 0.3848069781 | CX31: 0.9237537138 | CY31: 0.4833547946 | CZ31: 0.3156698471 | DA31: 0.9071895029 | DB31: 0.914515025 | DC31: 1 | DD31: 0.7862364569 | DE31: 0.716512204 | DF31: 197.1502399 | DG31: 234.758574 | DH31: 131.9832077 | DI31: 50.07571264 | DJ31: 396.0824656 | DK31: 691.0172465 | DL31: 149.9247982 | DM31: 42.50418593 | DN31: 181.1666411 | DO31: 147.6596407 | DP31: 71.24301677 | DQ31: 636.9157628 | DR31: 10544.40413 | DS31: 6890.440393 | DT31: 3817.239143 | DU31: 3947.274278 | DV31: 1237.598153 | DW31: 11397.4457 | DX31: 5746.221615 | DY31: 5536.316465 | DZ31: 2972.957447 | EA31: 1586.382268 | EB31: 16137.89251 | EC31: 12898.04536 | ED31: 8569.391272 | EE31: 4541.932345 | EF31: 946.3030389 | EG31: 13508.61863 | EH31: 6491.34151 | EI31: 5669.609148 | EJ31: 6130.481742 | EK31: 639.3413049 | EL31: 0.9461945273 | EM31: 0.02181519175 | EN31: -0.0005928703104 | EO31: -4.633442048e-05 | EP31: 1.085543219 | EQ31: 0.9507584534 | ER31: 0.9693535141 | ES31: 0.9169429233 | ET31: 0.2315718767 | EU31: 1 | EV31: 1 | EW31: 1 | EX31: 0.8609568415 | EY31: 1 | EZ31: 550.1417354 | FA31: 463.3790785 | FB31: 611.882938 | FC31: 530.9848512 | FD31: 591.4582485 | FE31: 154.0324726 | FF31: 642.8135186 | FG31: 616.323183 | FH31: 643.6663853 | FI31: 608.5512003 | FJ31: 571.5004418 | FK31: 506.0419862 | FL31: 1192.955254 | FM31: 1079.702262 | FN31: 1255.549323 | FO31: 1139.536051 | FP31: 1162.95869 | FQ31: 660.0744588 | FR31: 7.918714373 | FS31: 7.917489548 | FT31: 7.918224478 | FU31: 7.915994867 | FV31: 7.921712231 | FW31: 7.903239668 | FX31: 44.08700915 | FY31: 44.08680847 | FZ31: 44.08614387 | GA31: 44.08488193 | GB31: 44.08122496 | GC31: 44.07091372 | GD31: 52.00572353 | GE31: 52.00429802 | GF31: 52.00436835 | GG31: 52.00087679 | GH31: 52.00293719 | GI31: 51.97415339 | GJ31: 1038921.515 | GK31: 1039006.258 | GL31: 1038831.818 | GM31: 1038878 | GN31: 1038895.785 | GO31: 1038822.993 | GP31: 98.52192126 | GQ31: 183.2647852 | GR31: 8.824242528 | GS31: 55.00645862 | GT31: 72.79169989 | GU31: 0 | GV31: 1 | GW31: 0 | GX31: 0 | GY31: 0 | GZ31: 0 | HA31: 1 | HB31: 1 | HC31: 1 | HD31: 1 | HE31: 1
A32: 24 | B32: 5.160171877 | C32: 0.4179228995 | D32: 0.4547385061 | E32: 0.4986053705 | F32: 0.04019077049 | G32: 0.1130684143 | H32: 0.3452257059 | I32: 0.4859774174 | J32: 0.05572846246 | K32: 0.1289679108 | L32: 0.653992022 | M32: 0.7493191757 | N32: -0.009501421551 | O32: -0.275837928 | P32: 4.279409735 | Q32: -0.5002801011 | R32: 6.362419565e-05 | S32: 1.568299057e-05 | T32: 7.508157049e-05 | U32: 0.0001238317894 | V32: 0.0001350562574 | W32: 0.0002002626227 | X32: 0.0003898192451 | Y32: 0.0005997929435 | Z32: 0.0009336096099 | AA32: 0.001186340989 | AB32: 0.001714814293 | AC32: 0.002434509736 | AD32: 0.002940838125 | AE32: 0.003652031126 | AF32: 0.003162348177 | AG32: 1.15169079e-05 | AH32: 9.61077807e-06 | AI32: 5.19155517e-05 | AJ32: 9.348596338e-05 | AK32: 0.0001548097323 | AL32: 0.0002061743978 | AM32: 0.0004344877527 | AN32: 0.0008686957734 | AO32: 0.001427542733 | AP32: 0.001993599188 | AQ32: 0.002788661694 | AR32: 0.003796900696 | AS32: 0.004686616795 | AT32: 0.005169708414 | AU32: 0.004353522825 | AV32: 0.5042491739 | AW32: 0.7513060975 | AX32: 0.696629594 | AY32: 0.6959953716 | AZ32: 0.01449320415 | BA32: 0.05249027332 | BB32: 0.1481963368 | BC32: 0.5365320968 | BD32: 1.029436526 | BE32: 0.001547907615 | BF32: 0.02856617324 | BG32: 0.02981145768 | BH32: 0.03185160245 | BI32: 0.04533952426 | BJ32: 0.09465696299 | BK32: 0.9652955496 | BL32: 0.7393545532 | BM32: 3.42042122 | BN32: 0.1847634641 | BO32: 0.5217581047 | BP32: 0.1508481327 | BQ32: 0.2979627092 | BR32: 0.02943105345 | BS32: 0.1812583944 | BT32: 0.2668935104 | BU32: 0.290028715 | BV32: 0.2618193802 | BW32: 0.343039309 | BX32: 0.3705439225 | BY32: 0.1912956098 | BZ32: 0.09512115868 | CA32: 0.9567682234 | CB32: 0.6939279504 | CC32: 1.340697688e-05 | CD32: 0.8808568805 | CE32: 0.0006696393405 | CF32: 0.8118601019 | CG32: 0.8210518669 | CH32: 0.6979073661 | CI32: 0.0366828525 | CJ32: 0.02900482925 | CK32: 0.9242202304 | CL32: 0.9242202304 | CM32: 0.9242202304 | CN32: 0.9242202304 | CO32: 0.02089050553 | CP32: 0.1247169026 | CQ32: 0.1247169026 | CR32: 0.1247169026 | CS32: 0.6458482836 | CT32: -1.247575744 | CU32: 0.1355581092 | CV32: -0.1371818861 | CW32: 0.2203616808 | CX32: 0.7734960206 | CY32: 0.5246930374 | CZ32: 0.6820248584 | DA32: 0.9112338402 | DB32: 0.7171198495 | DC32: 1 | DD32: 0.7712702882 | DE32: 0.7348324901 | DF32: 222.4708363 | DG32: 257.3277162 | DH32: 83.55967168 | DI32: 34.50305783 | DJ32: 215.4111767 | DK32: 572.7355382 | DL32: 178.2441564 | DM32: 32.40204406 | DN32: 156.2701971 | DO32: 164.3792095 | DP32: 87.24072014 | DQ32: 582.2594672 | DR32: 7090.89668 | DS32: 5173.696212 | DT32: 3556.308312 | DU32: 2451.626126 | DV32: 2188.414196 | DW32: 11542.54898 | DX32: 7384.322723 | DY32: 5502.403249 | DZ32: 4112.216413 | EA32: 1211.849744 | EB32: 12060.59673 | EC32: 12787.44818 | ED32: 8393.026161 | EE32: 4104.346911 | EF32: 1555.019513 | EG32: 6803.58588 | EH32: 9220.661075 | EI32: 5308.411072 | EJ32: 4035.772075 | EK32: 755.5028788 | EL32: 0.9497759056 | EM32: 0.02261139635 | EN32: 3.891263436e-05 | EO32: -5.512207291e-05 | EP32: 1.032332108 | EQ32: 0.9554803345 | ER32: 1.030961234 | ES32: 1.081408084 | ET32: 0.05557587609 | EU32: 1 | EV32: 1 | EW32: 1 | EX32: 0.8100929907 | EY32: 1 | EZ32: 613.2346901 | FA32: 492.9089313 | FB32: 652.1434176 | FC32: 557.7023925 | FD32: 832.0278352 | FE32: 182.6960415 | FF32: 1042.818339 | FG32: 959.1910043 | FH32: 1035.165781 | FI32: 959.7159474 | FJ32: 942.769355 | FK32: 887.7346804 | FL32: 1656.053029 | FM32: 1452.099936 | FN32: 1687.309198 | FO32: 1517.41834 | FP32: 1774.79719 | FQ32: 1070.430722 | FR32: 7.951089903 | FS32: 7.950447581 | FT32: 7.948662798 | FU32: 7.946578909 | FV32: 7.954826958 | FW32: 7.933291857 | FX32: 64.78977213 | FY32: 64.78801693 | FZ32: 64.78553265 | GA32: 64.78142952 | GB32: 64.79666375 | GC32: 64.75793276 | GD32: 72.74086203 | GE32: 72.73846451 | GF32: 72.73419545 | GG32: 72.72800843 | GH32: 72.75149071 | GI32: 72.69122462 | GJ32: 1453161.188 | GK32: 1453317.19 | GL32: 1452996.6 | GM32: 1453042.75 | GN32: 1453255.017 | GO32: 1452754.062 | GP32: 407.1259847 | GQ32: 563.1285103 | GR32: 242.5381205 | GS32: 288.6885108 | GT32: 500.9553064 | GU32: 0 | GV32: 1 | GW32: 0 | GX32: 0 | GY32: 0 | GZ32: 0 | HA32: 1 | HB32: 1 | HC32: 1 | HD32: 1 | HE32: 1
A33: 25 | B33: 6.350765624 | C33: 0.3851037657 | D33: 0.4521811869 | E33: 0.5375655568 | F33: 0.02248074522 | G33: 0.06128685733 | H33: 0.3622220869 | I33: 0.4831290264 | J33: 0.09336202942 | K33: 0.02717680034 | L33: 0.5794063508 | M33: 0.7643987504 | N33: -0.2584720609 | O33: -0.2723911057 | P33: 4.334612002 | Q33: -0.4852533075 | R33: 4.99903015e-05 | S33: 2.099550908e-05 | T33: 5.561271197e-05 | U33: 0.0001113758995 | V33: 0.0001085302641 | W33: 0.0002054434722 | X33: 0.0003972944003 | Y33: 0.0005851530318 | Z33: 0.0008934349496 | AA33: 0.001130777642 | AB33: 0.001805585746 | AC33: 0.002283906473 | AD33: 0.003081144149 | AE33: 0.003574196095 | AF33: 0.002949162386 | AG33: 2.863623546e-05 | AH33: 1.939616078e-05 | AI33: 6.153780733e-05 | AJ33: 7.367077096e-05 | AK33: 0.0001263868806 | AL33: 0.0002525009795 | AM33: 0.0004256131763 | AN33: 0.0008476534101 | AO33: 0.001410511571 | AP33: 0.002029216429 | AQ33: 0.002697449646 | AR33: 0.003669332765 | AS33: 0.004460712579 | AT33: 0.00510297239 | AU33: 0.004815547747 | AV33: 0.4929415474 | AW33: 0.7473123668 | AX33: 0.6988014739 | AY33: 0.6907294509 | AZ33: 0.0142710771 | BA33: 0.05151556168 | BB33: 0.1484469667 | BC33: 0.5424054994 | BD33: 0.9192820752 | BE33: 0.002617747489 | BF33: 0.02479883195 | BG33: 0.02680211526 | BH33: 0.03143603117 | BI33: 0.04791048658 | BJ33: 0.09169013139 | BK33: 0.9737201419 | BL33: 0.6303360341 | BM33: 2.356828834 | BN33: 0.1972385384 | BO33: 0.5308420042 | BP33: 0.09308132021 | BQ33: 0.2560249571 | BR33: 0.1200517185 | BS33: 0.1754667287 | BT33: 0.2712684013 | BU33: 0.2913847482 | BV33: 0.2618801217 | BW33: 0.232260254 | BX33: 0.431611854 | BY33: 0.1758762947 | BZ33: 0.1602515974 | CA33: 0.9432074621 | CB33: 0.716105476 | CC33: 1.416756394e-06 | CD33: 0.9715604214 | CE33: 0.002324553962 | CF33: 0.8065471783 | CG33: 0.9483135607 | CH33: 0.8047059838 | CI33: 2.773958872e-05 | CJ33: 0.06781568841 | CK33: 0.9014242474 | CL33: 0.9014242474 | CM33: 0.9014242474 | CN33: 0.9014242474 | CO33: 0.02368936267 | CP33: 0.1165949633 | CQ33: 0.1165949633 | CR33: 0.1165949633 | CS33: 0.6990755698 | CT33: -1.911225665 | CU33: 0.01918386685 | CV33: -1.049822236 | CW33: 0.0386293433 | CX33: 0.7570127186 | CY33: 0.812916367 | CZ33: 0.5327272036 | DA33: 0.9986537524 | DB33: 0.8979431081 | DC33: 1 | DD33: 0.7770936763 | DE33: 0.6844534467 | DF33: 181.6598783 | DG33: 218.145142 | DH33: 147.2052092 | DI33: 34.42059577 | DJ33: 376.2175068 | DK33: 618.5429135 | DL33: 218.6052496 | DM33: 38.12867413 | DN33: 204.9559654 | DO33: 176.3200216 | DP33: 114.9268646 | DQ33: 715.6085866 | DR33: 7049.08707 | DS33: 4917.016653 | DT33: 5659.76635 | DU33: 3674.868759 | DV33: 1567.5701 | DW33: 8622.772303 | DX33: 7438.665957 | DY33: 5822.660091 | DZ33: 3541.311496 | EA33: 1819.194496 | EB33: 13138.02703 | EC33: 7325.122635 | ED33: 6017.11699 | EE33: 4519.052508 | EF33: 1529.604721 | EG33: 6805.95366 | EH33: 7009.573281 | EI33: 7025.550207 | EJ33: 4604.782288 | EK33: 766.1830185 | EL33: 0.929081245 | EM33: 0.02540897115 | EN33: 0.0005999748918 | EO33: -3.099157082e-05 | EP33: 1.002667225 | EQ33: 1.000409468 | ER33: 1.0509834 | ES33: 0.9369263208 | ET33: 0.1295157947 | EU33: 1 | EV33: 1 | EW33: 1 | EX33: 0.7612516675 | EY33: 1 | EZ33: 740.5347348 | FA33: 499.889607 | FB33: 659.8258636 | FC33: 505.4354801 | FD33: 834.6591725 | FE33: 140.6148875 | FF33: 1393.592199 | FG33: 1172.599197 | FH33: 1299.735394 | FI33: 1139.214483 | FJ33: 1050.259685 | FK33: 959.1723452 | FL33: 2134.126933 | FM33: 1672.488804 | FN33: 1959.561258 | FO33: 1644.649963 | FP33: 1884.918858 | FQ33: 1099.787233 | FR33: 9.537133752 | FS33: 9.536545214 | FT33: 9.537082268 | FU33: 9.534198639 | FV33: 9.529405782 | FW33: 9.512831208 | FX33: 94.01292816 | FY33: 94.01002776 | FZ33: 94.01216941 | GA33: 94.00435323 | GB33: 93.99223474 | GC33: 93.95305507 | GD33: 103.5500619 | GE33: 103.546573 | GF33: 103.5492517 | GG33: 103.5385519 | GH33: 103.5216405 | GI33: 103.4658863 | GJ33: 2068867.111 | GK33: 2069258.971 | GL33: 2069025.472 | GM33: 2069126.387 | GN33: 2068547.892 | GO33: 2068217.938 | GP33: 649.1730456 | GQ33: 1041.032319 | GR33: 807.5340025 | GS33: 908.4490107 | GT33: 329.9531951 | GU33: 0 | GV33: 1 | GW33: 0 | GX33: 0 | GY33: 0 | GZ33: 0 | HA33: 1 | HB33: 1 | HC33: 1 | HD33: 1 | HE33: 1
A34: 26 | B34: 5.364992113 | C34: 0.4160652595 | D34: 0.4644251855 | E34: 0.5376659568 | F34: 0.02931168428 | G34: 0.09815495621 | H34: 0.2392289505 | I34: 0.5487138707 | J34: 0.1139022225 | K34: -0.08241332013 | L34: 0.5357536405 | M34: 0.3124622821 | N34: -0.2165314418 | O34: -0.1874696929 | P34: 4.315466847 | Q34: -0.5914707336 | R34: 5.488502825e-05 | S34: 3.088689652e-05 | T34: 8.959761915e-05 | U34: 0.0001080625836 | V34: 0.0001241718032 | W34: 0.0002322733109 | X34: 0.0003811816372 | Y34: 0.0005932259123 | Z34: 0.0008868513204 | AA34: 0.001144937277 | AB34: 0.001718819736 | AC34: 0.002274036943 | AD34: 0.003236900506 | AE34: 0.003527892426 | AF34: 0.002932863141 | AG34: 3.860574539e-05 | AH34: 3.794254439e-05 | AI34: 6.415145858e-05 | AJ34: 0.00010207247 | AK34: 0.0001173547019 | AL34: 0.0002436193087 | AM34: 0.0004576140572 | AN34: 0.0008116187667 | AO34: 0.001497981739 | AP34: 0.001888944017 | AQ34: 0.002808710546 | AR34: 0.003687765176 | AS34: 0.00484401769 | AT34: 0.005015489044 | AU34: 0.004689333038 | AV34: 0.4928975676 | AW34: 0.7498240446 | AX34: 0.6981752512 | AY34: 0.6909863768 | AZ34: 0.01487774839 | BA34: 0.05267265228 | BB34: 0.1512560128 | BC34: 0.5380966537 | BD34: 0.5858479866 | BE34: 0.0004450499171 | BF34: 0.02730467551 | BG34: 0.02770245195 | BH34: 0.03147443135 | BI34: 0.04391124405 | BJ34: 0.09652065556 | BK34: 0.9898950965 | BL34: 0.7092671723 | BM34: 1.759835905 | BN34: 0.3113159941 | BO34: 0.6792059466 | BP34: 0.1690948253 | BQ34: 0.07911374911 | BR34: 0.07258547899 | BS34: 0.1769160542 | BT34: 0.2731037479 | BU34: 0.2948667738 | BV34: 0.2551134241 | BW34: 0.1085296392 | BX34: 0.517201233 | BY34: 0.2341740016 | BZ34: 0.1400951262 | CA34: 0.9900958466 | CB34: 0.8096806144 | CC34: 0.0007126414334 | CD34: 0.7862492393 | CE34: 0.001155935925 | CF34: 0.8127967741 | CG34: 0.9112836517 | CH34: 0.9242285096 | CI34: 0.007307503626 | CJ34: 0.09097678841 | CK34: 0.9434343085 | CL34: 0.9434343085 | CM34: 0.9434343085 | CN34: 0.9434343085 | CO34: 0.1057655577 | CP34: 0.1309208194 | CQ34: 0.1309208194 | CR34: 0.1309208194 | CS34: 0.6074161877 | CT34: -6.074886828 | CU34: 0.1130535272 | CV34: -0.8422352873 | CW34: 0.0001041102859 | CX34: 0.9824349974 | CY34: 0.395476012 | CZ34: 0.6113941702 | DA34: 0.8754595517 | DB34: 0.895481504 | DC34: 1 | DD34: 0.7902911102 | DE34: 0.7302140032 | DF34: 243.1502228 | DG34: 166.2802541 | DH34: 142.3156244 | DI34: 43.6920461 | DJ34: 250.7854295 | DK34: 754.4549105 | DL34: 103.7445189 | DM34: 41.82434771 | DN34: 111.7931185 | DO34: 156.7050205 | DP34: 58.38576717 | DQ34: 708.1784505 | DR34: 8297.731323 | DS34: 5115.286385 | DT34: 4372.621008 | DU34: 2513.163336 | DV34: 1053.973005 | DW34: 8445.566677 | DX34: 7630.42204 | DY34: 5392.270103 | DZ34: 2891.997431 | EA34: 1668.147428 | EB34: 10215.81434 | EC34: 12195.21464 | ED34: 5136.447938 | EE34: 6068.330276 | EF34: 1197.29157 | EG34: 8506.912606 | EH34: 9259.503859 | EI34: 5107.216085 | EJ34: 5437.415087 | EK34: 782.6753212 | EL34: 0.9484850309 | EM34: 0.02112434419 | EN34: -0.0006669443163 | EO34: -1.231868044e-05 | EP34: 1.080788043 | EQ34: 0.999306378 | ER34: 0.976050656 | ES34: 0.9714223072 | ET34: 0.172806514 | EU34: 1 | EV34: 1 | EW34: 1 | EX34: 0.7952977476 | EY34: 1 | EZ34: 495.4721983 | FA34: 452.0658987 | FB34: 365.6135605 | FC34: 354.8011997 | FD34: 825.9944895 | FE34: 127.906432 | FF34: 929.8129762 | FG34: 922.2888989 | FH34: 917.2548492 | FI34: 904.4481232 | FJ34: 971.0829084 | FK34: 831.2193874 | FL34: 1425.285174 | FM34: 1374.354798 | FN34: 1282.86841 | FO34: 1259.249323 | FP34: 1797.077398 | FQ34: 959.1258194 | FR34: 9.816630588 | FS34: 9.815464101 | FT34: 9.814922447 | FU34: 9.813287021 | FV34: 9.825844593 | FW34: 9.804149655 | FX34: 79.06850957 | FY34: 79.06818315 | FZ34: 79.06665513 | GA34: 79.06399033 | GB34: 79.08104538 | GC34: 79.04589262 | GD34: 88.88514015 | GE34: 88.88364725 | GF34: 88.88157757 | GG34: 88.87727735 | GH34: 88.90688997 | GI34: 88.85004227 | GJ34: 1776277.518 | GK34: 1776298.59 | GL34: 1776348.683 | GM34: 1776286.298 | GN34: 1776340.722 | GO34: 1776041.72 | GP34: 235.7983118 | GQ34: 256.8705703 | GR34: 306.9634757 | GS34: 244.5780698 | GT34: 299.0024659 | GU34: 0 | GV34: 0 | GW34: 1 | GX34: 0 | GY34: 0 | GZ34: 0 | HA34: 1 | HB34: 1 | HC34: 1 | HD34: 1 | HE34: 1
A35: 27 | B35: 14.05808545 | C35: 0.4223263283 | D35: 0.455382012 | E35: 0.5356035428 | F35: 0.02535745962 | G35: 0.06666081911 | H35: 0.2758988131 | I35: 0.6319709209 | J35: 0.02546944695 | K35: 0.2098152889 | L35: 0.78284596 | M35: 1.523516394 | N35: -0.2002260603 | O35: -0.1827070639 | P35: 4.315649147 | Q35: -0.5388941115 | R35: 4.806288876e-05 | S35: 2.401348829e-05 | T35: 5.933817413e-05 | U35: 9.634232346e-05 | V35: 0.0001254463176 | W35: 0.0001934511538 | X35: 0.0003505732354 | Y35: 0.0006089711166 | Z35: 0.0009104300646 | AA35: 0.001197560679 | AB35: 0.001752082553 | AC35: 0.002348110872 | AD35: 0.003095557316 | AE35: 0.003570814653 | AF35: 0.003016601596 | AG35: 5.991982543e-05 | AH35: 2.063611714e-05 | AI35: 4.028983714e-05 | AJ35: 0.0001066954228 | AK35: 0.0001249453102 | AL35: 0.0001900953533 | AM35: 0.0004734318373 | AN35: 0.0008449833999 | AO35: 0.001640939011 | AP35: 0.002038332128 | AQ35: 0.00264387678 | AR35: 0.003702422743 | AS35: 0.004521268692 | AT35: 0.005286654936 | AU35: 0.004710959589 | AV35: 0.4900295945 | AW35: 0.7456698129 | AX35: 0.696513486 | AY35: 0.6967348152 | AZ35: 0.01365669728 | BA35: 0.05223069426 | BB35: 0.1497716699 | BC35: 0.5589506717 | BD35: 0.5540012388 | BE35: 0.001112902326 | BF35: 0.02732060827 | BG35: 0.02531609932 | BH35: 0.03169195975 | BI35: 0.04877091584 | BJ35: 0.08976755379 | BK35: 0.972028337 | BL35: 0.7094031509 | BM35: 1.887706209 | BN35: 0.2444088733 | BO35: 0.6618108893 | BP35: 0.1006518782 | BQ35: 0.1512502724 | BR35: 0.08628696015 | BS35: 0.1744319853 | BT35: 0.2715873133 | BU35: 0.2943955932 | BV35: 0.2595851081 | BW35: 0.08347444518 | BX35: 0.4304940704 | BY35: 0.3389803652 | BZ35: 0.1470511192 | CA35: 0.9868136857 | CB35: 0.7984427803 | CC35: 0.008750367298 | CD35: 0.8305976486 | CE35: 0.04880807969 | CF35: 0.8021273707 | CG35: 0.8842721402 | CH35: 0.8021736803 | CI35: 0.02887351684 | CJ35: 0.02075716056 | CK35: 0.9617622409 | CL35: 0.9617622409 | CM35: 0.9617622409 | CN35: 0.9617622409 | CO35: 0.06735183744 | CP35: 0.1368526218 | CQ35: 0.1368526218 | CR35: 0.1368526218 | CS35: 0.6855249466 | CT35: -2.172875165 | CU35: 0.04220507988 | CV35: -1.216443091 | CW35: 0.01883260985 | CX35: 0.767495257 | CY35: 0.6828390414 | CZ35: 0.6042205748 | DA35: 0.8439110658 | DB35: 0.8535850286 | DC35: 1 | DD35: 0.7641573841 | DE35: 0.6972754803 | DF35: 192.3421926 | DG35: 300.7099894 | DH35: 165.4373945 | DI35: 22.72561312 | DJ35: 240.4045765 | DK35: 585.4706203 | DL35: 96.802783 | DM35: 39.77043138 | DN35: 152.5795035 | DO35: 191.3839805 | DP35: 136.6381477 | DQ35: 601.9632051 | DR35: 7636.564714 | DS35: 4316.127216 | DT35: 4395.689467 | DU35: 3454.692883 | DV35: 1528.337646 | DW35: 7546.911481 | DX35: 5888.194976 | DY35: 4773.343152 | DZ35: 3905.367572 | EA35: 1501.228944 | EB35: 16650.79871 | EC35: 11325.61687 | ED35: 10465.654 | EE35: 4636.781412 | EF35: 1484.678873 | EG35: 16989.43403 | EH35: 10754.53635 | EI35: 8143.974855 | EJ35: 4987.407138 | EK35: 740.5917092 | EL35: 0.9656166106 | EM35: 0.02429351182 | EN35: -0.0001268752391 | EO35: -3.832722121e-05 | EP35: 0.9710990533 | EQ35: 0.9830358073 | ER35: 0.9271568046 | ES35: 0.8884617399 | ET35: 0.2613100424 | EU35: 1 | EV35: 1 | EW35: 1 | EX35: 0.7742564114 | EY35: 1 | EZ35: 549.2926987 | FA35: 437.9247437 | FB35: 657.4168657 | FC35: 569.7772401 | FD35: 677.4062597 | FE35: 140.5740298 | FF35: 3106.685976 | FG35: 2738.457866 | FH35: 3070.177509 | FI35: 2727.44749 | FJ35: 2616.495168 | FK35: 2376.157182 | FL35: 3655.978675 | FM35: 3176.382609 | FN35: 3727.594375 | FO35: 3297.22473 | FP35: 3293.901427 | FQ35: 2516.731211 | FR35: 8.951134561 | FS35: 8.950963471 | FT35: 8.949976258 | FU35: 8.948961806 | FV35: 8.947588188 | FW35: 8.940321543 | FX35: 193.6394484 | FY35: 193.6339827 | FZ35: 193.6332566 | GA35: 193.6239663 | GB35: 193.629425 | GC35: 193.5767321 | GD35: 202.590583 | GE35: 202.5849461 | GF35: 202.5832328 | GG35: 202.5729281 | GH35: 202.5770132 | GI35: 202.5170537 | GJ35: 4048155.681 | GK35: 4048522.54 | GL35: 4047937.062 | GM35: 4048161.336 | GN35: 4048246.363 | GO35: 4047824.342 | GP35: 331.3393825 | GQ35: 698.1980797 | GR35: 112.7199553 | GS35: 336.9943109 | GT35: 422.0205958 | GU35: 0 | GV35: 1 | GW35: 0 | GX35: 0 | GY35: 0 | GZ35: 0 | HA35: 1 | HB35: 1 | HC35: 1 | HD35: 1 | HE35: 1
A36: 28 | B36: 5.912722977 | C36: 0.4126180031 | D36: 0.43045655 | E36: 0.5426466293 | F36: 0.04130573799 | G36: 0.03862619619 | H36: 0.1410048387 | I36: 0.5666495107 | J36: 0.2537194544 | K36: -0.03639293224 | L36: 0.2576810589 | M36: 0.5141952282 | N36: -0.09635211414 | O36: -0.2750982883 | P36: 4.341670135 | Q36: -0.4915690118 | R36: 2.54165576e-05 | S36: 1.517372919e-05 | T36: 4.694155147e-05 | U36: 0.0001029520153 | V36: 0.0001197411711 | W36: 0.0002132618353 | X36: 0.0004211650308 | Y36: 0.0007277328501 | Z36: 0.0009721252326 | AA36: 0.001185618584 | AB36: 0.001725362352 | AC36: 0.002317795069 | AD36: 0.003234524346 | AE36: 0.003574227564 | AF36: 0.00308884469 | AG36: 7.053202892e-06 | AH36: 1.336442549e-05 | AI36: 4.48332443e-05 | AJ36: 8.992174983e-05 | AK36: 0.000103674456 | AL36: 0.0002182121778 | AM36: 0.0004653714577 | AN36: 0.0008766878358 | AO36: 0.00146597895 | AP36: 0.001865749048 | AQ36: 0.00273927154 | AR36: 0.003653870474 | AS36: 0.00435113275 | AT36: 0.004997772914 | AU36: 0.004680081265 | AV36: 0.5025329253 | AW36: 0.7529794137 | AX36: 0.696293687 | AY36: 0.67713017 | AZ36: 0.01392428827 | BA36: 0.05363818669 | BB36: 0.1484829109 | BC36: 0.5446915928 | BD36: 0.9031754926 | BE36: 0.004723785258 | BF36: 0.02423001331 | BG36: 0.02656443775 | BH36: 0.0317932949 | BI36: 0.04791881151 | BJ36: 0.0892321987 | BK36: 0.9759752722 | BL36: 0.7388914637 | BM36: 1.839981903 | BN36: 0.6457377529 | BO36: 0.758385665 | BP36: 0.06889124408 | BQ36: 0.1025460849 | BR36: 0.070177006 | BS36: 0.1744547947 | BT36: 0.2695968871 | BU36: 0.2985376227 | BV36: 0.2574106955 | BW36: 0.2099015005 | BX36: 0.4531642954 | BY36: 0.1894858737 | BZ36: 0.1474483305 | CA36: 0.9920155337 | CB36: 0.8219796154 | CC36: 0.002336679438 | CD36: 0.9903798306 | CE36: 0.005481199248 | CF36: 0.8159425005 | CG36: 0.9325531187 | CH36: 0.7239152503 | CI36: 0.006221179151 | CJ36: 0.05257627821 | CK36: 0.9582904524 | CL36: 0.9582904524 | CM36: 0.9582904524 | CN36: 0.9582904524 | CO36: 0.04384678515 | CP36: 0.047307837 | CQ36: 0.047307837 | CR36: 0.047307837 | CS36: 0.7103787578 | CT36: 2.618600117 | CU36: 0.3844750635 | CV36: -0.6941969787 | CW36: 0.9816068365 | CX36: 0.1525425438 | CY36: 0.3209063346 | CZ36: 0.1587499257 | DA36: 0.9876928724 | DB36: 0.9010083456 | DC36: 1 | DD36: 0.7568088133 | DE36: 0.7566765503 | DF36: 155.7108817 | DG36: 217.4703943 | DH36: 112.3661828 | DI36: 20.18478009 | DJ36: 370.6596858 | DK36: 716.3303484 | DL36: 174.2610188 | DM36: 37.21683966 | DN36: 223.4317477 | DO36: 138.2510212 | DP36: 112.0803606 | DQ36: 360.2216598 | DR36: 4673.206867 | DS36: 5657.286693 | DT36: 3386.146457 | DU36: 4032.674925 | DV36: 1149.088416 | DW36: 9396.921816 | DX36: 8596.418871 | DY36: 6693.030569 | DZ36: 3277.382382 | EA36: 1763.925733 | EB36: 16004.25716 | EC36: 8527.685582 | ED36: 8740.193068 | EE36: 3308.229262 | EF36: 1001.424061 | EG36: 11343.50316 | EH36: 9512.763752 | EI36: 7735.65975 | EJ36: 3986.191945 | EK36: 987.6168184 | EL36: 0.9409217826 | EM36: 0.01814289772 | EN36: -8.84393461e-05 | EO36: -5.081457639e-05 | EP36: 1.03308306 | EQ36: 1.09775332 | ER36: 1.053959852 | ES36: 0.9716882872 | ET36: 0.1947321885 | EU36: 1 | EV36: 1 | EW36: 1 | EX36: 0.7782925211 | EY36: 1 | EZ36: 457.8090663 | FA36: 370.8264885 | FB36: 590.8259084 | FC36: 478.9156786 | FD36: 362.9616946 | FE36: 137.0249451 | FF36: 1186.458343 | FG36: 1033.545722 | FH36: 1288.706815 | FI36: 1070.323395 | FJ36: 946.5571201 | FK36: 907.0635133 | FL36: 1644.267409 | FM36: 1404.372211 | FN36: 1879.532723 | FO36: 1549.239073 | FP36: 1309.518815 | FQ36: 1044.088458 | FR36: 8.00561783 | FS36: 8.004796084 | FT36: 8.005783734 | FU36: 8.004412915 | FV36: 8.005238432 | FW36: 7.998296992 | FX36: 74.52264465 | FY36: 74.52079712 | FZ36: 74.52316062 | GA36: 74.52015812 | GB36: 74.51414403 | GC36: 74.50839887 | GD36: 82.52826248 | GE36: 82.5255932 | GF36: 82.52894436 | GG36: 82.52457104 | GH36: 82.51938246 | GI36: 82.50669586 | GJ36: 1648920.982 | GK36: 1649107.492 | GL36: 1648699.354 | GM36: 1648942.182 | GN36: 1649078.13 | GO36: 1649089.829 | GP36: -168.8465665 | GQ36: 17.66304078 | GR36: -390.4742945 | GS36: -147.6470693 | GT36: -11.69827009 | GU36: 0 | GV36: 1 | GW36: 0 | GX36: 0 | GY36: 0 | GZ36: 0 | HA36: 0 | HB36: 1 | HC36: 0 | HD36: 0 | HE36: 0
A37: 29 | B37: 8.569985404 | C37: 0.4258725959 | D37: 0.4234698416 | E37: 0.5373835454 | F37: 0.03412622399 | G37: 0.09802984652 | H37: 0.3742633279 | I37: 0.5161604767 | J37: 0.01154634889 | K37: 0.1351106941 | L37: 0.5606778313 | M37: 0.8915185293 | N37: -0.06275712808 | O37: -0.2566834594 | P37: 4.305240731 | Q37: -0.5618113621 | R37: 3.506698047e-05 | S37: 1.768915113e-05 | T37: 8.808812303e-05 | U37: 9.838660371e-05 | V37: 0.0001166527341 | W37: 0.000219308865 | X37: 0.0003589131209 | Y37: 0.0006274029961 | Z37: 0.0009124862083 | AA37: 0.001136460047 | AB37: 0.001811247082 | AC37: 0.002495798208 | AD37: 0.003029044884 | AE37: 0.003653672806 | AF37: 0.003051032664 | AG37: 3.578820106e-05 | AH37: 1.082298614e-05 | AI37: 5.419599295e-05 | AJ37: 8.835401191e-05 | AK37: 0.000132805292 | AL37: 0.0002187599345 | AM37: 0.0004141021385 | AN37: 0.0008006242767 | AO37: 0.001614012393 | AP37: 0.001968584902 | AQ37: 0.002738953846 | AR37: 0.003824212395 | AS37: 0.004558738183 | AT37: 0.004897511877 | AU37: 0.004650705364 | AV37: 0.5029822712 | AW37: 0.7448145689 | AX37: 0.6979644042 | AY37: 0.6895469023 | AZ37: 0.01407575962 | BA37: 0.05253953304 | BB37: 0.1480861984 | BC37: 0.5428908508 | BD37: 0.6358958944 | BE37: 0.0200752471 | BF37: 0.02788790303 | BG37: 0.03006289665 | BH37: 0.03086947836 | BI37: 0.04722472191 | BJ37: 0.09117448985 | BK37: 0.956706732 | BL37: 0.7166095295 | BM37: 2.761079135 | BN37: 0.5390099701 | BO37: 0.738259152 | BP37: 0.1074516594 | BQ37: 0.09107707121 | BR37: 0.06321211739 | BS37: 0.1742111752 | BT37: 0.2699360444 | BU37: 0.2937473059 | BV37: 0.2621054745 | BW37: 0.1884568528 | BX37: 0.5139084642 | BY37: 0.1961659983 | BZ37: 0.1014686847 | CA37: 0.7505947398 | CB37: 0.6405469457 | CC37: 0.001710617105 | CD37: 0.9137007241 | CE37: 0.009654434596 | CF37: 0.8446887895 | CG37: 0.9118628932 | CH37: 0.7058691014 | CI37: 0.001263441318 | CJ37: 0.01988295956 | CK37: 0.9606876097 | CL37: 0.9606876097 | CM37: 0.9606876097 | CN37: 0.9606876097 | CO37: 0.006180273415 | CP37: 0.1594579025 | CQ37: 0.1594579025 | CR37: 0.1594579025 | CS37: 0.6408667046 | CT37: 1.184137304 | CU37: 0.1193524253 | CV37: -1.196014846 | CW37: 0.9056690459 | CX37: 0.3501572182 | CY37: 0.2621880298 | CZ37: 0.5497669792 | DA37: 0.978105254 | DB37: 0.9517207152 | DC37: 1 | DD37: 0.7651682672 | DE37: 0.7228398013 | DF37: 199.5956237 | DG37: 157.2000825 | DH37: 86.15738595 | DI37: 23.71776381 | DJ37: 443.6203874 | DK37: 751.9883042 | DL37: 118.4693844 | DM37: 32.2896858 | DN37: 179.8781784 | DO37: 221.3068591 | DP37: 193.2129733 | DQ37: 639.1673492 | DR37: 6970.754247 | DS37: 7356.063192 | DT37: 3955.554463 | DU37: 2843.113734 | DV37: 1929.895571 | DW37: 7315.826861 | DX37: 6453.829135 | DY37: 4479.620224 | DZ37: 3708.268613 | EA37: 1273.871165 | EB37: 13928.73811 | EC37: 10923.74776 | ED37: 7068.256898 | EE37: 4380.070506 | EF37: 1950.035966 | EG37: 12931.89526 | EH37: 7940.533594 | EI37: 6000.550142 | EJ37: 5661.584217 | EK37: 819.9795557 | EL37: 0.9464378209 | EM37: 0.02222868896 | EN37: -0.0009505357856 | EO37: -2.85403188e-05 | EP37: 0.9419315004 | EQ37: 1.03631102 | ER37: 1.04108469 | ES37: 0.9429504227 | ET37: 0.3607717425 | EU37: 1 | EV37: 1 | EW37: 1 | EX37: 0.7226826278 | EY37: 1 | EZ37: 542.7608557 | FA37: 394.5627874 | FB37: 465.5076159 | FC37: 377.1797374 | FD37: 871.447644 | FE37: 109.8063096 | FF37: 1654.435953 | FG37: 1331.216273 | FH37: 1598.440749 | FI37: 1376.670553 | FJ37: 1385.147282 | FK37: 1181.580171 | FL37: 2197.196808 | FM37: 1725.779061 | FN37: 2063.948365 | FO37: 1753.850291 | FP37: 2256.594926 | FQ37: 1291.38648 | FR37: 8.641431231 | FS37: 8.644895963 | FT37: 8.64270051 | FU37: 8.644577625 | FV37: 8.643058829 | FW37: 8.64346369 | FX37: 111.4302036 | FY37: 111.4279454 | FZ37: 111.4315194 | GA37: 111.4287381 | GB37: 111.4420539 | GC37: 111.4191466 | GD37: 120.0716349 | GE37: 120.0728414 | GF37: 120.0742199 | GG37: 120.0733157 | GH37: 120.0851128 | GI37: 120.0626102 | GJ37: 2399235.501 | GK37: 2399731.048 | GL37: 2399420.45 | GM37: 2399712.465 | GN37: 2399445.66 | GO37: 2399960.818 | GP37: -725.3177443 | GQ37: -229.7701934 | GR37: -540.3689098 | GS37: -248.3538582 | GT37: -515.1580515 | GU37: 0 | GV37: 0 | GW37: 0 | GX37: 0 | GY37: 0 | GZ37: 1 | HA37: 0 | HB37: 0 | HC37: 0 | HD37: 0 | HE37: 0
A38: 30 | B38: 7.47999476 | C38: 0.4358420858 | D38: 0.4428333858 | E38: 0.5454512448 | F38: 0.02838626922 | G38: 0.1591999998 | H38: 0.3050076715 | I38: 0.5357923286 | J38: 6.837910042e-19 | K38: 0.07892350118 | L38: 0.5279851467 | M38: 1.547303498 | N38: -0.07019161893 | O38: -0.1581203417 | P38: 4.293925947 | Q38: -0.7536313619 | R38: 3.958849785e-05 | S38: 1.998790162e-05 | T38: 6.626085582e-05 | U38: 0.000106439177 | V38: 0.0001333573611 | W38: 0.0002244820251 | X38: 0.0003399476283 | Y38: 0.0005945866028 | Z38: 0.000912625915 | AA38: 0.001252991993 | AB38: 0.001689377899 | AC38: 0.002313683976 | AD38: 0.003029556477 | AE38: 0.003634102262 | AF38: 0.002936631409 | AG38: 1.777374784e-05 | AH38: 3.088630526e-05 | AI38: 4.31260061e-05 | AJ38: 8.495475548e-05 | AK38: 0.0001175170719 | AL38: 0.0001892397861 | AM38: 0.0004283411316 | AN38: 0.000768722211 | AO38: 0.001541308137 | AP38: 0.001906067491 | AQ38: 0.002756870177 | AR38: 0.003766891027 | AS38: 0.004567534026 | AT38: 0.005136408954 | AU38: 0.004727968897 | AV38: 0.5090176003 | AW38: 0.7447912129 | AX38: 0.6961374407 | AY38: 0.6817269597 | AZ38: 0.014954826 | BA38: 0.05135241906 | BB38: 0.1479172594 | BC38: 0.5387621479 | BD38: 0.5134387079 | BE38: 0.006190889716 | BF38: 0.02477215409 | BG38: 0.03103175251 | BH38: 0.03201306416 | BI38: 0.0466526589 | BJ38: 0.08812061224 | BK38: 0.9790934913 | BL38: 0.7297061134 | BM38: 1.744095528 | BN38: 0.2526617773 | BO38: 0.6485476406 | BP38: 0.07505368462 | BQ38: 0.2212170692 | BR38: 0.05518160557 | BS38: 0.1746845249 | BT38: 0.274750673 | BU38: 0.2930990965 | BV38: 0.2574657056 | BW38: 0.2765546619 | BX38: 0.486788057 | BY38: 0.1674276499 | BZ38: 0.06922963127 | CA38: 0.7094134779 | CB38: 0.6392735542 | CC38: 0.0001723907616 | CD38: 0.7307014004 | CE38: 0.02261873009 | CF38: 0.8374777159 | CG38: 0.7631549207 | CH38: 0.4398923712 | CI38: 5.690115979e-05 | CJ38: 0.01294142326 | CK38: 0.8978931099 | CL38: 0.8978931099 | CM38: 0.8978931099 | CN38: 0.8978931099 | CO38: 0.06708452038 | CP38: 0.1143548222 | CQ38: 0.1143548222 | CR38: 0.1143548222 | CS38: 0.6306358535 | CT38: 0.9172238675 | CU38: 0.01117106864 | CV38: 1.020067361 | CW38: 0.6350919303 | CX38: 0.1797275538 | CY38: 0.7793270633 | CZ38: 0.2096304917 | DA38: 0.9790600384 | DB38: 0.9534902402 | DC38: 1 | DD38: 0.8046679545 | DE38: 0.7111870635 | DF38: 233.7824905 | DG38: 176.2286858 | DH38: 171.8544224 | DI38: 35.27522144 | DJ38: 406.2304611 | DK38: 590.913181 | DL38: 144.0421726 | DM38: 32.71499008 | DN38: 128.4122084 | DO38: 137.3154078 | DP38: 121.5020987 | DQ38: 541.7531881 | DR38: 9163.225951 | DS38: 5931.412251 | DT38: 3770.428756 | DU38: 3197.770703 | DV38: 1242.873252 | DW38: 8243.095544 | DX38: 8748.385439 | DY38: 5463.279461 | DZ38: 3078.432154 | EA38: 1847.361275 | EB38: 13949.92066 | EC38: 6663.981859 | ED38: 6300.362898 | EE38: 5499.667051 | EF38: 1897.236898 | EG38: 13937.57732 | EH38: 8614.079626 | EI38: 6820.934702 | EJ38: 5069.256528 | EK38: 817.3315186 | EL38: 0.9411265126 | EM38: 0.01934553634 | EN38: -0.001245673945 | EO38: -5.128154347e-05 | EP38: 1.027518636 | EQ38: 0.9889211006 | ER38: 1.003986639 | ES38: 0.9546371344 | ET38: 0.2257918725 | EU38: 1 | EV38: 1 | EW38: 1 | EX38: 0.7894424006 | EY38: 1 | EZ38: 1184.444822 | FA38: 654.8127485 | FB38: 1556.307671 | FC38: 893.5454387 | FD38: 416.0743614 | FE38: 135.4095642 | FF38: 3190.841102 | FG38: 1748.531856 | FH38: 4261.149953 | FI38: 2367.845043 | FJ38: 1173.094681 | FK38: 1112.522149 | FL38: 4375.285924 | FM38: 2403.344605 | FN38: 5817.457625 | FO38: 3261.390482 | FP38: 1589.169042 | FQ38: 1247.931713 | FR38: 7.017818551 | FS38: 7.016739635 | FT38: 7.019115317 | FU38: 7.016998584 | FV38: 7.014820317 | FW38: 7.0085365 | FX38: 82.52398042 | FY38: 82.51547295 | FZ38: 82.5317385 | GA38: 82.51855599 | GB38: 82.4981973 | GC38: 82.48924879 | GD38: 89.54179897 | GE38: 89.53221259 | GF38: 89.55085381 | GG38: 89.53555458 | GH38: 89.51301762 | GI38: 89.49778529 | GJ38: 1786460.693 | GK38: 1788240.907 | GL38: 1785199.619 | GM38: 1787449.701 | GN38: 1788671.183 | GO38: 1788707.774 | GP38: -2247.080623 | GQ38: -466.8668292 | GR38: -3508.155351 | GS38: -1258.073004 | GT38: -36.59063555 | GU38: 0 | GV38: 0 | GW38: 0 | GX38: 0 | GY38: 0 | GZ38: 1 | HA38: 0 | HB38: 0 | HC38: 0 | HD38: 0 | HE38: 0
A39: 31 | B39: 6.338775702 | C39: 0.4286611004 | D39: 0.4486516527 | E39: 0.5264946553 | F39: 0.0188122636 | G39: 0.1013393273 | H39: 0.3763231434 | I39: 0.4590252946 | J39: 0.06331223471 | K39: 0.02586571626 | L39: 0.4694577558 | M39: 0.4089033449 | N39: -0.08764739982 | O39: -0.2633978291 | P39: 4.235383179 | Q39: -0.6380312128 | R39: 3.275046421e-05 | S39: 2.278133946e-05 | T39: 7.753264035e-05 | U39: 0.0001287948142 | V39: 0.0001039809444 | W39: 0.0002382533167 | X39: 0.000391036169 | Y39: 0.0006020603567 | Z39: 0.0008930105418 | AA39: 0.001154960701 | AB39: 0.001671839553 | AC39: 0.002500893323 | AD39: 0.003244212703 | AE39: 0.003833849021 | AF39: 0.003172375152 | AG39: 2.704007033e-05 | AH39: 1.961968848e-05 | AI39: 7.714920184e-05 | AJ39: 7.671101789e-05 | AK39: 0.0001124946378 | AL39: 0.0002461023731 | AM39: 0.0004213624791 | AN39: 0.0008033861032 | AO39: 0.001583171731 | AP39: 0.00203469829 | AQ39: 0.002748992026 | AR39: 0.003565270894 | AS39: 0.004482007997 | AT39: 0.00512558432 | AU39: 0.004534383278 | AV39: 0.4993400663 | AW39: 0.7453138362 | AX39: 0.7047774594 | AY39: 0.686106268 | AZ39: 0.01404986382 | BA39: 0.05202018446 | BB39: 0.1465778524 | BC39: 0.5460691134 | BD39: 0.6326276859 | BE39: 0.0008812504784 | BF39: 0.02991894161 | BG39: 0.03089502915 | BH39: 0.0343743191 | BI39: 0.04920389886 | BJ39: 0.09700343167 | BK39: 0.9858693323 | BL39: 0.7744030817 | BM39: 1.692139429 | BN39: 0.2734181464 | BO39: 0.6050287752 | BP39: 0.1641454273 | BQ39: 0.05632338041 | BR39: 0.1745024171 | BS39: 0.176390187 | BT39: 0.27122634 | BU39: 0.2936540609 | BV39: 0.2587294121 | BW39: 0.1784410543 | BX39: 0.3838326302 | BY39: 0.2781582935 | BZ39: 0.1595680221 | CA39: 0.7507183829 | CB39: 0.6235979014 | CC39: 0.02202119522 | CD39: 0.9683613072 | CE39: 0.02020560346 | CF39: 0.8203705271 | CG39: 0.7252516524 | CH39: 0.2253668555 | CI39: 0.001785874464 | CJ39: 0.1133143818 | CK39: 0.9590536093 | CL39: 0.9590536093 | CM39: 0.9590536093 | CN39: 0.9590536093 | CO39: 0.0679360959 | CP39: 0.1370864112 | CQ39: 0.1370864112 | CR39: 0.1370864112 | CS39: 0.6464743338 | CT39: -1.865635585 | CU39: 0.09993538469 | CV39: 0.3079816788 | CW39: 0.1741443363 | CX39: 0.9033062867 | CY39: 0.4764374826 | CZ39: 0.3236542182 | DA39: 0.9063301549 | DB39: 0.975912284 | DC39: 1 | DD39: 0.778380238 | DE39: 0.7244975393 | DF39: 281.8529945 | DG39: 159.9885402 | DH39: 152.7380099 | DI39: 32.22088351 | DJ39: 350.9675376 | DK39: 1125.291381 | DL39: 169.8309874 | DM39: 21.16470667 | DN39: 155.3818469 | DO39: 193.722672 | DP39: 141.9547009 | DQ39: 476.8849844 | DR39: 5973.279319 | DS39: 6561.93502 | DT39: 4854.6002 | DU39: 3280.907659 | DV39: 1332.784092 | DW39: 8019.165703 | DX39: 9857.862932 | DY39: 5064.104932 | DZ39: 2997.398205 | EA39: 2262.536717 | EB39: 11728.24505 | EC39: 9420.548119 | ED39: 5486.287735 | EE39: 4168.068345 | EF39: 1679.055212 | EG39: 11310.5366 | EH39: 12927.80579 | EI39: 5042.93033 | EJ39: 4505.406712 | EK39: 914.4379093 | EL39: 0.943260362 | EM39: 0.02101700588 | EN39: -0.001168446885 | EO39: -2.980505322e-05 | EP39: 0.9837694059 | EQ39: 1.053191842 | ER39: 0.9885148857 | ES39: 0.9617230501 | ET39: 0.2159423119 | EU39: 1 | EV39: 1 | EW39: 1 | EX39: 0.7785969977 | EY39: 1 | EZ39: 737.3606964 | FA39: 537.3863393 | FB39: 939.6812015 | FC39: 639.5190223 | FD39: 650.5789279 | FE39: 117.6241419 | FF39: 1128.084876 | FG39: 1037.837164 | FH39: 1246.358661 | FI39: 1090.078245 | FJ39: 1010.035084 | FK39: 970.4375972 | FL39: 1865.445572 | FM39: 1575.223503 | FN39: 2186.039862 | FO39: 1729.597267 | FP39: 1660.614012 | FQ39: 1088.061739 | FR39: 8.116297076 | FS39: 8.116180595 | FT39: 8.115850143 | FU39: 8.115064723 | FV39: 8.114029161 | FW39: 8.108390002 | FX39: 81.44438225 | FY39: 81.44272695 | FZ39: 81.44525387 | GA39: 81.44119511 | GB39: 81.44115904 | GC39: 81.42516986 | GD39: 89.56067932 | GE39: 89.55890755 | GF39: 89.56110401 | GG39: 89.55625983 | GH39: 89.5551882 | GI39: 89.53355986 | GJ39: 1789348.141 | GK39: 1789602.927 | GL39: 1789036.04 | GM39: 1789395.599 | GN39: 1789443.15 | GO39: 1789583.135 | GP39: -234.9945939 | GQ39: 19.79199251 | GR39: -547.0951038 | GS39: -187.5361794 | GT39: -139.985495 | GU39: 0 | GV39: 1 | GW39: 0 | GX39: 0 | GY39: 0 | GZ39: 0 | HA39: 0 | HB39: 1 | HC39: 0 | HD39: 0 | HE39: 0
A40: 32 | B40: 4.511166853 | C40: 0.4264174273 | D40: 0.4227870385 | E40: 0.5261446167 | F40: 0.03173216116 | G40: 0.07180243373 | H40: 0.3179705079 | I40: 0.5935751735 | J40: 0.01665188492 | K40: -0.02727417074 | L40: 0.3250766634 | M40: 0.2744363325 | N40: -0.1528477671 | O40: -0.298140802 | P40: 4.337354258 | Q40: -0.5575800173 | R40: 2.173224901e-05 | S40: 3.83242926e-05 | T40: 6.79235996e-05 | U40: 0.0001140150698 | V40: 0.0001126641237 | W40: 0.0001975965573 | X40: 0.0003918527658 | Y40: 0.0006322547442 | Z40: 0.0008500711542 | AA40: 0.001148025354 | AB40: 0.001699746879 | AC40: 0.002345989415 | AD40: 0.003247007036 | AE40: 0.003709511794 | AF40: 0.002942556196 | AG40: 2.689674487e-05 | AH40: 2.023805108e-05 | AI40: 3.923283884e-05 | AJ40: 7.479108385e-05 | AK40: 0.0001023295813 | AL40: 0.000267407627 | AM40: 0.0004769846365 | AN40: 0.0007934862402 | AO40: 0.001473758425 | AP40: 0.00196264077 | AQ40: 0.002832650616 | AR40: 0.00371475689 | AS40: 0.004570847099 | AT40: 0.005431597397 | AU40: 0.004966719762 | AV40: 0.4937943804 | AW40: 0.7411398362 | AX40: 0.7070089456 | AY40: 0.684132314 | AZ40: 0.01551542448 | BA40: 0.05155535341 | BB40: 0.1473458722 | BC40: 0.5516123869 | BD40: 0.5061525238 | BE40: 0.002174219346 | BF40: 0.02620961483 | BG40: 0.02696233694 | BH40: 0.02924963102 | BI40: 0.04823824683 | BJ40: 0.09061912025 | BK40: 0.9968721299 | BL40: 0.6522518186 | BM40: 2.521054093 | BN40: 0.3670909299 | BO40: 0.7336877341 | BP40: 0.102831608 | BQ40: 0.1106105967 | BR40: 0.05287006123 | BS40: 0.1744278006 | BT40: 0.2709124653 | BU40: 0.2953213043 | BV40: 0.2593384298 | BW40: 0.2324117521 | BX40: 0.372805415 | BY40: 0.244521146 | BZ40: 0.1502616868 | CA40: 0.9923347407 | CB40: 0.8431920056 | CC40: 0.0001044285171 | CD40: 0.9753357409 | CE40: 0.0009577914385 | CF40: 0.8571778513 | CG40: 0.8764300932 | CH40: 0.7017285443 | CI40: 0.005692787968 | CJ40: 0.1207648251 | CK40: 0.9807673118 | CL40: 0.9807673118 | CM40: 0.9807673118 | CN40: 0.9807673118 | CO40: 0.01298919775 | CP40: 0.00706787675 | CQ40: 0.00706787675 | CR40: 0.00706787675 | CS40: 0.6798557752 | CT40: -0.9477454091 | CU40: 0.1041606673 | CV40: -0.7078861423 | CW40: 0.2182266238 | CX40: 0.6685850974 | CY40: 0.7005755577 | CZ40: 0.3530288506 | DA40: 0.9068932002 | DB40: 0.9500347564 | DC40: 1 | DD40: 0.7295624276 | DE40: 0.7125595121 | DF40: 207.0381411 | DG40: 170.9642792 | DH40: 151.0392031 | DI40: 31.1877476 | DJ40: 235.8570381 | DK40: 889.5731042 | DL40: 141.7613645 | DM40: 54.10367422 | DN40: 160.1174096 | DO40: 184.6474841 | DP40: 108.0079208 | DQ40: 583.6256262 | DR40: 10001.65456 | DS40: 7321.963211 | DT40: 5440.723488 | DU40: 3898.982436 | DV40: 1149.07992 | DW40: 10752.13695 | DX40: 7015.037529 | DY40: 3732.865933 | DZ40: 2863.604349 | EA40: 1790.698975 | EB40: 13828.55999 | EC40: 8698.764185 | ED40: 11159.16179 | EE40: 3302.149296 | EF40: 1233.160655 | EG40: 9718.27523 | EH40: 4831.188977 | EI40: 4445.065251 | EJ40: 4877.405739 | EK40: 1173.299714 | EL40: 0.9496770923 | EM40: 0.02341911421 | EN40: 8.999938546e-05 | EO40: -6.989317158e-06 | EP40: 0.9232683591 | EQ40: 0.9683270576 | ER40: 1.126119495 | ES40: 1.083090553 | ET40: 0.6529413172 | EU40: 1 | EV40: 1 | EW40: 1 | EX40: 0.7800171545 | EY40: 1 | EZ40: 583.8705464 | FA40: 454.4927343 | FB40: 702.9979464 | FC40: 521.4199867 | FD40: 606.5640678 | FE40: 151.6855598 | FF40: 891.9682941 | FG40: 792.6096174 | FH40: 986.7142822 | FI40: 834.4909365 | FJ40: 727.382002 | FK40: 680.435177 | FL40: 1475.83884 | FM40: 1247.102352 | FN40: 1689.712229 | FO40: 1355.910923 | FP40: 1333.94607 | FQ40: 832.1207368 | FR40: 10.97606002 | FS40: 10.97574658 | FT40: 10.9729977 | FU40: 10.97277645 | FV40: 10.93216813 | FW40: 10.94954203 | FX40: 75.16917182 | FY40: 75.16465483 | FZ40: 75.16926918 | GA40: 75.16271209 | GB40: 75.14592713 | GC40: 75.12743798 | GD40: 86.14523184 | GE40: 86.14040141 | GF40: 86.14226689 | GG40: 86.13548854 | GH40: 86.07809526 | GI40: 86.07698001 | GJ40: 1721428.798 | GK40: 1721560.926 | GL40: 1721155.626 | GM40: 1721353.86 | GN40: 1720227.959 | GO40: 1720707.479 | GP40: 721.3184345 | GQ40: 853.4464279 | GR40: 448.1460374 | GS40: 646.3803995 | GT40: -479.5202818 | GU40: 0 | GV40: 1 | GW40: 0 | GX40: 0 | GY40: 0 | GZ40: 0 | HA40: 1 | HB40: 1 | HC40: 1 | HD40: 1 | HE40: 0
A41: 33 | B41: 5.046120562 | C41: 0.4425944263 | D41: 0.4228925507 | E41: 0.5000446908 | F41: 0.0232916615 | G41: 0.06670425184 | H41: 0.2086675457 | I41: 0.6046836593 | J41: 0.1199445432 | K41: 0.1144594082 | L41: 0.4098792744 | M41: 0.8391646234 | N41: -0.1871046354 | O41: -0.3824082397 | P41: 4.3231849 | Q41: -0.597200904 | R41: 5.089544202e-05 | S41: 1.915244433e-05 | T41: 7.765559111e-05 | U41: 9.596010614e-05 | V41: 0.0001349809921 | W41: 0.0002356414239 | X41: 0.0003437151131 | Y41: 0.0006055270182 | Z41: 0.0008761187675 | AA41: 0.001216892009 | AB41: 0.001733757334 | AC41: 0.002364134006 | AD41: 0.003066825801 | AE41: 0.003635988788 | AF41: 0.003047727961 | AG41: 1.736033752e-05 | AH41: 3.497623061e-05 | AI41: 7.029745595e-05 | AJ41: 9.387727981e-05 | AK41: 0.000121704863 | AL41: 0.0002324688426 | AM41: 0.0004279464659 | AN41: 0.00084671861 | AO41: 0.00146826711 | AP41: 0.001939026046 | AQ41: 0.002788600187 | AR41: 0.003713472286 | AS41: 0.004653968002 | AT41: 0.005126713205 | AU41: 0.004230877402 | AV41: 0.5050269119 | AW41: 0.7466068397 | AX41: 0.7024968897 | AY41: 0.6900680703 | AZ41: 0.01367149485 | BA41: 0.05209159005 | BB41: 0.1490257483 | BC41: 0.5443637971 | BD41: 0.4363921798 | BE41: 0.0004496439583 | BF41: 0.02709694562 | BG41: 0.02776342759 | BH41: 0.03092601051 | BI41: 0.05083976091 | BJ41: 0.09365999488 | BK41: 0.9695301353 | BL41: 0.6780524255 | BM41: 2.361868313 | BN41: 0.3530407095 | BO41: 0.5264799455 | BP41: 0.1073423426 | BQ41: 0.2427313507 | BR41: 0.1234463612 | BS41: 0.1730919113 | BT41: 0.2709287147 | BU41: 0.2971467142 | BV41: 0.2588326598 | BW41: 0.08951020641 | BX41: 0.474354658 | BY41: 0.3007784005 | BZ41: 0.1353567352 | CA41: 0.9353435711 | CB41: 0.7123001705 | CC41: 0.01850141817 | CD41: 0.8879169721 | CE41: 0.01060738354 | CF41: 0.8109545868 | CG41: 0.9162062479 | CH41: 0.7128420756 | CI41: 0.0004126523669 | CJ41: 0.02250685705 | CK41: 0.9573543781 | CL41: 0.9573543781 | CM41: 0.9573543781 | CN41: 0.9573543781 | CO41: 0.03379888473 | CP41: 0.01693280628 | CQ41: 0.01693280628 | CR41: 0.01693280628 | CS41: 0.6679946525 | CT41: -0.3868930805 | CU41: 0.0856345041 | CV41: 0.3594205398 | CW41: 0.4286210219 | CX41: 0.6258157415 | CY41: 0.7283823876 | CZ41: 0.3369382979 | DA41: 0.9621547557 | DB41: 0.9318527905 | DC41: 1 | DD41: 0.8088525342 | DE41: 0.7099683384 | DF41: 215.9795776 | DG41: 165.8897985 | DH41: 105.4432624 | DI41: 17.11970369 | DJ41: 363.9436719 | DK41: 631.045296 | DL41: 166.6213753 | DM41: 32.1908785 | DN41: 165.619132 | DO41: 141.3190655 | DP41: 134.0311198 | DQ41: 656.449517 | DR41: 8488.62317 | DS41: 5683.612334 | DT41: 4153.565372 | DU41: 2253.772789 | DV41: 1118.573231 | DW41: 8334.531315 | DX41: 7851.752318 | DY41: 4556.386829 | DZ41: 3246.797374 | EA41: 1422.481006 | EB41: 16934.26794 | EC41: 5472.776727 | ED41: 5390.543195 | EE41: 4510.899447 | EF41: 2042.595218 | EG41: 13887.9493 | EH41: 7118.844693 | EI41: 5696.524449 | EJ41: 3441.617715 | EK41: 897.3787042 | EL41: 0.9802561907 | EM41: 0.01512758555 | EN41: -0.001016016561 | EO41: -1.65415129e-05 | EP41: 0.9216216328 | EQ41: 0.9963640257 | ER41: 0.959745235 | ES41: 0.9640613542 | ET41: 0.1201347323 | EU41: 1 | EV41: 1 | EW41: 1 | EX41: 0.7319256144 | EY41: 1 | EZ41: 742.9664086 | FA41: 482.9442866 | FB41: 687.3604804 | FC41: 474.7791702 | FD41: 523.979346 | FE41: 113.5313513 | FF41: 1151.507018 | FG41: 845.7917101 | FH41: 1148.521818 | FI41: 885.0649906 | FJ41: 702.1779863 | FK41: 649.4545795 | FL41: 1894.473427 | FM41: 1328.735997 | FN41: 1835.882298 | FO41: 1359.844161 | FP41: 1226.157332 | FQ41: 762.9859308 | FR41: 9.701236692 | FS41: 9.700651605 | FT41: 9.700953886 | FU41: 9.70033313 | FV41: 9.68814198 | FW41: 9.686908579 | FX41: 75.20492045 | FY41: 75.20038859 | FZ41: 75.20449293 | GA41: 75.20042355 | GB41: 75.18889609 | GC41: 75.17899159 | GD41: 84.90615715 | GE41: 84.90104019 | GF41: 84.90544681 | GG41: 84.90075668 | GH41: 84.87703807 | GI41: 84.86590017 | GJ41: 1696228.67 | GK41: 1696692.068 | GL41: 1696273.054 | GM41: 1696655.289 | GN41: 1696314.604 | GO41: 1696555.017 | GP41: -326.3478747 | GQ41: 137.0504918 | GR41: -281.9633983 | GS41: 100.2719924 | GT41: -240.4133015 | GU41: 0 | GV41: 1 | GW41: 0 | GX41: 0 | GY41: 0 | GZ41: 0 | HA41: 0 | HB41: 1 | HC41: 0 | HD41: 1 | HE41: 0
A42: 34 | B42: 2.562553483 | C42: 0.4156391654 | D42: 0.4342527145 | E42: 0.4888855375 | F42: 0.0485412083 | G42: 0.08824294272 | H42: 0.2430801476 | I42: 0.5462260384 | J42: 0.1224508712 | K42: 0.09086959245 | L42: 0.4147802774 | M42: 1.449468795 | N42: -0.009246388252 | O42: -0.1900205848 | P42: 4.261207245 | Q42: -0.5288010429 | R42: 2.689574537e-05 | S42: 1.658657341e-05 | T42: 4.842132073e-05 | U42: 0.0001019074937 | V42: 0.0001168898728 | W42: 0.0002110483319 | X42: 0.0003994260242 | Y42: 0.0006649910229 | Z42: 0.0009045064195 | AA42: 0.001109768711 | AB42: 0.001752736396 | AC42: 0.002349869135 | AD42: 0.003008703497 | AE42: 0.003616315713 | AF42: 0.003153959645 | AG42: 1.750517551e-05 | AH42: 1.266042828e-05 | AI42: 6.354702173e-05 | AJ42: 0.0001070132364 | AK42: 0.0001184667421 | AL42: 0.0002077976018 | AM42: 0.0003936206574 | AN42: 0.0008801577192 | AO42: 0.001613149327 | AP42: 0.001861880207 | AQ42: 0.002834636446 | AR42: 0.003666474711 | AS42: 0.004624237453 | AT42: 0.004911087761 | AU42: 0.004602525251 | AV42: 0.4927688779 | AW42: 0.7512475383 | AX42: 0.6959873677 | AY42: 0.6845920109 | AZ42: 0.01450293259 | BA42: 0.05208786788 | BB42: 0.1480313642 | BC42: 0.5420949467 | BD42: 0.9445736918 | BE42: 0.0002465324873 | BF42: 0.02566180265 | BG42: 0.0267255077 | BH42: 0.02976249899 | BI42: 0.04883893766 | BJ42: 0.09097607537 | BK42: 0.9866531964 | BL42: 0.6753117929 | BM42: 2.209496792 | BN42: 0.5163266243 | BO42: 0.6349742094 | BP42: 0.05540397111 | BQ42: 0.1783512945 | BR42: 0.131270525 | BS42: 0.1789159892 | BT42: 0.2665175249 | BU42: 0.2991185903 | BV42: 0.2554478956 | BW42: 0.1773884422 | BX42: 0.5493780208 | BY42: 0.2184137611 | BZ42: 0.05481977587 | CA42: 0.9183358242 | CB42: 0.7500638045 | CC42: 0.000718899831 | CD42: 0.9234962379 | CE42: 0.003431691331 | CF42: 0.8040617611 | CG42: 0.9113901284 | CH42: 0.738263122 | CI42: 0.01251865702 | CJ42: 0.002430907921 | CK42: 0.9506463066 | CL42: 0.9506463066 | CM42: 0.9506463066 | CN42: 0.9506463066 | CO42: 0.08536641118 | CP42: 0.004315689947 | CQ42: 0.004315689947 | CR42: 0.004315689947 | CS42: 0.6682590239 | CT42: -0.6152810842 | CU42: 0.2295199517 | CV42: -0.1184282958 | CW42: 0.3702710669 | CX42: 0.6655368469 | CY42: 0.6580040125 | CZ42: 0.6095235151 | DA42: 0.853425737 | DB42: 0.8382887072 | DC42: 1 | DD42: 0.7920015343 | DE42: 0.6829901618 | DF42: 206.4321311 | DG42: 305.743105 | DH42: 136.4703484 | DI42: 29.30173959 | DJ42: 292.1996187 | DK42: 571.1986689 | DL42: 129.2745344 | DM42: 53.8789411 | DN42: 190.9206025 | DO42: 170.3023477 | DP42: 145.3459537 | DQ42: 548.3716028 | DR42: 7734.100819 | DS42: 4020.183079 | DT42: 6050.990285 | DU42: 3054.174838 | DV42: 1652.347039 | DW42: 7830.823394 | DX42: 7007.023255 | DY42: 5105.024559 | DZ42: 3797.217016 | EA42: 1609.359745 | EB42: 13891.82007 | EC42: 9825.671331 | ED42: 6006.392716 | EE42: 3994.189757 | EF42: 1133.318133 | EG42: 14737.67042 | EH42: 9712.358264 | EI42: 5688.698287 | EJ42: 4286.103679 | EK42: 770.2708572 | EL42: 0.967478551 | EM42: 0.01986397775 | EN42: -0.0003628856688 | EO42: -2.612736443e-05 | EP42: 1.131581902 | EQ42: 1.069022054 | ER42: 0.9845987717 | ES42: 0.9745983287 | ET42: 0.4158876934 | EU42: 1 | EV42: 1 | EW42: 1 | EX42: 0.8336934794 | EY42: 1 | EZ42: 645.5613531 | FA42: 499.7691633 | FB42: 758.6168753 | FC42: 640.3147734 | FD42: 753.6846404 | FE42: 138.6839137 | FF42: 583.6693238 | FG42: 498.0258626 | FH42: 588.2828142 | FI42: 509.2033522 | FJ42: 466.5979227 | FK42: 384.7963666 | FL42: 1229.230677 | FM42: 997.7950259 | FN42: 1346.89969 | FO42: 1149.518126 | FP42: 1220.282563 | FQ42: 523.4802803 | FR42: 9.717582294 | FS42: 9.714065755 | FT42: 9.717698583 | FU42: 9.714324475 | FV42: 9.731564398 | FW42: 9.699963142 | FX42: 37.0532849 | FY42: 37.05261205 | FZ42: 37.05324979 | GA42: 37.0525077 | GB42: 37.05208028 | GC42: 37.04255961 | GD42: 46.7708672 | GE42: 46.76667781 | GF42: 46.77094838 | GG42: 46.76683217 | GH42: 46.78364468 | GI42: 46.74252275 | GJ42: 934188.1133 | GK42: 934335.7611 | GL42: 934072.0678 | GM42: 934187.1253 | GN42: 934452.6111 | GO42: 934326.9748 | GP42: -138.8615466 | GQ42: 8.786333784 | GR42: -254.9069888 | GS42: -139.8494808 | GT42: 125.6363037 | GU42: 0 | GV42: 0 | GW42: 0 | GX42: 0 | GY42: 1 | GZ42: 0 | HA42: 0 | HB42: 1 | HC42: 0 | HD42: 0 | HE42: 1
A43: 35 | B43: 8.265566264 | C43: 0.466876473 | D43: 0.4583158603 | E43: 0.5534494582 | F43: 0.04191608591 | G43: 0.1503258758 | H43: 0.2982892922 | I43: 0.4759585936 | J43: 0.07542623827 | K43: 0.1391237479 | L43: 0.5850656242 | M43: 0.7982244903 | N43: -0.1700378271 | O43: -0.3588350595 | P43: 4.333346684 | Q43: -0.4993195655 | R43: 4.371457605e-05 | S43: 2.127222539e-05 | T43: 7.71789453e-05 | U43: 0.0001001560612 | V43: 0.0001059810867 | W43: 0.0002447991865 | X43: 0.0003491726051 | Y43: 0.0006054710352 | Z43: 0.0008692147948 | AA43: 0.001222013457 | AB43: 0.001789762752 | AC43: 0.002402226469 | AD43: 0.003146412185 | AE43: 0.003325323756 | AF43: 0.002994860921 | AG43: 1.680384426e-05 | AH43: 1.187187869e-05 | AI43: 9.392292885e-05 | AJ43: 0.0001049821707 | AK43: 0.0001076913758 | AL43: 0.0002388123378 | AM43: 0.0004615998252 | AN43: 0.0008504071483 | AO43: 0.001469607926 | AP43: 0.00202009223 | AQ43: 0.00292280025 | AR43: 0.00368964866 | AS43: 0.00439678474 | AT43: 0.005013253355 | AU43: 0.004359496752 | AV43: 0.4940230227 | AW43: 0.7451181566 | AX43: 0.6950266029 | AY43: 0.6858296119 | AZ43: 0.01307188413 | BA43: 0.05210626285 | BB43: 0.1480575847 | BC43: 0.5401563166 | BD43: 1.295586133 | BE43: 0.001462516555 | BF43: 0.02901326877 | BG43: 0.02840330026 | BH43: 0.03107734815 | BI43: 0.04873447044 | BJ43: 0.0919703312 | BK43: 0.973077866 | BL43: 0.680114766 | BM43: 1.824269964 | BN43: 0.3484587583 | BO43: 0.6196851004 | BP43: 0.1746095184 | BQ43: 0.1536302259 | BR43: 0.05207515525 | BS43: 0.1753321567 | BT43: 0.271323139 | BU43: 0.2948883953 | BV43: 0.258456309 | BW43: 0.158983295 | BX43: 0.4308659759 | BY43: 0.2316571788 | BZ43: 0.1784935503 | CA43: 0.9204775227 | CB43: 0.7230388943 | CC43: 0.0005028867974 | CD43: 0.9919649287 | CE43: 0.001691375672 | CF43: 0.8265443201 | CG43: 0.945275282 | CH43: 0.8863145319 | CI43: 7.59934599e-05 | CJ43: 0.04378967764 | CK43: 0.9419929027 | CL43: 0.9419929027 | CM43: 0.9419929027 | CN43: 0.9419929027 | CO43: 0.002663371495 | CP43: 0.01766371417 | CQ43: 0.01766371417 | CR43: 0.01766371417 | CS43: 0.6909419964 | CT43: -0.2147054868 | CU43: 0.1251306804 | CV43: 0.9442591276 | CW43: 0.4762963675 | CX43: 0.6093492061 | CY43: 0.9697046498 | CZ43: 0.3393651326 | DA43: 0.8495714651 | DB43: 0.992071031 | DC43: 1 | DD43: 0.7520901416 | DE43: 0.688987604 | DF43: 184.241329 | DG43: 217.5239631 | DH43: 102.2187421 | DI43: 25.58867296 | DJ43: 312.0332965 | DK43: 821.4241516 | DL43: 119.1864136 | DM43: 38.25214578 | DN43: 188.6785546 | DO43: 159.8125393 | DP43: 125.1827515 | DQ43: 708.6150741 | DR43: 9236.820532 | DS43: 6708.017546 | DT43: 3123.41081 | DU43: 2805.822993 | DV43: 1232.597307 | DW43: 8620.41879 | DX43: 7751.091379 | DY43: 6543.446097 | DZ43: 3091.228407 | EA43: 851.5195122 | EB43: 13909.3835 | EC43: 8388.801859 | ED43: 7319.244502 | EE43: 4537.211426 | EF43: 1859.182671 | EG43: 10295.36281 | EH43: 7405.583612 | EI43: 3480.446603 | EJ43: 5414.844075 | EK43: 852.4662174 | EL43: 0.9565556705 | EM43: 0.02456499279 | EN43: -0.0003183583595 | EO43: -3.006232191e-05 | EP43: 1.018943445 | EQ43: 0.9345631077 | ER43: 0.9300455122 | ES43: 1.033030656 | ET43: 0.5478068891 | EU43: 1 | EV43: 1 | EW43: 1 | EX43: 0.8340223277 | EY43: 1 | EZ43: 1005.728952 | FA43: 614.9839669 | FB43: 729.8900217 | FC43: 592.6280293 | FD43: 593.8687597 | FE43: 159.6272832 | FF43: 2880.989959 | FG43: 2041.902481 | FH43: 2262.553105 | FI43: 1949.802178 | FJ43: 1473.455434 | FK43: 1284.662486 | FL43: 3886.71891 | FM43: 2656.886448 | FN43: 2992.443127 | FO43: 2542.430207 | FP43: 2067.324194 | FQ43: 1444.28977 | FR43: 9.243085045 | FS43: 9.240977852 | FT43: 9.243057215 | FU43: 9.241785307 | FV43: 9.216183971 | FW43: 9.195816462 | FX43: 112.8870938 | FY43: 112.8725727 | FZ43: 112.8797854 | GA43: 112.8734164 | GB43: 112.8043151 | GC43: 112.7662303 | GD43: 122.1301788 | GE43: 122.1135506 | GF43: 122.1228426 | GG43: 122.1152017 | GH43: 122.0204991 | GI43: 121.9620468 | GJ43: 2438716.858 | GK43: 2439614.125 | GL43: 2439464.409 | GM43: 2439761.603 | GN43: 2438342.658 | GO43: 2437796.646 | GP43: 920.211605 | GQ43: 1817.478513 | GR43: 1667.763025 | GS43: 1964.957395 | GT43: 546.0119193 | GU43: 0 | GV43: 0 | GW43: 0 | GX43: 1 | GY43: 0 | GZ43: 0 | HA43: 1 | HB43: 1 | HC43: 1 | HD43: 1 | HE43: 1
A44: 36 | B44: 4.442878064 | C44: 0.4265968014 | D44: 0.4504918723 | E44: 0.5164475457 | F44: 0.03657445195 | G44: 0.1039278213 | H44: 0.2252672665 | I44: 0.5999057579 | J44: 0.07089915424 | K44: 0.2100707793 | L44: 0.8262942801 | M44: 1.331134367 | N44: -0.2304379949 | O44: -0.3535758677 | P44: 4.362025498 | Q44: -0.6041344581 | R44: 2.455554243e-05 | S44: 1.564291952e-05 | T44: 7.326462204e-05 | U44: 8.893586829e-05 | V44: 9.629661003e-05 | W44: 0.0001881877771 | X44: 0.0003698629644 | Y44: 0.0006067405212 | Z44: 0.0009302253934 | AA44: 0.001212434057 | AB44: 0.001736230731 | AC44: 0.00236895641 | AD44: 0.003053139059 | AE44: 0.00356185325 | AF44: 0.003204859187 | AG44: 2.535393628e-05 | AH44: 4.168352466e-05 | AI44: 6.608283887e-05 | AJ44: 8.969228727e-05 | AK44: 0.0001345313906 | AL44: 0.0002108102867 | AM44: 0.0004241809168 | AN44: 0.0008626141271 | AO44: 0.001481742972 | AP44: 0.002070557627 | AQ44: 0.002872184469 | AR44: 0.003552668433 | AS44: 0.004628127574 | AT44: 0.005220529155 | AU44: 0.004463784148 | AV44: 0.5015382447 | AW44: 0.7510184868 | AX44: 0.6978147413 | AY44: 0.6802773556 | AZ44: 0.01342980713 | BA44: 0.05280419773 | BB44: 0.150060285 | BC44: 0.5410134558 | BD44: 0.881525179 | BE44: 0.006138808636 | BF44: 0.02641878512 | BG44: 0.02637495251 | BH44: 0.03252942029 | BI44: 0.04939069251 | BJ44: 0.0933178702 | BK44: 0.9798355873 | BL44: 0.5583927895 | BM44: 2.758381369 | BN44: 0.4556378425 | BO44: 0.6529004852 | BP44: 0.1699555188 | BQ44: 0.08069149076 | BR44: 0.09645250521 | BS44: 0.1779325915 | BT44: 0.2696429409 | BU44: 0.2958095895 | BV44: 0.2566148781 | BW44: 0.1302081845 | BX44: 0.4898979955 | BY44: 0.2792157322 | BZ44: 0.1006780878 | CA44: 0.9058665798 | CB44: 0.6893948976 | CC44: 0.004153059022 | CD44: 0.8218398621 | CE44: 0.0005287137323 | CF44: 0.8295037877 | CG44: 0.8890492891 | CH44: 0.733046755 | CI44: 0.005649584991 | CJ44: 0.01692649127 | CK44: 0.944320193 | CL44: 0.944320193 | CM44: 0.944320193 | CN44: 0.944320193 | CO44: 0.08919778333 | CP44: 0.02690370453 | CQ44: 0.02690370453 | CR44: 0.02690370453 | CS44: 0.6236365251 | CT44: -2.454717009 | CU44: 0.02650473831 | CV44: -0.3899263462 | CW44: 0.04893779207 | CX44: 0.8839937093 | CY44: 0.3645568162 | CZ44: 0.3585983167 | DA44: 0.7894795769 | DB44: 0.8434973081 | DC44: 1 | DD44: 0.7426820234 | DE44: 0.6967116085 | DF44: 239.4167136 | DG44: 207.3599442 | DH44: 142.6662689 | DI44: 28.9515174 | DJ44: 388.1934085 | DK44: 589.0915027 | DL44: 129.2521231 | DM44: 39.60486993 | DN44: 205.5073842 | DO44: 156.3786371 | DP44: 142.484537 | DQ44: 601.3893026 | DR44: 7070.124505 | DS44: 8714.237961 | DT44: 4487.02457 | DU44: 2755.53146 | DV44: 1391.789379 | DW44: 10733.40249 | DX44: 6271.734577 | DY44: 5522.677015 | DZ44: 3686.411659 | EA44: 1717.842723 | EB44: 10632.08895 | EC44: 10362.34376 | ED44: 5987.446144 | EE44: 4593.601767 | EF44: 1396.420148 | EG44: 16141.1004 | EH44: 7329.666674 | EI44: 8356.866179 | EJ44: 4511.974565 | EK44: 999.4558262 | EL44: 0.9661215431 | EM44: 0.0258504804 | EN44: -0.0008923846536 | EO44: -2.990219332e-05 | EP44: 0.964190736 | EQ44: 1.021383493 | ER44: 0.9431054539 | ES44: 0.9209450904 | ET44: 0.1605869395 | EU44: 1 | EV44: 1 | EW44: 1 | EX44: 0.83655109 | EY44: 1 | EZ44: 511.4648509 | FA44: 448.2303245 | FB44: 461.3498525 | FC44: 434.2060836 | FD44: 504.3737954 | FE44: 119.1408362 | FF44: 710.274972 | FG44: 681.2185998 | FH44: 704.1793252 | FI44: 682.8400714 | FJ44: 676.8346976 | FK44: 625.0102096 | FL44: 1221.739823 | FM44: 1129.448924 | FN44: 1165.529178 | FO44: 1117.046155 | FP44: 1181.208493 | FQ44: 744.1510458 | FR44: 8.763739629 | FS44: 8.76431789 | FT44: 8.76376472 | FU44: 8.76399587 | FV44: 8.762146333 | FW44: 8.760112695 | FX44: 64.74998625 | FY44: 64.74968566 | FZ44: 64.74981957 | GA44: 64.74936229 | GB44: 64.75012955 | GC44: 64.74331481 | GD44: 73.51372588 | GE44: 73.51400355 | GF44: 73.51358429 | GG44: 73.51335816 | GH44: 73.51227589 | GI44: 73.5034275 | GJ44: 1469052.778 | GK44: 1469150.622 | GL44: 1469106.157 | GM44: 1469150.117 | GN44: 1469064.309 | GO44: 1469324.399 | GP44: -271.6211891 | GQ44: -173.776869 | GR44: -218.2422677 | GS44: -174.2818395 | GT44: -260.0897257 | GU44: 0 | GV44: 0 | GW44: 0 | GX44: 0 | GY44: 0 | GZ44: 1 | HA44: 0 | HB44: 0 | HC44: 0 | HD44: 0 | HE44: 0
A45: 37 | B45: 5.129284677 | C45: 0.42501591 | D45: 0.4122693399 | E45: 0.5187934593 | F45: 0.04594528762 | G45: 0.1415547331 | H45: 0.2227393186 | I45: 0.4080216226 | J45: 0.2276843257 | K45: 0.1709374517 | L45: 0.6258507385 | M45: 0.9125718673 | N45: -0.1332204489 | O45: -0.2075354729 | P45: 4.273897403 | Q45: -0.567654621 | R45: 2.778716305e-05 | S45: 1.46199656e-05 | T45: 6.390820223e-05 | U45: 0.0001240656837 | V45: 0.0001054111538 | W45: 0.0002575515602 | X45: 0.0003599012272 | Y45: 0.0005875106013 | Z45: 0.0009007811694 | AA45: 0.001196838719 | AB45: 0.001768795131 | AC45: 0.002329625949 | AD45: 0.003200917803 | AE45: 0.003525463796 | AF45: 0.00304413954 | AG45: 3.480515602e-05 | AH45: 3.488684895e-05 | AI45: 5.415190346e-05 | AJ45: 0.0001070636229 | AK45: 0.0001210888123 | AL45: 0.0002457465592 | AM45: 0.0004530594192 | AN45: 0.0007888841866 | AO45: 0.001563972862 | AP45: 0.001954875089 | AQ45: 0.002580605013 | AR45: 0.003874228803 | AS45: 0.004454562369 | AT45: 0.004970031211 | AU45: 0.004684763636 | AV45: 0.4913426763 | AW45: 0.7429797905 | AX45: 0.6984429038 | AY45: 0.6929821952 | AZ45: 0.01370497468 | BA45: 0.05218120062 | BB45: 0.1472452872 | BC45: 0.5325727895 | BD45: 0.8538827217 | BE45: 0.0009418142888 | BF45: 0.02557164016 | BG45: 0.03067765671 | BH45: 0.03259408089 | BI45: 0.04812418031 | BJ45: 0.09646493016 | BK45: 0.9751974812 | BL45: 0.6793342153 | BM45: 2.214703483 | BN45: 0.4169089532 | BO45: 0.6367771055 | BP45: 0.1333215728 | BQ45: 0.1679276142 | BR45: 0.06197370758 | BS45: 0.1778410142 | BT45: 0.2668659122 | BU45: 0.2956037222 | BV45: 0.2596893514 | BW45: 0.2178694826 | BX45: 0.5544102201 | BY45: 0.1288553107 | BZ45: 0.09886498658 | CA45: 0.954122106 | CB45: 0.75014315 | CC45: 0.0001351938624 | CD45: 0.8829195198 | CE45: 0.0001295338802 | CF45: 0.8362716858 | CG45: 0.9613600239 | CH45: 0.9312268136 | CI45: 0.0003872148607 | CJ45: 0.04129083255 | CK45: 0.9189505662 | CL45: 0.9189505662 | CM45: 0.9189505662 | CN45: 0.9189505662 | CO45: 0.1358649936 | CP45: 0.03045492114 | CQ45: 0.03045492114 | CR45: 0.03045492114 | CS45: 0.6687118128 | CT45: 2.274350583 | CU45: 0.02005852009 | CV45: -1.183772705 | CW45: 0.9841526038 | CX45: 0.2222141591 | CY45: 0.7506750963 | CZ45: 0.3979048199 | DA45: 0.9112560004 | DB45: 0.9113627729 | DC45: 1 | DD45: 0.7796733227 | DE45: 0.6943670352 | DF45: 222.5563008 | DG45: 184.9869378 | DH45: 83.68017976 | DI45: 20.95662617 | DJ45: 340.2168312 | DK45: 825.5085742 | DL45: 146.2274159 | DM45: 37.58253068 | DN45: 208.0273567 | DO45: 149.8393693 | DP45: 115.1525798 | DQ45: 704.0401563 | DR45: 6715.133303 | DS45: 5334.586778 | DT45: 5065.092923 | DU45: 2237.431195 | DV45: 1262.945882 | DW45: 8757.351215 | DX45: 6113.056437 | DY45: 5666.34034 | DZ45: 4080.864321 | EA45: 1417.82687 | EB45: 17654.63273 | EC45: 8762.362785 | ED45: 8559.069662 | EE45: 4425.20291 | EF45: 1317.597555 | EG45: 13263.56583 | EH45: 7368.103852 | EI45: 5962.531027 | EJ45: 4442.152947 | EK45: 845.8810336 | EL45: 0.9480653019 | EM45: 0.01827028796 | EN45: -0.0004504570115 | EO45: -3.509023414e-05 | EP45: 0.9681735197 | EQ45: 1.050215989 | ER45: 1.021731946 | ES45: 0.990948855 | ET45: 0.1033853505 | EU45: 1 | EV45: 1 | EW45: 1 | EX45: 0.7144545403 | EY45: 1 | EZ45: 976.174308 | FA45: 615.9125591 | FB45: 584.1288799 | FC45: 497.9656985 | FD45: 689.992624 | FE45: 143.4390069 | FF45: 1739.115265 | FG45: 1179.863725 | FH45: 1214.813296 | FI45: 1069.695143 | FJ45: 881.1910455 | FK45: 749.9452954 | FL45: 2715.289573 | FM45: 1795.776285 | FN45: 1798.942176 | FO45: 1567.660841 | FP45: 1571.183669 | FQ45: 893.3843023 | FR45: 8.675335101 | FS45: 8.674015594 | FT45: 8.674369183 | FU45: 8.673110881 | FV45: 8.663521136 | FW45: 8.656493264 | FX45: 66.41061375 | FY45: 66.40529105 | FZ45: 66.40601604 | GA45: 66.40331954 | GB45: 66.39187406 | GC45: 66.37877724 | GD45: 75.08594885 | GE45: 75.07930664 | GF45: 75.08038523 | GG45: 75.07643042 | GH45: 75.05539519 | GI45: 75.03527051 | GJ45: 1499003.688 | GK45: 1499790.357 | GL45: 1499808.762 | GM45: 1499960.948 | GN45: 1499536.72 | GO45: 1499812.026 | GP45: -808.338352 | GQ45: -21.66935814 | GR45: -3.263494268 | GS45: 148.9217479 | GT45: -275.3056557 | GU45: 0 | GV45: 0 | GW45: 0 | GX45: 1 | GY45: 0 | GZ45: 0 | HA45: 0 | HB45: 0 | HC45: 0 | HD45: 1 | HE45: 0
A46: 38 | B46: 3.831621099 | C46: 0.3943023658 | D46: 0.4321518911 | E46: 0.5422684911 | F46: 0.0910675674 | G46: 0.2382170818 | H46: 0.3077767463 | I46: 0.3578952013 | J46: 0.0961109706 | K46: 0.02530515967 | L46: 0.2280517918 | M46: 0.876057011 | N46: -0.1768277972 | O46: -0.1548959645 | P46: 4.369892162 | Q46: -0.5999260106 | R46: 1.259883419e-05 | S46: 2.439356606e-05 | T46: 6.268928374e-05 | U46: 9.2608192e-05 | V46: 0.0001711388135 | W46: 0.0002300072748 | X46: 0.0003496201893 | Y46: 0.0005996801587 | Z46: 0.000886201665 | AA46: 0.001224381378 | AB46: 0.001731386591 | AC46: 0.002424158979 | AD46: 0.003051982809 | AE46: 0.003649119371 | AF46: 0.003114063295 | AG46: 1.69932258e-05 | AH46: 3.828436497e-05 | AI46: 6.251318899e-05 | AJ46: 7.592476907e-05 | AK46: 0.000114343391 | AL46: 0.0001822534008 | AM46: 0.0003998771208 | AN46: 0.0009161424584 | AO46: 0.001489085713 | AP46: 0.001933977215 | AQ46: 0.002763025229 | AR46: 0.003962704163 | AS46: 0.004337983494 | AT46: 0.005183812752 | AU46: 0.004632751651 | AV46: 0.4935827292 | AW46: 0.7496948582 | AX46: 0.6950304249 | AY46: 0.6872038308 | AZ46: 0.01536095755 | BA46: 0.05203555867 | BB46: 0.1484148178 | BC46: 0.5471585443 | BD46: 0.5659724275 | BE46: 0.001015248591 | BF46: 0.03108727561 | BG46: 0.02721528705 | BH46: 0.03223638197 | BI46: 0.04553248186 | BJ46: 0.08817441679 | BK46: 0.9620762575 | BL46: 0.6823801104 | BM46: 2.312720345 | BN46: 0.4228496017 | BO46: 0.6616057373 | BP46: 0.09240101644 | BQ46: 0.143194426 | BR46: 0.1027988203 | BS46: 0.1784814804 | BT46: 0.2695308311 | BU46: 0.2938277906 | BV46: 0.2581598979 | BW46: 0.09956143728 | BX46: 0.5611298767 | BY46: 0.2066998818 | BZ46: 0.1326088041 | CA46: 0.9948533753 | CB46: 0.8543773703 | CC46: 0.0004539492692 | CD46: 0.908654274 | CE46: 0.0002047424602 | CF46: 0.8233536761 | CG46: 0.8474856001 | CH46: 0.6291207183 | CI46: 0.0167196975 | CJ46: 0.06987768433 | CK46: 0.9860985118 | CL46: 0.9860985118 | CM46: 0.9860985118 | CN46: 0.9860985118 | CO46: 0.03447263718 | CP46: 0.05317751429 | CQ46: 0.05317751429 | CR46: 0.05317751429 | CS46: 0.6421922682 | CT46: -0.5148672768 | CU46: 0.2191318741 | CV46: -0.4061137407 | CW46: 0.3783513616 | CX46: 0.6247319856 | CY46: 0.4413796186 | CZ46: 0.4881183922 | DA46: 0.9265293186 | DB46: 0.9775967055 | DC46: 1 | DD46: 0.7839517384 | DE46: 0.7034818306 | DF46: 250.3698549 | DG46: 144.3985156 | DH46: 87.28101135 | DI46: 32.57036514 | DJ46: 350.1803259 | DK46: 833.8095149 | DL46: 59.96233578 | DM46: 44.84349543 | DN46: 135.567989 | DO46: 139.6639782 | DP46: 139.5764098 | DQ46: 498.5944246 | DR46: 7149.200013 | DS46: 7363.947277 | DT46: 3249.169542 | DU46: 2677.099466 | DV46: 1488.054885 | DW46: 10519.49619 | DX46: 6754.667987 | DY46: 6128.140225 | DZ46: 3555.658886 | EA46: 1768.24538 | EB46: 17707.94619 | EC46: 11661.57465 | ED46: 8060.191612 | EE46: 4711.104753 | EF46: 916.7810048 | EG46: 17969.47894 | EH46: 9781.696473 | EI46: 7155.532375 | EJ46: 4491.456047 | EK46: 898.5868499 | EL46: 0.9521867643 | EM46: 0.01961078522 | EN46: -0.0002323724176 | EO46: -4.319832625e-05 | EP46: 1.049261695 | EQ46: 1.000893686 | ER46: 1.012705361 | ES46: 0.9984250823 | ET46: 0.5044847466 | EU46: 1 | EV46: 1 | EW46: 1 | EX46: 0.8326337413 | EY46: 1 | EZ46: 709.4793276 | FA46: 637.2402784 | FB46: 749.769886 | FC46: 616.5509246 | FD46: 917.3030142 | FE46: 270.8728568 | FF46: 1059.589007 | FG46: 1012.402427 | FH46: 1125.216694 | FI46: 1028.156995 | FJ46: 1016.117773 | FK46: 864.4565091 | FL46: 1769.068335 | FM46: 1649.642706 | FN46: 1874.98658 | FO46: 1644.70792 | FP46: 1933.420787 | FQ46: 1135.329366 | FR46: 8.542689191 | FS46: 8.540794358 | FT46: 8.541461063 | FU46: 8.537534559 | FV46: 8.551995059 | FW46: 8.514478546 | FX46: 49.31362156 | FY46: 49.31223693 | FZ46: 49.30961497 | GA46: 49.30670721 | GB46: 49.31628159 | GC46: 49.27653515 | GD46: 57.85631075 | GE46: 57.85303129 | GF46: 57.85107604 | GG46: 57.84424177 | GH46: 57.86827665 | GI46: 57.7910137 | GJ46: 1155357.147 | GK46: 1155410.983 | GL46: 1155146.534 | GM46: 1155240.127 | GN46: 1155432.112 | GO46: 1154684.945 | GP46: 672.2020901 | GQ46: 726.0384669 | GR46: 461.5895878 | GS46: 555.1827946 | GT46: 747.1675748 | GU46: 0 | GV46: 0 | GW46: 0 | GX46: 0 | GY46: 1 | GZ46: 0 | HA46: 1 | HB46: 1 | HC46: 1 | HD46: 1 | HE46: 1
A47: 39 | B47: 4.341850878 | C47: 0.4351697549 | D47: 0.4391348517 | E47: 0.5344857541 | F47: 0.02306643259 | G47: 0.06881480303 | H47: 0.3181272043 | I47: 0.5200218069 | J47: 0.09303618585 | K47: 0.1095330008 | L47: 0.5732158269 | M47: 0.7008742717 | N47: -0.06665245077 | O47: -0.183520031 | P47: 4.316389924 | Q47: -0.6436360336 | R47: 1.356514875e-05 | S47: 2.366002671e-05 | T47: 5.107588323e-05 | U47: 9.962413895e-05 | V47: 0.0001254315178 | W47: 0.0001948667678 | X47: 0.0003642400759 | Y47: 0.0006063635831 | Z47: 0.0008476690533 | AA47: 0.001177269927 | AB47: 0.001719155973 | AC47: 0.00235656263 | AD47: 0.003012427692 | AE47: 0.003417305943 | AF47: 0.003135379691 | AG47: 2.469601223e-05 | AH47: 1.595476637e-05 | AI47: 4.815194707e-05 | AJ47: 8.672606951e-05 | AK47: 0.0001106687095 | AL47: 0.0002558862341 | AM47: 0.0004452576932 | AN47: 0.0007480298964 | AO47: 0.001490360963 | AP47: 0.001941507651 | AQ47: 0.002757154934 | AR47: 0.003668105775 | AS47: 0.004434553568 | AT47: 0.004976661744 | AU47: 0.004490175312 | AV47: 0.4979764794 | AW47: 0.745649207 | AX47: 0.7034317518 | AY47: 0.6832972246 | AZ47: 0.014626003 | BA47: 0.05201874525 | BB47: 0.1468608533 | BC47: 0.5445746524 | BD47: 0.7957445781 | BE47: 0.02183226565 | BF47: 0.0277131226 | BG47: 0.02872507708 | BH47: 0.02918978927 | BI47: 0.04838771232 | BJ47: 0.09360944849 | BK47: 0.988012258 | BL47: 0.5947135259 | BM47: 1.581711827 | BN47: 0.4985876528 | BO47: 0.5958209891 | BP47: 0.1759560275 | BQ47: 0.1630201109 | BR47: 0.06520287251 | BS47: 0.1743592515 | BT47: 0.2682232032 | BU47: 0.2954786716 | BV47: 0.2619388737 | BW47: 0.1615451449 | BX47: 0.5694630492 | BY47: 0.1852083264 | BZ47: 0.08378347953 | CA47: 0.8947144818 | CB47: 0.7576847719 | CC47: 0.0006800299207 | CD47: 0.949496557 | CE47: 0.00111104195 | CF47: 0.8308014825 | CG47: 0.9565403559 | CH47: 0.960735745 | CI47: 0.02821251083 | CJ47: 0.08321773777 | CK47: 0.9294024731 | CL47: 0.9294024731 | CM47: 0.9294024731 | CN47: 0.9294024731 | CO47: 0.02223404452 | CP47: 0.0479851145 | CQ47: 0.0479851145 | CR47: 0.0479851145 | CS47: 0.6508663343 | CT47: -1.637389996 | CU47: 0.01175643352 | CV47: 0.095118815 | CW47: 0.1742596003 | CX47: 0.8485546098 | CY47: 0.1262037503 | CZ47: 0.6805030869 | DA47: 0.9444129865 | DB47: 0.9841479163 | DC47: 1 | DD47: 0.7747338417 | DE47: 0.7327295168 | DF47: 182.3945752 | DG47: 215.4707032 | DH47: 116.5475775 | DI47: 25.20774074 | DJ47: 394.0878593 | DK47: 571.7640053 | DL47: 112.0811266 | DM47: 60.6970293 | DN47: 136.6335801 | DO47: 167.9187407 | DP47: 128.1555567 | DQ47: 705.1287801 | DR47: 6011.331759 | DS47: 5099.548712 | DT47: 5004.077968 | DU47: 3779.437907 | DV47: 1419.885718 | DW47: 7855.399984 | DX47: 4497.699313 | DY47: 5185.090578 | DZ47: 3481.171425 | EA47: 1397.261125 | EB47: 16889.62755 | EC47: 7962.265266 | ED47: 7853.469223 | EE47: 4936.586263 | EF47: 1059.777392 | EG47: 10244.66634 | EH47: 9680.171334 | EI47: 7382.167389 | EJ47: 4384.364968 | EK47: 1069.663325 | EL47: 0.9571797053 | EM47: 0.02019721218 | EN47: -0.0001588938094 | EO47: -5.83011978e-06 | EP47: 0.9092874831 | EQ47: 0.9969079461 | ER47: 1.005040079 | ES47: 1.047165608 | ET47: 0.3065076883 | EU47: 1 | EV47: 1 | EW47: 1 | EX47: 0.7647381651 | EY47: 1 | EZ47: 342.2262776 | FA47: 328.2271637 | FB47: 341.9112462 | FC47: 343.3612802 | FD47: 883.596611 | FE47: 100.0117012 | FF47: 600.723817 | FG47: 581.4362104 | FH47: 581.6429007 | FI47: 577.8116579 | FJ47: 698.1983488 | FK47: 551.4047885 | FL47: 942.9500946 | FM47: 909.6633741 | FN47: 923.5541469 | FO47: 921.1729381 | FP47: 1581.79496 | FQ47: 651.4164897 | FR47: 10.85510392 | FS47: 10.85911873 | FT47: 10.85951094 | FU47: 10.86003182 | FV47: 10.8578875 | FW47: 10.85970909 | FX47: 69.16745262 | FY47: 69.16720298 | FZ47: 69.16734424 | GA47: 69.1672166 | GB47: 69.17722802 | GC47: 69.16514284 | GD47: 80.02255654 | GE47: 80.0263217 | GF47: 80.02685518 | GG47: 80.02724843 | GH47: 80.03511552 | GI47: 80.02485194 | GJ47: 1599508.181 | GK47: 1599616.771 | GL47: 1599613.549 | GM47: 1599623.796 | GN47: 1599120.515 | GO47: 1599845.622 | GP47: -337.4414612 | GQ47: -228.8515372 | GR47: -232.0728676 | GS47: -221.826642 | GT47: -725.1068038 | GU47: 0 | GV47: 0 | GW47: 0 | GX47: 0 | GY47: 0 | GZ47: 1 | HA47: 0 | HB47: 0 | HC47: 0 | HD47: 0 | HE47: 0
A48: 40 | B48: 4.102537673 | C48: 0.4077162279 | D48: 0.4454090426 | E48: 0.5335518307 | F48: 0.04521262288 | G48: 0.1037971819 | H48: 0.2293743012 | I48: 0.6454901186 | J48: 0.02133839829 | K48: 0.1063569157 | L48: 0.5205680215 | M48: 1.250908837 | N48: -0.07407673689 | O48: -0.1196035246 | P48: 4.280792943 | Q48: -0.5806902315 | R48: 2.699160522e-05 | S48: 3.721373957e-05 | T48: 5.518726796e-05 | U48: 0.0001273469958 | V48: 0.0001160005581 | W48: 0.0002533916987 | X48: 0.0004138841941 | Y48: 0.0006725562268 | Z48: 0.0009204953397 | AA48: 0.001211747966 | AB48: 0.001734816884 | AC48: 0.00227314075 | AD48: 0.003131554839 | AE48: 0.003640649604 | AF48: 0.003240962876 | AG48: 1.614442126e-05 | AH48: 6.080105309e-05 | AI48: 5.525854764e-05 | AJ48: 9.036783821e-05 | AK48: 0.0001269217396 | AL48: 0.0002904354216 | AM48: 0.0004051237771 | AN48: 0.0008025360278 | AO48: 0.001450701095 | AP48: 0.001853427634 | AQ48: 0.002889038413 | AR48: 0.003500020876 | AS48: 0.004555233023 | AT48: 0.005123328184 | AU48: 0.004704341838 | AV48: 0.4989898096 | AW48: 0.7490450581 | AX48: 0.6967312239 | AY48: 0.6868846697 | AZ48: 0.01373835979 | BA48: 0.05182547393 | BB48: 0.1493605358 | BC48: 0.5372588659 | BD48: 0.2529030999 | BE48: 0.001330897614 | BF48: 0.02130066157 | BG48: 0.0255440716 | BH48: 0.03134382649 | BI48: 0.04848597159 | BJ48: 0.09343427136 | BK48: 0.9837569731 | BL48: 0.7331144813 | BM48: 1.789281673 | BN48: 0.6467794152 | BO48: 0.6481685427 | BP48: 0.1484102997 | BQ48: 0.09966339401 | BR48: 0.1037577636 | BS48: 0.1758364746 | BT48: 0.2682070911 | BU48: 0.2937507934 | BV48: 0.2622056409 | BW48: 0.2082974277 | BX48: 0.5319779503 | BY48: 0.09231914501 | BZ48: 0.167405477 | CA48: 0.9647859675 | CB48: 0.7523446846 | CC48: 0.009056672612 | CD48: 0.9430920317 | CE48: 0.006203054632 | CF48: 0.83930893 | CG48: 0.8593892603 | CH48: 0.4804964473 | CI48: 0.00203712561 | CJ48: 0.1701546004 | CK48: 0.8993978112 | CL48: 0.8993978112 | CM48: 0.8993978112 | CN48: 0.8993978112 | CO48: 0.05443392982 | CP48: 0.04144557926 | CQ48: 0.04144557926 | CR48: 0.04144557926 | CS48: 0.6628407738 | CT48: -2.420266381 | CU48: 0.08964595902 | CV48: 0.3840644825 | CW48: 0.1234230565 | CX48: 0.9519821013 | CY48: 0.6169992532 | CZ48: 0.50849425 | DA48: 0.8501089748 | DB48: 0.8865041091 | DC48: 1 | DD48: 0.7884378379 | DE48: 0.6961133068 | DF48: 149.1478895 | DG48: 142.0628311 | DH48: 128.9515653 | DI48: 36.69989659 | DJ48: 311.261934 | DK48: 775.7691335 | DL48: 109.9805381 | DM48: 44.59732867 | DN48: 159.7021886 | DO48: 130.8232023 | DP48: 172.6231156 | DQ48: 604.7483733 | DR48: 11041.62308 | DS48: 6375.741481 | DT48: 4107.439025 | DU48: 3879.795576 | DV48: 1971.557912 | DW48: 11799.09487 | DX48: 7995.423854 | DY48: 4855.320055 | DZ48: 4359.852905 | EA48: 1376.108228 | EB48: 9292.099636 | EC48: 16654.58443 | ED48: 5656.135251 | EE48: 5212.529818 | EF48: 1515.708591 | EG48: 9282.199172 | EH48: 7727.074728 | EI48: 7197.59985 | EJ48: 3955.868152 | EK48: 611.2755546 | EL48: 0.9541166546 | EM48: 0.01716362492 | EN48: -0.0003293217665 | EO48: -1.164414706e-05 | EP48: 1.02417398 | EQ48: 1.052582196 | ER48: 1.032442326 | ES48: 1.019919002 | ET48: 0.476935594 | EU48: 1 | EV48: 1 | EW48: 1 | EX48: 0.7468162509 | EY48: 1 | EZ48: 543.1180484 | FA48: 431.9506914 | FB48: 721.3847643 | FC48: 537.3781586 | FD48: 749.2439193 | FE48: 117.5315382 | FF48: 811.3195687 | FG48: 783.1875375 | FH48: 828.2770915 | FI48: 776.3129566 | FJ48: 750.3727247 | FK48: 605.844946 | FL48: 1354.437617 | FM48: 1215.138229 | FN48: 1549.661856 | FO48: 1313.691115 | FP48: 1499.616644 | FQ48: 723.3764842 | FR48: 10.28822928 | FS48: 10.28684217 | FT48: 10.28925019 | FU48: 10.28681211 | FV48: 10.29209964 | FW48: 10.28019454 | FX48: 62.63803343 | FY48: 62.63743463 | FZ48: 62.63741924 | GA48: 62.63650861 | GB48: 62.63613536 | GC48: 62.62811957 | GD48: 72.92626271 | GE48: 72.9242768 | GF48: 72.92666943 | GG48: 72.92332072 | GH48: 72.928235 | GI48: 72.90831412 | GJ48: 1457170.817 | GK48: 1457270.398 | GL48: 1456983.727 | GM48: 1457152.723 | GN48: 1457065.083 | GO48: 1457442.906 | GP48: -272.0893226 | GQ48: -172.5081018 | GR48: -459.1790536 | GS48: -290.182572 | GT48: -377.8224317 | GU48: 0 | GV48: 0 | GW48: 0 | GX48: 0 | GY48: 0 | GZ48: 1 | HA48: 0 | HB48: 0 | HC48: 0 | HD48: 0 | HE48: 0
A49: 41 | B49: 3.325549589 | C49: 0.4239827655 | D49: 0.4552531557 | E49: 0.5361668201 | F49: 0.02605795815 | G49: 0.09280461286 | H49: 0.2951972086 | I49: 0.5614805135 | J49: 0.05051766508 | K49: 0.1175013935 | L49: 0.4048372664 | M49: 0.6157327763 | N49: 0.007227550248 | O49: -0.06360152998 | P49: 4.273229623 | Q49: -0.6622415693 | R49: 3.055369717e-05 | S49: 3.395017635e-05 | T49: 7.574444374e-05 | U49: 0.0001043950259 | V49: 9.568084794e-05 | W49: 0.0001877671711 | X49: 0.0003640882115 | Y49: 0.0006319337192 | Z49: 0.0008482661978 | AA49: 0.001121274421 | AB49: 0.001696028023 | AC49: 0.002401969428 | AD49: 0.003040507251 | AE49: 0.00365548377 | AF49: 0.003126413123 | AG49: 1.612912601e-05 | AH49: 2.083310219e-05 | AI49: 5.165709182e-05 | AJ49: 0.0001101767725 | AK49: 0.0001215115502 | AL49: 0.00023570255 | AM49: 0.0003843153214 | AN49: 0.0008204442626 | AO49: 0.001458588174 | AP49: 0.001974916609 | AQ49: 0.002721957271 | AR49: 0.003526497798 | AS49: 0.004480332261 | AT49: 0.005095649369 | AU49: 0.004621166789 | AV49: 0.5008537419 | AW49: 0.7469398142 | AX49: 0.6917802493 | AY49: 0.6834197685 | AZ49: 0.01386746684 | BA49: 0.05138546825 | BB49: 0.1492436658 | BC49: 0.5388900197 | BD49: 0.2994373106 | BE49: 0.002641024059 | BF49: 0.02465083557 | BG49: 0.0266190992 | BH49: 0.03012246554 | BI49: 0.04740241418 | BJ49: 0.08731293547 | BK49: 0.9849224124 | BL49: 0.6699673221 | BM49: 1.613861633 | BN49: 0.2973324509 | BO49: 0.5734735752 | BP49: 0.119607705 | BQ49: 0.2520123421 | BR49: 0.05490637773 | BS49: 0.1759114081 | BT49: 0.2715513408 | BU49: 0.2915109928 | BV49: 0.2610262583 | BW49: 0.2416879571 | BX49: 0.434206757 | BY49: 0.2006356103 | BZ49: 0.1234696756 | CA49: 0.9551357262 | CB49: 0.7534315447 | CC49: 0.0005823820278 | CD49: 0.8729438176 | CE49: 0.002017885199 | CF49: 0.8165403863 | CG49: 0.8260056152 | CH49: 0.7980156101 | CI49: 0.0009280019574 | CJ49: 0.1145131247 | CK49: 0.9697312375 | CL49: 0.9697312375 | CM49: 0.9697312375 | CN49: 0.9697312375 | CO49: 0.0649387844 | CP49: 0.03918884025 | CQ49: 0.03918884025 | CR49: 0.03918884025 | CS49: 0.6290285685 | CT49: -2.141082162 | CU49: 0.05832114402 | CV49: 0.9271876791 | CW49: 0.2094177273 | CX49: 0.9692371724 | CY49: 0.7822769238 | CZ49: 0.2183928829 | DA49: 0.9307450211 | DB49: 0.9989135311 | DC49: 1 | DD49: 0.791717404 | DE49: 0.7004798484 | DF49: 206.8330694 | DG49: 192.6517015 | DH49: 109.4927635 | DI49: 21.69574132 | DJ49: 360.7660645 | DK49: 997.7247353 | DL49: 171.2207635 | DM49: 37.97612641 | DN49: 191.0312492 | DO49: 94.7480986 | DP49: 146.3505188 | DQ49: 504.481528 | DR49: 8088.921141 | DS49: 6709.135363 | DT49: 4045.794548 | DU49: 3218.8467 | DV49: 1328.561759 | DW49: 8454.341246 | DX49: 6239.096796 | DY49: 7756.623706 | DZ49: 3219.873936 | EA49: 1797.572106 | EB49: 14249.52257 | EC49: 6121.694145 | ED49: 6056.251207 | EE49: 4766.290015 | EF49: 1449.113353 | EG49: 14500.06465 | EH49: 6481.373805 | EI49: 5407.007793 | EJ49: 6421.553273 | EK49: 814.5774668 | EL49: 0.9479607876 | EM49: 0.02546451817 | EN49: -0.0003449410192 | EO49: -3.26313541e-05 | EP49: 1.035814471 | EQ49: 1.026222143 | ER49: 0.9300260978 | ES49: 1.076222675 | ET49: 0.3378037706 | EU49: 1 | EV49: 1 | EW49: 1 | EX49: 0.801114174 | EY49: 1 | EZ49: 692.2343913 | FA49: 485.2162845 | FB49: 617.5975159 | FC49: 490.857016 | FD49: 482.5344007 | FE49: 134.9000613 | FF49: 609.4563 | FG49: 593.356157 | FH49: 593.6612489 | FI49: 580.5064566 | FJ49: 525.508429 | FK49: 499.1144745 | FL49: 1301.690691 | FM49: 1078.572442 | FN49: 1211.258765 | FO49: 1071.363473 | FP49: 1008.04283 | FQ49: 634.0145358 | FR49: 9.03247814 | FS49: 9.031685654 | FT49: 9.030887151 | FU49: 9.030080428 | FV49: 9.03181999 | FW49: 9.020980804 | FX49: 44.50803134 | FY49: 44.5075338 | FZ49: 44.50607882 | GA49: 44.50537768 | GB49: 44.4977671 | GC49: 44.49371117 | GD49: 53.54050948 | GE49: 53.53921945 | GF49: 53.53696597 | GG49: 53.53545811 | GH49: 53.52958709 | GI49: 53.51469197 | GJ49: 1069508.499 | GK49: 1069705.817 | GL49: 1069528.061 | GM49: 1069637.799 | GN49: 1069583.699 | GO49: 1069659.825 | GP49: -151.3260379 | GQ49: 45.99174838 | GR49: -131.7641885 | GS49: -22.02613362 | GT49: -76.12596237 | GU49: 0 | GV49: 1 | GW49: 0 | GX49: 0 | GY49: 0 | GZ49: 0 | HA49: 0 | HB49: 1 | HC49: 0 | HD49: 0 | HE49: 0
A50: 42 | B50: 5.122030161 | C50: 0.4080068681 | D50: 0.4202374239 | E50: 0.5276650168 | F50: 0.02589513192 | G50: 0.1409841252 | H50: 0.2735741201 | I50: 0.5259470068 | J50: 0.05949474778 | K50: -0.04857247224 | L50: 0.4226525124 | M50: 0.6244423698 | N50: -0.3472679684 | O50: -0.2873404982 | P50: 4.340453536 | Q50: -0.5751980502 | R50: 2.297557975e-05 | S50: 2.638757449e-05 | T50: 5.215969721e-05 | U50: 0.0001209838676 | V50: 0.0001083127625 | W50: 0.0001973357683 | X50: 0.0003781781529 | Y50: 0.0006177823052 | Z50: 0.0009541499848 | AA50: 0.001180664479 | AB50: 0.001670677115 | AC50: 0.002195823448 | AD50: 0.002991518386 | AE50: 0.003396404381 | AF50: 0.002997809876 | AG50: 1.335654708e-05 | AH50: 1.194253299e-05 | AI50: 5.716139791e-05 | AJ50: 6.533548308e-05 | AK50: 0.0001500366039 | AL50: 0.0002567332235 | AM50: 0.0004425306645 | AN50: 0.0008777081938 | AO50: 0.00141079201 | AP50: 0.001898264903 | AQ50: 0.002719974074 | AR50: 0.003574320059 | AS50: 0.004618388137 | AT50: 0.005130900451 | AU50: 0.004366237765 | AV50: 0.5068412521 | AW50: 0.747604879 | AX50: 0.6956103103 | AY50: 0.6808066502 | AZ50: 0.01390696962 | BA50: 0.05309629969 | BB50: 0.1494568908 | BC50: 0.552002024 | BD50: 0.940361114 | BE50: 0.001458945302 | BF50: 0.02612323321 | BG50: 0.02942890903 | BH50: 0.03137030825 | BI50: 0.04980355153 | BJ50: 0.09555002045 | BK50: 0.9627218836 | BL50: 0.7171830582 | BM50: 1.825439307 | BN50: 0.3378006561 | BO50: 0.7018704218 | BP50: 0.1627215163 | BQ50: 0.07768190591 | BR50: 0.05772615601 | BS50: 0.1779281111 | BT50: 0.2686753762 | BU50: 0.294113291 | BV50: 0.2592832216 | BW50: 0.2111407735 | BX50: 0.3498733946 | BY50: 0.316640769 | BZ50: 0.1223450629 | CA50: 0.9618644621 | CB50: 0.7519360547 | CC50: 4.764368747e-06 | CD50: 0.8223306461 | CE50: 0.001416738699 | CF50: 0.8272213501 | CG50: 0.8044849934 | CH50: 0.561064566 | CI50: 0.02337710026 | CJ50: 0.07867641765 | CK50: 0.9594708437 | CL50: 0.9594708437 | CM50: 0.9594708437 | CN50: 0.9594708437 | CO50: 0.009005919984 | CP50: 0.1557538755 | CQ50: 0.1557538755 | CR50: 0.1557538755 | CS50: 0.6448777381 | CT50: -3.888553582 | CU50: 0.09000990012 | CV50: 0.0204941045 | CW50: 0.0217880504 | CX50: 0.9815500824 | CY50: 0.7135446977 | CZ50: 0.6100509194 | DA50: 0.9234101279 | DB50: 0.9554657282 | DC50: 1 | DD50: 0.7676681802 | DE50: 0.6887007965 | DF50: 204.0400826 | DG50: 182.7123511 | DH50: 119.0577947 | DI50: 26.13507887 | DJ50: 350.4876266 | DK50: 546.2851316 | DL50: 121.6334935 | DM50: 34.76307339 | DN50: 156.8214658 | DO50: 135.4505006 | DP50: 118.9820833 | DQ50: 707.3301063 | DR50: 8092.328206 | DS50: 5416.194454 | DT50: 3195.536356 | DU50: 3183.716151 | DV50: 1342.076696 | DW50: 7286.212436 | DX50: 4918.3212 | DY50: 4747.247333 | DZ50: 3900.124279 | EA50: 1537.155632 | EB50: 12562.40923 | EC50: 7153.471386 | ED50: 7197.213363 | EE50: 3359.469156 | EF50: 1842.687274 | EG50: 9362.940072 | EH50: 8260.199932 | EI50: 5895.868891 | EJ50: 4498.235818 | EK50: 692.3049515 | EL50: 0.9648592767 | EM50: 0.02302557232 | EN50: -0.0007431119881 | EO50: -5.470222077e-05 | EP50: 0.962916049 | EQ50: 0.9459191874 | ER50: 1.104202808 | ES50: 1.132953509 | ET50: 0.4927765011 | EU50: 1 | EV50: 1 | EW50: 1 | EX50: 0.8227893312 | EY50: 1 | EZ50: 568.7298139 | FA50: 448.759691 | FB50: 681.5630368 | FC50: 521.9946008 | FD50: 777.4326073 | FE50: 126.8885983 | FF50: 867.24541 | FG50: 849.9459651 | FH50: 859.0070275 | FI50: 819.5234249 | FJ50: 830.8647922 | FK50: 702.4397322 | FL50: 1435.975224 | FM50: 1298.705656 | FN50: 1540.570064 | FO50: 1341.518026 | FP50: 1608.297399 | FQ50: 829.3283305 | FR50: 7.535771265 | FS50: 7.536333482 | FT50: 7.532186021 | FU50: 7.531425325 | FV50: 7.528850372 | FW50: 7.5194529 | FX50: 59.43812964 | FY50: 59.43738166 | FZ50: 59.43337731 | GA50: 59.42951654 | GB50: 59.43420329 | GC50: 59.40658192 | GD50: 66.97390091 | GE50: 66.97371514 | GF50: 66.96556333 | GG50: 66.96094186 | GH50: 66.96305366 | GI50: 66.92603482 | GJ50: 1338042.043 | GK50: 1338175.597 | GL50: 1337770.697 | GM50: 1337877.319 | GN50: 1337652.776 | GO50: 1337691.368 | GP50: 350.6749597 | GQ50: 484.2291737 | GR50: 79.32851183 | GS50: 185.9512466 | GT50: -38.59222695 | GU50: 0 | GV50: 1 | GW50: 0 | GX50: 0 | GY50: 0 | GZ50: 0 | HA50: 1 | HB50: 1 | HC50: 1 | HD50: 1 | HE50: 0
A51: 43 | B51: 6.15511659 | C51: 0.3864070673 | D51: 0.4844004475 | E51: 0.5013736507 | F51: 0.04096163274 | G51: 0.1199360871 | H51: 0.4164581277 | I51: 0.3186562955 | J51: 0.1449494897 | K51: 0.1617269847 | L51: 0.6865233617 | M51: 0.8220798754 | N51: -0.2009497908 | O51: -0.3741129083 | P51: 4.333996078 | Q51: -0.4745173744 | R51: 1.619425981e-05 | S51: 2.790880273e-05 | T51: 4.81459152e-05 | U51: 0.0001545430362 | V51: 9.447940916e-05 | W51: 0.0002220381964 | X51: 0.00039935199 | Y51: 0.0005796401253 | Z51: 0.0008914452808 | AA51: 0.001296633371 | AB51: 0.001753580028 | AC51: 0.002399900447 | AD51: 0.003148319943 | AE51: 0.003618835209 | AF51: 0.003182634957 | AG51: 7.031682015e-05 | AH51: 1.075885568e-05 | AI51: 4.264377735e-05 | AJ51: 9.505561915e-05 | AK51: 0.0001267356871 | AL51: 0.0002400717503 | AM51: 0.000466868606 | AN51: 0.0008661530044 | AO51: 0.001413312926 | AP51: 0.002179215904 | AQ51: 0.002836990374 | AR51: 0.003990009016 | AS51: 0.004781266588 | AT51: 0.005044998116 | AU51: 0.004585476726 | AV51: 0.4959144484 | AW51: 0.7428049477 | AX51: 0.6850902069 | AY51: 0.6941064684 | AZ51: 0.01417346458 | BA51: 0.05292928904 | BB51: 0.146994974 | BC51: 0.5488230621 | BD51: 0.6908106371 | BE51: 0.000546354768 | BF51: 0.02784708422 | BG51: 0.02916079611 | BH51: 0.03015971927 | BI51: 0.05051684423 | BJ51: 0.09200743408 | BK51: 0.9642120572 | BL51: 0.7537019702 | BM51: 2.014386713 | BN51: 0.3782629001 | BO51: 0.7613744691 | BP51: 0.1023376475 | BQ51: 0.1021800629 | BR51: 0.03410782048 | BS51: 0.1757161328 | BT51: 0.2706840678 | BU51: 0.296374046 | BV51: 0.2572257534 | BW51: 0.139497821 | BX51: 0.4061999406 | BY51: 0.3146083642 | BZ51: 0.1396938742 | CA51: 0.9765416889 | CB51: 0.8178802015 | CC51: 0.01468538211 | CD51: 0.9123741443 | CE51: 0.0002521204216 | CF51: 0.8458662139 | CG51: 0.9593946498 | CH51: 0.9144403024 | CI51: 0.01051766491 | CJ51: 0.02548634256 | CK51: 0.9011196875 | CL51: 0.9011196875 | CM51: 0.9011196875 | CN51: 0.9011196875 | CO51: 0.04309523527 | CP51: 0.02708444156 | CQ51: 0.02708444156 | CR51: 0.02708444156 | CS51: 0.6401975093 | CT51: -1.371226711 | CU51: 0.8734054233 | CV51: 0.3800499398 | CW51: 0.3158750483 | CX51: 0.8990118032 | CY51: 0.4401396198 | CZ51: 0.6356240494 | DA51: 0.7902411576 | DB51: 0.9260927977 | DC51: 1 | DD51: 0.7862145508 | DE51: 0.7180268627 | DF51: 180.9893981 | DG51: 202.3361233 | DH51: 153.6249957 | DI51: 15.80699017 | DJ51: 382.4205379 | DK51: 485.7610401 | DL51: 181.8694207 | DM51: 22.63767959 | DN51: 198.3689302 | DO51: 139.1377235 | DP51: 139.631174 | DQ51: 589.882946 | DR51: 10647.47494 | DS51: 4228.304271 | DT51: 4028.494141 | DU51: 2857.989036 | DV51: 1043.615208 | DW51: 9604.403492 | DX51: 5392.963873 | DY51: 7367.799119 | DZ51: 3113.405073 | EA51: 1868.794903 | EB51: 13827.48236 | EC51: 6332.26599 | ED51: 7190.829221 | EE51: 4415.484642 | EF51: 1787.827509 | EG51: 8418.540087 | EH51: 9306.943256 | EI51: 5971.600469 | EJ51: 3483.82515 | EK51: 1083.098214 | EL51: 0.9540732466 | EM51: 0.0266091455 | EN51: -0.0008279358085 | EO51: 3.060135403e-06 | EP51: 1.015911741 | EQ51: 0.9987286056 | ER51: 0.9617749976 | ES51: 0.9887089957 | ET51: 0.09505528773 | EU51: 1 | EV51: 1 | EW51: 1 | EX51: 0.7700913366 | EY51: 1 | EZ51: 483.4248657 | FA51: 439.6249919 | FB51: 456.8941076 | FC51: 448.0666964 | FD51: 797.0562388 | FE51: 172.3419699 | FF51: 1189.03906 | FG51: 1153.853031 | FH51: 1162.452782 | FI51: 1144.937692 | FJ51: 1196.039029 | FK51: 1009.732621 | FL51: 1672.463925 | FM51: 1593.478023 | FN51: 1619.34689 | FO51: 1593.004388 | FP51: 1993.095268 | FQ51: 1182.074591 | FR51: 10.77595213 | FS51: 10.77561131 | FT51: 10.77543718 | FU51: 10.7747796 | FV51: 10.78278956 | FW51: 10.75668461 | FX51: 97.54941264 | FY51: 97.54855628 | FZ51: 97.54828943 | GA51: 97.5469331 | GB51: 97.56401951 | GC51: 97.51183569 | GD51: 108.3253648 | GE51: 108.3241676 | GF51: 108.3237266 | GG51: 108.3217127 | GH51: 108.3468091 | GI51: 108.2685203 | GJ51: 2164834.832 | GK51: 2164889.874 | GL51: 2164855.185 | GM51: 2164841.25 | GN51: 2164943.086 | GO51: 2164188.331 | GP51: 646.5002034 | GQ51: 701.5423713 | GR51: 666.8540222 | GS51: 652.9182241 | GT51: 754.7546163 | GU51: 0 | GV51: 0 | GW51: 0 | GX51: 0 | GY51: 1 | GZ51: 0 | HA51: 1 | HB51: 1 | HC51: 1 | HD51: 1 | HE51: 1
A52: 44 | B52: 2.858960657 | C52: 0.4636243723 | D52: 0.4320917313 | E52: 0.5444167806 | F52: 0.02232470499 | G52: 0.1921510932 | H52: 0.2660151936 | I52: 0.4930364109 | J52: 0.0487973024 | K52: -0.03163744727 | L52: 0.5327093636 | M52: 0.6504531045 | N52: -0.01535539565 | O52: -0.1561578567 | P52: 4.329295245 | Q52: -0.5276602096 | R52: 5.779138682e-05 | S52: 2.218865403e-05 | T52: 3.462690471e-05 | U52: 9.029242571e-05 | V52: 0.0001045635785 | W52: 0.0002109864221 | X52: 0.0003980436235 | Y52: 0.0005882928469 | Z52: 0.0009027763118 | AA52: 0.001161755855 | AB52: 0.001736712324 | AC52: 0.002285295021 | AD52: 0.003053149037 | AE52: 0.003535481258 | AF52: 0.003084221491 | AG52: 2.90818674e-05 | AH52: 1.950794012e-05 | AI52: 6.109024403e-05 | AJ52: 8.36035839e-05 | AK52: 0.0001169217513 | AL52: 0.000252402134 | AM52: 0.0003938089531 | AN52: 0.0009409660454 | AO52: 0.001402247523 | AP52: 0.001985138183 | AQ52: 0.002764485312 | AR52: 0.003788807565 | AS52: 0.00451802402 | AT52: 0.004909974632 | AU52: 0.004528578836 | AV52: 0.4992277652 | AW52: 0.7400367487 | AX52: 0.693038248 | AY52: 0.6812183997 | AZ52: 0.01443624611 | BA52: 0.05260753134 | BB52: 0.150539512 | BC52: 0.5473168228 | BD52: 0.5249737979 | BE52: 0.0004567211672 | BF52: 0.0226184605 | BG52: 0.02864392179 | BH52: 0.02935332206 | BI52: 0.04557312708 | BJ52: 0.08896291822 | BK52: 0.9730598405 | BL52: 0.7888222759 | BM52: 1.601019005 | BN52: 0.1644700995 | BO52: 0.738056777 | BP52: 0.04434760156 | BQ52: 0.100356204 | BR52: 0.1172394175 | BS52: 0.1782887248 | BT52: 0.2699751757 | BU52: 0.2922012796 | BV52: 0.2595348198 | BW52: 0.1670647443 | BX52: 0.6588860323 | BY52: 0.1075070281 | BZ52: 0.06654219529 | CA52: 0.9909792408 | CB52: 0.8806182809 | CC52: 0.004676182994 | CD52: 0.8776074933 | CE52: 0.0008335343011 | CF52: 0.8318030638 | CG52: 0.8250550383 | CH52: 0.6711390798 | CI52: 0.01697444076 | CJ52: 0.02229753262 | CK52: 0.9639613366 | CL52: 0.9639613366 | CM52: 0.9639613366 | CN52: 0.9639613366 | CO52: 0.09852570948 | CP52: 0.01198306305 | CQ52: 0.01198306305 | CR52: 0.01198306305 | CS52: 0.6533890141 | CT52: -1.135544328 | CU52: 0.06602747337 | CV52: 0.7450103228 | CW52: 0.3187221952 | CX52: 0.8450122979 | CY52: 0.234520787 | CZ52: 0.4155439795 | DA52: 0.891355453 | DB52: 0.997920028 | DC52: 1 | DD52: 0.7950138932 | DE52: 0.7254703231 | DF52: 163.8594536 | DG52: 172.6947062 | DH52: 149.2898659 | DI52: 24.27272018 | DJ52: 362.9397519 | DK52: 805.1885814 | DL52: 117.0251668 | DM52: 40.01135273 | DN52: 193.1050717 | DO52: 134.6018099 | DP52: 107.1960931 | DQ52: 574.3781043 | DR52: 8156.145876 | DS52: 4983.6139 | DT52: 4889.629592 | DU52: 3854.558291 | DV52: 1297.574148 | DW52: 8464.540822 | DX52: 7392.725201 | DY52: 5208.965568 | DZ52: 4979.162568 | EA52: 1492.272981 | EB52: 13511.19625 | EC52: 8942.158508 | ED52: 7599.273223 | EE52: 5752.74217 | EF52: 1933.359839 | EG52: 15605.41543 | EH52: 5461.71143 | EI52: 6570.147767 | EJ52: 3903.324527 | EK52: 752.6706689 | EL52: 0.9545610335 | EM52: 0.02041517771 | EN52: -0.0003518849725 | EO52: -3.889790313e-05 | EP52: 0.9813657848 | EQ52: 1.075617774 | ER52: 0.9800006041 | ES52: 1.076415615 | ET52: 1.163954723 | EU52: 1 | EV52: 1 | EW52: 1 | EX52: 0.8268616998 | EY52: 1 | EZ52: 373.3835329 | FA52: 351.4182128 | FB52: 462.6432719 | FC52: 430.1114028 | FD52: 679.0229598 | FE52: 146.9798001 | FF52: 492.447316 | FG52: 477.6697354 | FH52: 520.9341062 | FI52: 487.4774538 | FJ52: 490.2430552 | FK52: 452.2115351 | FL52: 865.8308489 | FM52: 829.0879482 | FN52: 983.5773782 | FO52: 917.5888567 | FP52: 1169.266015 | FQ52: 599.1913352 | FR52: 8.783557925 | FS52: 8.784325718 | FT52: 8.781084102 | FU52: 8.782739028 | FV52: 8.781322535 | FW52: 8.780118051 | FX52: 38.02868551 | FY52: 38.02824404 | FZ52: 38.02870364 | GA52: 38.02762946 | GB52: 38.0321572 | GC52: 38.02289375 | GD52: 46.81224343 | GE52: 46.81256976 | GF52: 46.80978775 | GG52: 46.81036849 | GH52: 46.81347974 | GI52: 46.8030118 | GJ52: 935379.0378 | GK52: 935422.3073 | GL52: 935212.1775 | GM52: 935289.781 | GN52: 935100.3287 | GO52: 935461.0447 | GP52: -82.006922 | GQ52: -38.73740333 | GR52: -248.867178 | GS52: -171.2637348 | GT52: -360.7159768 | GU52: 0 | GV52: 0 | GW52: 0 | GX52: 0 | GY52: 0 | GZ52: 1 | HA52: 0 | HB52: 0 | HC52: 0 | HD52: 0 | HE52: 0
A53: 45 | B53: 4.457566721 | C53: 0.4395275898 | D53: 0.4364511097 | E53: 0.5079348398 | F53: 0.03052835906 | G53: 0.1182131742 | H53: 0.321433521 | I53: 0.5145260301 | J53: 0.04582727468 | K53: 0.1724725163 | L53: 0.7272871415 | M53: 1.146440854 | N53: -0.08656465259 | O53: -0.1841509168 | P53: 4.287109957 | Q53: -0.5404781337 | R53: 9.914411045e-06 | S53: 3.169615886e-05 | T53: 5.066224235e-05 | U53: 0.0001105236689 | V53: 0.0001079815244 | W53: 0.0001976221407 | X53: 0.0003904686077 | Y53: 0.0005740054579 | Z53: 0.0008748310684 | AA53: 0.001230415766 | AB53: 0.001665582673 | AC53: 0.002298617368 | AD53: 0.002879045942 | AE53: 0.003589522238 | AF53: 0.003076853422 | AG53: 1.981322629e-05 | AH53: 2.400001004e-05 | AI53: 6.393338474e-05 | AJ53: 8.527001539e-05 | AK53: 0.0001213657931 | AL53: 0.0002453365898 | AM53: 0.0004160439146 | AN53: 0.0008509375066 | AO53: 0.001576706776 | AP53: 0.00199007524 | AQ53: 0.002694136436 | AR53: 0.003885328099 | AS53: 0.004654292032 | AT53: 0.005003630933 | AU53: 0.004196258787 | AV53: 0.5107059554 | AW53: 0.7478264194 | AX53: 0.6939702473 | AY53: 0.679839163 | AZ53: 0.01520284626 | BA53: 0.05177364774 | BB53: 0.1483372111 | BC53: 0.5422254912 | BD53: 0.788235546 | BE53: 0.001916695757 | BF53: 0.02504740065 | BG53: 0.02860509756 | BH53: 0.03208412202 | BI53: 0.04719195406 | BJ53: 0.09115525108 | BK53: 0.9791079009 | BL53: 0.6535356854 | BM53: 2.729237949 | BN53: 0.2389234741 | BO53: 0.7469125233 | BP53: 0.1184185096 | BQ53: 0.1120237243 | BR53: 0.02264524273 | BS53: 0.1786560012 | BT53: 0.2709061545 | BU53: 0.292344211 | BV53: 0.2580936334 | BW53: 0.06180365345 | BX53: 0.5040491892 | BY53: 0.2025155138 | BZ53: 0.2316316436 | CA53: 0.9491585948 | CB53: 0.7723980513 | CC53: 0.0009262604472 | CD53: 0.9348002224 | CE53: 0.0005761838816 | CF53: 0.8112174469 | CG53: 0.9574332433 | CH53: 0.964491136 | CI53: 0.007336817383 | CJ53: 0.0162153109 | CK53: 0.9542648437 | CL53: 0.9542648437 | CM53: 0.9542648437 | CN53: 0.9542648437 | CO53: 0.008773972309 | CP53: 0.08308986672 | CQ53: 0.08308986672 | CR53: 0.08308986672 | CS53: 0.6669966866 | CT53: -0.5108453209 | CU53: 1.442709373 | CV53: -1.882435611 | CW53: 0.631709298 | CX53: 0.6179239715 | CY53: 0.3807197055 | CZ53: 0.6701412598 | DA53: 0.9835206338 | DB53: 0.9343554738 | DC53: 1 | DD53: 0.7912859448 | DE53: 0.7092507087 | DF53: 202.5039298 | DG53: 177.6061069 | DH53: 133.030214 | DI53: 21.62880628 | DJ53: 276.1555775 | DK53: 768.2116172 | DL53: 104.2319684 | DM53: 24.83620839 | DN53: 184.6207886 | DO53: 177.9021567 | DP53: 99.54594218 | DQ53: 548.9535659 | DR53: 7359.094027 | DS53: 7304.944709 | DT53: 4368.039459 | DU53: 3145.317974 | DV53: 1068.93864 | DW53: 7667.097699 | DX53: 7095.633236 | DY53: 4331.923243 | DZ53: 3986.354923 | EA53: 2086.127493 | EB53: 11094.70136 | EC53: 10533.35102 | ED53: 6966.433961 | EE53: 4662.751537 | EF53: 1422.161684 | EG53: 11822.56502 | EH53: 7251.77333 | EI53: 8426.845815 | EJ53: 5984.692463 | EK53: 739.8225515 | EL53: 0.9403056081 | EM53: 0.02443303852 | EN53: -0.0001298585288 | EO53: -4.462784816e-05 | EP53: 0.9595780084 | EQ53: 1.057082602 | ER53: 1.010923611 | ES53: 1.057365386 | ET53: 0.145526225 | EU53: 1 | EV53: 1 | EW53: 1 | EX53: 0.7532358786 | EY53: 1 | EZ53: 506.2042891 | FA53: 424.3165895 | FB53: 366.9368425 | FC53: 359.5975687 | FD53: 940.4752354 | FE53: 145.8793349 | FF53: 871.7881697 | FG53: 794.2094957 | FH53: 787.6518994 | FI53: 773.8903761 | FJ53: 805.4818507 | FK53: 729.0921508 | FL53: 1377.992459 | FM53: 1218.526085 | FN53: 1154.588742 | FO53: 1133.487945 | FP53: 1745.957086 | FQ53: 874.9714857 | FR53: 8.2623803 | FS53: 8.262168561 | FT53: 8.262318508 | FU53: 8.261339896 | FV53: 8.271704066 | FW53: 8.24842994 | FX53: 57.93898775 | FY53: 57.9368707 | FZ53: 57.93695385 | GA53: 57.93518878 | GB53: 57.95421058 | GC53: 57.91456504 | GD53: 66.20136805 | GE53: 66.19903926 | GF53: 66.19927235 | GG53: 66.19652867 | GH53: 66.22591465 | GI53: 66.16299498 | GJ53: 1322649.368 | GK53: 1322762.259 | GL53: 1322830.858 | GM53: 1322797.085 | GN53: 1322772.336 | GO53: 1322384.928 | GP53: 264.4403739 | GQ53: 377.3310395 | GR53: 445.9302829 | GS53: 412.1574202 | GT53: 387.4077955 | GU53: 0 | GV53: 0 | GW53: 1 | GX53: 0 | GY53: 0 | GZ53: 0 | HA53: 1 | HB53: 1 | HC53: 1 | HD53: 1 | HE53: 1
A54: 46 | B54: 3.514331214 | C54: 0.425247382 | D54: 0.4665869125 | E54: 0.5309687058 | F54: 0.0420946464 | G54: 0.06383807637 | H54: 0.2732561752 | I54: 0.3072968491 | J54: 0.3556088994 | K54: 0.1397029475 | L54: 0.3901470864 | M54: 0.7003256887 | N54: -0.09114832395 | O54: -0.2330767972 | P54: 4.2981144 | Q54: -0.6524853906 | R54: 3.276483711e-05 | S54: 2.147192712e-05 | T54: 4.530093911e-05 | U54: 0.0001048767362 | V54: 0.0001050462004 | W54: 0.0001885793867 | X54: 0.0003278404193 | Y54: 0.0005804221361 | Z54: 0.0008343281825 | AA54: 0.001180043895 | AB54: 0.001853852535 | AC54: 0.002266351105 | AD54: 0.002932325339 | AE54: 0.003686410882 | AF54: 0.00308337308 | AG54: 2.896761707e-05 | AH54: 2.407354017e-05 | AI54: 4.944590399e-05 | AJ54: 0.0001059861546 | AK54: 0.0001189714837 | AL54: 0.0002628042782 | AM54: 0.0004191572841 | AN54: 0.0008061832098 | AO54: 0.001458469598 | AP54: 0.002066375017 | AQ54: 0.002881312866 | AR54: 0.003961639799 | AS54: 0.004389698909 | AT54: 0.005102531625 | AU54: 0.004824857447 | AV54: 0.4931879872 | AW54: 0.7429125646 | AX54: 0.6949286184 | AY54: 0.6780049723 | AZ54: 0.01292042784 | BA54: 0.05227309212 | BB54: 0.147071434 | BC54: 0.5494679981 | BD54: 0.5947945574 | BE54: 0.001443373609 | BF54: 0.0328111498 | BG54: 0.0269511914 | BH54: 0.03116053015 | BI54: 0.04751220377 | BJ54: 0.09267068794 | BK54: 0.9795290685 | BL54: 0.6550931531 | BM54: 2.307406275 | BN54: 0.4812809032 | BO54: 0.6242921112 | BP54: 0.1483993078 | BQ54: 0.1934050065 | BR54: 0.03390357455 | BS54: 0.1763041339 | BT54: 0.2682895903 | BU54: 0.2940505003 | BV54: 0.2613557755 | BW54: 0.2085516486 | BX54: 0.3984760268 | BY54: 0.2676824892 | BZ54: 0.1252898354 | CA54: 0.9851405468 | CB54: 0.7205555363 | CC54: 0.0001684744453 | CD54: 0.9452874898 | CE54: 0.004680501136 | CF54: 0.80149416 | CG54: 0.9148235835 | CH54: 0.628869039 | CI54: 0.0008226127775 | CJ54: 0.044160591 | CK54: 0.8752774804 | CL54: 0.8752774804 | CM54: 0.8752774804 | CN54: 0.8752774804 | CO54: 0.01143786543 | CP54: 0.03074506717 | CQ54: 0.03074506717 | CR54: 0.03074506717 | CS54: 0.6202806864 | CT54: -2.847553367 | CU54: 0.1474402889 | CV54: 2.00886653 | CW54: 0.2658224351 | CX54: 0.9996565504 | CY54: 0.5947787589 | CZ54: 0.6987155958 | DA54: 0.8526380412 | DB54: 0.8725721771 | DC54: 1 | DD54: 0.784138178 | DE54: 0.7235116141 | DF54: 204.2954771 | DG54: 219.9299518 | DH54: 142.9791214 | DI54: 19.89434764 | DJ54: 259.4355093 | DK54: 540.5215307 | DL54: 133.7525445 | DM54: 33.87977847 | DN54: 160.5351883 | DO54: 186.877639 | DP54: 129.7623119 | DQ54: 619.3488102 | DR54: 10369.45452 | DS54: 4317.805776 | DT54: 3965.628698 | DU54: 3440.469157 | DV54: 1324.011116 | DW54: 8196.032847 | DX54: 7244.961386 | DY54: 6652.167032 | DZ54: 4223.533588 | EA54: 1669.612663 | EB54: 13379.99412 | EC54: 12058.15195 | ED54: 9148.448347 | EE54: 3765.212668 | EF54: 1621.821654 | EG54: 12317.33112 | EH54: 8944.254268 | EI54: 6875.508831 | EJ54: 4118.759752 | EK54: 881.0860136 | EL54: 0.9447561219 | EM54: 0.01805868592 | EN54: -0.0006521417049 | EO54: -5.625286215e-05 | EP54: 1.002462693 | EQ54: 1.030962833 | ER54: 1.018120687 | ES54: 1.001944415 | ET54: 0.1462596451 | EU54: 1 | EV54: 1 | EW54: 1 | EX54: 0.7989367464 | EY54: 1 | EZ54: 555.2426801 | FA54: 489.0398671 | FB54: 612.2841083 | FC54: 553.3097825 | FD54: 798.1867578 | FE54: 155.8630221 | FF54: 679.5726376 | FG54: 678.8486354 | FH54: 672.4116096 | FI54: 669.47923 | FJ54: 693.3976838 | FK54: 578.3107339 | FL54: 1234.815318 | FM54: 1167.888502 | FN54: 1284.695718 | FO54: 1222.789012 | FP54: 1491.584442 | FQ54: 734.173756 | FR54: 7.341520493 | FS54: 7.341374649 | FT54: 7.340893528 | FU54: 7.34056165 | FV54: 7.342951366 | FW54: 7.332160938 | FX54: 40.22964803 | FY54: 40.22955633 | FZ54: 40.22888692 | GA54: 40.22860321 | GB54: 40.2313222 | GC54: 40.21897559 | GD54: 47.57116852 | GE54: 47.57093098 | GF54: 47.56978044 | GG54: 47.56916486 | GH54: 47.57427357 | GI54: 47.55113653 | GJ54: 950188.5552 | GK54: 950250.731 | GL54: 950110.9132 | GM54: 950160.5081 | GN54: 949993.8869 | GO54: 950288.5568 | GP54: -100.0016288 | GQ54: -37.82577994 | GR54: -177.6436273 | GS54: -128.0487 | GT54: -294.6698816 | GU54: 0 | GV54: 0 | GW54: 0 | GX54: 0 | GY54: 0 | GZ54: 1 | HA54: 0 | HB54: 0 | HC54: 0 | HD54: 0 | HE54: 0
A55: 47 | B55: 4.003117385 | C55: 0.444945399 | D55: 0.4325058652 | E55: 0.4847389264 | F55: 0.07075474223 | G55: 0.200871458 | H55: 0.6278771592 | I55: 0.03187300816 | J55: 0.1393783746 | K55: -0.02559982092 | L55: 0.3741381255 | M55: 0.7121554995 | N55: -0.0536042798 | O55: -0.1072243693 | P55: 4.312680043 | Q55: -0.6762040859 | R55: 7.627782673e-05 | S55: 4.462042057e-05 | T55: 5.539092181e-05 | U55: 0.0001225185249 | V55: 0.0001002050032 | W55: 0.0002053020108 | X55: 0.0004283387461 | Y55: 0.0006417024742 | Z55: 0.001015734113 | AA55: 0.001224763028 | AB55: 0.001809812156 | AC55: 0.002277688854 | AD55: 0.003010556448 | AE55: 0.003495753771 | AF55: 0.003055356661 | AG55: 9.194359838e-06 | AH55: 2.557722289e-05 | AI55: 6.116312584e-05 | AJ55: 8.990327356e-05 | AK55: 0.0001301492497 | AL55: 0.0002300959718 | AM55: 0.0003956602137 | AN55: 0.0009343687134 | AO55: 0.001481518682 | AP55: 0.001982121568 | AQ55: 0.002985803585 | AR55: 0.003868895194 | AS55: 0.004589428183 | AT55: 0.005204575166 | AU55: 0.004271983538 | AV55: 0.4809887825 | AW55: 0.7529596037 | AX55: 0.6989646324 | AY55: 0.6946453286 | AZ55: 0.01376422674 | BA55: 0.05257880102 | BB55: 0.1476064782 | BC55: 0.5479716994 | BD55: 0.3732418166 | BE55: 0.002788407011 | BF55: 0.03003408205 | BG55: 0.02658386731 | BH55: 0.03165179868 | BI55: 0.04784348614 | BJ55: 0.09370776499 | BK55: 0.9792369659 | BL55: 0.7518959392 | BM55: 1.805005137 | BN55: 0.2713798848 | BO55: 0.6769064772 | BP55: 0.129609638 | BQ55: 0.09575512144 | BR55: 0.09772876338 | BS55: 0.177313393 | BT55: 0.266933681 | BU55: 0.295900503 | BV55: 0.2598524229 | BW55: 0.1723476091 | BX55: 0.4907827373 | BY55: 0.1969802295 | BZ55: 0.1398894241 | CA55: 0.9749984099 | CB55: 0.783727259 | CC55: 0.03166941967 | CD55: 0.8802237137 | CE55: 0.01126318054 | CF55: 0.8008088901 | CG55: 0.9821816154 | CH55: 0.9424967753 | CI55: 0.006238710174 | CJ55: 0.05168208156 | CK55: 0.9672692023 | CL55: 0.9672692023 | CM55: 0.9672692023 | CN55: 0.9672692023 | CO55: 0.008714920899 | CP55: 0.1906239471 | CQ55: 0.1906239471 | CR55: 0.1906239471 | CS55: 0.6866797148 | CT55: -1.943478367 | CU55: 0.09563244827 | CV55: -0.3999410534 | CW55: 0.08986382768 | CX55: 0.8362219858 | CY55: 0.3171431215 | CZ55: 0.4104094601 | DA55: 0.9880745915 | DB55: 0.8682927953 | DC55: 1 | DD55: 0.7801823313 | DE55: 0.7401629266 | DF55: 303.8758048 | DG55: 231.4980617 | DH55: 114.2233947 | DI55: 33.46534842 | DJ55: 389.0094682 | DK55: 651.7054052 | DL55: 107.9279648 | DM55: 28.8104019 | DN55: 204.6670868 | DO55: 215.145969 | DP55: 138.7185557 | DQ55: 558.5873092 | DR55: 8757.980356 | DS55: 5892.584382 | DT55: 3751.491381 | DU55: 3426.086412 | DV55: 1518.660944 | DW55: 6488.684219 | DX55: 7118.275605 | DY55: 5705.442343 | DZ55: 4278.544058 | EA55: 918.218789 | EB55: 16860.70945 | EC55: 7244.205593 | ED55: 8047.308948 | EE55: 6067.172839 | EF55: 1987.615347 | EG55: 13792.23079 | EH55: 11744.38596 | EI55: 7509.766494 | EJ55: 6990.646387 | EK55: 945.7878114 | EL55: 0.9487270309 | EM55: 0.02017928018 | EN55: -1.668417481e-05 | EO55: -2.404633082e-05 | EP55: 1.018478865 | EQ55: 0.9994480192 | ER55: 0.9781714892 | ES55: 0.9731179385 | ET55: 0.1297789682 | EU55: 1 | EV55: 1 | EW55: 1 | EX55: 0.7542081655 | EY55: 1 | EZ55: 774.1353745 | FA55: 715.0591838 | FB55: 619.9763953 | FC55: 607.7685638 | FD55: 840.4022559 | FE55: 309.4045329 | FF55: 1145.070571 | FG55: 1104.037073 | FH55: 1108.567461 | FI55: 1083.477172 | FJ55: 1125.760805 | FK55: 994.0932429 | FL55: 1919.205945 | FM55: 1819.096256 | FN55: 1728.543857 | FO55: 1691.245736 | FP55: 1966.163061 | FQ55: 1303.497776 | FR55: 9.730995532 | FS55: 9.730220399 | FT55: 9.730791028 | FU55: 9.727485059 | FV55: 9.738223965 | FW55: 9.70926441 | FX55: 60.03456538 | FY55: 60.03335447 | FZ55: 60.03428821 | GA55: 60.02889898 | GB55: 60.04496515 | GC55: 59.99904648 | GD55: 69.76556091 | GE55: 69.76357487 | GF55: 69.76507924 | GG55: 69.75638404 | GH55: 69.78318912 | GI55: 69.70831089 | GJ55: 1393392.012 | GK55: 1393452.401 | GL55: 1393573.041 | GM55: 1393436.435 | GN55: 1393697.619 | GO55: 1392862.72 | GP55: 529.292279 | GQ55: 589.6811968 | GR55: 710.3209975 | GS55: 573.7150526 | GT55: 834.8993836 | GU55: 0 | GV55: 0 | GW55: 0 | GX55: 0 | GY55: 1 | GZ55: 0 | HA55: 1 | HB55: 1 | HC55: 1 | HD55: 1 | HE55: 1
A56: 48 | B56: 6.221375403 | C56: 0.4208394798 | D56: 0.4574555336 | E56: 0.5029771165 | F56: 0.02617624998 | G56: 0.08307165823 | H56: 0.2452864259 | I56: 0.4820853871 | J56: 0.1895565288 | K56: 0.0335682957 | L56: 0.6740256428 | M56: 1.272498291 | N56: -0.02397112384 | O56: -0.2133893691 | P56: 4.31048778 | Q56: -0.5575165766 | R56: 0.0001325567009 | S56: 3.653051559e-05 | T56: 5.776492106e-05 | U56: 0.0001357696664 | V56: 0.000120820244 | W56: 0.0001817606251 | X56: 0.0003537145992 | Y56: 0.0005371126787 | Z56: 0.0009320301542 | AA56: 0.001101961073 | AB56: 0.001733648914 | AC56: 0.002372412134 | AD56: 0.003153030856 | AE56: 0.003759451119 | AF56: 0.002900277718 | AG56: 1.237732949e-05 | AH56: 9.457120485e-06 | AI56: 6.101508101e-05 | AJ56: 8.154568624e-05 | AK56: 0.0001400292223 | AL56: 0.0002289118847 | AM56: 0.0004099578943 | AN56: 0.0008610893441 | AO56: 0.001496288827 | AP56: 0.00203667701 | AQ56: 0.00274796855 | AR56: 0.003955484074 | AS56: 0.004753262931 | AT56: 0.00518722164 | AU56: 0.004384946958 | AV56: 0.5084974462 | AW56: 0.7506985889 | AX56: 0.6950612908 | AY56: 0.6870627569 | AZ56: 0.01429547458 | BA56: 0.05271486369 | BB56: 0.1493979055 | BC56: 0.5504131767 | BD56: 1.128807463 | BE56: 0.003822225843 | BF56: 0.02504839092 | BG56: 0.0272990129 | BH56: 0.03188749152 | BI56: 0.04742710829 | BJ56: 0.09271417655 | BK56: 0.9824696284 | BL56: 0.7192517566 | BM56: 2.163270203 | BN56: 0.2493794005 | BO56: 0.6892699658 | BP56: 0.1336841875 | BQ56: 0.1024516631 | BR56: 0.07459418355 | BS56: 0.1755234608 | BT56: 0.2690512852 | BU56: 0.2971842419 | BV56: 0.2582410121 | BW56: 0.246497034 | BX56: 0.4977185913 | BY56: 0.1876111996 | BZ56: 0.06817317513 | CA56: 0.9879050596 | CB56: 0.8136594696 | CC56: 0.0001368967416 | CD56: 0.8089236646 | CE56: 0.003355145232 | CF56: 0.8478214219 | CG56: 0.9466901945 | CH56: 0.6020663369 | CI56: 0.01727282534 | CJ56: 0.09204694106 | CK56: 0.9185219925 | CL56: 0.9185219925 | CM56: 0.9185219925 | CN56: 0.9185219925 | CO56: 0.09270642737 | CP56: 0.1278930594 | CQ56: 0.1278930594 | CR56: 0.1278930594 | CS56: 0.6735622637 | CT56: -4.16441492 | CU56: 0.01812321466 | CV56: 0.5491345075 | CW56: 0.04079064046 | CX56: 0.9958978467 | CY56: 0.3004721109 | CZ56: 0.4098643208 | DA56: 0.9882193124 | DB56: 0.6714619749 | DC56: 1 | DD56: 0.7539484699 | DE56: 0.7195569504 | DF56: 153.7080449 | DG56: 150.9540328 | DH56: 132.9484835 | DI56: 30.21984251 | DJ56: 329.9766084 | DK56: 680.1005418 | DL56: 139.30283 | DM56: 29.60965545 | DN56: 111.4616505 | DO56: 164.7380975 | DP56: 120.1891374 | DQ56: 738.6291421 | DR56: 9938.839674 | DS56: 6859.347913 | DT56: 5161.953075 | DU56: 2305.027003 | DV56: 1756.695315 | DW56: 8374.818554 | DX56: 6140.469673 | DY56: 5915.502739 | DZ56: 3815.077984 | EA56: 1516.68734 | EB56: 14268.27159 | EC56: 8218.306244 | ED56: 9916.182124 | EE56: 4121.650484 | EF56: 1874.52311 | EG56: 12065.59448 | EH56: 9406.720566 | EI56: 6191.967644 | EJ56: 5652.063076 | EK56: 570.244597 | EL56: 0.9483939669 | EM56: 0.02369076146 | EN56: -5.079540037e-05 | EO56: -4.608272145e-05 | EP56: 1.00112665 | EQ56: 1.074988571 | ER56: 0.9811826173 | ES56: 0.9576437143 | ET56: 0.2988276396 | EU56: 1 | EV56: 1 | EW56: 1 | EX56: 0.7597457458 | EY56: 1 | EZ56: 373.7183612 | FA56: 341.2350903 | FB56: 449.9727055 | FC56: 404.3386867 | FD56: 643.5460806 | FE56: 130.6986575 | FF56: 988.795905 | FG56: 987.2740752 | FH56: 988.2465341 | FI56: 979.8210066 | FJ56: 1006.535932 | FK56: 934.7226236 | FL56: 1362.514266 | FM56: 1328.509165 | FN56: 1438.21924 | FO56: 1384.159693 | FP56: 1650.082012 | FQ56: 1065.421281 | FR56: 8.355797154 | FS56: 8.355700253 | FT56: 8.355659281 | FU56: 8.355059162 | FV56: 8.357619911 | FW56: 8.35120676 | FX56: 77.23834978 | FY56: 77.23820971 | FZ56: 77.23799052 | GA56: 77.23693485 | GB56: 77.24164075 | GC56: 77.22944483 | GD56: 85.59414694 | GE56: 85.59390997 | GF56: 85.5936498 | GG56: 85.59199401 | GH56: 85.59926066 | GI56: 85.58065159 | GJ56: 1710520.424 | GK56: 1710549.69 | GL56: 1710434.777 | GM56: 1710455.721 | GN56: 1710335.131 | GO56: 1710547.61 | GP56: -27.18599881 | GQ56: 2.079700017 | GR56: -112.8336159 | GS56: -91.88985696 | GT56: -212.4792282 | GU56: 0 | GV56: 1 | GW56: 0 | GX56: 0 | GY56: 0 | GZ56: 0 | HA56: 0 | HB56: 1 | HC56: 0 | HD56: 0 | HE56: 0
A57: 49 | B57: 5.716979104 | C57: 0.4103289357 | D57: 0.4637037001 | E57: 0.5287473034 | F57: 0.01990662891 | G57: 0.08834121583 | H57: 0.4342838066 | I57: 0.3942580568 | J57: 0.08311692078 | K57: 0.1572023882 | L57: 0.7314807053 | M57: 0.6469019531 | N57: -0.3099225964 | O57: -0.473961313 | P57: 4.349121649 | Q57: -0.5301649704 | R57: 3.51319975e-05 | S57: 1.548791617e-05 | T57: 4.017253679e-05 | U57: 0.000128606225 | V57: 0.000119195295 | W57: 0.0002347522802 | X57: 0.0004528496599 | Y57: 0.0005869864096 | Z57: 0.0009208820245 | AA57: 0.001135395007 | AB57: 0.001745263357 | AC57: 0.002445849136 | AD57: 0.003002225476 | AE57: 0.003443505768 | AF57: 0.003211047655 | AG57: 1.230696819e-05 | AH57: 1.806150539e-05 | AI57: 7.580225159e-05 | AJ57: 9.482931384e-05 | AK57: 0.000115473509 | AL57: 0.0002396058613 | AM57: 0.0004085566114 | AN57: 0.0008306603217 | AO57: 0.00145927846 | AP57: 0.001987351871 | AQ57: 0.002894402458 | AR57: 0.003627253855 | AS57: 0.004577077457 | AT57: 0.005017534771 | AU57: 0.004545818769 | AV57: 0.4926834651 | AW57: 0.746043737 | AX57: 0.7025364752 | AY57: 0.6752430037 | AZ57: 0.01375661224 | BA57: 0.05181231517 | BB57: 0.1478335722 | BC57: 0.5318061455 | BD57: 0.670448201 | BE57: 0.009545396073 | BF57: 0.02994164663 | BG57: 0.0276560423 | BH57: 0.0330995455 | BI57: 0.04833200339 | BJ57: 0.09328339057 | BK57: 0.9663059929 | BL57: 0.7158407514 | BM57: 3.289624712 | BN57: 0.1346287391 | BO57: 0.676622983 | BP57: 0.2079607206 | BQ57: 0.08517833295 | BR57: 0.03023796344 | BS57: 0.1724189012 | BT57: 0.2704668328 | BU57: 0.29877367 | BV57: 0.2583405961 | BW57: 0.2079620848 | BX57: 0.5144358675 | BY57: 0.1560766382 | BZ57: 0.1215254095 | CA57: 0.99368279 | CB57: 0.8082912228 | CC57: 2.785649246e-05 | CD57: 0.8409479852 | CE57: 0.0004651554444 | CF57: 0.8194992033 | CG57: 0.948598226 | CH57: 0.8933797644 | CI57: 0.005296905599 | CJ57: 0.1222894095 | CK57: 0.9295219573 | CL57: 0.9295219573 | CM57: 0.9295219573 | CN57: 0.9295219573 | CO57: 0.02929634649 | CP57: 0.0695737411 | CQ57: 0.0695737411 | CR57: 0.0695737411 | CS57: 0.7456822818 | CT57: 2.471879134 | CU57: 0.3553538909 | CV57: 0.3870755708 | CW57: 0.8987431332 | CX57: 0.05818971694 | CY57: 0.4389217265 | CZ57: 0.6548281178 | DA57: 0.9980490308 | DB57: 0.8800229984 | DC57: 1 | DD57: 0.7501703296 | DE57: 0.7217405322 | DF57: 212.1521746 | DG57: 207.4975641 | DH57: 122.2365985 | DI57: 34.02892147 | DJ57: 410.4443806 | DK57: 936.1381273 | DL57: 115.8470759 | DM57: 31.79616364 | DN57: 206.1613501 | DO57: 188.8449348 | DP57: 156.0137781 | DQ57: 558.6141549 | DR57: 9888.923035 | DS57: 5489.872649 | DT57: 3405.580379 | DU57: 2650.413649 | DV57: 1381.71616 | DW57: 8888.50458 | DX57: 7703.895953 | DY57: 4841.344155 | DZ57: 2683.570127 | EA57: 1385.283895 | EB57: 16272.56945 | EC57: 10426.11895 | ED57: 6551.989226 | EE57: 4587.83431 | EF57: 1681.402552 | EG57: 10365.72628 | EH57: 8142.192207 | EI57: 5322.734609 | EJ57: 4231.124596 | EK57: 1006.2985 | EL57: 0.9530223332 | EM57: 0.02255376229 | EN57: -0.001186494124 | EO57: -1.312700749e-05 | EP57: 0.9372040037 | EQ57: 0.98916007 | ER57: 0.9941596715 | ES57: 0.9618017982 | ET57: 0.2398539134 | EU57: 1 | EV57: 1 | EW57: 1 | EX57: 0.8082413203 | EY57: 1 | EZ57: 553.818258 | FA57: 413.4236014 | FB57: 456.9612333 | FC57: 384.6875345 | FD57: 1107.922831 | FE57: 122.3489958 | FF57: 1082.615966 | FG57: 886.9370988 | FH57: 967.6796747 | FI57: 859.7982366 | FJ57: 833.7458803 | FK57: 804.8821375 | FL57: 1636.434224 | FM57: 1300.3607 | FN57: 1424.640908 | FO57: 1244.485771 | FP57: 1941.668712 | FQ57: 927.2311332 | FR57: 9.220595779 | FS57: 9.220723017 | FT57: 9.220119742 | FU57: 9.219391109 | FV57: 9.222184389 | FW57: 9.206718989 | FX57: 82.06242474 | FY57: 82.05788651 | FZ57: 82.05869238 | GA57: 82.05464962 | GB57: 82.06970814 | GC57: 82.02809903 | GD57: 91.28302052 | GE57: 91.27860952 | GF57: 91.27881213 | GG57: 91.27404073 | GH57: 91.29189253 | GI57: 91.23481801 | GJ57: 1824023.976 | GK57: 1824271.83 | GL57: 1824151.602 | GM57: 1824236.329 | GN57: 1823896.182 | GO57: 1823769.129 | GP57: 254.8470663 | GQ57: 502.7005957 | GR57: 382.4724554 | GS57: 467.1996209 | GT57: 127.0526863 | GU57: 0 | GV57: 1 | GW57: 0 | GX57: 0 | GY57: 0 | GZ57: 0 | HA57: 1 | HB57: 1 | HC57: 1 | HD57: 1 | HE57: 1
A58: 50 | B58: 9.912609368 | C58: 0.408557583 | D58: 0.4451540608 | E58: 0.5256909118 | F58: 0.0329335029 | G58: 0.06144787322 | H58: 0.1521647434 | I58: 0.7496773791 | J58: 0.03671000427 | K58: 0.08672411787 | L58: 0.362639864 | M58: 0.6539227696 | N58: -0.09415402513 | O58: -0.2285044461 | P58: 4.288833952 | Q58: -0.6208229813 | R58: 1.529589315e-05 | S58: 2.148911002e-05 | T58: 6.716400278e-05 | U58: 0.0001348271145 | V58: 0.000134178106 | W58: 0.0001961761879 | X58: 0.0004454715501 | Y58: 0.0006154285379 | Z58: 0.0009346279057 | AA58: 0.001116545939 | AB58: 0.001619351467 | AC58: 0.002273211115 | AD58: 0.003173246792 | AE58: 0.003565504261 | AF58: 0.002960118386 | AG58: 2.054079422e-05 | AH58: 2.178308674e-05 | AI58: 4.936250736e-05 | AJ58: 9.383832287e-05 | AK58: 0.0001237494444 | AL58: 0.0002284785289 | AM58: 0.0004018043901 | AN58: 0.0007882716079 | AO58: 0.00153239429 | AP58: 0.001985027833 | AQ58: 0.002670250144 | AR58: 0.00367073749 | AS58: 0.004455881093 | AT58: 0.005028904366 | AU58: 0.004406177947 | AV58: 0.5035285049 | AW58: 0.7432698832 | AX58: 0.7055533617 | AY58: 0.6878655195 | AZ58: 0.0131916004 | BA58: 0.05302049553 | BB58: 0.1460724826 | BC58: 0.5367547235 | BD58: 0.8116948431 | BE58: 0.002177836933 | BF58: 0.02538168662 | BG58: 0.02757809366 | BH58: 0.03102809815 | BI58: 0.04841517163 | BJ58: 0.0887154015 | BK58: 0.9727656873 | BL58: 0.6882482622 | BM58: 2.578143376 | BN58: 0.2430370892 | BO58: 0.7061172872 | BP58: 0.07088185378 | BQ58: 0.1335939014 | BR58: 0.0894069577 | BS58: 0.1765118483 | BT58: 0.2698618554 | BU58: 0.2973251634 | BV58: 0.256301133 | BW58: 0.1707571079 | BX58: 0.4740419039 | BY58: 0.2191211126 | BZ58: 0.1360798756 | CA58: 0.9685737899 | CB58: 0.7418342423 | CC58: 0.004290017646 | CD58: 0.9099535808 | CE58: 0.0002667199952 | CF58: 0.8326427645 | CG58: 0.9755538801 | CH58: 0.9339016874 | CI58: 0.02215358209 | CJ58: 0.118367307 | CK58: 0.9839840327 | CL58: 0.9839840327 | CM58: 0.9839840327 | CN58: 0.9839840327 | CO58: 0.04367227972 | CP58: 0.09067441791 | CQ58: 0.09067441791 | CR58: 0.09067441791 | CS58: 0.6709065163 | CT58: -0.5158222471 | CU58: 0.4443793485 | CV58: 0.982653609 | CW58: 0.4552082642 | CX58: 0.7696379931 | CY58: 0.9277602363 | CZ58: 0.5214536319 | DA58: 0.9005492167 | DB58: 0.9971197556 | DC58: 1 | DD58: 0.7730608716 | DE58: 0.7090585324 | DF58: 146.8204246 | DG58: 206.8948357 | DH58: 95.52616267 | DI58: 20.42361437 | DJ58: 260.6474383 | DK58: 643.9682238 | DL58: 154.9817435 | DM58: 35.02347069 | DN58: 195.8257291 | DO58: 162.1744746 | DP58: 127.4414674 | DQ58: 548.9095544 | DR58: 7446.256549 | DS58: 5177.925402 | DT58: 4935.506942 | DU58: 3798.26884 | DV58: 1266.296782 | DW58: 12002.19219 | DX58: 5130.857019 | DY58: 5826.704784 | DZ58: 2848.136015 | EA58: 1420.510376 | EB58: 12184.9794 | EC58: 9262.000064 | ED58: 6041.391931 | EE58: 5599.198896 | EF58: 1695.541484 | EG58: 13709.72777 | EH58: 9441.406939 | EI58: 5726.162127 | EJ58: 5120.305947 | EK58: 656.090964 | EL58: 0.9445969154 | EM58: 0.02171910515 | EN58: -0.0002424617138 | EO58: 7.361761393e-06 | EP58: 1.02091222 | EQ58: 1.026092995 | ER58: 1.072617511 | ES58: 0.9583538719 | ET58: 0.1810617935 | EU58: 1 | EV58: 1 | EW58: 1 | EX58: 0.8213720292 | EY58: 1 | EZ58: 657.8769029 | FA58: 430.7743982 | FB58: 498.0293562 | FC58: 451.5446953 | FD58: 704.1958387 | FE58: 164.8004597 | FF58: 2181.606036 | FG58: 1870.131954 | FH58: 1901.856077 | FI58: 1814.007115 | FJ58: 1691.240525 | FK58: 1546.85404 | FL58: 2839.482939 | FM58: 2300.906352 | FN58: 2399.885433 | FO58: 2265.551811 | FP58: 2395.436364 | FQ58: 1711.654499 | FR58: 11.29275589 | FS58: 11.29137899 | FT58: 11.29231711 | FU58: 11.28741496 | FV58: 11.26993766 | FW58: 11.23787391 | FX58: 169.7233221 | FY58: 169.7149067 | FZ58: 169.7185015 | GA58: 169.7015444 | GB58: 169.6386345 | GC58: 169.5369364 | GD58: 181.0160779 | GE58: 181.0062857 | GF58: 181.0108187 | GG58: 180.9889594 | GH58: 180.9085721 | GI58: 180.7748103 | GJ58: 3617482.076 | GK58: 3617824.808 | GL58: 3617816.488 | GM58: 3617513.636 | GN58: 3615776.006 | GO58: 3613784.552 | GP58: 3697.523604 | GQ58: 4040.255781 | GR58: 4031.935417 | GS58: 3729.083194 | GT58: 1991.453714 | GU58: 0 | GV58: 1 | GW58: 0 | GX58: 0 | GY58: 0 | GZ58: 0 | HA58: 1 | HB58: 1 | HC58: 1 | HD58: 1 | HE58: 1
A59: 51 | B59: 2.852147633 | C59: 0.4494279018 | D59: 0.4379960917 | E59: 0.5338959859 | F59: 0.04974148566 | G59: 0.269742685 | H59: 0.5496347558 | I59: 0.1022146006 | J59: 0.07840795864 | K59: -0.09036404097 | L59: 0.4871069979 | M59: 0.4721873716 | N59: -0.2237273946 | O59: -0.2778275113 | P59: 4.360284524 | Q59: -0.5788189792 | R59: 1.806736203e-05 | S59: 2.158311271e-05 | T59: 4.210822727e-05 | U59: 0.0001036157829 | V59: 0.0001192453733 | W59: 0.0002079865533 | X59: 0.0003635109602 | Y59: 0.0005943374856 | Z59: 0.0008930204333 | AA59: 0.001082723143 | AB59: 0.001688654239 | AC59: 0.002560325774 | AD59: 0.003044726927 | AE59: 0.003520885008 | AF59: 0.002966368791 | AG59: 3.117297892e-05 | AH59: 4.305986482e-05 | AI59: 4.545493427e-05 | AJ59: 9.500226067e-05 | AK59: 0.000119274632 | AL59: 0.00025462551 | AM59: 0.0004142521742 | AN59: 0.0008757668436 | AO59: 0.001455766953 | AP59: 0.001798179657 | AQ59: 0.002729716921 | AR59: 0.003807983396 | AS59: 0.004822905168 | AT59: 0.004887239849 | AU59: 0.004371210085 | AV59: 0.5020659926 | AW59: 0.7545031041 | AX59: 0.6975422941 | AY59: 0.6826268412 | AZ59: 0.01378725955 | BA59: 0.0524882373 | BB59: 0.1468484091 | BC59: 0.5441021488 | BD59: 0.4809216662 | BE59: 0.02137618839 | BF59: 0.02530900329 | BG59: 0.02740047862 | BH59: 0.03060579145 | BI59: 0.04806000072 | BJ59: 0.09558875161 | BK59: 0.9811226878 | BL59: 0.7736404421 | BM59: 2.019970671 | BN59: 0.2946156166 | BO59: 0.6698622022 | BP59: 0.06776322565 | BQ59: 0.1326622042 | BR59: 0.129712368 | BS59: 0.1779483128 | BT59: 0.2691196403 | BU59: 0.2939098919 | BV59: 0.2590221551 | BW59: 0.1661759497 | BX59: 0.5574135228 | BY59: 0.1671668879 | BZ59: 0.1092436397 | CA59: 0.948615281 | CB59: 0.6612839751 | CC59: 0.0001720679692 | CD59: 0.8985390204 | CE59: 0.02761104876 | CF59: 0.832317587 | CG59: 0.971655447 | CH59: 0.9581474542 | CI59: 0.001121782563 | CJ59: 0.002863272117 | CK59: 0.9693876614 | CL59: 0.9693876614 | CM59: 0.9693876614 | CN59: 0.9693876614 | CO59: 0.1159932008 | CP59: 0.1490587077 | CQ59: 0.1490587077 | CR59: 0.1490587077 | CS59: 0.6485035667 | CT59: 0.9704441057 | CU59: 0.1143384132 | CV59: -0.05436645569 | CW59: 0.7419120504 | CX59: 0.291360929 | CY59: 0.661219235 | CZ59: 0.6384573741 | DA59: 0.8923364274 | DB59: 0.9525770785 | DC59: 1 | DD59: 0.7471586723 | DE59: 0.7170877861 | DF59: 209.6698732 | DG59: 207.0931336 | DH59: 106.3106262 | DI59: 28.07522264 | DJ59: 278.3343036 | DK59: 907.0483431 | DL59: 149.2828796 | DM59: 41.41296271 | DN59: 136.8276946 | DO59: 196.2621059 | DP59: 103.5266536 | DQ59: 653.1885653 | DR59: 7934.402352 | DS59: 6861.805902 | DT59: 3712.753785 | DU59: 2891.280002 | DV59: 1737.89767 | DW59: 6662.320407 | DX59: 7181.021865 | DY59: 5628.594754 | DZ59: 3923.088646 | EA59: 1814.128632 | EB59: 14563.94982 | EC59: 7012.997534 | ED59: 10806.50965 | EE59: 3757.572623 | EF59: 1335.945304 | EG59: 11404.48689 | EH59: 6482.022345 | EI59: 4671.53609 | EJ59: 6180.134886 | EK59: 1071.38308 | EL59: 0.9457391917 | EM59: 0.02236807721 | EN59: -0.000531161354 | EO59: -1.339465865e-06 | EP59: 1.020008875 | EQ59: 0.984651251 | ER59: 0.9801861687 | ES59: 0.9616910963 | ET59: 0.5133687355 | EU59: 1 | EV59: 1 | EW59: 1 | EX59: 0.8432871622 | EY59: 1 | EZ59: 1107.056124 | FA59: 646.135982 | FB59: 574.8507879 | FC59: 525.7576817 | FD59: 1056.113695 | FE59: 221.7095626 | FF59: 1193.522864 | FG59: 769.8105277 | FH59: 738.3793891 | FI59: 680.677626 | FJ59: 663.5181095 | FK59: 560.9508344 | FL59: 2300.578988 | FM59: 1415.94651 | FN59: 1313.230177 | FO59: 1206.435308 | FP59: 1719.631804 | FQ59: 782.660397 | FR59: 10.53947811 | FS59: 10.53763232 | FT59: 10.53866803 | FU59: 10.5348214 | FV59: 10.53858554 | FW59: 10.51190538 | FX59: 45.5335121 | FY59: 45.52912476 | FZ59: 45.5303587 | GA59: 45.52497027 | GB59: 45.52786055 | GC59: 45.49385298 | GD59: 56.07299021 | GE59: 56.06675707 | GF59: 56.06902673 | GG59: 56.05979167 | GH59: 56.06644609 | GI59: 56.00575835 | GJ59: 1119159.225 | GK59: 1119919.195 | GL59: 1120067.304 | GM59: 1119989.398 | GN59: 1119609.29 | GO59: 1119332.507 | GP59: -173.2813592 | GQ59: 586.6882966 | GR59: 734.797777 | GS59: 656.8915115 | GT59: 276.7833423 | GU59: 0 | GV59: 0 | GW59: 1 | GX59: 0 | GY59: 0 | GZ59: 0 | HA59: 0 | HB59: 1 | HC59: 1 | HD59: 1 | HE59: 1
A60: 52 | B60: 6.988071901 | C60: 0.4194316758 | D60: 0.434470083 | E60: 0.5173007958 | F60: 0.03113021858 | G60: 0.06718875665 | H60: 0.1800819032 | I60: 0.5882337061 | J60: 0.164495634 | K60: 0.1234157861 | L60: 0.4713411614 | M60: 0.6904093992 | N60: -0.1414494337 | O60: -0.05989414848 | P60: 4.301455706 | Q60: -0.6658289293 | R60: 1.484184082e-05 | S60: 3.593672953e-05 | T60: 5.251646672e-05 | U60: 0.0001299769458 | V60: 0.0001189492151 | W60: 0.0001929314875 | X60: 0.0003952647734 | Y60: 0.0005921865491 | Z60: 0.0009099176317 | AA60: 0.0011992504 | AB60: 0.001765694241 | AC60: 0.002325827525 | AD60: 0.002968876881 | AE60: 0.003745649178 | AF60: 0.002996328609 | AG60: 1.389199939e-05 | AH60: 1.826904919e-05 | AI60: 6.789883951e-05 | AJ60: 9.447646752e-05 | AK60: 0.0001103316172 | AL60: 0.0002064414641 | AM60: 0.0004211501263 | AN60: 0.0008962238004 | AO60: 0.001427221139 | AP60: 0.002010331557 | AQ60: 0.003097901136 | AR60: 0.00400417942 | AS60: 0.004745863006 | AT60: 0.00520513502 | AU60: 0.004468309121 | AV60: 0.4859518898 | AW60: 0.7547856028 | AX60: 0.6944936339 | AY60: 0.6931437889 | AZ60: 0.01366214874 | BA60: 0.05220977778 | BB60: 0.1478142985 | BC60: 0.5477991243 | BD60: 1.081166084 | BE60: 0.002903273823 | BF60: 0.02637160714 | BG60: 0.02718837674 | BH60: 0.03162009146 | BI60: 0.04918466075 | BJ60: 0.09378046457 | BK60: 0.9754429289 | BL60: 0.7001874701 | BM60: 1.708740297 | BN60: 0.4491670399 | BO60: 0.7504428441 | BP60: 0.1080346581 | BQ60: 0.07394859284 | BR60: 0.06757390499 | BS60: 0.1730805407 | BT60: 0.2733765203 | BU60: 0.2928809683 | BV60: 0.2606619706 | BW60: 0.1960677814 | BX60: 0.4910682703 | BY60: 0.1542368006 | BZ60: 0.1586271476 | CA60: 0.9139893668 | CB60: 0.8033819173 | CC60: 0.01116959611 | CD60: 0.9482440647 | CE60: 0.02867387847 | CF60: 0.8305930872 | CG60: 0.9475782566 | CH60: 0.8603418981 | CI60: 0.004363322575 | CJ60: 0.05945902945 | CK60: 0.9315080974 | CL60: 0.9315080974 | CM60: 0.9315080974 | CN60: 0.9315080974 | CO60: 0.0185802517 | CP60: 0.1643009421 | CQ60: 0.1643009421 | CR60: 0.1643009421 | CS60: 0.6407442721 | CT60: -0.1755265564 | CU60: 0.02065113651 | CV60: -0.1172440935 | CW60: 0.4563179218 | CX60: 0.5437057436 | CY60: 0.5131004189 | CZ60: 0.3629501619 | DA60: 0.9578648654 | DB60: 0.9514912807 | DC60: 1 | DD60: 0.7762919049 | DE60: 0.7105460689 | DF60: 140.01037 | DG60: 200.6655834 | DH60: 102.3859217 | DI60: 34.73612436 | DJ60: 345.2507779 | DK60: 581.26222 | DL60: 203.0521604 | DM60: 42.039287 | DN60: 168.3524076 | DO60: 163.6509619 | DP60: 112.7282762 | DQ60: 708.9046264 | DR60: 8381.465162 | DS60: 7077.839649 | DT60: 4450.06663 | DU60: 2457.606195 | DV60: 1232.276623 | DW60: 9723.560589 | DX60: 7242.285876 | DY60: 5307.149755 | DZ60: 3443.75145 | EA60: 1170.230085 | EB60: 13549.6993 | EC60: 13234.75187 | ED60: 6475.513144 | EE60: 3491.834058 | EF60: 1492.811535 | EG60: 12064.97093 | EH60: 10165.86182 | EI60: 6628.859507 | EJ60: 4839.626221 | EK60: 949.9827279 | EL60: 0.9550824659 | EM60: 0.02149870311 | EN60: 0.000226573911 | EO60: -2.775437821e-05 | EP60: 1.053662795 | EQ60: 0.912295028 | ER60: 0.9721281846 | ES60: 1.000979315 | ET60: 0.5440346817 | EU60: 1 | EV60: 1 | EW60: 1 | EX60: 0.777705677 | EY60: 1 | EZ60: 541.6272113 | FA60: 378.5493228 | FB60: 537.5568904 | FC60: 439.1202066 | FD60: 573.395852 | FE60: 103.2247146 | FF60: 1645.900566 | FG60: 1306.381171 | FH60: 1528.942392 | FI60: 1298.086684 | FJ60: 1162.324735 | FK60: 1000.338742 | FL60: 2187.527778 | FM60: 1684.930493 | FN60: 2066.499283 | FO60: 1737.206891 | FP60: 1735.720587 | FQ60: 1103.563457 | FR60: 9.741424882 | FS60: 9.738799039 | FT60: 9.740906799 | FU60: 9.738066375 | FV60: 9.751262686 | FW60: 9.728736829 | FX60: 104.7332629 | FY60: 104.7290259 | FZ60: 104.7329949 | GA60: 104.7268462 | GB60: 104.7223408 | GC60: 104.7014773 | GD60: 114.4746878 | GE60: 114.4678249 | GF60: 114.4739017 | GG60: 114.4649126 | GH60: 114.4736035 | GI60: 114.4302141 | GJ60: 2287306.228 | GK60: 2287671.568 | GL60: 2287411.535 | GM60: 2287561.045 | GN60: 2287736.35 | GO60: 2287500.718 | GP60: -194.4898812 | GQ60: 170.8495952 | GR60: -89.18334411 | GS60: 60.32708582 | GT60: 235.6314855 | GU60: 0 | GV60: 0 | GW60: 0 | GX60: 0 | GY60: 1 | GZ60: 0 | HA60: 0 | HB60: 1 | HC60: 0 | HD60: 1 | HE60: 1
